Workbook

Sheet 1989
A1: 2001-07-04
A3: PRODUCTION INDUSTRIELLE D'ALIMENTS COMPOSES | M3: INDUSTRIELLE MISCHFUTTERPRODUKTION
A4: PRODUZIONE INDUSTRIALE DI MANGIMI COMPOSTI | M4: INDUSTRIAL COMPOUND PRODUCTION
A5: 1989
A6: definitif/final
M7: (1 000 t)
A9: Catégories d'aliments composés/Mischfutterarten | C9: D | D9: F | E9: I | F9: NL | G9: B | H9: UK | I9: IRL | J9: DK | K9: ESP | L9: P | M9: EUR-15
A10: Tipi di mangimi compositi/Types of feed | M10: *
A13: Bovins/Cattle/Bovini/Rinder | C13: =Germany!B16 -> 6,449 | D13: =France!B16 -> 3,716 | E13: =Italy!B16 -> 4,262 | F13: 4,295 | G13: =Belgium!B16 -> 1,428 | H13: =UK!B16 -> 4,201 | I13: =Ireland!B16 -> 1,421 | J13: =Denmark!B16 -> 1,607 | K13: =Spain!B16 -> 3,250 | L13: =Portugal!B16 -> 1,013 | M13: =SUM(C13:L13) -> 31,642
A14: engrais/fattening/Mast | C14: =Germany!B17 -> : | D14: =France!B17 -> : | E14: =Italy!B17 -> : | F14: ='The Netherlands'!B17 -> : | G14: =Belgium!B17 -> : | H14: =UK!B17 -> : | I14: =Ireland!B17 -> : | J14: =Denmark!B17 -> : | K14: =Spain!B17 -> : | L14: =Portugal!B17 -> : | M14: :
A15: VL/dairy cow/Milchkühe | C15: =Germany!B18 -> : | D15: =France!B18 -> : | E15: =Italy!B18 -> : | F15: ='The Netherlands'!B18 -> : | G15: =Belgium!B18 -> : | H15: =UK!B18 -> : | I15: =Ireland!B18 -> : | J15: =Denmark!B18 -> : | K15: =Spain!B18 -> : | L15: =Portugal!B18 -> : | M15: :
A16: veaux (aliments d'allaitement non compris)/calves | C16: =Germany!B19 -> : | D16: =France!B19 -> : | E16: =Italy!B19 -> : | F16: ='The Netherlands'!B19 -> : | G16: =Belgium!B19 -> : | H16: =UK!B19 -> : | I16: =Ireland!B19 -> : | J16: =Denmark!B19 -> : | K16: =Spain!B19 -> : | L16: =Portugal!B19 -> : | M16: :
A17: (excluding milk replacers)/Kälber (exkl. Milchaustauscher)
A18: autres/others/Andere | C18: =Germany!B20 -> : | D18: =France!B20 -> : | E18: =Italy!B20 -> : | F18: ='The Netherlands'!B20 -> : | G18: =Belgium!B20 -> : | H18: =UK!B20 -> : | I18: =Ireland!B20 -> : | J18: =Denmark!B20 -> : | K18: =Spain!B20 -> : | L18: =Portugal!B20 -> : | M18: :
A21: Porcins/Pigs/Suini/Schweine | C21: =Germany!B23 -> 5,434 | D21: =France!B23 -> 5,134 | E21: =Italy!B23 -> 2,427 | F21: 7,611 | G21: =Belgium!B23 -> 2,884 | H21: =UK!B23 -> 2,134 | I21: =Ireland!B23 -> 462 | J21: =Denmark!B23 -> 2,401 | K21: =Spain!B23 -> 5,850 | L21: =Portugal!B23 -> 1,339 | M21: =SUM(C21:L21) -> 35,676
A22: porcelets/piglets/Ferkel | C22: =Germany!B24 -> : | D22: =France!B24 -> : | E22: =Italy!B24 -> : | F22: ='The Netherlands'!B24 -> : | G22: =Belgium!B24 -> : | H22: =UK!B24 -> : | I22: =Ireland!B24 -> : | J22: =Denmark!B24 -> : | K22: =Spain!B24 -> : | L22: =Portugal!B24 -> : | M22: :
A23: porcs engrais/pigs for fattening/Mastschweine | C23: =Germany!B25 -> : | D23: =France!B25 -> : | E23: =Italy!B25 -> : | F23: ='The Netherlands'!B25 -> : | G23: =Belgium!B25 -> : | H23: =UK!B25 -> : | I23: =Ireland!B25 -> : | J23: =Denmark!B25 -> : | K23: =Spain!B25 -> : | L23: =Portugal!B25 -> : | M23: :
A24: reproducteurs/breeding pigs/Zuchtschweine | C24: =Germany!B26 -> : | D24: =France!B26 -> : | E24: =Italy!B26 -> : | F24: ='The Netherlands'!B26 -> : | G24: =Belgium!B26 -> : | H24: =UK!B26 -> : | I24: =Ireland!B26 -> : | J24: =Denmark!B26 -> : | K24: =Spain!B26 -> : | L24: =Portugal!B26 -> : | M24: :
A25: autres/others/Andere | C25: =Germany!B27 -> : | D25: =France!B27 -> : | E25: =Italy!B27 -> : | F25: ='The Netherlands'!B27 -> : | G25: =Belgium!B27 -> : | H25: =UK!B27 -> : | I25: =Ireland!B27 -> : | J25: =Denmark!B27 -> : | K25: =Spain!B27 -> : | L25: =Portugal!B27 -> : | M25: :
A28: Volaille/Poultry/Volatili/Geflügel | C28: =Germany!B30 -> 3,318 | D28: =France!B30 -> 6,468 | E28: =Italy!B30 -> 4,236 | F28: 3,266 | G28: =Belgium!B30 -> 960 | H28: =UK!B30 -> 3,514 | I28: =Ireland!B30 -> 351 | J28: =Denmark!B30 -> 521 | K28: =Spain!B30 -> 4,260 | L28: =Portugal!B30 -> 1,221 | M28: =SUM(C28:L28) -> 28,115
A29: broilers | C29: =Germany!B31 -> : | D29: =France!B31 -> : | E29: =Italy!B31 -> : | F29: ='The Netherlands'!B31 -> : | G29: =Belgium!B31 -> : | H29: =UK!B31 -> : | I29: =Ireland!B31 -> : | J29: =Denmark!B31 -> : | K29: =Spain!B31 -> : | L29: =Portugal!B31 -> : | M29: :
A30: poulettes & pondeuses/chicks & layers/Jung- & Legehennen | C30: =Germany!B32 -> : | D30: =France!B32 -> : | E30: =Italy!B32 -> : | F30: ='The Netherlands'!B32 -> : | G30: =Belgium!B32 -> : | H30: =UK!B32 -> : | I30: =Ireland!B32 -> : | J30: =Denmark!B32 -> : | K30: =Spain!B32 -> : | L30: =Portugal!B32 -> : | M30: :
A31: autres/others/Andere | C31: =Germany!B33 -> : | D31: =France!B33 -> : | E31: =Italy!B33 -> : | F31: ='The Netherlands'!B33 -> : | G31: =Belgium!B33 -> : | H31: =UK!B33 -> : | I31: =Ireland!B33 -> : | J31: =Denmark!B33 -> : | K31: =Spain!B33 -> : | L31: =Portugal!B33 -> : | M31: :
A34: Al. d'allait./Milk replacers/Sostit. del latte/Milchaust. | C34: =Germany!B36 -> 230 | D34: =France!B36 -> 721 | E34: =Italy!B36 -> 283 | F34: ='The Netherlands'!B36 -> 638 | G34: =Belgium!B36 -> 42 | H34: =UK!B36 -> 24 | I34: =Ireland!B36 -> 22 | J34: =Denmark!B36 -> 13 | K34: =Spain!B36 -> 84 | L34: =Portugal!B36 -> 0 | M34: =SUM(C34:L34) -> 2,057
A37: Autres/others/altri/Andere | C37: =Germany!B39 -> 514 | D37: =France!B39 -> 1,454 | E37: =Italy!B39 -> 852 | F37: ='The Netherlands'!B39 -> 487 | G37: =Belgium!B39 -> 133 | H37: =UK!B39 -> 747 | I37: =Ireland!B39 -> 162 | J37: =Denmark!B39 -> 137 | K37: =Spain!B39 -> 1,161 | L37: =Portugal!B39 -> 123 | M37: =SUM(C37:L37) -> 5,770
A40: TOTAL | C40: =C37+C34+C28+C21+C13 -> 15,945 | D40: 17,493 | E40: 12,060 | F40: 16,297 | G40: 5,447 | H40: 10,620 | I40: 2,418 | J40: 4,679 | K40: 14,605 | L40: 3,696 | M40: 103,260
A43: * Sans le Luxembourg et la Grèce/ohne Luxemburg und Griechenland/Without Luxemburg and Greece/Senza Lussemburgo e Ella
A45: : non disponible/not available/nicht verfügbar

Sheet 90-89
A1: 2001-07-04
A3: PRODUCTION INDUSTRIELLE D'ALIMENTS COMPOSES | X3: INDUSTRIELLE MISCHFUTTERPRODUKTION
A4: PRODUZIONE INDUSTRIALE DI MANGIMI COMPOSTI | M4: 1989-1990 | X4: INDUSTRIAL COMPOUND PRODUCTION
M5: definitif/final | X5: (1 000 t )
A9: PAYS | C9: BOVINS/RINDER | G9: PORCS/SCHWEINE | K9: VOLAILLE/GEFLÜGEL | M9: A. ALLAITEMENT/MILCHAUST. | S9: AUTRES/ANDERE | V9: TOTAL/INSGESAMT
A10: LAND | C10: BOVINI/CATTLE | G10: SUINI/PIGS | K10: VOLATILI/POULTRY | M10: SOSTIT. DEL LATTE/MILKREPLACERS | S10: ALTRI ANIMALI/OTHERS | V10: TOTALE/TOTAL
A11: PAESE
A12: COUNTRY | B12: 1989 | C12: 1990 | D12: %TAV | F12: 1989 | G12: 1990 | H12: %TAV | J12: 1989 | K12: 1990 | L12: %TAV | N12: 1989 | O12: 1990 | P12: %TAV | R12: 1989 | S12: 1990 | T12: %TAV | V12: 1989 | W12: 1990 | X12: %TAV
A15: D | B15: =Germany!B$16 -> 6,449 | C15: =Germany!C$16 -> 6,269 | D15: =((C15/B15)-1)*100 -> -2.8 | F15: =Germany!B$23 -> 5,434 | G15: =Germany!C$23 -> 5,465 | H15: =((G15/F15)-1)*100 -> 0.6 | J15: =Germany!B$30 -> 3,318 | K15: =Germany!C$30 -> 3,454 | L15: =((K15/J15)-1)*100 -> 4.1 | N15: =Germany!B$36 -> 230 | O15: =Germany!C$36 -> 229 | P15: =((O15/N15)-1)*100 -> -0.4 | R15: =Germany!B$39 -> 514 | S15: =Germany!C$39 -> 511 | T15: =((S15/R15)-1)*100 -> -0.6 | V15: =R15+N15+J15+F15+B15 -> 15,945 | W15: 15,928 | X15: =((W15/V15)-1)*100 -> -0.1
A17: F | B17: =France!B$16 -> 3,716 | C17: =France!C$16 -> 3,957 | D17: =((C17/B17)-1)*100 -> 6.5 | F17: =France!B$23 -> 5,134 | G17: =France!C$23 -> 5,214 | H17: =((G17/F17)-1)*100 -> 1.6 | J17: =France!B$30 -> 6,468 | K17: =France!C$30 -> 6,990 | L17: =((K17/J17)-1)*100 -> 8.1 | N17: =France!B$36 -> 721 | O17: =France!C$36 -> 679 | P17: =((O17/N17)-1)*100 -> -5.8 | R17: =France!B$39 -> 1,454 | S17: =France!C$39 -> 1,453 | T17: =((S17/R17)-1)*100 -> -0.1 | V17: =R17+N17+J17+F17+B17 -> 17,493 | W17: 18,293 | X17: =((W17/V17)-1)*100 -> 4.6
A19: I | B19: =Italy!B$16 -> 4,262 | C19: =Italy!C$16 -> 4,292 | D19: =((C19/B19)-1)*100 -> 0.7 | F19: =Italy!B$23 -> 2,427 | G19: =Italy!C$23 -> 2,507 | H19: =((G19/F19)-1)*100 -> 3.3 | J19: =Italy!B$30 -> 4,236 | K19: =Italy!C$30 -> 4,355 | L19: =((K19/J19)-1)*100 -> 2.8 | N19: =Italy!B$36 -> 283 | O19: =Italy!C$36 -> 250 | P19: =((O19/N19)-1)*100 -> -11.7 | R19: =Italy!B$39 -> 852 | S19: =Italy!C$39 -> 948 | T19: =((S19/R19)-1)*100 -> 11.3 | V19: =R19+N19+J19+F19+B19 -> 12,060 | W19: 12,352 | X19: =((W19/V19)-1)*100 -> 2.4
A21: NL | B21: ='The Netherlands'!B$16 -> 4,295 | C21: ='The Netherlands'!C$16 -> 4,053 | D21: =((C21/B21)-1)*100 -> -5.6 | F21: ='The Netherlands'!B$23 -> 7,611 | G21: ='The Netherlands'!C$23 -> 7,690 | H21: =((G21/F21)-1)*100 -> 1.0 | J21: ='The Netherlands'!B$30 -> 3,266 | K21: ='The Netherlands'!C$30 -> 3,308 | L21: =((K21/J21)-1)*100 -> 1.3 | N21: ='The Netherlands'!B$36 -> 638 | O21: ='The Netherlands'!C$36 -> 639 | P21: =((O21/N21)-1)*100 -> 0.2 | R21: ='The Netherlands'!B$39 -> 487 | S21: ='The Netherlands'!C$39 -> 520 | T21: =((S21/R21)-1)*100 -> 6.8 | V21: =R21+N21+J21+F21+B21 -> 16,297 | W21: 16,210 | X21: =((W21/V21)-1)*100 -> -0.5
A23: B | B23: =Belgium!B$16 -> 1,428 | C23: =Belgium!C$16 -> 1,371 | D23: =((C23/B23)-1)*100 -> -4.0 | F23: =Belgium!B$23 -> 2,884 | G23: =Belgium!C$23 -> 2,995 | H23: =((G23/F23)-1)*100 -> 3.8 | J23: =Belgium!B$30 -> 960 | K23: =Belgium!C$30 -> 990 | L23: =((K23/J23)-1)*100 -> 3.1 | N23: =Belgium!B$36 -> 42 | O23: =Belgium!C$36 -> 53 | P23: =((O23/N23)-1)*100 -> 26.2 | R23: =Belgium!B$39 -> 133 | S23: =Belgium!C$39 -> 117 | T23: =((S23/R23)-1)*100 -> -12.0 | V23: =R23+N23+J23+F23+B23 -> 5,447 | W23: 5,526 | X23: =((W23/V23)-1)*100 -> 1.5
A25: UK | B25: =UK!B$16 -> 4,201 | C25: =UK!C$16 -> 4,159 | D25: =((C25/B25)-1)*100 -> -1.0 | F25: =UK!B$23 -> 2,134 | G25: =UK!C$23 -> 2,285 | H25: =((G25/F25)-1)*100 -> 7.1 | J25: =UK!B$30 -> 3,514 | K25: =UK!C$30 -> 3,851 | L25: =((K25/J25)-1)*100 -> 9.6 | N25: =UK!B$36 -> 24 | O25: =UK!C$36 -> 24 | P25: =((O25/N25)-1)*100 -> 0.0 | R25: =UK!B39 -> 747 | S25: =UK!C39 -> 831 | T25: =((S25/R25)-1)*100 -> 11.2 | V25: =R25+J25+F25+B25+N25 -> 10,620 | W25: 11,150 | X25: =((W25/V25)-1)*100 -> 5.0
A27: IRL | B27: =Ireland!B$16 -> 1,421 | C27: =Ireland!C$16 -> 1,319 | D27: =((C27/B27)-1)*100 -> -7.2 | F27: =Ireland!B$23 -> 462 | G27: =Ireland!C$23 -> 483 | H27: =((G27/F27)-1)*100 -> 4.5 | J27: =Ireland!B$30 -> 351 | K27: =Ireland!C$30 -> 398 | L27: =((K27/J27)-1)*100 -> 13.4 | N27: =Ireland!B$36 -> 22 | O27: =Ireland!C$36 -> 13 | P27: =((O27/N27)-1)*100 -> -40.9 | R27: =Ireland!B$39 -> 162 | S27: =Ireland!C$39 -> 195 | T27: =((S27/R27)-1)*100 -> 20.4 | V27: =R27+N27+J27+F27+B27 -> 2,418 | W27: 2,408 | X27: =((W27/V27)-1)*100 -> -0.4
A29: DK | B29: =Denmark!B$16 -> 1,607 | C29: =Denmark!C$16 -> 1,542 | D29: =((C29/B29)-1)*100 -> -4.0 | F29: =Denmark!B$23 -> 2,401 | G29: =Denmark!C$23 -> 2,493 | H29: =((G29/F29)-1)*100 -> 3.8 | J29: =Denmark!B$30 -> 521 | K29: =Denmark!C$30 -> 528 | L29: =((K29/J29)-1)*100 -> 1.3 | N29: =Denmark!B$36 -> 13 | O29: =Denmark!C$36 -> 13 | P29: =((O29/N29)-1)*100 -> 0.0 | R29: =Denmark!B$39 -> 137 | S29: =Denmark!C$39 -> 137 | T29: =((S29/R29)-1)*100 -> 0.0 | V29: =R29+N29+J29+F29+B29 -> 4,679 | W29: 4,713 | X29: =((W29/V29)-1)*100 -> 0.7
A31: ESP | B31: =Spain!B$16 -> 3,250 | C31: =Spain!C$16 -> 3,200 | D31: =((C31/B31)-1)*100 -> -1.5 | F31: =Spain!B$23 -> 5,850 | G31: =Spain!C$23 -> 5,800 | H31: =((G31/F31)-1)*100 -> -0.9 | J31: =Spain!B$30 -> 4,260 | K31: =Spain!C$30 -> 4,300 | L31: =((K31/J31)-1)*100 -> 0.9 | N31: =Spain!B$36 -> 84 | O31: =Spain!C$36 -> 74 | P31: =((O31/N31)-1)*100 -> -11.9 | R31: =Spain!B$39 -> 1,161 | S31: =Spain!C$39 -> 1,165 | T31: =((S31/R31)-1)*100 -> 0.3 | V31: =R31+N31+J31+F31+B31 -> 14,605 | W31: 14,539 | X31: =((W31/V31)-1)*100 -> -0.5
A33: P | B33: =Portugal!B$16 -> 1,013 | C33: =Portugal!C$16 -> 1,115 | D33: =((C33/B33)-1)*100 -> 10.1 | F33: =Portugal!B$23 -> 1,339 | G33: =Portugal!C$23 -> 1,457 | H33: =((G33/F33)-1)*100 -> 8.8 | J33: =Portugal!B$30 -> 1,221 | K33: =Portugal!C$30 -> 1,230 | L33: =((K33/J33)-1)*100 -> 0.7 | N33: =Portugal!B$36 -> 0 | O33: =Portugal!C$36 -> 0 | P33: 0.0 | R33: =Portugal!B$39 -> 123 | S33: =Portugal!C$39 -> 145 | T33: =((S33/R33)-1)*100 -> 17.9 | V33: =R33+N33+J33+F33+B33 -> 3,696 | W33: 3,947 | X33: =((W33/V33)-1)*100 -> 6.8
A36: EUR 15 * | B36: =B33+B31+B29+B27+B25+B23+B21+B19+B17+B15 -> 31,642 | C36: 31,277 | D36: =((C36/B36)-1)*100 -> -1.2 | F36: =F33+F31+F29+F27+F25+F23+F21+F19+F17+F15 -> 35,676 | G36: 36,389 | H36: =((G36/F36)-1)*100 -> 2.0 | J36: =J33+J31+J29+J27+J25+J23+J21+J19+J17+J15 -> 28,115 | K36: 29,404 | L36: =((K36/J36)-1)*100 -> 4.6 | N36: =N33+N31+N29+N27+N25+N23+N21+N19+N17+N15 -> 2,057 | O36: 1,974 | P36: =((O36/N36)-1)*100 -> -4.0 | R36: =R33+R31+R29+R27+R25+R23+R21+R19+R17+R15 -> 5,770 | S36: 6,022 | T36: =((S36/R36)-1)*100 -> 4.4 | V36: =V33+V31+V29+V27+V25+V23+V21+V19+V17+V15 -> 103,260 | W36: 105,066 | X36: =((W36/V36)-1)*100 -> 1.7
A39: * Sans le Luxembourg et la Grèce/Ohne Luxemburg und Griechenland/Without Luxemburg and Greece/Senza Lussemburgo e Ellas
A41: : non disponible/not available

Sheet 1990
A1: 2001-07-04
A3: PRODUCTION INDUSTRIELLE D'ALIMENTS COMPOSES | M3: INDUSTRIELLE MISCHFUTTERPRODUKTION
A4: PRODUZIONE INDUSTRIALE DI MANGIMI COMPOSTI | M4: INDUSTRIAL COMPOUND PRODUCTION
A5: 1990
A6: definitif/final
M7: (1 000 t)
A9: Catégories d'aliments composés/Mischfutterarten | C9: D | D9: F | E9: I | F9: NL | G9: B | H9: UK | I9: IRL | J9: DK | K9: ESP | L9: P | M9: EUR-15
A10: Tipi di mangimi compositi/Types of feed | M10: *
A13: Bovins/Cattle/Bovini/Rinder | C13: =C14+C15+C16 -> 6,269 | D13: =D15+D18 -> 3,957 | E13: =E14+E15+E16 -> 4,292 | F13: ='The Netherlands'!C16 -> 4,053 | G13: =Belgium!C16 -> 1,371 | H13: =UK!C16 -> 4,159 | I13: =I15+I16+I18 -> 1,319 | J13: =Denmark!C16 -> 1,542 | K13: =Spain!C16 -> 3,200 | L13: =L15+L16+L18 -> 1,115 | M13: =SUM(C13:L13) -> 31,277
A14: engrais/fattening/Mast | C14: =Germany!C17 -> 422 | D14: =France!C17 -> : | E14: =Italy!C17 -> 1,194 | F14: ='The Netherlands'!C17 -> : | G14: =Belgium!C17 -> : | H14: =UK!C17 -> : | I14: =Ireland!C17 -> : | J14: =Denmark!C17 -> : | K14: =Spain!C17 -> : | L14: =Portugal!C17 -> : | M14: :
A15: VL/dairy cow/Milchkühe | C15: =Germany!C18 -> 5,630 | D15: =France!C18 -> 2,900 | E15: =Italy!C18 -> 2,799 | F15: ='The Netherlands'!C18 -> 3,891 | G15: =Belgium!C18 -> : | H15: =UK!C18 -> : | I15: =Ireland!C18 -> 801 | J15: =Denmark!C18 -> : | K15: =Spain!C18 -> : | L15: =Portugal!C18 -> 495 | M15: :
A16: veaux (aliments d'allaitement non compris)/calves | C16: =Germany!C19 -> 217 | D16: =France!C19 -> : | E16: =Italy!C19 -> 299 | F16: ='The Netherlands'!C19 -> : | G16: =Belgium!C19 -> : | H16: =UK!C19 -> : | I16: =Ireland!C19 -> 159 | J16: =Denmark!C19 -> : | K16: =Spain!C19 -> : | L16: =Portugal!C19 -> 69 | M16: :
A17: (excluding milk replacers)/Kälber (exkl. Milchaustauscher)
A18: autres/others/Andere | C18: =Germany!C20 -> : | D18: =France!C20 -> 1,057 | E18: =Italy!C20 -> : | F18: ='The Netherlands'!C20 -> 162 | G18: =Belgium!C20 -> : | H18: =UK!C20 -> : | I18: =Ireland!C20 -> 359 | J18: =Denmark!C20 -> : | K18: =Spain!C20 -> : | L18: =Portugal!C20 -> 551 | M18: :
A21: Porcins/Pigs/Suini/Schweine | C21: =Germany!C23 -> 5,465 | D21: =France!C23 -> 5,214 | E21: =Italy!C23 -> 2,507 | F21: ='The Netherlands'!C23 -> 7,690 | G21: =Belgium!C23 -> 2,995 | H21: =UK!C23 -> 2,285 | I21: =Ireland!C23 -> 483 | J21: =Denmark!C23 -> 2,493 | K21: =Spain!C23 -> 5,800 | L21: =Portugal!C23 -> 1,457 | M21: =SUM(C21:L21) -> 36,389
A22: porcelets/piglets/Ferkel | C22: =Germany!C24 -> : | D22: =France!C24 -> : | E22: =Italy!C24 -> : | F22: ='The Netherlands'!C24 -> : | G22: =Belgium!C24 -> : | H22: =UK!C24 -> : | I22: =Ireland!C24 -> : | J22: =Denmark!C24 -> : | K22: =Spain!C24 -> : | L22: =Portugal!C24 -> : | M22: :
A23: porcs engrais/pigs for fattening/Mastschweine | C23: =Germany!C25 -> : | D23: =France!C25 -> : | E23: =Italy!C25 -> : | F23: ='The Netherlands'!C25 -> : | G23: =Belgium!C25 -> : | H23: =UK!C25 -> : | I23: =Ireland!C25 -> : | J23: =Denmark!C25 -> : | K23: =Spain!C25 -> : | L23: =Portugal!C25 -> : | M23: :
A24: reproducteurs/breeding pigs/Zuchtschweine | C24: =Germany!C26 -> : | D24: =France!C26 -> : | E24: =Italy!C26 -> : | F24: ='The Netherlands'!C26 -> : | G24: =Belgium!C26 -> : | H24: =UK!C26 -> : | I24: =Ireland!C26 -> : | J24: =Denmark!C26 -> : | K24: =Spain!C26 -> : | L24: =Portugal!C26 -> : | M24: :
A25: autres/others/Andere | C25: =Germany!C27 -> : | D25: =France!C27 -> : | E25: =Italy!C27 -> : | F25: ='The Netherlands'!C27 -> : | G25: =Belgium!C27 -> : | H25: =UK!C27 -> : | I25: =Ireland!C27 -> : | J25: =Denmark!C27 -> : | K25: =Spain!C27 -> : | L25: =Portugal!C27 -> : | M25: :
A28: Volaille/Poultry/Volatili/Geflügel | C28: =C29+C30 -> 3,454 | D28: =D29+D30+D31 -> 6,990 | E28: 4,355 | F28: ='The Netherlands'!C30 -> 3,308 | G28: =Belgium!C30 -> 990 | H28: =UK!C30 -> 3,851 | I28: =I29+I30 -> 398 | J28: =Denmark!C30 -> 528 | K28: =Spain!C30 -> 4,300 | L28: =L29+L30+L31 -> 1,230 | M28: =SUM(C28:L28) -> 29,404
A29: broilers | C29: =Germany!C31 -> 1,347 | D29: =France!C31 -> 2,701 | E29: =Italy!C31 -> 2,187 | F29: ='The Netherlands'!C31 -> 1,290 | G29: =Belgium!C31 -> : | H29: =UK!C31 -> : | I29: =Ireland!C31 -> 305 | J29: =Denmark!C31 -> : | K29: =Spain!C31 -> : | L29: =Portugal!C31 -> 681 | M29: :
A30: poulettes & pondeuses/chicks & layers/Jung- & Legehennen | C30: =Germany!C32 -> 2,107 | D30: =France!C32 -> 1,989 | E30: =Italy!C32 -> 1,229 | F30: ='The Netherlands'!C32 -> 1,952 | G30: =Belgium!C32 -> : | H30: =UK!C32 -> : | I30: =Ireland!C32 -> 93 | J30: =Denmark!C32 -> : | K30: =Spain!C32 -> : | L30: =Portugal!C32 -> 407 | M30: :
A31: autres/others/Andere | C31: =Germany!C33 -> : | D31: =France!C33 -> 2,300 | E31: =Italy!C33 -> 939 | F31: ='The Netherlands'!C33 -> 66 | G31: =Belgium!C33 -> : | H31: =UK!C33 -> : | I31: =Ireland!C33 -> : | J31: =Denmark!C33 -> : | K31: =Spain!C33 -> : | L31: =Portugal!C33 -> 142 | M31: :
A34: Al. d'allait./Milk replacers/Sostit. del latte/Milchaust. | C34: =Germany!C36 -> 229 | D34: =France!C36 -> 679 | E34: =Italy!C36 -> 250 | F34: ='The Netherlands'!C36 -> 639 | G34: =Belgium!C36 -> 53 | H34: =UK!C36 -> 24 | I34: =Ireland!C36 -> 13 | J34: =Denmark!C36 -> 13 | K34: =Spain!C36 -> 74 | L34: =Portugal!C36 -> 0 | M34: =SUM(C34:L34) -> 1,974
A37: Autres/others/altri/Andere | C37: =Germany!C39 -> 511 | D37: =France!C39 -> 1,453 | E37: =Italy!C39 -> 948 | F37: ='The Netherlands'!C39 -> 520 | G37: =Belgium!C39 -> 117 | H37: =UK!C39 -> 831 | I37: =Ireland!C39 -> 195 | J37: =Denmark!C39 -> 137 | K37: =Spain!C39 -> 1,165 | L37: =Portugal!C39 -> 145 | M37: =SUM(C37:L37) -> 6,022
A40: TOTAL | C40: =C37+C34+C28+C21+C13 -> 15,928 | D40: 18,293 | E40: 12,352 | F40: 16,210 | G40: 5,526 | H40: 11,150 | I40: 2,408 | J40: 4,713 | K40: 14,539 | L40: 3,947 | M40: 105,066
A43: * Sans le Luxembourg et la Grèce/ohne Luxemburg und Griechenland/Without Luxemburg and Greece/Senza Lussemburgo e Ella
A45: : non disponible/not available/nicht verfügbar

Sheet 91-90
A1: 2001-07-04
A3: PRODUCTION INDUSTRIELLE D'ALIMENTS COMPOSES | X3: INDUSTRIELLE MISCHFUTTERPRODUKTION
A4: PRODUZIONE INDUSTRIALE DI MANGIMI COMPOSTI | M4: 1990-1991 | X4: INDUSTRIAL COMPOUND PRODUCTION
M5: definitif/final | X5: (1 000 t )
A9: PAYS | C9: BOVINS/RINDER | G9: PORCS/SCHWEINE | K9: VOLAILLE/GEFLÜGEL | M9: A. ALLAITEMENT/MILCHAUST. | S9: AUTRES/ANDERE | V9: TOTAL/INSGESAMT
A10: LAND | C10: BOVINI/CATTLE | G10: SUINI/PIGS | K10: VOLATILI/POULTRY | M10: SOSTIT. DEL LATTE/MILKREPLACERS | S10: ALTRI ANIMALI/OTHERS | V10: TOTALE/TOTAL
A11: PAESE
A12: COUNTRY | B12: 1990 | C12: 1991 | D12: %TAV | F12: 1990 | G12: 1991 | H12: %TAV | J12: 1990 | K12: 1991 | L12: %TAV | N12: 1990 | O12: 1991 | P12: %TAV | R12: 1990 | S12: 1991 | T12: %TAV | V12: 1990 | W12: 1991 | X12: %TAV
A15: D | B15: =Germany!C$16 -> 6,269 | C15: =Germany!D$16 -> 7,881 | D15: =((C15/B15)-1)*100 -> 25.7 | F15: =Germany!C$23 -> 5,465 | G15: =Germany!D$23 -> 7,476 | H15: =((G15/F15)-1)*100 -> 36.8 | J15: =Germany!C$30 -> 3,454 | K15: =Germany!D$30 -> 4,195 | L15: =((K15/J15)-1)*100 -> 21.5 | N15: =Germany!C$36 -> 229 | O15: =Germany!D$36 -> 269 | P15: =((O15/N15)-1)*100 -> 17.5 | R15: =Germany!C$39 -> 511 | S15: =Germany!D$39 -> 562 | T15: =((S15/R15)-1)*100 -> 10.0 | V15: =R15+N15+J15+F15+B15 -> 15,928 | W15: 20,383 | X15: =((W15/V15)-1)*100 -> 28.0
A17: F | B17: =France!C$16 -> 3,957 | C17: =France!D$16 -> 3,997 | D17: =((C17/B17)-1)*100 -> 1.0 | F17: =France!C$23 -> 5,214 | G17: =France!D$23 -> 5,493 | H17: =((G17/F17)-1)*100 -> 5.4 | J17: =France!C$30 -> 6,990 | K17: =France!D$30 -> 7,398 | L17: =((K17/J17)-1)*100 -> 5.8 | N17: =France!C$36 -> 679 | O17: =France!D$36 -> 666 | P17: =((O17/N17)-1)*100 -> -1.9 | R17: =France!C$39 -> 1,453 | S17: =France!D$39 -> 1,465 | T17: =((S17/R17)-1)*100 -> 0.8 | V17: =R17+N17+J17+F17+B17 -> 18,293 | W17: 19,019 | X17: =((W17/V17)-1)*100 -> 4.0
A19: I | B19: =Italy!C$16 -> 4,292 | C19: =Italy!D$16 -> 4,332 | D19: =((C19/B19)-1)*100 -> 0.9 | F19: =Italy!C$23 -> 2,507 | G19: =Italy!D$23 -> 2,429 | H19: =((G19/F19)-1)*100 -> -3.1 | J19: =Italy!C$30 -> 4,355 | K19: =Italy!D$30 -> 4,513 | L19: =((K19/J19)-1)*100 -> 3.6 | N19: =Italy!C$36 -> 250 | O19: =Italy!D$36 -> 258 | P19: =((O19/N19)-1)*100 -> 3.2 | R19: =Italy!C$39 -> 948 | S19: =Italy!D$39 -> 1,022 | T19: =((S19/R19)-1)*100 -> 7.8 | V19: =R19+N19+J19+F19+B19 -> 12,352 | W19: 12,554 | X19: =((W19/V19)-1)*100 -> 1.6
A21: NL | B21: ='The Netherlands'!C$16 -> 4,053 | C21: ='The Netherlands'!D$16 -> 4,155 | D21: =((C21/B21)-1)*100 -> 2.5 | F21: ='The Netherlands'!C$23 -> 7,690 | G21: ='The Netherlands'!D$23 -> 7,311 | H21: =((G21/F21)-1)*100 -> -4.9 | J21: ='The Netherlands'!C$30 -> 3,308 | K21: ='The Netherlands'!D$30 -> 3,482 | L21: =((K21/J21)-1)*100 -> 5.3 | N21: ='The Netherlands'!C$36 -> 639 | O21: ='The Netherlands'!D$36 -> 629 | P21: =((O21/N21)-1)*100 -> -1.6 | R21: ='The Netherlands'!C$39 -> 520 | S21: ='The Netherlands'!D$39 -> 520 | T21: =((S21/R21)-1)*100 -> 0.0 | V21: =R21+N21+J21+F21+B21 -> 16,210 | W21: 16,097 | X21: =((W21/V21)-1)*100 -> -0.7
A23: B | B23: =Belgium!C$16 -> 1,371 | C23: =Belgium!D$16 -> 1,349 | D23: =((C23/B23)-1)*100 -> -1.6 | F23: =Belgium!C$23 -> 2,995 | G23: =Belgium!D$23 -> 2,813 | H23: =((G23/F23)-1)*100 -> -6.1 | J23: =Belgium!C$30 -> 990 | K23: =Belgium!D$30 -> 939 | L23: =((K23/J23)-1)*100 -> -5.2 | N23: =Belgium!C$36 -> 53 | O23: =Belgium!D$36 -> 56 | P23: =((O23/N23)-1)*100 -> 5.7 | R23: =Belgium!C$39 -> 117 | S23: =Belgium!D$39 -> 110 | T23: =((S23/R23)-1)*100 -> -6.0 | V23: =R23+N23+J23+F23+B23 -> 5,526 | W23: 5,267 | X23: =((W23/V23)-1)*100 -> -4.7
A25: UK | B25: =UK!C$16 -> 4,159 | C25: =UK!D$16 -> 4,034 | D25: =((C25/B25)-1)*100 -> -3.0 | F25: =UK!C$23 -> 2,285 | G25: =UK!D$23 -> 2,353 | H25: =((G25/F25)-1)*100 -> 3.0 | J25: =UK!C$30 -> 3,851 | K25: =UK!D$30 -> 3,866 | L25: =((K25/J25)-1)*100 -> 0.4 | N25: =UK!C$36 -> 24 | O25: =UK!D$36 -> 24 | P25: =((O25/N25)-1)*100 -> 0.0 | R25: =UK!C39 -> 831 | S25: =UK!D39 -> 833 | T25: =((S25/R25)-1)*100 -> 0.2 | V25: =R25+J25+F25+B25+N25 -> 11,150 | W25: 11,110 | X25: =((W25/V25)-1)*100 -> -0.4
A27: IRL | B27: =Ireland!C$16 -> 1,319 | C27: =Ireland!D$16 -> 1,376 | D27: =((C27/B27)-1)*100 -> 4.3 | F27: =Ireland!C$23 -> 483 | G27: =Ireland!D$23 -> 550 | H27: =((G27/F27)-1)*100 -> 13.9 | J27: =Ireland!C$30 -> 398 | K27: =Ireland!D$30 -> 408 | L27: =((K27/J27)-1)*100 -> 2.5 | N27: =Ireland!C$36 -> 13 | O27: =Ireland!D$36 -> 7 | P27: =((O27/N27)-1)*100 -> -46.2 | R27: =Ireland!C$39 -> 195 | S27: =Ireland!D$39 -> 236 | T27: =((S27/R27)-1)*100 -> 21.0 | V27: =R27+N27+J27+F27+B27 -> 2,408 | W27: 2,577 | X27: =((W27/V27)-1)*100 -> 7.0
A29: DK | B29: =Denmark!C$16 -> 1,542 | C29: =Denmark!D$16 -> 1,562 | D29: =((C29/B29)-1)*100 -> 1.3 | F29: =Denmark!C$23 -> 2,493 | G29: =Denmark!D$23 -> 2,799 | H29: =((G29/F29)-1)*100 -> 12.3 | J29: =Denmark!C$30 -> 528 | K29: =Denmark!D$30 -> 564 | L29: =((K29/J29)-1)*100 -> 6.8 | N29: =Denmark!C$36 -> 13 | O29: =Denmark!D$36 -> 9 | P29: =((O29/N29)-1)*100 -> -30.8 | R29: =Denmark!C$39 -> 137 | S29: =Denmark!D$39 -> 124 | T29: =((S29/R29)-1)*100 -> -9.5 | V29: =R29+N29+J29+F29+B29 -> 4,713 | W29: 5,058 | X29: =((W29/V29)-1)*100 -> 7.3
A31: ESP | B31: =Spain!C$16 -> 3,200 | C31: =Spain!D$16 -> 3,084 | D31: =((C31/B31)-1)*100 -> -3.6 | F31: =Spain!C$23 -> 5,800 | G31: =Spain!D$23 -> 5,431 | H31: =((G31/F31)-1)*100 -> -6.4 | J31: =Spain!C$30 -> 4,300 | K31: =Spain!D$30 -> 4,159 | L31: =((K31/J31)-1)*100 -> -3.3 | N31: =Spain!C$36 -> 74 | O31: =Spain!D$36 -> 70 | P31: =((O31/N31)-1)*100 -> -5.4 | R31: =Spain!C$39 -> 1,165 | S31: =Spain!D$39 -> 1,156 | T31: =((S31/R31)-1)*100 -> -0.8 | V31: =R31+N31+J31+F31+B31 -> 14,539 | W31: 13,900 | X31: =((W31/V31)-1)*100 -> -4.4
A33: P | B33: =Portugal!C$16 -> 1,115 | C33: =Portugal!D$16 -> 1,145 | D33: =((C33/B33)-1)*100 -> 2.7 | F33: =Portugal!C$23 -> 1,457 | G33: =Portugal!D$23 -> 1,422 | H33: =((G33/F33)-1)*100 -> -2.4 | J33: =Portugal!C$30 -> 1,230 | K33: =Portugal!D$30 -> 1,232 | L33: =((K33/J33)-1)*100 -> 0.2 | N33: =Portugal!C$36 -> 0 | O33: =Portugal!D$36 -> 0 | P33: 0.0 | R33: =Portugal!C$39 -> 145 | S33: =Portugal!D$39 -> 150 | T33: =((S33/R33)-1)*100 -> 3.4 | V33: =R33+N33+J33+F33+B33 -> 3,947 | W33: 3,949 | X33: =((W33/V33)-1)*100 -> 0.1
A36: EUR 15 * | B36: =B33+B31+B29+B27+B25+B23+B21+B19+B17+B15 -> 31,277 | C36: 32,915 | D36: =((C36/B36)-1)*100 -> 5.2 | F36: =F33+F31+F29+F27+F25+F23+F21+F19+F17+F15 -> 36,389 | G36: 38,077 | H36: =((G36/F36)-1)*100 -> 4.6 | J36: =J33+J31+J29+J27+J25+J23+J21+J19+J17+J15 -> 29,404 | K36: 30,756 | L36: =((K36/J36)-1)*100 -> 4.6 | N36: =N33+N31+N29+N27+N25+N23+N21+N19+N17+N15 -> 1,974 | O36: 1,988 | P36: =((O36/N36)-1)*100 -> 0.7 | R36: =R33+R31+R29+R27+R25+R23+R21+R19+R17+R15 -> 6,022 | S36: 6,178 | T36: =((S36/R36)-1)*100 -> 2.6 | V36: =V33+V31+V29+V27+V25+V23+V21+V19+V17+V15 -> 105,066 | W36: 109,914 | X36: =((W36/V36)-1)*100 -> 4.6
A39: * Sans le Luxembourg et la Grèce/Ohne Luxemburg und Griechenland/Without Luxemburg and Greece/Senza Lussemburgo e Ellas
A41: : non disponible/not available

Sheet 1991
A1: 2001-07-04
A3: PRODUCTION INDUSTRIELLE D'ALIMENTS COMPOSES | M3: INDUSTRIELLE MISCHFUTTERPRODUKTION
A4: PRODUZIONE INDUSTRIALE DI MANGIMI COMPOSTI | M4: INDUSTRIAL COMPOUND PRODUCTION
A5: 1991
A6: definitif/final
M7: (1 000 t)
A9: Catégories d'aliments composés/Mischfutterarten | C9: D | D9: F | E9: I | F9: NL | G9: B | H9: UK | I9: IRL | J9: DK | K9: ESP | L9: P | M9: EUR-15
A10: Tipi di mangimi compositi/Types of feed | M10: *
A13: Bovins/Cattle/Bovini/Rinder | C13: =Germany!D16 -> 7,881 | D13: =France!D16 -> 3,997 | E13: =Italy!D16 -> 4,332 | F13: ='The Netherlands'!D16 -> 4,155 | G13: =Belgium!D16 -> 1,349 | H13: =UK!D16 -> 4,034 | I13: =Ireland!D16 -> 1,376 | J13: =Denmark!D16 -> 1,562 | K13: =Spain!D16 -> 3,084 | L13: =Portugal!D16 -> 1,145 | M13: =SUM(C13:L13) -> 32,915
A14: engrais/fattening/Mast | C14: =Germany!D17 -> 887 | D14: =France!D17 -> : | E14: =Italy!D17 -> 1,274 | F14: ='The Netherlands'!D17 -> : | G14: =Belgium!D17 -> : | H14: =UK!D17 -> : | I14: =Ireland!D17 -> : | J14: =Denmark!D17 -> : | K14: =Spain!D17 -> : | L14: =Portugal!D17 -> : | M14: :
A15: VL/dairy cow/Milchkühe | C15: =Germany!D18 -> 6,693 | D15: =France!D18 -> 2,911 | E15: =Italy!D18 -> 2,780 | F15: ='The Netherlands'!D18 -> 3,578 | G15: =Belgium!D18 -> 592 | H15: =UK!D18 -> : | I15: =Ireland!D18 -> 775 | J15: =Denmark!D18 -> 798 | K15: =Spain!D18 -> : | L15: =Portugal!D18 -> 551 | M15: :
A16: veaux (aliments d'allaitement non compris)/calves | C16: =Germany!D19 -> 301 | D16: =France!D19 -> : | E16: =Italy!D19 -> 278 | F16: ='The Netherlands'!D19 -> : | G16: =Belgium!D19 -> : | H16: =UK!D19 -> : | I16: =Ireland!D19 -> 164 | J16: =Denmark!D19 -> 290 | K16: =Spain!D19 -> : | L16: =Portugal!D19 -> 46 | M16: :
A17: (excluding milk replacers)/Kälber (exkl. Milchaustauscher)
A18: autres/others/Andere | C18: =Germany!D20 -> : | D18: =France!D20 -> 1,086 | E18: =Italy!D20 -> : | F18: ='The Netherlands'!D20 -> 577 | G18: =Belgium!D20 -> 757 | H18: =UK!D20 -> : | I18: =Ireland!D20 -> 437 | J18: =Denmark!D20 -> 474 | K18: =Spain!D20 -> : | L18: =Portugal!D20 -> 548 | M18: :
A21: Porcins/Pigs/Suini/Schweine | C21: =Germany!D23 -> 7,476 | D21: =France!D23 -> 5,493 | E21: =Italy!D23 -> 2,429 | F21: ='The Netherlands'!D23 -> 7,311 | G21: =Belgium!D23 -> 2,813 | H21: =UK!D23 -> 2,353 | I21: =Ireland!D23 -> 550 | J21: =Denmark!D23 -> 2,799 | K21: =Spain!D23 -> 5,431 | L21: =Portugal!D23 -> 1,422 | M21: =SUM(C21:L21) -> 38,077
A22: porcelets/piglets/Ferkel | C22: =Germany!D24 -> : | D22: =France!D24 -> : | E22: =Italy!D24 -> : | F22: ='The Netherlands'!D24 -> : | G22: =Belgium!D24 -> : | H22: =UK!D24 -> : | I22: =Ireland!D24 -> : | J22: =Denmark!D24 -> : | K22: =Spain!D24 -> : | L22: =Portugal!D24 -> : | M22: :
A23: porcs engrais/pigs for fattening/Mastschweine | C23: =Germany!D25 -> : | D23: =France!D25 -> : | E23: =Italy!D25 -> : | F23: ='The Netherlands'!D25 -> : | G23: =Belgium!D25 -> : | H23: =UK!D25 -> : | I23: =Ireland!D25 -> : | J23: =Denmark!D25 -> : | K23: =Spain!D25 -> : | L23: =Portugal!D25 -> : | M23: :
A24: reproducteurs/breeding pigs/Zuchtschweine | C24: =Germany!D26 -> : | D24: =France!D26 -> : | E24: =Italy!D26 -> : | F24: ='The Netherlands'!D26 -> : | G24: =Belgium!D26 -> : | H24: =UK!D26 -> : | I24: =Ireland!D26 -> : | J24: =Denmark!D26 -> : | K24: =Spain!D26 -> : | L24: =Portugal!D26 -> : | M24: :
A25: autres/others/Andere | C25: =Germany!D27 -> : | D25: =France!D27 -> : | E25: =Italy!D27 -> : | F25: ='The Netherlands'!D27 -> : | G25: =Belgium!D27 -> : | H25: =UK!D27 -> : | I25: =Ireland!D27 -> : | J25: =Denmark!D27 -> : | K25: =Spain!D27 -> : | L25: =Portugal!D27 -> : | M25: :
A28: Volaille/Poultry/Volatili/Geflügel | C28: =Germany!D30 -> 4,195 | D28: =France!D30 -> 7,398 | E28: =Italy!D30 -> 4,513 | F28: ='The Netherlands'!D30 -> 3,482 | G28: =Belgium!D30 -> 939 | H28: =UK!D30 -> 3,866 | I28: =Ireland!D30 -> 408 | J28: =Denmark!D30 -> 564 | K28: =Spain!D30 -> 4,159 | L28: =Portugal!D30 -> 1,232 | M28: =SUM(C28:L28) -> 30,756
A29: broilers | C29: =Germany!D31 -> 1,665 | D29: =France!D31 -> 2,699 | E29: =Italy!D31 -> 2,328 | F29: ='The Netherlands'!D31 -> 1,442 | G29: =Belgium!D31 -> : | H29: =UK!D31 -> : | I29: =Ireland!D31 -> 313 | J29: =Denmark!D31 -> 486 | K29: =Spain!D31 -> : | L29: =Portugal!D31 -> 686 | M29: :
A30: poulettes & pondeuses/chicks & layers/Jung- & Legehennen | C30: =Germany!D32 -> 2,530 | D30: =France!D32 -> 2,134 | E30: =Italy!D32 -> 1,205 | F30: ='The Netherlands'!D32 -> 2,040 | G30: =Belgium!D32 -> : | H30: =UK!D32 -> : | I30: =Ireland!D32 -> 95 | J30: =Denmark!D32 -> 38 | K30: =Spain!D32 -> : | L30: =Portugal!D32 -> 399 | M30: :
A31: autres/others/Andere | C31: =Germany!D33 -> : | D31: =France!D33 -> 2,565 | E31: =Italy!D33 -> 980 | F31: ='The Netherlands'!D33 -> : | G31: =Belgium!D33 -> : | H31: =UK!D33 -> : | I31: =Ireland!D33 -> : | J31: =Denmark!D33 -> 40 | K31: =Spain!D33 -> : | L31: =Portugal!D33 -> 147 | M31: :
A34: Al. d'allait./Milk replacers/Sostit. del latte/Milchaust. | C34: =Germany!D36 -> 269 | D34: =France!D36 -> 666 | E34: =Italy!D36 -> 258 | F34: ='The Netherlands'!D36 -> 629 | G34: =Belgium!D36 -> 56 | H34: =UK!D36 -> 24 | I34: =Ireland!D36 -> 7 | J34: =Denmark!D36 -> 9 | K34: =Spain!D36 -> 70 | L34: =Portugal!D36 -> 0 | M34: =SUM(C34:L34) -> 1,988
A37: Autres/others/altri/Andere | C37: =Germany!D39 -> 562 | D37: =France!D39 -> 1,465 | E37: =Italy!D39 -> 1,022 | F37: ='The Netherlands'!D39 -> 520 | G37: =Belgium!D39 -> 110 | H37: =UK!D39 -> 833 | I37: =Ireland!D39 -> 236 | J37: =Denmark!D39 -> 124 | K37: =Spain!D39 -> 1,156 | L37: =Portugal!D39 -> 150 | M37: =SUM(C37:L37) -> 6,178
A40: TOTAL | C40: =C37+C34+C28+C21+C13 -> 20,383 | D40: 19,019 | E40: 12,554 | F40: 16,097 | G40: 5,267 | H40: 11,110 | I40: 2,577 | J40: 5,058 | K40: 13,900 | L40: 3,949 | M40: 109,914
A43: * Sans le Luxembourg et la Grèce/ohne Luxemburg und Griechenland/Without Luxemburg and Greece/Senza Lussemburgo e Ella
A45: : non disponible/not available/nicht verfügbar

Sheet 92-91
A1: 2001-07-04
A3: PRODUCTION INDUSTRIELLE D'ALIMENTS COMPOSES | X3: INDUSTRIELLE MISCHFUTTERPRODUKTION
A4: PRODUZIONE INDUSTRIALE DI MANGIMI COMPOSTI | M4: 1991-1992 | X4: INDUSTRIAL COMPOUND PRODUCTION
M5: definitif/final | X5: (1 000 t )
A9: PAYS | C9: BOVINS/RINDER | G9: PORCS/SCHWEINE | K9: VOLAILLE/GEFLÜGEL | M9: A. ALLAITEMENT/MILCHAUST. | S9: AUTRES/ANDERE | V9: TOTAL/INSGESAMT
A10: LAND | C10: BOVINI/CATTLE | G10: SUINI/PIGS | K10: VOLATILI/POULTRY | M10: SOSTIT. DEL LATTE/MILKREPLACERS | S10: ALTRI ANIMALI/OTHERS | V10: TOTALE/TOTAL
A11: PAESE
A12: COUNTRY | B12: 1991 | C12: 1992 | D12: %TAV | F12: 1991 | G12: 1992 | H12: %TAV | J12: 1991 | K12: 1992 | L12: %TAV | N12: 1991 | O12: 1992 | P12: %TAV | R12: 1991 | S12: 1992 | T12: %TAV | V12: 1991 | W12: 1992 | X12: %TAV
A15: D | B15: =Germany!D$16 -> 7,881 | C15: =Germany!E$16 -> 7,452 | D15: =((C15/B15)-1)*100 -> -5.4 | F15: =Germany!D$23 -> 7,476 | G15: =Germany!E$23 -> 6,737 | H15: =((G15/F15)-1)*100 -> -9.9 | J15: =Germany!D$30 -> 4,195 | K15: =Germany!E$30 -> 4,156 | L15: =((K15/J15)-1)*100 -> -0.9 | N15: =Germany!D$36 -> 269 | O15: =Germany!E$36 -> 256 | P15: =((O15/N15)-1)*100 -> -4.8 | R15: =Germany!D$39 -> 562 | S15: =Germany!E$39 -> 537 | T15: =((S15/R15)-1)*100 -> -4.4 | V15: =R15+N15+J15+F15+B15 -> 20,383 | W15: 19,138 | X15: =((W15/V15)-1)*100 -> -6.1
A17: F | B17: =France!D$16 -> 3,997 | C17: =France!E$16 -> 3,738 | D17: =((C17/B17)-1)*100 -> -6.5 | F17: =France!D$23 -> 5,493 | G17: =France!E$23 -> 5,904 | H17: =((G17/F17)-1)*100 -> 7.5 | J17: =France!D$30 -> 7,398 | K17: =France!E$30 -> 7,675 | L17: =((K17/J17)-1)*100 -> 3.7 | N17: =France!D$36 -> 666 | O17: =France!E$36 -> 609 | P17: =((O17/N17)-1)*100 -> -8.6 | R17: =France!D$39 -> 1,465 | S17: =France!E$39 -> 1,437 | T17: =((S17/R17)-1)*100 -> -1.9 | V17: =R17+N17+J17+F17+B17 -> 19,019 | W17: 19,363 | X17: =((W17/V17)-1)*100 -> 1.8
A19: I | B19: =Italy!D$16 -> 4,332 | C19: =Italy!E$16 -> 4,119 | D19: =((C19/B19)-1)*100 -> -4.9 | F19: =Italy!D$23 -> 2,429 | G19: =Italy!E$23 -> 2,446 | H19: =((G19/F19)-1)*100 -> 0.7 | J19: =Italy!D$30 -> 4,513 | K19: =Italy!E$30 -> 4,306 | L19: =((K19/J19)-1)*100 -> -4.6 | N19: =Italy!D$36 -> 258 | O19: =Italy!E$36 -> 229 | P19: =((O19/N19)-1)*100 -> -11.2 | R19: =Italy!D$39 -> 1,022 | S19: =Italy!E$39 -> 1,080 | T19: =((S19/R19)-1)*100 -> 5.7 | V19: =R19+N19+J19+F19+B19 -> 12,554 | W19: 12,180 | X19: =((W19/V19)-1)*100 -> -3.0
A21: NL | B21: ='The Netherlands'!D$16 -> 4,155 | C21: ='The Netherlands'!E$16 -> 4,046 | D21: =((C21/B21)-1)*100 -> -2.6 | F21: ='The Netherlands'!D$23 -> 7,311 | G21: ='The Netherlands'!E$23 -> 7,678 | H21: =((G21/F21)-1)*100 -> 5.0 | J21: ='The Netherlands'!D$30 -> 3,482 | K21: ='The Netherlands'!E$30 -> 3,536 | L21: =((K21/J21)-1)*100 -> 1.6 | N21: ='The Netherlands'!D$36 -> 629 | O21: ='The Netherlands'!E$36 -> 693 | P21: =((O21/N21)-1)*100 -> 10.2 | R21: ='The Netherlands'!D$39 -> 520 | S21: ='The Netherlands'!E$39 -> 518 | T21: =((S21/R21)-1)*100 -> -0.4 | V21: =R21+N21+J21+F21+B21 -> 16,097 | W21: 16,471 | X21: =((W21/V21)-1)*100 -> 2.3
A23: B | B23: =Belgium!D$16 -> 1,349 | C23: =Belgium!E$16 -> 1,248 | D23: =((C23/B23)-1)*100 -> -7.5 | F23: =Belgium!D$23 -> 2,813 | G23: =Belgium!E$23 -> 2,919 | H23: =((G23/F23)-1)*100 -> 3.8 | J23: =Belgium!D$30 -> 939 | K23: =Belgium!E$30 -> 939 | L23: =((K23/J23)-1)*100 -> 0.0 | N23: =Belgium!D$36 -> 56 | O23: =Belgium!E$36 -> 54 | P23: =((O23/N23)-1)*100 -> -3.6 | R23: =Belgium!D$39 -> 110 | S23: =Belgium!E$39 -> 130 | T23: =((S23/R23)-1)*100 -> 18.2 | V23: =R23+N23+J23+F23+B23 -> 5,267 | W23: 5,290 | X23: =((W23/V23)-1)*100 -> 0.4
A25: UK | B25: =UK!D$16 -> 4,034 | C25: =UK!E$16 -> 4,054 | D25: =((C25/B25)-1)*100 -> 0.5 | F25: =UK!D$23 -> 2,353 | G25: =UK!E$23 -> 2,434 | H25: =((G25/F25)-1)*100 -> 3.4 | J25: =UK!D$30 -> 3,866 | K25: =UK!E$30 -> 3,823 | L25: =((K25/J25)-1)*100 -> -1.1 | N25: =UK!D$36 -> 24 | O25: =UK!E$36 -> 19 | P25: =((O25/N25)-1)*100 -> -20.8 | R25: =UK!D39 -> 833 | S25: =UK!E39 -> 874 | T25: =((S25/R25)-1)*100 -> 4.9 | V25: =R25+J25+F25+B25+N25 -> 11,110 | W25: 11,204 | X25: =((W25/V25)-1)*100 -> 0.8
A27: IRL | B27: =Ireland!D$16 -> 1,376 | C27: =Ireland!E$16 -> 1,455 | D27: =((C27/B27)-1)*100 -> 5.7 | F27: =Ireland!D$23 -> 550 | G27: =Ireland!E$23 -> 589 | H27: =((G27/F27)-1)*100 -> 7.1 | J27: =Ireland!D$30 -> 408 | K27: =Ireland!E$30 -> 396 | L27: =((K27/J27)-1)*100 -> -2.9 | N27: =Ireland!D$36 -> 7 | O27: =Ireland!E$36 -> 5 | P27: =((O27/N27)-1)*100 -> -28.6 | R27: =Ireland!D$39 -> 236 | S27: =Ireland!E$39 -> 250 | T27: =((S27/R27)-1)*100 -> 5.9 | V27: =R27+N27+J27+F27+B27 -> 2,577 | W27: 2,695 | X27: =((W27/V27)-1)*100 -> 4.6
A29: DK | B29: =Denmark!D$16 -> 1,562 | C29: =Denmark!E$16 -> 1,643 | D29: =((C29/B29)-1)*100 -> 5.2 | F29: =Denmark!D$23 -> 2,799 | G29: =Denmark!E$23 -> 3,295 | H29: =((G29/F29)-1)*100 -> 17.7 | J29: =Denmark!D$30 -> 564 | K29: =Denmark!E$30 -> 619 | L29: =((K29/J29)-1)*100 -> 9.8 | N29: =Denmark!D$36 -> 9 | O29: =Denmark!E$36 -> 6 | P29: =((O29/N29)-1)*100 -> -33.3 | R29: =Denmark!D$39 -> 124 | S29: =Denmark!E$39 -> 123 | T29: =((S29/R29)-1)*100 -> -0.8 | V29: =R29+N29+J29+F29+B29 -> 5,058 | W29: 5,686 | X29: =((W29/V29)-1)*100 -> 12.4
A31: ESP | B31: =Spain!D$16 -> 3,084 | C31: =Spain!E$16 -> 3,180 | D31: =((C31/B31)-1)*100 -> 3.1 | F31: =Spain!D$23 -> 5,431 | G31: =Spain!E$23 -> 6,305 | H31: =((G31/F31)-1)*100 -> 16.1 | J31: =Spain!D$30 -> 4,159 | K31: =Spain!E$30 -> 4,325 | L31: =((K31/J31)-1)*100 -> 4.0 | N31: =Spain!D$36 -> 70 | O31: =Spain!E$36 -> 63 | P31: =((O31/N31)-1)*100 -> -10.0 | R31: =Spain!D$39 -> 1,156 | S31: =Spain!E$39 -> 1,353 | T31: =((S31/R31)-1)*100 -> 17.0 | V31: =R31+N31+J31+F31+B31 -> 13,900 | W31: 15,226 | X31: =((W31/V31)-1)*100 -> 9.5
A33: P | B33: =Portugal!D$16 -> 1,145 | C33: =Portugal!E$16 -> 1,119 | D33: =((C33/B33)-1)*100 -> -2.3 | F33: =Portugal!D$23 -> 1,422 | G33: =Portugal!E$23 -> 1,356 | H33: =((G33/F33)-1)*100 -> -4.6 | J33: =Portugal!D$30 -> 1,232 | K33: =Portugal!E$30 -> 1,241 | L33: =((K33/J33)-1)*100 -> 0.7 | N33: =Portugal!D$36 -> 0 | O33: =Portugal!E$36 -> 0 | P33: 0.0 | R33: =Portugal!D$39 -> 150 | S33: =Portugal!E$39 -> 187 | T33: =((S33/R33)-1)*100 -> 24.7 | V33: =R33+N33+J33+F33+B33 -> 3,949 | W33: 3,903 | X33: =((W33/V33)-1)*100 -> -1.2
A36: EUR 15 * | B36: =B33+B31+B29+B27+B25+B23+B21+B19+B17+B15 -> 32,915 | C36: 32,054 | D36: =((C36/B36)-1)*100 -> -2.6 | F36: =F33+F31+F29+F27+F25+F23+F21+F19+F17+F15 -> 38,077 | G36: 39,663 | H36: =((G36/F36)-1)*100 -> 4.2 | J36: =J33+J31+J29+J27+J25+J23+J21+J19+J17+J15 -> 30,756 | K36: 31,016 | L36: =((K36/J36)-1)*100 -> 0.8 | N36: =N33+N31+N29+N27+N25+N23+N21+N19+N17+N15 -> 1,988 | O36: 1,934 | P36: =((O36/N36)-1)*100 -> -2.7 | R36: =R33+R31+R29+R27+R25+R23+R21+R19+R17+R15 -> 6,178 | S36: 6,489 | T36: =((S36/R36)-1)*100 -> 5.0 | V36: =V33+V31+V29+V27+V25+V23+V21+V19+V17+V15 -> 109,914 | W36: 111,156 | X36: =((W36/V36)-1)*100 -> 1.1
A39: * Sans le Luxembourg et la Grèce/Ohne Luxemburg und Griechenland/Without Luxemburg and Greece/Senza Lussemburgo e Ellas
A41: : non disponible/not available

Sheet 1992
A1: 2001-07-04
A3: PRODUCTION INDUSTRIELLE D'ALIMENTS COMPOSES | P3: INDUSTRIELLE MISCHFUTTERPRODUKTION
A4: PRODUZIONE INDUSTRIALE DI MANGIMI COMPOSTI | P4: INDUSTRIAL COMPOUND PRODUCTION
A5: 1992
A6: definitif/final
P7: (1 000 t)
A9: Catégories d'aliments composés/Mischfutterarten | C9: D | D9: F | E9: I | F9: NL | G9: B | H9: UK | I9: IRL | J9: DK | K9: ESP | L9: P | M9: A | N9: S | O9: FIN | P9: EUR-15
A10: Tipi di mangimi compositi/Types of feed | P10: *
A13: Bovins/Cattle/Bovini/Rinder | C13: =Germany!E16 -> 7,452 | D13: =France!E16 -> 3,738 | E13: =Italy!E16 -> 4,119 | F13: ='The Netherlands'!E16 -> 4,046 | G13: =Belgium!E16 -> 1,248 | H13: =UK!E16 -> 4,054 | I13: =Ireland!E16 -> 1,455 | J13: =Denmark!E16 -> 1,643 | K13: =Spain!E16 -> 3,180 | L13: =Portugal!E16 -> 1,119 | M13: =Austria!E16 -> 157 | N13: =Sweden!E16 -> 960 | O13: =Finland!E16 -> 451 | P13: =SUM(C13:O13) -> 33,622
A14: engrais/fattening/Mast | C14: =Germany!E17 -> 842 | D14: =France!E17 -> : | E14: =Italy!E17 -> 1,203 | F14: ='The Netherlands'!E17 -> 341 | G14: =Belgium!E17 -> 479 | H14: =UK!E17 -> : | I14: =Ireland!E17 -> 480 | J14: =Denmark!E17 -> 571 | K14: =Spain!E17 -> 1,500 | L14: =Portugal!E17 -> 521 | M14: : | N14: =Sweden!E17 -> : | O14: =Finland!E17 -> : | P14: :
A15: VL/dairy cow/Milchkühe | C15: =Germany!E18 -> 6,357 | D15: =France!E18 -> 2,758 | E15: =Italy!E18 -> 2,666 | F15: ='The Netherlands'!E18 -> 3,546 | G15: =Belgium!E18 -> 547 | H15: =UK!E18 -> 2,997 | I15: =Ireland!E18 -> 787 | J15: =Denmark!E18 -> 732 | K15: =Spain!E18 -> 1,250 | L15: =Portugal!E18 -> 525 | M15: : | N15: =Sweden!E18 -> 910 | O15: =Finland!E18 -> : | P15: :
A16: veaux (aliments d'allaitement non compris)/calves | C16: =Germany!E19 -> 253 | D16: =France!E19 -> : | E16: =Italy!E19 -> 250 | F16: ='The Netherlands'!E19 -> : | G16: =Belgium!E19 -> 111 | H16: =UK!E19 -> 197 | I16: =Ireland!E19 -> 156 | J16: =Denmark!E19 -> 340 | K16: =Spain!E19 -> : | L16: =Portugal!E19 -> 51 | M16: : | N16: =Sweden!E19 -> : | O16: =Finland!E19 -> : | P16: :
A17: (excluding milk replacers)/Kälber (exkl. Milchaustauscher)
A18: autres/others/Andere | C18: =Germany!E20 -> : | D18: =France!E20 -> 980 | E18: =Italy!E20 -> : | F18: ='The Netherlands'!E20 -> 159 | G18: =Belgium!E20 -> 111 | H18: =UK!E20 -> 860 | I18: =Ireland!E20 -> 32 | J18: =Denmark!E20 -> : | K18: =Spain!E20 -> 430 | L18: =Portugal!E20 -> 22 | M18: : | N18: =Sweden!E20 -> 50 | O18: =Finland!E20 -> : | P18: :
A21: Porcins/Pigs/Suini/Schweine | C21: =Germany!E23 -> 6,737 | D21: =France!E23 -> 5,904 | E21: =Italy!E23 -> 2,446 | F21: ='The Netherlands'!E23 -> 7,678 | G21: =Belgium!E23 -> 2,919 | H21: =UK!E23 -> 2,434 | I21: =Ireland!E23 -> 589 | J21: =Denmark!E23 -> 3,295 | K21: =Spain!E23 -> 6,305 | L21: =Portugal!E23 -> 1,356 | M21: =Austria!E23 -> 212 | N21: =Sweden!E23 -> 600 | O21: =Finland!E23 -> 311 | P21: =SUM(C21:O21) -> 40,786
A22: porcelets/piglets/Ferkel | C22: =Germany!E24 -> : | D22: =France!E24 -> : | E22: =Italy!E24 -> : | F22: ='The Netherlands'!E24 -> 988 | G22: =Belgium!E24 -> 780 | H22: =UK!E24 -> 169 | I22: =Ireland!E24 -> 103 | J22: =Denmark!E24 -> 544 | K22: =Spain!E24 -> 710 | L22: =Portugal!E24 -> 171 | M22: : | N22: =Sweden!E24 -> 80 | O22: =Finland!E24 -> : | P22: :
A23: porcs engrais/pigs for fattening/Mastschweine | C23: =Germany!E25 -> : | D23: =France!E25 -> 3,884 | E23: =Italy!E25 -> : | F23: ='The Netherlands'!E25 -> 5,050 | G23: =Belgium!E25 -> : | H23: =UK!E25 -> 1,481 | I23: =Ireland!E25 -> 317 | J23: =Denmark!E25 -> 2,131 | K23: =Spain!E25 -> 4,550 | L23: =Portugal!E25 -> 346 | M23: : | N23: =Sweden!E25 -> 340 | O23: =Finland!E25 -> : | P23: :
A24: reproducteurs/breeding pigs/Zuchtschweine | C24: =Germany!E26 -> : | D24: =France!E26 -> : | E24: =Italy!E26 -> : | F24: ='The Netherlands'!E26 -> 1,640 | G24: =Belgium!E26 -> : | H24: =UK!E26 -> 733 | I24: =Ireland!E26 -> 142 | J24: =Denmark!E26 -> 620 | K24: =Spain!E26 -> 975 | L24: =Portugal!E26 -> 204 | M24: : | N24: =Sweden!E26 -> 180 | O24: =Finland!E26 -> : | P24: :
A25: autres/others/Andere | C25: =Germany!E27 -> : | D25: =France!E27 -> 2,020 | E25: =Italy!E27 -> : | F25: ='The Netherlands'!E27 -> : | G25: =Belgium!E27 -> 2,139 | H25: =UK!E27 -> 51 | I25: =Ireland!E27 -> 27 | J25: =Denmark!E27 -> : | K25: =Spain!E27 -> 70 | L25: =Portugal!E27 -> 635 | M25: : | N25: =Sweden!E27 -> : | O25: =Finland!E27 -> : | P25: :
A28: Volaille/Poultry/Volatili/Geflügel | C28: =Germany!E30 -> 4,156 | D28: =France!E30 -> 7,675 | E28: =Italy!E30 -> 4,306 | F28: ='The Netherlands'!E30 -> 3,536 | G28: =Belgium!E30 -> 939 | H28: =UK!E30 -> 3,823 | I28: =Ireland!E30 -> 396 | J28: =Denmark!E30 -> 619 | K28: =Spain!E30 -> 4,325 | L28: =Portugal!E30 -> 1,241 | M28: =Austria!E30 -> 463 | N28: =Sweden!E30 -> 460 | O28: =Finland!E30 -> 204 | P28: =SUM(C28:O28) -> 32,143
A29: broilers | C29: =Germany!E31 -> 1,773 | D29: =France!E31 -> 2,859 | E29: =Italy!E31 -> 2,231 | F29: ='The Netherlands'!E31 -> 1,517 | G29: =Belgium!E31 -> 325 | H29: =UK!E31 -> 1,675 | I29: =Ireland!E31 -> 177 | J29: =Denmark!E31 -> 504 | K29: =Spain!E31 -> 2,465 | L29: =Portugal!E31 -> 699 | M29: : | N29: =Sweden!E31 -> 230 | O29: =Finland!E31 -> : | P29: :
A30: poulettes & pondeuses/chicks & layers/Jung- & Legehennen | C30: =Germany!E32 -> 2,383 | D30: =France!E32 -> 2,130 | E30: =Italy!E32 -> 1,131 | F30: ='The Netherlands'!E32 -> 2,019 | G30: =Belgium!E32 -> 391 | H30: =UK!E32 -> 942 | I30: =Ireland!E32 -> 117 | J30: =Denmark!E32 -> 37 | K30: =Spain!E32 -> 1,680 | L30: =Portugal!E32 -> 429 | M30: : | N30: =Sweden!E32 -> 230 | O30: =Finland!E32 -> : | P30: :
A31: autres/others/Andere | C31: =Germany!E33 -> : | D31: =France!E33 -> 2,686 | E31: =Italy!E33 -> 944 | F31: ='The Netherlands'!E33 -> : | G31: =Belgium!E33 -> 223 | H31: =UK!E33 -> 1,206 | I31: =Ireland!E33 -> 102 | J31: =Denmark!E33 -> 78 | K31: =Spain!E33 -> 180 | L31: =Portugal!E33 -> 113 | M31: : | N31: =Sweden!E33 -> : | O31: =Finland!E33 -> : | P31: :
A34: Al. d'allait./Milk replacers/Sostit. del latte/Milchaust. | C34: =Germany!E36 -> 256 | D34: =France!E36 -> 609 | E34: =Italy!E36 -> 229 | F34: ='The Netherlands'!E36 -> 693 | G34: =Belgium!E36 -> 54 | H34: =UK!E36 -> 19 | I34: =Ireland!E36 -> 5 | J34: =Denmark!E36 -> 6 | K34: =Spain!E36 -> 63 | L34: =Portugal!E36 -> 0 | M34: =Austria!E36 -> : | N34: =Sweden!E36 -> : | O34: =Finland!E36 -> : | P34: =SUM(C34:O34) -> 1,934
A37: Autres/others/altri/Andere | C37: =Germany!E39 -> 537 | D37: =France!E39 -> 1,437 | E37: =Italy!E39 -> 1,080 | F37: ='The Netherlands'!E39 -> 518 | G37: =Belgium!E39 -> 130 | H37: =UK!E39 -> 874 | I37: =Ireland!E39 -> 250 | J37: =Denmark!E39 -> 123 | K37: =Spain!E39 -> 1,353 | L37: =Portugal!E39 -> 187 | M37: =Austria!E39 -> 237 | N37: =Sweden!E39 -> 48 | O37: =Finland!E39 -> 116 | P37: =SUM(C37:O37) -> 6,890
A40: TOTAL | C40: =C37+C34+C28+C21+C13 -> 19,138 | D40: 19,363 | E40: 12,180 | F40: 16,471 | G40: 5,290 | H40: 11,204 | I40: 2,695 | J40: 5,686 | K40: 15,226 | L40: 3,903 | M40: =M37+M28+M21+M13 -> 1,069 | N40: 2,068 | O40: 1,082 | P40: =P37+P34+P28+P21+P13 -> 115,375
A43: * Sans le Luxembourg et la Grèce/ohne Luxemburg und Griechenland/Without Luxemburg and Greece/Senza Lussemburgo e Ella
A45: : non disponible/not available/nicht verfügbar

Sheet 93-92
A1: 2001-07-04
A3: PRODUCTION INDUSTRIELLE D'ALIMENTS COMPOSES | X3: INDUSTRIELLE MISCHFUTTERPRODUKTION
A4: PRODUZIONE INDUSTRIALE DI MANGIMI COMPOSTI | M4: 1992-1993 | X4: INDUSTRIAL COMPOUND PRODUCTION
M5: definitif/final | X5: (1 000 t )
A9: PAYS | C9: BOVINS/RINDER | G9: PORCS/SCHWEINE | K9: VOLAILLE/GEFLÜGEL | M9: A. ALLAITEMENT/MILCHAUST. | S9: AUTRES/ANDERE | V9: TOTAL/INSGESAMT
A10: LAND | C10: BOVINI/CATTLE | G10: SUINI/PIGS | K10: VOLATILI/POULTRY | M10: SOSTIT. DEL LATTE/MILKREPLACERS | S10: ALTRI ANIMALI/OTHERS | V10: TOTALE/TOTAL
A11: PAESE
A12: COUNTRY | B12: 1992 | C12: 1993 | D12: %TAV | F12: 1992 | G12: 1993 | H12: %TAV | J12: 1992 | K12: 1993 | L12: %TAV | N12: 1992 | O12: 1993 | P12: %TAV | R12: 1992 | S12: 1993 | T12: %TAV | V12: 1999 | W12: 2000 | X12: %TAV
A15: D | B15: =Germany!E$16 -> 7,452 | C15: =Germany!F$16 -> 7,792 | D15: =((C15/B15)-1)*100 -> 4.6 | F15: =Germany!E$23 -> 6,737 | G15: =Germany!F$23 -> 6,945 | H15: =((G15/F15)-1)*100 -> 3.1 | J15: =Germany!E$30 -> 4,156 | K15: =Germany!F$30 -> 4,073 | L15: =((K15/J15)-1)*100 -> -2.0 | N15: =Germany!E$36 -> 256 | O15: =Germany!F$36 -> 266 | P15: =((O15/N15)-1)*100 -> 3.9 | R15: =Germany!E$39 -> 537 | S15: =Germany!F$39 -> 567 | T15: =((S15/R15)-1)*100 -> 5.6 | V15: =R15+N15+J15+F15+B15 -> 19,138 | W15: 19,643 | X15: =((W15/V15)-1)*100 -> 2.6
A17: F | B17: =France!E$16 -> 3,738 | C17: =France!F$16 -> 3,839 | D17: =((C17/B17)-1)*100 -> 2.7 | F17: =France!E$23 -> 5,904 | G17: =France!F$23 -> 6,373 | H17: =((G17/F17)-1)*100 -> 7.9 | J17: =France!E$30 -> 7,675 | K17: =France!F$30 -> 7,999 | L17: =((K17/J17)-1)*100 -> 4.2 | N17: =France!E$36 -> 609 | O17: =France!F$36 -> 584 | P17: =((O17/N17)-1)*100 -> -4.1 | R17: =France!E$39 -> 1,437 | S17: =France!F$39 -> 1,454 | T17: =((S17/R17)-1)*100 -> 1.2 | V17: =R17+N17+J17+F17+B17 -> 19,363 | W17: 20,249 | X17: =((W17/V17)-1)*100 -> 4.6
A19: I | B19: =Italy!E$16 -> 4,119 | C19: =Italy!F$16 -> 3,791 | D19: =((C19/B19)-1)*100 -> -8.0 | F19: =Italy!E$23 -> 2,446 | G19: =Italy!F$23 -> 2,680 | H19: =((G19/F19)-1)*100 -> 9.6 | J19: =Italy!E$30 -> 4,306 | K19: =Italy!F$30 -> 4,219 | L19: =((K19/J19)-1)*100 -> -2.0 | N19: =Italy!E$36 -> 229 | O19: =Italy!F$36 -> 213 | P19: =((O19/N19)-1)*100 -> -7.0 | R19: =Italy!E$39 -> 1,080 | S19: =Italy!F$39 -> 1,035 | T19: =((S19/R19)-1)*100 -> -4.2 | V19: =R19+N19+J19+F19+B19 -> 12,180 | W19: 11,938 | X19: =((W19/V19)-1)*100 -> -2.0
A21: NL | B21: ='The Netherlands'!E$16 -> 4,046 | C21: ='The Netherlands'!F$16 -> 4,121 | D21: =((C21/B21)-1)*100 -> 1.9 | F21: ='The Netherlands'!E$23 -> 7,678 | G21: ='The Netherlands'!F$23 -> 8,007 | H21: =((G21/F21)-1)*100 -> 4.3 | J21: ='The Netherlands'!E$30 -> 3,536 | K21: ='The Netherlands'!F$30 -> 3,465 | L21: =((K21/J21)-1)*100 -> -2.0 | N21: ='The Netherlands'!E$36 -> 693 | O21: ='The Netherlands'!F$36 -> 684 | P21: =((O21/N21)-1)*100 -> -1.3 | R21: ='The Netherlands'!E$39 -> 518 | S21: ='The Netherlands'!F$39 -> 517 | T21: =((S21/R21)-1)*100 -> -0.2 | V21: =R21+N21+J21+F21+B21 -> 16,471 | W21: 16,794 | X21: =((W21/V21)-1)*100 -> 2.0
A23: B | B23: =Belgium!E$16 -> 1,248 | C23: =Belgium!F$16 -> 1,106 | D23: =((C23/B23)-1)*100 -> -11.4 | F23: =Belgium!E$23 -> 2,919 | G23: =Belgium!F$23 -> 3,099 | H23: =((G23/F23)-1)*100 -> 6.2 | J23: =Belgium!E$30 -> 939 | K23: =Belgium!F$30 -> 975 | L23: =((K23/J23)-1)*100 -> 3.8 | N23: =Belgium!E$36 -> 54 | O23: =Belgium!F$36 -> 54 | P23: =((O23/N23)-1)*100 -> 0.0 | R23: =Belgium!E$39 -> 130 | S23: =Belgium!F$39 -> 57 | T23: =((S23/R23)-1)*100 -> -56.2 | V23: =R23+N23+J23+F23+B23 -> 5,290 | W23: 5,291 | X23: =((W23/V23)-1)*100 -> 0.0
A25: UK | B25: =UK!E$16 -> 4,054 | C25: =UK!F$16 -> 4,380 | D25: =((C25/B25)-1)*100 -> 8.0 | F25: =UK!E$23 -> 2,434 | G25: =UK!F$23 -> 2,522 | H25: =((G25/F25)-1)*100 -> 3.6 | J25: =UK!E$30 -> 3,823 | K25: =UK!F$30 -> 3,856 | L25: =((K25/J25)-1)*100 -> 0.9 | N25: =UK!E$36 -> 19 | O25: =UK!F$36 -> 30 | P25: =((O25/N25)-1)*100 -> 57.9 | R25: =UK!E39 -> 874 | S25: =UK!F39 -> 906 | T25: =((S25/R25)-1)*100 -> 3.7 | V25: =R25+J25+F25+B25+N25 -> 11,204 | W25: 11,694 | X25: =((W25/V25)-1)*100 -> 4.4
A27: IRL | B27: =Ireland!E$16 -> 1,455 | C27: =Ireland!F$16 -> 1,676 | D27: =((C27/B27)-1)*100 -> 15.2 | F27: =Ireland!E$23 -> 589 | G27: =Ireland!F$23 -> 636 | H27: =((G27/F27)-1)*100 -> 8.0 | J27: =Ireland!E$30 -> 396 | K27: =Ireland!F$30 -> 431 | L27: =((K27/J27)-1)*100 -> 8.8 | N27: =Ireland!E$36 -> 5 | O27: =Ireland!F$36 -> 9 | P27: =((O27/N27)-1)*100 -> 80.0 | R27: =Ireland!E$39 -> 250 | S27: =Ireland!F$39 -> 259 | T27: =((S27/R27)-1)*100 -> 3.6 | V27: =R27+N27+J27+F27+B27 -> 2,695 | W27: 3,011 | X27: =((W27/V27)-1)*100 -> 11.7
A29: DK | B29: =Denmark!E$16 -> 1,643 | C29: =Denmark!F$16 -> 1,700 | D29: =((C29/B29)-1)*100 -> 3.5 | F29: =Denmark!E$23 -> 3,295 | G29: =Denmark!F$23 -> 3,621 | H29: =((G29/F29)-1)*100 -> 9.9 | J29: =Denmark!E$30 -> 619 | K29: =Denmark!F$30 -> 622 | L29: =((K29/J29)-1)*100 -> 0.5 | N29: =Denmark!E$36 -> 6 | O29: =Denmark!F$36 -> 6 | P29: =((O29/N29)-1)*100 -> 0.0 | R29: =Denmark!E$39 -> 123 | S29: =Denmark!F$39 -> 110 | T29: =((S29/R29)-1)*100 -> -10.6 | V29: =R29+N29+J29+F29+B29 -> 5,686 | W29: 6,059 | X29: =((W29/V29)-1)*100 -> 6.6
A31: ESP | B31: =Spain!E$16 -> 3,180 | C31: =Spain!F$16 -> 3,100 | D31: =((C31/B31)-1)*100 -> -2.5 | F31: =Spain!E$23 -> 6,305 | G31: =Spain!F$23 -> 5,998 | H31: =((G31/F31)-1)*100 -> -4.9 | J31: =Spain!E$30 -> 4,325 | K31: =Spain!F$30 -> 4,435 | L31: =((K31/J31)-1)*100 -> 2.5 | N31: =Spain!E$36 -> 63 | O31: =Spain!F$36 -> 64 | P31: =((O31/N31)-1)*100 -> 1.6 | R31: =Spain!E$39 -> 1,353 | S31: =Spain!F$39 -> 1,453 | T31: =((S31/R31)-1)*100 -> 7.4 | V31: =R31+N31+J31+F31+B31 -> 15,226 | W31: 15,050 | X31: =((W31/V31)-1)*100 -> -1.2
A33: P | B33: =Portugal!E$16 -> 1,119 | C33: =Portugal!F$16 -> 1,012 | D33: =((C33/B33)-1)*100 -> -9.6 | F33: =Portugal!E$23 -> 1,356 | G33: =Portugal!F$23 -> 1,537 | H33: =((G33/F33)-1)*100 -> 13.3 | J33: =Portugal!E$30 -> 1,241 | K33: =Portugal!F$30 -> 1,237 | L33: =((K33/J33)-1)*100 -> -0.3 | N33: =Portugal!E$36 -> 0 | O33: =Portugal!F$36 -> 0 | P33: 0.0 | R33: =Portugal!E$39 -> 187 | S33: =Portugal!F$39 -> 213 | T33: =((S33/R33)-1)*100 -> 13.9 | V33: =R33+N33+J33+F33+B33 -> 3,903 | W33: 3,999 | X33: =((W33/V33)-1)*100 -> 2.5
A35: A | B35: =Austria!E$16 -> 157 | C35: =Austria!F$16 -> 173 | D35: =((C35/B35)-1)*100 -> 10.2 | F35: =Austria!E$23 -> 212 | G35: =Austria!F$23 -> 233 | H35: =((G35/F35)-1)*100 -> 9.9 | J35: =Austria!E$30 -> 463 | K35: =Austria!F$30 -> 459 | L35: =((K35/J35)-1)*100 -> -0.9 | N35: =Austria!E$36 -> : | O35: =Austria!F$36 -> : | P35: nr | R35: =Austria!E$39 -> 237 | S35: =Austria!F$39 -> 239 | T35: =((S35/R35)-1)*100 -> 0.8 | V35: =R35+J35+F35+B35 -> 1,069 | W35: 1,104 | X35: =((W35/V35)-1)*100 -> 3.3
A37: S | B37: =Sweden!E$16 -> 960 | C37: =Sweden!F$16 -> 1,110 | D37: =((C37/B37)-1)*100 -> 15.6 | F37: =Sweden!E$23 -> 600 | G37: =Sweden!F$23 -> 670 | H37: =((G37/F37)-1)*100 -> 11.7 | J37: =Sweden!E$30 -> 460 | K37: =Sweden!F$30 -> 470 | L37: =((K37/J37)-1)*100 -> 2.2 | N37: =Sweden!E$36 -> : | O37: =Sweden!F$36 -> : | P37: nr | R37: =Sweden!E$39 -> 48 | S37: =Sweden!F$39 -> 50 | T37: =((S37/R37)-1)*100 -> 4.2 | V37: =R37+J37+F37+B37 -> 2,068 | W37: 2,300 | X37: =((W37/V37)-1)*100 -> 11.2
A39: FIN | B39: =Finland!E$16 -> 451 | C39: =Finland!F$16 -> 399 | D39: =((C39/B39)-1)*100 -> -11.5 | F39: =Finland!E$23 -> 311 | G39: =Finland!F$23 -> 293 | H39: =((G39/F39)-1)*100 -> -5.8 | J39: =Finland!E$30 -> 204 | K39: =Finland!F$30 -> 189 | L39: =((K39/J39)-1)*100 -> -7.4 | N39: =Finland!E$36 -> : | O39: =Finland!F$36 -> : | P39: nr | R39: =Finland!E$39 -> 116 | S39: =Finland!F$39 -> 81 | T39: =((S39/R39)-1)*100 -> -30.2 | V39: =R39+J39+F39+B39 -> 1,082 | W39: 962 | X39: =((W39/V39)-1)*100 -> -11.1
A42: EUR 15 * | B42: =B39+B37+B35+B33+B31+B29+B27+B25+B23+B21+B19+B17+B15 -> 33,622 | C42: 34,199 | D42: =((C42/B42)-1)*100 -> 1.7 | F42: =F39+F37+F35+F33+F31+F29+F27+F25+F23+F21+F19+F17+F15 -> 40,786 | G42: 42,614 | H42: =((G42/F42)-1)*100 -> 4.5 | J42: =J39+J37+J35+J33+J31+J29+J27+J25+J23+J21+J19+J17+J15 -> 32,143 | K42: 32,430 | L42: =((K42/J42)-1)*100 -> 0.9 | N42: =N33+N31+N29+N27+N23+N21+N19+N17+N15+N25 -> 1,934 | O42: 1,910 | P42: =((O42/N42)-1)*100 -> -1.2 | R42: =R39+R37+R35+R33+R31+R29+R27+R25+R23+R21+R19+R17+R15 -> 6,890 | S42: 6,941 | T42: =((S42/R42)-1)*100 -> 0.7 | V42: =V39+V37+V35+V33+V31+V29+V27+V25+V23+V21+V19+V17+V15 -> 115,375 | W42: 118,094 | X42: =((W42/V42)-1)*100 -> 2.4
A45: * Sans le Luxembourg et la Grèce/Ohne Luxemburg und Griechenland/Without Luxemburg and Greece/Senza Lussemburgo e Ellas
A47: : non disponible/not available

Sheet 1993
A1: 2001-07-04
A3: PRODUCTION INDUSTRIELLE D'ALIMENTS COMPOSES | P3: INDUSTRIELLE MISCHFUTTERPRODUKTION
A4: PRODUZIONE INDUSTRIALE DI MANGIMI COMPOSTI | P4: INDUSTRIAL COMPOUND PRODUCTION
A5: 1993
A6: definitif/final
P7: (1 000 t)
A9: Catégories d'aliments composés/Mischfutterarten | C9: D | D9: F | E9: I | F9: NL | G9: B | H9: UK | I9: IRL | J9: DK | K9: ESP | L9: P | M9: A | N9: S | O9: FIN | P9: EUR-15
A10: Tipi di mangimi compositi/Types of feed | P10: *
A13: Bovins/Cattle/Bovini/Rinder | C13: =C14+C15+C16+C18 -> 7,792 | D13: =D14+D15 -> 3,839 | E13: =E14+E15+E16 -> 3,791 | F13: ='The Netherlands'!F16 -> 4,121 | G13: =G14+G15+G16+G18 -> 1,106 | H13: 4,380 | I13: 1,676 | J13: =J14+J15+J16 -> 1,700 | K13: =K14+K15+K18 -> 3,100 | L13: =L14+L15+L16+L18 -> 1,012 | M13: =Austria!F16 -> 173 | N13: =N15+N18 -> 1,110 | O13: =Finland!F16 -> 399 | P13: =SUM(C13:O13) -> 34,199
A14: engrais/fattening/Mast | C14: =Germany!F17 -> 656 | D14: =France!F17 -> 993 | E14: =Italy!F17 -> 1,151 | F14: ='The Netherlands'!F17 -> 383 | G14: =Belgium!F17 -> 436 | H14: =UK!F17 -> 94 | I14: =Ireland!F17 -> 592 | J14: =Denmark!F17 -> 677 | K14: =Spain!F17 -> 1,500 | L14: =Portugal!F17 -> 434 | M14: : | N14: =Sweden!F17 -> : | O14: =Finland!F17 -> : | P14: :
A15: VL/dairy cow/Milchkühe | C15: =Germany!F18 -> 6,252 | D15: =France!F18 -> 2,846 | E15: =Italy!F18 -> 2,434 | F15: ='The Netherlands'!F18 -> 3,562 | G15: =Belgium!F18 -> 499 | H15: =UK!F18 -> 3,199 | I15: =Ireland!F18 -> 890 | J15: =Denmark!F18 -> 650 | K15: =Spain!F18 -> 1,200 | L15: =Portugal!F18 -> 512 | M15: : | N15: =Sweden!F18 -> 1,010 | O15: =Finland!F18 -> : | P15: :
A16: veaux (aliments d'allaitement non compris)/calves | C16: =Germany!F19 -> 371 | D16: =France!F19 -> : | E16: =Italy!F19 -> 206 | F16: ='The Netherlands'!F19 -> : | G16: =Belgium!F19 -> 90 | H16: =UK!F19 -> 222 | I16: =Ireland!F19 -> 172 | J16: =Denmark!F19 -> 373 | K16: =Spain!F19 -> : | L16: =Portugal!F19 -> 50 | M16: : | N16: =Sweden!F19 -> : | O16: =Finland!F19 -> : | P16: :
A17: (excluding milk replacers)/Kälber (exkl. Milchaustauscher)
A18: autres/others/Andere | C18: =Germany!F20 -> 513 | D18: =France!F20 -> : | E18: =Italy!F20 -> : | F18: ='The Netherlands'!F20 -> 176 | G18: =Belgium!F20 -> 81 | H18: =UK!F20 -> 865 | I18: =Ireland!F20 -> 22 | J18: =Denmark!F20 -> : | K18: =Spain!F20 -> 400 | L18: =Portugal!F20 -> 16 | M18: : | N18: =Sweden!F20 -> 100 | O18: =Finland!F20 -> : | P18: :
A21: Porcins/Pigs/Suini/Schweine | C21: =C22+C23+C24+C25 -> 6,945 | D21: =D22+D23+D24 -> 6,373 | E21: =Italy!F23 -> 2,680 | F21: ='The Netherlands'!F23 -> 8,007 | G21: =G22+G25 -> 3,099 | H21: =H22+H23+H24+H25 -> 2,522 | I21: 636 | J21: =J22+J23+J24 -> 3,621 | K21: =K22+K23+K24+K25 -> 5,998 | L21: 1,537 | M21: =Austria!F23 -> 233 | N21: =N22+N23+N24 -> 670 | O21: =Finland!F23 -> 293 | P21: =SUM(C21:O21) -> 42,614
A22: porcelets/piglets/Ferkel | C22: =Germany!F24 -> 1,595 | D22: =France!F24 -> 840 | E22: =Italy!F24 -> : | F22: ='The Netherlands'!F24 -> 1,002 | G22: =Belgium!F24 -> 805 | H22: =UK!F24 -> 164 | I22: =Ireland!F24 -> 113 | J22: =Denmark!F24 -> 585 | K22: =Spain!F24 -> 670 | L22: =Portugal!F24 -> 212 | M22: : | N22: =Sweden!F24 -> 90 | O22: =Finland!F24 -> : | P22: :
A23: porcs engrais/pigs for fattening/Mastschweine | C23: =Germany!F25 -> 3,179 | D23: =France!F25 -> 4,211 | E23: =Italy!F25 -> : | F23: ='The Netherlands'!F25 -> 5,354 | G23: =Belgium!F25 -> : | H23: =UK!F25 -> 649 | I23: =Ireland!F25 -> 354 | J23: =Denmark!F25 -> 2,384 | K23: =Spain!F25 -> 4,350 | L23: =Portugal!F25 -> 953 | M23: : | N23: =Sweden!F25 -> 390 | O23: =Finland!F25 -> : | P23: :
A24: reproducteurs/breeding pigs/Zuchtschweine | C24: =Germany!F26 -> 1,266 | D24: =France!F26 -> 1,322 | E24: =Italy!F26 -> : | F24: ='The Netherlands'!F26 -> 1,651 | G24: =Belgium!F26 -> : | H24: =UK!F26 -> 777 | I24: =Ireland!F26 -> 155 | J24: =Denmark!F26 -> 652 | K24: =Spain!F26 -> 908 | L24: =Portugal!F26 -> 238 | M24: : | N24: =Sweden!F26 -> 190 | O24: =Finland!F26 -> : | P24: :
A25: autres/others/Andere | C25: =Germany!F27 -> 905 | D25: =France!F27 -> : | E25: =Italy!F27 -> : | F25: ='The Netherlands'!F27 -> : | G25: =Belgium!F27 -> 2,294 | H25: =UK!F27 -> 932 | I25: =Ireland!F27 -> 14 | J25: =Denmark!F27 -> : | K25: =Spain!F27 -> 70 | L25: =Portugal!F27 -> 134 | M25: : | N25: =Sweden!F27 -> : | O25: =Finland!F27 -> : | P25: :
A28: Volaille/Poultry/Volatili/Geflügel | C28: =C29+C30+C31 -> 4,073 | D28: 7,999 | E28: 4,219 | F28: ='The Netherlands'!F30 -> 3,465 | G28: =G29+G30+G31 -> 975 | H28: 3,856 | I28: 431 | J28: 622 | K28: 4,435 | L28: 1,237 | M28: =Austria!F30 -> 459 | N28: =N29+N30 -> 470 | O28: =Finland!F30 -> 189 | P28: =SUM(C28:O28) -> 32,430
A29: broilers | C29: =Germany!F31 -> 1,750 | D29: =France!F31 -> 3,011 | E29: =Italy!F31 -> 2,092 | F29: ='The Netherlands'!F31 -> 1,514 | G29: =Belgium!F31 -> 353 | H29: =UK!F31 -> 1,652 | I29: =Ireland!F31 -> 214 | J29: =Denmark!F31 -> 507 | K29: =Spain!F31 -> 2,535 | L29: =Portugal!F31 -> 630 | M29: : | N29: =Sweden!F31 -> 230 | O29: =Finland!F31 -> : | P29: :
A30: poulettes & pondeuses/chicks & layers/Jung- & Legehennen | C30: =Germany!F32 -> 1,912 | D30: =France!F32 -> 2,175 | E30: =Italy!F32 -> 1,091 | F30: ='The Netherlands'!F32 -> 1,951 | G30: =Belgium!F32 -> 405 | H30: =UK!F32 -> 949 | I30: =Ireland!F32 -> 127 | J30: =Denmark!F32 -> 39 | K30: =Spain!F32 -> 1,700 | L30: =Portugal!F32 -> 404 | M30: : | N30: =Sweden!F32 -> 240 | O30: =Finland!F32 -> : | P30: :
A31: autres/others/Andere | C31: =Germany!F33 -> 411 | D31: =France!F33 -> 2,813 | E31: =Italy!F33 -> 1,036 | F31: ='The Netherlands'!F33 -> : | G31: =Belgium!F33 -> 217 | H31: =UK!F33 -> 1,255 | I31: =Ireland!F33 -> 90 | J31: =Denmark!F33 -> 76 | K31: =Spain!F33 -> 200 | L31: =Portugal!F33 -> 203 | M31: : | N31: =Sweden!F33 -> : | O31: =Finland!F33 -> : | P31: :
A34: Al. d'allait./Milk replacers/Sostit. del latte/Milchaust. | C34: =Germany!F36 -> 266 | D34: =France!F36 -> 584 | E34: =Italy!F36 -> 213 | F34: ='The Netherlands'!F36 -> 684 | G34: =Belgium!F36 -> 54 | H34: =UK!F36 -> 30 | I34: =Ireland!F36 -> 9 | J34: =Denmark!F36 -> 6 | K34: =Spain!F36 -> 64 | L34: =Portugal!F36 -> 0 | M34: =Austria!F36 -> : | N34: =Sweden!F36 -> : | O34: =Finland!F36 -> : | P34: =SUM(C34:O34) -> 1,910
A37: Autres/others/altri/Andere | C37: =Germany!F39 -> 567 | D37: =France!F39 -> 1,454 | E37: =Italy!F39 -> 1,035 | F37: ='The Netherlands'!F39 -> 517 | G37: =Belgium!F39 -> 57 | H37: =UK!F39 -> 906 | I37: =Ireland!F39 -> 259 | J37: =Denmark!F39 -> 110 | K37: =Spain!F39 -> 1,453 | L37: =Portugal!F39 -> 213 | M37: =Austria!F39 -> 239 | N37: =Sweden!F39 -> 50 | O37: =Finland!F39 -> 81 | P37: =SUM(C37:O37) -> 6,941
A40: TOTAL | C40: =C37+C34+C28+C21+C13 -> 19,643 | D40: 20,249 | E40: 11,938 | F40: 16,794 | G40: 5,291 | H40: 11,694 | I40: 3,011 | J40: 6,059 | K40: 15,050 | L40: 3,999 | M40: =M37+M28+M21+M13 -> 1,104 | N40: 2,300 | O40: 962 | P40: =P37+P34+P28+P21+P13 -> 118,094
A43: * Sans le Luxembourg et la Grèce/ohne Luxemburg und Griechenland/Without Luxemburg and Greece/Senza Lussemburgo e Ella
A45: : non disponible/not available/nicht verfügbar

Sheet 94-93
A1: 2001-07-04
A3: PRODUCTION INDUSTRIELLE D'ALIMENTS COMPOSES | X3: INDUSTRIELLE MISCHFUTTERPRODUKTION
A4: PRODUZIONE INDUSTRIALE DI MANGIMI COMPOSTI | M4: 1993-1994 | X4: INDUSTRIAL COMPOUND PRODUCTION
M5: definitif/final | X5: (1 000 t )
A9: PAYS | C9: BOVINS/RINDER | G9: PORCS/SCHWEINE | K9: VOLAILLE/GEFLÜGEL | M9: A. ALLAITEMENT/MILCHAUST. | S9: AUTRES/ANDERE | V9: TOTAL/INSGESAMT
A10: LAND | C10: BOVINI/CATTLE | G10: SUINI/PIGS | K10: VOLATILI/POULTRY | M10: SOSTIT. DEL LATTE/MILKREPLACERS | S10: ALTRI ANIMALI/OTHERS | V10: TOTALE/TOTAL
A11: PAESE
A12: COUNTRY | B12: 1993 | C12: 1994 | D12: %TAV | F12: 1993 | G12: 1994 | H12: %TAV | J12: 1993 | K12: 1994 | L12: %TAV | N12: 1993 | O12: 1994 | P12: %TAV | R12: 1993 | S12: 1994 | T12: %TAV | V12: 1993 | W12: 1994 | X12: %TAV
A15: D | B15: =Germany!F$16 -> 7,792 | C15: =Germany!G$16 -> 7,919 | D15: =((C15/B15)-1)*100 -> 1.6 | F15: =Germany!F$23 -> 6,945 | G15: =Germany!G$23 -> 6,280 | H15: =((G15/F15)-1)*100 -> -9.6 | J15: =Germany!F$30 -> 4,073 | K15: =Germany!G$30 -> 4,080 | L15: =((K15/J15)-1)*100 -> 0.2 | N15: =Germany!F$36 -> 266 | O15: =Germany!G$36 -> 256 | P15: =((O15/N15)-1)*100 -> -3.8 | R15: =Germany!F$39 -> 567 | S15: =Germany!G$39 -> 582 | T15: =((S15/R15)-1)*100 -> 2.6 | V15: =R15+N15+J15+F15+B15 -> 19,643 | W15: 19,117 | X15: =((W15/V15)-1)*100 -> -2.7
A17: F | B17: =France!F$16 -> 3,839 | C17: =France!G$16 -> 3,980 | D17: =((C17/B17)-1)*100 -> 3.7 | F17: =France!F$23 -> 6,373 | G17: =France!G$23 -> 6,417 | H17: =((G17/F17)-1)*100 -> 0.7 | J17: =France!F$30 -> 7,999 | K17: =France!G$30 -> 8,354 | L17: =((K17/J17)-1)*100 -> 4.4 | N17: =France!F$36 -> 584 | O17: =France!G$36 -> 569 | P17: =((O17/N17)-1)*100 -> -2.6 | R17: =France!F$39 -> 1,454 | S17: =France!G$39 -> 1,428 | T17: =((S17/R17)-1)*100 -> -1.8 | V17: =R17+N17+J17+F17+B17 -> 20,249 | W17: 20,748 | X17: =((W17/V17)-1)*100 -> 2.5
A19: I | B19: =Italy!F$16 -> 3,791 | C19: =Italy!G$16 -> 3,657 | D19: =((C19/B19)-1)*100 -> -3.5 | F19: =Italy!F$23 -> 2,680 | G19: =Italy!G$23 -> 2,464 | H19: =((G19/F19)-1)*100 -> -8.1 | J19: =Italy!F$30 -> 4,219 | K19: =Italy!G$30 -> 4,239 | L19: =((K19/J19)-1)*100 -> 0.5 | N19: =Italy!F$36 -> 213 | O19: =Italy!G$36 -> 196 | P19: =((O19/N19)-1)*100 -> -8.0 | R19: =Italy!F$39 -> 1,035 | S19: =Italy!G$39 -> 1,035 | T19: =((S19/R19)-1)*100 -> 0.0 | V19: =R19+N19+J19+F19+B19 -> 11,938 | W19: 11,591 | X19: =((W19/V19)-1)*100 -> -2.9
A21: NL | B21: ='The Netherlands'!F$16 -> 4,121 | C21: ='The Netherlands'!G$16 -> 4,124 | D21: =((C21/B21)-1)*100 -> 0.1 | F21: ='The Netherlands'!F$23 -> 8,007 | G21: ='The Netherlands'!G$23 -> 7,763 | H21: =((G21/F21)-1)*100 -> -3.0 | J21: ='The Netherlands'!F$30 -> 3,465 | K21: ='The Netherlands'!G$30 -> 3,423 | L21: =((K21/J21)-1)*100 -> -1.2 | N21: ='The Netherlands'!F$36 -> 684 | O21: ='The Netherlands'!G$36 -> 745 | P21: =((O21/N21)-1)*100 -> 8.9 | R21: ='The Netherlands'!F$39 -> 517 | S21: ='The Netherlands'!G$39 -> 713 | T21: =((S21/R21)-1)*100 -> 37.9 | V21: =R21+N21+J21+F21+B21 -> 16,794 | W21: 16,768 | X21: =((W21/V21)-1)*100 -> -0.2
A23: B | B23: =Belgium!F$16 -> 1,106 | C23: =Belgium!G$16 -> 1,145 | D23: =((C23/B23)-1)*100 -> 3.5 | F23: =Belgium!F$23 -> 3,099 | G23: =Belgium!G$23 -> 3,088 | H23: =((G23/F23)-1)*100 -> -0.4 | J23: =Belgium!F$30 -> 975 | K23: =Belgium!G$30 -> 1,014 | L23: =((K23/J23)-1)*100 -> 4.0 | N23: =Belgium!F$36 -> 54 | O23: =Belgium!G$36 -> 62 | P23: =((O23/N23)-1)*100 -> 14.8 | R23: =Belgium!F$39 -> 57 | S23: =Belgium!G$39 -> 55 | T23: =((S23/R23)-1)*100 -> -3.5 | V23: =R23+N23+J23+F23+B23 -> 5,291 | W23: 5,364 | X23: =((W23/V23)-1)*100 -> 1.4
A25: UK | B25: =UK!F$16 -> 4,380 | C25: =UK!G$16 -> 4,491 | D25: =((C25/B25)-1)*100 -> 2.5 | F25: =UK!F$23 -> 2,522 | G25: =UK!G$23 -> 2,504 | H25: =((G25/F25)-1)*100 -> -0.7 | J25: =UK!F$30 -> 3,856 | K25: =UK!G$30 -> 3,953 | L25: =((K25/J25)-1)*100 -> 2.5 | N25: =UK!F$36 -> 30 | O25: =UK!G$36 -> 34 | P25: =((O25/N25)-1)*100 -> 13.3 | R25: =UK!F39 -> 906 | S25: =UK!G39 -> 1,019 | T25: =((S25/R25)-1)*100 -> 12.5 | V25: =R25+J25+F25+B25+N25 -> 11,694 | W25: 12,001 | X25: =((W25/V25)-1)*100 -> 2.6
A27: IRL | B27: =Ireland!F$16 -> 1,676 | C27: =Ireland!G$16 -> 1,972 | D27: =((C27/B27)-1)*100 -> 17.7 | F27: =Ireland!F$23 -> 636 | G27: =Ireland!G$23 -> 644 | H27: =((G27/F27)-1)*100 -> 1.3 | J27: =Ireland!F$30 -> 431 | K27: =Ireland!G$30 -> 463 | L27: =((K27/J27)-1)*100 -> 7.4 | N27: =Ireland!F$36 -> 9 | O27: =Ireland!G$36 -> 9 | P27: =((O27/N27)-1)*100 -> 0.0 | R27: =Ireland!F$39 -> 259 | S27: =Ireland!G$39 -> 315 | T27: =((S27/R27)-1)*100 -> 21.6 | V27: =R27+N27+J27+F27+B27 -> 3,011 | W27: 3,403 | X27: =((W27/V27)-1)*100 -> 13.0
A29: DK | B29: =Denmark!F$16 -> 1,700 | C29: =Denmark!G$16 -> 1,571 | D29: =((C29/B29)-1)*100 -> -7.6 | F29: =Denmark!F$23 -> 3,621 | G29: =Denmark!G$23 -> 3,426 | H29: =((G29/F29)-1)*100 -> -5.4 | J29: =Denmark!F$30 -> 622 | K29: =Denmark!G$30 -> 635 | L29: =((K29/J29)-1)*100 -> 2.1 | N29: =Denmark!F$36 -> 6 | O29: =Denmark!G$36 -> 6 | P29: =((O29/N29)-1)*100 -> 0.0 | R29: =Denmark!F$39 -> 110 | S29: =Denmark!G$39 -> 150 | T29: =((S29/R29)-1)*100 -> 36.4 | V29: =R29+N29+J29+F29+B29 -> 6,059 | W29: 5,788 | X29: =((W29/V29)-1)*100 -> -4.5
A31: ESP | B31: =Spain!F$16 -> 3,100 | C31: =Spain!G$16 -> 3,150 | D31: =((C31/B31)-1)*100 -> 1.6 | F31: =Spain!F$23 -> 5,998 | G31: =Spain!G$23 -> 5,850 | H31: =((G31/F31)-1)*100 -> -2.5 | J31: =Spain!F$30 -> 4,435 | K31: =Spain!G$30 -> 4,350 | L31: =((K31/J31)-1)*100 -> -1.9 | N31: =Spain!F$36 -> 64 | O31: =Spain!G$36 -> 65 | P31: =((O31/N31)-1)*100 -> 1.6 | R31: =Spain!F$39 -> 1,453 | S31: =Spain!G$39 -> 1,212 | T31: =((S31/R31)-1)*100 -> -16.6 | V31: =R31+N31+J31+F31+B31 -> 15,050 | W31: 14,627 | X31: =((W31/V31)-1)*100 -> -2.8
A33: P | B33: =Portugal!F$16 -> 1,012 | C33: =Portugal!G$16 -> 1,007 | D33: =((C33/B33)-1)*100 -> -0.5 | F33: =Portugal!F$23 -> 1,537 | G33: =Portugal!G$23 -> 1,485 | H33: =((G33/F33)-1)*100 -> -3.4 | J33: =Portugal!F$30 -> 1,237 | K33: =Portugal!G$30 -> 1,274 | L33: =((K33/J33)-1)*100 -> 3.0 | N33: =Portugal!F$36 -> 0 | O33: =Portugal!G$36 -> 0 | P33: 0.0 | R33: =Portugal!F$39 -> 213 | S33: =Portugal!G$39 -> 204 | T33: =((S33/R33)-1)*100 -> -4.2 | V33: =R33+N33+J33+F33+B33 -> 3,999 | W33: 3,970 | X33: =((W33/V33)-1)*100 -> -0.7
A35: A | B35: =Austria!F$16 -> 173 | C35: =Austria!G$16 -> 163 | D35: =((C35/B35)-1)*100 -> -5.8 | F35: =Austria!F$23 -> 233 | G35: =Austria!G$23 -> 235 | H35: =((G35/F35)-1)*100 -> 0.9 | J35: =Austria!F$30 -> 459 | K35: =Austria!G$30 -> 443 | L35: =((K35/J35)-1)*100 -> -3.5 | N35: =Austria!F$36 -> : | O35: =Austria!G$36 -> 16 | P35: nr | R35: =Austria!F$39 -> 239 | S35: =Austria!G$39 -> 83 | T35: =((S35/R35)-1)*100 -> -65.3 | V35: =R35+J35+F35+B35 -> 1,104 | W35: =S35+O35+K35+G35+C35 -> 940 | X35: =((W35/V35)-1)*100 -> -14.9
A37: S | B37: =Sweden!F$16 -> 1,110 | C37: =Sweden!G$16 -> 1,130 | D37: =((C37/B37)-1)*100 -> 1.8 | F37: =Sweden!F$23 -> 670 | G37: =Sweden!G$23 -> 660 | H37: =((G37/F37)-1)*100 -> -1.5 | J37: =Sweden!F$30 -> 470 | K37: =Sweden!G$30 -> 490 | L37: =((K37/J37)-1)*100 -> 4.3 | N37: =Sweden!F$36 -> : | O37: =Sweden!G$36 -> : | P37: nr | R37: =Sweden!F$39 -> 50 | S37: =Sweden!G$39 -> 50 | T37: =((S37/R37)-1)*100 -> 0.0 | V37: =R37+J37+F37+B37 -> 2,300 | W37: 2,330 | X37: =((W37/V37)-1)*100 -> 1.3
A39: FIN | B39: =Finland!F$16 -> 399 | C39: =Finland!G$16 -> 460 | D39: =((C39/B39)-1)*100 -> 15.3 | F39: =Finland!F$23 -> 293 | G39: =Finland!G$23 -> 294 | H39: =((G39/F39)-1)*100 -> 0.3 | J39: =Finland!F$30 -> 189 | K39: =Finland!G$30 -> 196 | L39: =((K39/J39)-1)*100 -> 3.7 | N39: =Finland!F$36 -> : | O39: =Finland!G$36 -> : | P39: nr | R39: =Finland!F$39 -> 81 | S39: =Finland!G$39 -> 109 | T39: =((S39/R39)-1)*100 -> 34.6 | V39: =R39+J39+F39+B39 -> 962 | W39: 1,059 | X39: =((W39/V39)-1)*100 -> 10.1
A42: EUR 15 * | B42: =B39+B37+B35+B33+B31+B29+B27+B25+B23+B21+B19+B17+B15 -> 34,199 | C42: 34,769 | D42: =((C42/B42)-1)*100 -> 1.7 | F42: =F39+F37+F35+F33+F31+F29+F27+F25+F23+F21+F19+F17+F15 -> 42,614 | G42: 41,110 | H42: =((G42/F42)-1)*100 -> -3.5 | J42: =J39+J37+J35+J33+J31+J29+J27+J25+J23+J21+J19+J17+J15 -> 32,430 | K42: 32,914 | L42: =((K42/J42)-1)*100 -> 1.5 | N42: =N33+N31+N29+N27+N23+N21+N19+N17+N15+N25 -> 1,910 | O42: =O33+O31+O29+O27+O23+O21+O19+O17+O15+O25+O35 -> 1,958 | P42: =((O42/N42)-1)*100 -> 2.5 | R42: =R39+R37+R35+R33+R31+R29+R27+R25+R23+R21+R19+R17+R15 -> 6,941 | S42: 6,955 | T42: =((S42/R42)-1)*100 -> 0.2 | V42: =V39+V37+V35+V33+V31+V29+V27+V25+V23+V21+V19+V17+V15 -> 118,094 | W42: 117,706 | X42: =((W42/V42)-1)*100 -> -0.3
A45: * Sans le Luxembourg et la Grèce/Ohne Luxemburg und Griechenland/Without Luxemburg and Greece/Senza Lussemburgo e Ellas
A47: : non disponible/not available

Sheet 1994
A1: 2001-07-04
A3: PRODUCTION INDUSTRIELLE D'ALIMENTS COMPOSES | P3: INDUSTRIELLE MISCHFUTTERPRODUKTION
A4: PRODUZIONE INDUSTRIALE DI MANGIMI COMPOSTI | P4: INDUSTRIAL COMPOUND PRODUCTION
A5: 1994
A6: definitif/final
P7: (1 000 t)
A9: Catégories d'aliments composés/Mischfutterarten | C9: D | D9: F | E9: I | F9: NL | G9: B | H9: UK | I9: IRL | J9: DK | K9: ESP | L9: P | M9: A | N9: S | O9: FIN | P9: EUR-15
A10: Tipi di mangimi compositi/Types of feed | P10: *
A13: Bovins/Cattle/Bovini/Rinder | C13: =C14+C15+C16+C18 -> 7,919 | D13: =D15+D18 -> 3,980 | E13: =E14+E15+E16 -> 3,657 | F13: ='The Netherlands'!G16 -> 4,124 | G13: =Belgium!G16 -> 1,145 | H13: =H14+H15+H16+H18 -> 4,491 | I13: 1,972 | J13: =J14+J15+J16 -> 1,571 | K13: =K14+K15+K18 -> 3,150 | L13: =L14+L15+L16+L18 -> 1,007 | M13: =Austria!G16 -> 163 | N13: =N15+N18 -> 1,130 | O13: =Finland!G16 -> 460 | P13: =SUM(C13:O13) -> 34,769
A14: engrais/fattening/Mast | C14: =Germany!G17 -> 592 | D14: =France!G17 -> : | E14: =Italy!G17 -> 1,072 | F14: ='The Netherlands'!G17 -> 428 | G14: =Belgium!G17 -> : | H14: =UK!G17 -> 951 | I14: =Ireland!G17 -> 740 | J14: =Denmark!G17 -> 605 | K14: =Spain!G17 -> 1,500 | L14: =Portugal!G17 -> 423 | M14: : | N14: =Sweden!G17 -> : | O14: =Finland!G17 -> : | P14: :
A15: VL/dairy cow/Milchkühe | C15: =Germany!G18 -> 6,381 | D15: =France!G18 -> 2,890 | E15: =Italy!G18 -> 2,385 | F15: ='The Netherlands'!G18 -> 3,644 | G15: =Belgium!G18 -> : | H15: =UK!G18 -> 3,176 | I15: =Ireland!G18 -> 1,019 | J15: =Denmark!G18 -> 620 | K15: =Spain!G18 -> 1,250 | L15: =Portugal!G18 -> 514 | M15: : | N15: =Sweden!G18 -> 1,030 | O15: =Finland!G18 -> : | P15: :
A16: veaux (aliments d'allaitement non compris)/calves | C16: =Germany!G19 -> 242 | D16: =France!G19 -> : | E16: =Italy!G19 -> 200 | F16: ='The Netherlands'!G19 -> 52 | G16: =Belgium!G19 -> : | H16: =UK!G19 -> 254 | I16: =Ireland!G19 -> 181 | J16: =Denmark!G19 -> 346 | K16: =Spain!G19 -> : | L16: =Portugal!G19 -> 50 | M16: : | N16: =Sweden!G19 -> : | O16: =Finland!G19 -> : | P16: :
A17: (excluding milk replacers)/Kälber (exkl. Milchaustauscher)
A18: autres/others/Andere | C18: =Germany!G20 -> 704 | D18: =France!G20 -> 1,090 | E18: =Italy!G20 -> : | F18: ='The Netherlands'!G20 -> : | G18: =Belgium!G20 -> : | H18: =UK!G20 -> 110 | I18: =Ireland!G20 -> 32 | J18: =Denmark!G20 -> : | K18: =Spain!G20 -> 400 | L18: =Portugal!G20 -> 20 | M18: : | N18: =Sweden!G20 -> 100 | O18: =Finland!G20 -> : | P18: :
A21: Porcins/Pigs/Suini/Schweine | C21: =C22+C23+C24+C25 -> 6,280 | D21: =D22+D23+D24 -> 6,417 | E21: =Italy!G23 -> 2,464 | F21: ='The Netherlands'!G23 -> 7,763 | G21: =Belgium!G23 -> 3,088 | H21: =H22+H23+H24+H25 -> 2,504 | I21: 644 | J21: =J22+J23+J24 -> 3,426 | K21: =K22+K23+K24+K25 -> 5,850 | L21: 1,485 | M21: =Austria!G23 -> 235 | N21: =N22+N23+N24 -> 660 | O21: =Finland!G23 -> 294 | P21: =SUM(C21:O21) -> 41,110
A22: porcelets/piglets/Ferkel | C22: =Germany!G24 -> 1,345 | D22: =France!G24 -> 809 | E22: =Italy!G24 -> : | F22: ='The Netherlands'!G24 -> 969 | G22: =Belgium!G24 -> : | H22: =UK!G24 -> 158 | I22: =Ireland!G24 -> 114 | J22: =Denmark!G24 -> 578 | K22: =Spain!G24 -> 650 | L22: =Portugal!G24 -> 267 | M22: : | N22: =Sweden!G24 -> 90 | O22: =Finland!G24 -> : | P22: :
A23: porcs engrais/pigs for fattening/Mastschweine | C23: =Germany!G25 -> 3,230 | D23: =France!G25 -> 4,301 | E23: =Italy!G25 -> : | F23: ='The Netherlands'!G25 -> 5,079 | G23: =Belgium!G25 -> : | H23: =UK!G25 -> 1,555 | I23: =Ireland!G25 -> 353 | J23: =Denmark!G25 -> 2,228 | K23: =Spain!G25 -> 4,230 | L23: =Portugal!G25 -> 386 | M23: : | N23: =Sweden!G25 -> 380 | O23: =Finland!G25 -> : | P23: :
A24: reproducteurs/breeding pigs/Zuchtschweine | C24: =Germany!G26 -> 1,092 | D24: =France!G26 -> 1,307 | E24: =Italy!G26 -> : | F24: ='The Netherlands'!G26 -> 1,715 | G24: =Belgium!G26 -> : | H24: =UK!G26 -> 742 | I24: =Ireland!G26 -> 155 | J24: =Denmark!G26 -> 620 | K24: =Spain!G26 -> 900 | L24: =Portugal!G26 -> 282 | M24: : | N24: =Sweden!G26 -> 190 | O24: =Finland!G26 -> : | P24: :
A25: autres/others/Andere | C25: =Germany!G27 -> 613 | D25: =France!G27 -> : | E25: =Italy!G27 -> : | F25: ='The Netherlands'!G27 -> : | G25: =Belgium!G27 -> : | H25: =UK!G27 -> 49 | I25: =Ireland!G27 -> 22 | J25: =Denmark!G27 -> : | K25: =Spain!G27 -> 70 | L25: =Portugal!G27 -> 550 | M25: : | N25: =Sweden!G27 -> : | O25: =Finland!G27 -> : | P25: :
A28: Volaille/Poultry/Volatili/Geflügel | C28: =C29+C30 -> 4,080 | D28: =D29+D30+D31 -> 8,354 | E28: 4,239 | F28: ='The Netherlands'!G30 -> 3,423 | G28: =Belgium!G30 -> 1,014 | H28: =H29+H30+H31 -> 3,953 | I28: 463 | J28: 635 | K28: 4,350 | L28: 1,274 | M28: =Austria!G30 -> 443 | N28: =N29+N30 -> 490 | O28: =Finland!G30 -> 196 | P28: =SUM(C28:O28) -> 32,914
A29: broilers | C29: =Germany!G31 -> 1,785 | D29: =France!G31 -> 3,110 | E29: =Italy!G31 -> 2,056 | F29: ='The Netherlands'!G31 -> 1,498 | G29: =Belgium!G31 -> : | H29: =UK!G31 -> 1,670 | I29: =Ireland!G31 -> 254 | J29: =Denmark!G31 -> 527 | K29: =Spain!G31 -> 2,450 | L29: =Portugal!G31 -> 701 | M29: : | N29: =Sweden!G31 -> 240 | O29: =Finland!G31 -> : | P29: :
A30: poulettes & pondeuses/chicks & layers/Jung- & Legehennen | C30: =Germany!G32 -> 2,295 | D30: =France!G32 -> 2,243 | E30: =Italy!G32 -> 1,098 | F30: ='The Netherlands'!G32 -> 1,925 | G30: =Belgium!G32 -> : | H30: =UK!G32 -> 1,067 | I30: =Ireland!G32 -> 104 | J30: =Denmark!G32 -> 41 | K30: =Spain!G32 -> 1,700 | L30: =Portugal!G32 -> 370 | M30: : | N30: =Sweden!G32 -> 250 | O30: =Finland!G32 -> : | P30: :
A31: autres/others/Andere | C31: =Germany!G33 -> : | D31: =France!G33 -> 3,001 | E31: =Italy!G33 -> 1,085 | F31: ='The Netherlands'!G33 -> : | G31: =Belgium!G33 -> : | H31: =UK!G33 -> 1,216 | I31: =Ireland!G33 -> 105 | J31: =Denmark!G33 -> 67 | K31: =Spain!G33 -> 200 | L31: =Portugal!G33 -> 203 | M31: : | N31: =Sweden!G33 -> : | O31: =Finland!G33 -> : | P31: :
A34: Al. d'allait./Milk replacers/Sostit. del latte/Milchaust. | C34: =Germany!G36 -> 256 | D34: =France!G36 -> 569 | E34: =Italy!G36 -> 196 | F34: ='The Netherlands'!G36 -> 745 | G34: =Belgium!G36 -> 62 | H34: =UK!G36 -> 34 | I34: =Ireland!G36 -> 9 | J34: =Denmark!G36 -> 6 | K34: =Spain!G36 -> 65 | L34: =Portugal!G36 -> 0 | M34: =Austria!G36 -> 16 | N34: =Sweden!G36 -> : | O34: =Finland!G36 -> : | P34: =SUM(C34:O34) -> 1,958
A37: Autres/others/altri/Andere | C37: =Germany!G39 -> 582 | D37: =France!G39 -> 1,428 | E37: =Italy!G39 -> 1,035 | F37: ='The Netherlands'!G39 -> 713 | G37: =Belgium!G39 -> 55 | H37: =UK!G39 -> 1,019 | I37: =Ireland!G39 -> 315 | J37: =Denmark!G39 -> 150 | K37: =Spain!G39 -> 1,212 | L37: =Portugal!G39 -> 204 | M37: =Austria!G39 -> 83 | N37: =Sweden!G39 -> 50 | O37: =Finland!G39 -> 109 | P37: =SUM(C37:O37) -> 6,955
A40: TOTAL | C40: =C37+C34+C28+C21+C13 -> 19,117 | D40: 20,748 | E40: 11,591 | F40: 16,768 | G40: 5,364 | H40: 12,001 | I40: 3,403 | J40: 5,788 | K40: 14,627 | L40: 3,970 | M40: 940 | N40: =N37+N28+N21+N13 -> 2,330 | O40: 1,059 | P40: =P37+P34+P28+P21+P13 -> 117,706
A43: * Sans le Luxembourg et la Grèce/ohne Luxemburg und Griechenland/Without Luxemburg and Greece/Senza Lussemburgo e Ella
A45: : non disponible/not available/nicht verfügbar

Sheet 95-94
A1: 2001-07-04
A3: PRODUCTION INDUSTRIELLE D'ALIMENTS COMPOSES | X3: INDUSTRIELLE MISCHFUTTERPRODUKTION
A4: PRODUZIONE INDUSTRIALE DI MANGIMI COMPOSTI | M4: 1994-1995 | X4: INDUSTRIAL COMPOUND PRODUCTION
M5: definitif/final | X5: (1 000 t )
A9: PAYS | C9: BOVINS/RINDER | G9: PORCS/SCHWEINE | K9: VOLAILLE/GEFLÜGEL | M9: A. ALLAITEMENT/MILCHAUST. | S9: AUTRES/ANDERE | V9: TOTAL/INSGESAMT
A10: LAND | C10: BOVINI/CATTLE | G10: SUINI/PIGS | K10: VOLATILI/POULTRY | M10: SOSTIT. DEL LATTE/MILKREPLACERS | S10: ALTRI ANIMALI/OTHERS | V10: TOTALE/TOTAL
A11: PAESE
A12: COUNTRY | B12: 1994 | C12: 1995 | D12: %TAV | F12: 1994 | G12: 1995 | H12: %TAV | J12: 1994 | K12: 1995 | L12: %TAV | N12: 1994 | O12: 1995 | P12: %TAV | R12: 1994 | S12: 1995 | T12: %TAV | V12: 1994 | W12: 1995 | X12: %TAV
A15: D | B15: =Germany!G$16 -> 7,919 | C15: =Germany!H$16 -> 7,736 | D15: =((C15/B15)-1)*100 -> -2.3 | F15: =Germany!G$23 -> 6,280 | G15: =Germany!H$23 -> 5,958 | H15: =((G15/F15)-1)*100 -> -5.1 | J15: =Germany!G$30 -> 4,080 | K15: =Germany!H$30 -> 4,002 | L15: =((K15/J15)-1)*100 -> -1.9 | N15: =Germany!G$36 -> 256 | O15: =Germany!H$36 -> 250 | P15: =((O15/N15)-1)*100 -> -2.3 | R15: =Germany!G$39 -> 582 | S15: =Germany!H$39 -> 929 | T15: =((S15/R15)-1)*100 -> 59.6 | V15: =R15+N15+J15+F15+B15 -> 19,117 | W15: 18,875 | X15: =((W15/V15)-1)*100 -> -1.3
A17: F | B17: =France!G$16 -> 3,980 | C17: =France!H$16 -> 4,037 | D17: =((C17/B17)-1)*100 -> 1.4 | F17: =France!G$23 -> 6,417 | G17: =France!H$23 -> 6,381 | H17: =((G17/F17)-1)*100 -> -0.6 | J17: =France!G$30 -> 8,354 | K17: =France!H$30 -> 8,774 | L17: =((K17/J17)-1)*100 -> 5.0 | N17: =France!G$36 -> 569 | O17: =France!H$36 -> 555 | P17: =((O17/N17)-1)*100 -> -2.5 | R17: =France!G$39 -> 1,428 | S17: =France!H$39 -> 1,483 | T17: =((S17/R17)-1)*100 -> 3.9 | V17: =R17+N17+J17+F17+B17 -> 20,748 | W17: 21,230 | X17: =((W17/V17)-1)*100 -> 2.3
A19: I | B19: =Italy!G$16 -> 3,657 | C19: =Italy!H$16 -> 3,802 | D19: =((C19/B19)-1)*100 -> 4.0 | F19: =Italy!G$23 -> 2,464 | G19: =Italy!H$23 -> 2,442 | H19: =((G19/F19)-1)*100 -> -0.9 | J19: =Italy!G$30 -> 4,239 | K19: =Italy!H$30 -> 4,258 | L19: =((K19/J19)-1)*100 -> 0.4 | N19: =Italy!G$36 -> 196 | O19: =Italy!H$36 -> 187 | P19: =((O19/N19)-1)*100 -> -4.6 | R19: =Italy!G$39 -> 1,035 | S19: =Italy!H$39 -> 1,090 | T19: =((S19/R19)-1)*100 -> 5.3 | V19: =R19+N19+J19+F19+B19 -> 11,591 | W19: 11,779 | X19: =((W19/V19)-1)*100 -> 1.6
A21: NL | B21: ='The Netherlands'!G$16 -> 4,124 | C21: ='The Netherlands'!H$16 -> 4,026 | D21: =((C21/B21)-1)*100 -> -2.4 | F21: ='The Netherlands'!G$23 -> 7,763 | G21: ='The Netherlands'!H$23 -> 7,405 | H21: =((G21/F21)-1)*100 -> -4.6 | J21: ='The Netherlands'!G$30 -> 3,423 | K21: ='The Netherlands'!H$30 -> 3,409 | L21: =((K21/J21)-1)*100 -> -0.4 | N21: ='The Netherlands'!G$36 -> 745 | O21: ='The Netherlands'!H$36 -> 779 | P21: =((O21/N21)-1)*100 -> 4.6 | R21: ='The Netherlands'!G$39 -> 713 | S21: ='The Netherlands'!H$39 -> 753 | T21: =((S21/R21)-1)*100 -> 5.6 | V21: =R21+N21+J21+F21+B21 -> 16,768 | W21: 16,372 | X21: =((W21/V21)-1)*100 -> -2.4
A23: B | B23: =Belgium!G$16 -> 1,145 | C23: =Belgium!H$16 -> 1,217 | D23: =((C23/B23)-1)*100 -> 6.3 | F23: =Belgium!G$23 -> 3,088 | G23: =Belgium!H$23 -> 3,278 | H23: =((G23/F23)-1)*100 -> 6.2 | J23: =Belgium!G$30 -> 1,014 | K23: =Belgium!H$30 -> 1,058 | L23: =((K23/J23)-1)*100 -> 4.3 | N23: =Belgium!G$36 -> 62 | O23: =Belgium!H$36 -> 61 | P23: =((O23/N23)-1)*100 -> -1.6 | R23: =Belgium!G$39 -> 55 | S23: =Belgium!H$39 -> 132 | T23: =((S23/R23)-1)*100 -> 140.0 | V23: =R23+N23+J23+F23+B23 -> 5,364 | W23: 5,746 | X23: =((W23/V23)-1)*100 -> 7.1
A25: UK | B25: =UK!G$16 -> 4,491 | C25: =UK!H$16 -> 4,761 | D25: =((C25/B25)-1)*100 -> 6.0 | F25: =UK!G$23 -> 2,504 | G25: =UK!H$23 -> 2,453 | H25: =((G25/F25)-1)*100 -> -2.0 | J25: =UK!G$30 -> 3,953 | K25: =UK!H$30 -> 6,135 | L25: =((K25/J25)-1)*100 -> 55.2 | N25: =UK!G$36 -> 34 | O25: =UK!H$36 -> 22 | P25: =((O25/N25)-1)*100 -> -35.3 | R25: =UK!G39 -> 1,019 | S25: =UK!H39 -> 1,111 | T25: =((S25/R25)-1)*100 -> 9.0 | V25: =R25+J25+F25+B25+N25 -> 12,001 | W25: 14,482 | X25: =((W25/V25)-1)*100 -> 20.7
A27: IRL | B27: =Ireland!G$16 -> 1,972 | C27: =Ireland!H$16 -> 1,954 | D27: =((C27/B27)-1)*100 -> -0.9 | F27: =Ireland!G$23 -> 644 | G27: =Ireland!H$23 -> 618 | H27: =((G27/F27)-1)*100 -> -4.0 | J27: =Ireland!G$30 -> 463 | K27: =Ireland!H$30 -> 468 | L27: =((K27/J27)-1)*100 -> 1.1 | N27: =Ireland!G$36 -> 9 | O27: =Ireland!H$36 -> 8 | P27: =((O27/N27)-1)*100 -> -11.1 | R27: =Ireland!G$39 -> 315 | S27: =Ireland!H$39 -> 323 | T27: =((S27/R27)-1)*100 -> 2.5 | V27: =R27+N27+J27+F27+B27 -> 3,403 | W27: 3,371 | X27: =((W27/V27)-1)*100 -> -0.9
A29: DK | B29: =Denmark!G$16 -> 1,571 | C29: =Denmark!H$16 -> 1,522 | D29: =((C29/B29)-1)*100 -> -3.1 | F29: =Denmark!G$23 -> 3,426 | G29: =Denmark!H$23 -> 3,306 | H29: =((G29/F29)-1)*100 -> -3.5 | J29: =Denmark!G$30 -> 635 | K29: =Denmark!H$30 -> 656 | L29: =((K29/J29)-1)*100 -> 3.3 | N29: =Denmark!G$36 -> 6 | O29: =Denmark!H$36 -> 5 | P29: =((O29/N29)-1)*100 -> -16.7 | R29: =Denmark!G$39 -> 150 | S29: =Denmark!H$39 -> 164 | T29: =((S29/R29)-1)*100 -> 9.3 | V29: =R29+N29+J29+F29+B29 -> 5,788 | W29: 5,653 | X29: =((W29/V29)-1)*100 -> -2.3
A31: ESP | B31: =Spain!G$16 -> 3,150 | C31: =Spain!H$16 -> 3,650 | D31: =((C31/B31)-1)*100 -> 15.9 | F31: =Spain!G$23 -> 5,850 | G31: =Spain!H$23 -> 6,040 | H31: =((G31/F31)-1)*100 -> 3.2 | J31: =Spain!G$30 -> 4,350 | K31: =Spain!H$30 -> 4,050 | L31: =((K31/J31)-1)*100 -> -6.9 | N31: =Spain!G$36 -> 65 | O31: =Spain!H$36 -> 60 | P31: =((O31/N31)-1)*100 -> -7.7 | R31: =Spain!G$39 -> 1,212 | S31: =Spain!H$39 -> 1,312 | T31: =((S31/R31)-1)*100 -> 8.3 | V31: =R31+N31+J31+F31+B31 -> 14,627 | W31: 15,112 | X31: =((W31/V31)-1)*100 -> 3.3
A33: P | B33: =Portugal!G$16 -> 1,007 | C33: =Portugal!H$16 -> 1,119 | D33: =((C33/B33)-1)*100 -> 11.1 | F33: =Portugal!G$23 -> 1,485 | G33: =Portugal!H$23 -> 1,311 | H33: =((G33/F33)-1)*100 -> -11.7 | J33: =Portugal!G$30 -> 1,274 | K33: =Portugal!H$30 -> 1,323 | L33: =((K33/J33)-1)*100 -> 3.8 | N33: =Portugal!G$36 -> 0 | O33: =Portugal!H$36 -> 0 | P33: 0.0 | R33: =Portugal!G$39 -> 204 | S33: =Portugal!H$39 -> 244 | T33: =((S33/R33)-1)*100 -> 19.6 | V33: =R33+N33+J33+F33+B33 -> 3,970 | W33: 3,997 | X33: =((W33/V33)-1)*100 -> 0.7
A35: A | B35: =Austria!G$16 -> 163 | C35: =Austria!H$16 -> 174 | D35: =((C35/B35)-1)*100 -> 6.7 | F35: =Austria!G$23 -> 235 | G35: =Austria!H$23 -> 261 | H35: =((G35/F35)-1)*100 -> 11.1 | J35: =Austria!G$30 -> 443 | K35: =Austria!H$30 -> 435 | L35: =((K35/J35)-1)*100 -> -1.8 | N35: =Austria!G$36 -> 16 | O35: =Austria!H$36 -> 13 | P35: =((O35/N35)-1)*100 -> -18.8 | R35: =Austria!G$39 -> 83 | S35: =Austria!H$39 -> 37 | T35: =((S35/R35)-1)*100 -> -55.4 | V35: =R35+N35+J35+F35+B35 -> 940 | W35: 920 | X35: =((W35/V35)-1)*100 -> -2.1
A37: S | B37: =Sweden!G$16 -> 1,130 | C37: =Sweden!H$16 -> 1,200 | D37: =((C37/B37)-1)*100 -> 6.2 | F37: =Sweden!G$23 -> 660 | G37: =Sweden!H$23 -> 700 | H37: =((G37/F37)-1)*100 -> 6.1 | J37: =Sweden!G$30 -> 490 | K37: =Sweden!H$30 -> 500 | L37: =((K37/J37)-1)*100 -> 2.0 | N37: =Sweden!G$36 -> : | O37: =Sweden!H$36 -> 10 | P37: nr | R37: =Sweden!G$39 -> 50 | S37: =Sweden!H$39 -> 50 | T37: =((S37/R37)-1)*100 -> 0.0 | V37: =R37+J37+F37+B37 -> 2,330 | W37: =S37+O37+K37+G37+C37 -> 2,460 | X37: =((W37/V37)-1)*100 -> 5.6
A39: FIN | B39: =Finland!G$16 -> 460 | C39: =Finland!H$16 -> 507 | D39: =((C39/B39)-1)*100 -> 10.2 | F39: =Finland!G$23 -> 294 | G39: =Finland!H$23 -> 324 | H39: =((G39/F39)-1)*100 -> 10.2 | J39: =Finland!G$30 -> 196 | K39: =Finland!H$30 -> 213 | L39: =((K39/J39)-1)*100 -> 8.7 | N39: =Finland!G$36 -> : | O39: =Finland!H$36 -> : | P39: nr | R39: =Finland!G$39 -> 109 | S39: =Finland!H$39 -> 128 | T39: =((S39/R39)-1)*100 -> 17.4 | V39: =R39+J39+F39+B39 -> 1,059 | W39: 1,172 | X39: =((W39/V39)-1)*100 -> 10.7
A42: EUR 15 * | B42: =B39+B37+B35+B33+B31+B29+B27+B25+B23+B21+B19+B17+B15 -> 34,769 | C42: 35,705 | D42: =((C42/B42)-1)*100 -> 2.7 | F42: =F39+F37+F35+F33+F31+F29+F27+F25+F23+F21+F19+F17+F15 -> 41,110 | G42: 40,477 | H42: =((G42/F42)-1)*100 -> -1.5 | J42: =J39+J37+J35+J33+J31+J29+J27+J25+J23+J21+J19+J17+J15 -> 32,914 | K42: 35,281 | L42: =((K42/J42)-1)*100 -> 7.2 | N42: =N35+N33+N31+N29+N27+N23+N21+N19+N17+N15+N25 -> 1,958 | O42: =O37+O35+O33+O31+O29+O27+O23+O21+O19+O17+O15+O25 -> 1,950 | P42: =((O42/N42)-1)*100 -> -0.4 | R42: =R39+R37+R35+R33+R31+R29+R27+R25+R23+R21+R19+R17+R15 -> 6,955 | S42: 7,756 | T42: =((S42/R42)-1)*100 -> 11.5 | V42: =V39+V37+V35+V33+V31+V29+V27+V25+V23+V21+V19+V17+V15 -> 117,706 | W42: 121,169 | X42: =((W42/V42)-1)*100 -> 2.9
A45: * Sans le Luxembourg et la Grèce/Ohne Luxemburg und Griechenland/Without Luxemburg and Greece/Senza Lussemburgo e Ellas
A47: : non disponible/not available

Sheet 1995
A1: 2001-07-04
A3: PRODUCTION INDUSTRIELLE D'ALIMENTS COMPOSES | P3: INDUSTRIELLE MISCHFUTTERPRODUKTION
A4: PRODUZIONE INDUSTRIALE DI MANGIMI COMPOSTI | P4: INDUSTRIAL COMPOUND PRODUCTION
A5: 1995
A6: definitif/final
P7: (1 000 t)
A9: Catégories d'aliments composés/Mischfutterarten | C9: D | D9: F | E9: I | F9: NL | G9: B | H9: UK | I9: IRL | J9: DK | K9: ESP | L9: P | M9: A | N9: S | O9: FIN | P9: EUR-15
A10: Tipi di mangimi compositi/Types of feed | P10: *
A13: Bovins/Cattle/Bovini/Rinder | C13: =C14+C15+C16+C18 -> 7,736 | D13: 4,037 | E13: =E14+E15+E16 -> 3,802 | F13: ='The Netherlands'!H16 -> 4,026 | G13: =G14+G15+G16+G18 -> 1,217 | H13: 4,761 | I13: 1,954 | J13: =J14+J15+J16 -> 1,522 | K13: =K14+K15+K18 -> 3,650 | L13: =L14+L15+L16+L18 -> 1,119 | M13: =Austria!H16 -> 174 | N13: =N15+N18 -> 1,200 | O13: =O18+O16 -> 507 | P13: =SUM(C13:O13) -> 35,705
A14: engrais/fattening/Mast | C14: =Germany!H17 -> 609 | D14: =France!H17 -> 636 | E14: =Italy!H17 -> 1,099 | F14: ='The Netherlands'!H17 -> 361 | G14: =Belgium!H17 -> 434 | H14: =UK!H17 -> 1,150 | I14: =Ireland!H17 -> 804 | J14: =Denmark!H17 -> 594 | K14: =Spain!H17 -> 1,600 | L14: =Portugal!H17 -> 470 | M14: : | N14: =Sweden!H17 -> : | O14: =Finland!H17 -> : | P14: :
A15: VL/dairy cow/Milchkühe | C15: =Germany!H18 -> 6,478 | D15: =France!H18 -> 2,889 | E15: =Italy!H18 -> 2,508 | F15: ='The Netherlands'!H18 -> 3,601 | G15: =Belgium!H18 -> 570 | H15: =UK!H18 -> 3,213 | I15: =Ireland!H18 -> 937 | J15: =Denmark!H18 -> 591 | K15: =Spain!H18 -> 1,250 | L15: =Portugal!H18 -> 576 | M15: : | N15: =Sweden!H18 -> 1,100 | O15: =Finland!H18 -> : | P15: :
A16: veaux (aliments d'allaitement non compris)/calves | C16: =Germany!H19 -> 219 | D16: =France!H19 -> 238 | E16: =Italy!H19 -> 195 | F16: ='The Netherlands'!H19 -> 64 | G16: =Belgium!H19 -> 115 | H16: =UK!H19 -> 285 | I16: =Ireland!H19 -> 182 | J16: =Denmark!H19 -> 337 | K16: =Spain!H19 -> : | L16: =Portugal!H19 -> 51 | M16: : | N16: =Sweden!H19 -> : | O16: =Finland!H19 -> 41 | P16: :
A17: (excluding milk replacers)/Kälber (exkl. Milchaustauscher)
A18: autres/others/Andere | C18: =Germany!H20 -> 430 | D18: =France!H20 -> 274 | E18: =Italy!H20 -> : | F18: ='The Netherlands'!H20 -> : | G18: =Belgium!H20 -> 98 | H18: =UK!H20 -> 113 | I18: =Ireland!H20 -> 31 | J18: =Denmark!H20 -> : | K18: =Spain!H20 -> 800 | L18: =Portugal!H20 -> 22 | M18: : | N18: =Sweden!H20 -> 100 | O18: =Finland!H20 -> 466 | P18: :
A21: Porcins/Pigs/Suini/Schweine | C21: =C22+C23+C24+C25 -> 5,958 | D21: =D22+D23+D24 -> 6,381 | E21: =Italy!H23 -> 2,442 | F21: ='The Netherlands'!H23 -> 7,405 | G21: =G22+G25 -> 3,278 | H21: =H22+H23+H24+H25 -> 2,453 | I21: 618 | J21: =J22+J23+J24 -> 3,306 | K21: =K22+K23+K24+K25 -> 6,040 | L21: 1,311 | M21: =Austria!H23 -> 261 | N21: =N22+N23+N24 -> 700 | O21: =O22+O23+O24+O25 -> 324 | P21: =SUM(C21:O21) -> 40,477
A22: porcelets/piglets/Ferkel | C22: =Germany!H24 -> 1,230 | D22: =France!H24 -> 797 | E22: =Italy!H24 -> : | F22: ='The Netherlands'!H24 -> 930 | G22: =Belgium!H24 -> 774 | H22: =UK!H24 -> 165 | I22: =Ireland!H24 -> 102 | J22: =Denmark!H24 -> 611 | K22: =Spain!H24 -> 640 | L22: =Portugal!H24 -> 158 | M22: : | N22: =Sweden!H24 -> 100 | O22: =Finland!H24 -> 38 | P22: :
A23: porcs engrais/pigs for fattening/Mastschweine | C23: =Germany!H25 -> 2,765 | D23: =France!H25 -> 4,260 | E23: =Italy!H25 -> : | F23: ='The Netherlands'!H25 -> 4,953 | G23: =Belgium!H25 -> : | H23: =UK!H25 -> 1,541 | I23: =Ireland!H25 -> 357 | J23: =Denmark!H25 -> 2,128 | K23: =Spain!H25 -> 4,500 | L23: =Portugal!H25 -> 382 | M23: : | N23: =Sweden!H25 -> 400 | O23: =Finland!H25 -> 208 | P23: :
A24: reproducteurs/breeding pigs/Zuchtschweine | C24: =Germany!H26 -> 1,070 | D24: =France!H26 -> 1,324 | E24: =Italy!H26 -> : | F24: ='The Netherlands'!H26 -> 1,522 | G24: =Belgium!H26 -> : | H24: =UK!H26 -> 702 | I24: =Ireland!H26 -> 145 | J24: =Denmark!H26 -> 567 | K24: =Spain!H26 -> 830 | L24: =Portugal!H26 -> 198 | M24: : | N24: =Sweden!H26 -> 200 | O24: =Finland!H26 -> 31 | P24: :
A25: autres/others/Andere | C25: =Germany!H27 -> 893 | D25: =France!H27 -> : | E25: =Italy!H27 -> : | F25: ='The Netherlands'!H27 -> : | G25: =Belgium!H27 -> 2,504 | H25: =UK!H27 -> 45 | I25: =Ireland!H27 -> 14 | J25: =Denmark!H27 -> : | K25: =Spain!H27 -> 70 | L25: =Portugal!H27 -> 573 | M25: : | N25: =Sweden!H27 -> : | O25: =Finland!H27 -> 47 | P25: :
A28: Volaille/Poultry/Volatili/Geflügel | C28: =C29+C30+C31 -> 4,002 | D28: 8,774 | E28: 4,258 | F28: ='The Netherlands'!H30 -> 3,409 | G28: =G29+G30+G31 -> 1,058 | H28: 6,135 | I28: 468 | J28: 656 | K28: 4,050 | L28: 1,323 | M28: =Austria!H30 -> 435 | N28: =N29+N30 -> 500 | O28: =O29+O30+O31 -> 213 | P28: =SUM(C28:O28) -> 35,281
A29: broilers | C29: =Germany!H31 -> 1,525 | D29: =France!H31 -> 3,297 | E29: =Italy!H31 -> 2,085 | F29: ='The Netherlands'!H31 -> 1,552 | G29: =Belgium!H31 -> 395 | H29: =UK!H31 -> 3,049 | I29: =Ireland!H31 -> 258 | J29: =Denmark!H31 -> 543 | K29: =Spain!H31 -> 2,100 | L29: =Portugal!H31 -> 750 | M29: : | N29: =Sweden!H31 -> 250 | O29: =Finland!H31 -> 116 | P29: :
A30: poulettes & pondeuses/chicks & layers/Jung- & Legehennen | C30: =Germany!H32 -> 2,194 | D30: =France!H32 -> 2,222 | E30: =Italy!H32 -> 1,060 | F30: ='The Netherlands'!H32 -> 1,857 | G30: =Belgium!H32 -> 384 | H30: =UK!H32 -> 1,185 | I30: =Ireland!H32 -> 110 | J30: =Denmark!H32 -> 39 | K30: =Spain!H32 -> 1,750 | L30: =Portugal!H32 -> 420 | M30: : | N30: =Sweden!H32 -> 250 | O30: =Finland!H32 -> 92 | P30: :
A31: autres/others/Andere | C31: =Germany!H33 -> 283 | D31: =France!H33 -> 3,255 | E31: =Italy!H33 -> 1,113 | F31: ='The Netherlands'!H33 -> : | G31: =Belgium!H33 -> 279 | H31: =UK!H33 -> 1,901 | I31: =Ireland!H33 -> 100 | J31: =Denmark!H33 -> 74 | K31: =Spain!H33 -> 200 | L31: =Portugal!H33 -> 153 | M31: : | N31: =Sweden!H33 -> : | O31: =Finland!H33 -> 5 | P31: :
A34: Al. d'allait./Milk replacers/Sostit. del latte/Milchaust. | C34: =Germany!H36 -> 250 | D34: =France!H36 -> 555 | E34: =Italy!H36 -> 187 | F34: ='The Netherlands'!H36 -> 779 | G34: =Belgium!H36 -> 61 | H34: =UK!H36 -> 22 | I34: =Ireland!H36 -> 8 | J34: =Denmark!H36 -> 5 | K34: =Spain!H36 -> 60 | L34: =Portugal!H36 -> 0 | M34: =Austria!H36 -> 13 | N34: =Sweden!H36 -> 10 | O34: =Finland!H36 -> : | P34: =SUM(C34:O34) -> 1,950
A37: Autres/others/altri/Andere | C37: =Germany!H39 -> 929 | D37: =France!H39 -> 1,483 | E37: =Italy!H39 -> 1,090 | F37: ='The Netherlands'!H39 -> 753 | G37: =Belgium!H39 -> 132 | H37: =UK!H39 -> 1,111 | I37: =Ireland!H39 -> 323 | J37: =Denmark!H39 -> 164 | K37: =Spain!H39 -> 1,312 | L37: =Portugal!H39 -> 244 | M37: =Austria!H39 -> 37 | N37: =Sweden!H39 -> 50 | O37: =Finland!H39 -> 128 | P37: =SUM(C37:O37) -> 7,756
A40: TOTAL | C40: =C37+C34+C28+C21+C13 -> 18,875 | D40: 21,230 | E40: 11,779 | F40: 16,372 | G40: 5,746 | H40: 14,482 | I40: 3,371 | J40: 5,653 | K40: 15,112 | L40: 3,997 | M40: 920 | N40: 2,460 | O40: =O37+O28+O21+O13 -> 1,172 | P40: =P37+P34+P28+P21+P13 -> 121,169
A43: * Sans le Luxembourg et la Grèce/ohne Luxemburg und Griechenland/Without Luxemburg and Greece/Senza Lussemburgo e Ella
A45: : non disponible/not available/nicht verfügbar

Sheet 96-95
A1: 2001-07-04
A3: PRODUCTION INDUSTRIELLE D'ALIMENTS COMPOSES | X3: INDUSTRIELLE MISCHFUTTERPRODUKTION
A4: PRODUZIONE INDUSTRIALE DI MANGIMI COMPOSTI | M4: 1995-1996 | X4: INDUSTRIAL COMPOUND PRODUCTION
M5: definitif/final | X5: (1 000 t )
A9: PAYS | C9: BOVINS/RINDER | G9: PORCS/SCHWEINE | K9: VOLAILLE/GEFLÜGEL | M9: A. ALLAITEMENT/MILCHAUST. | S9: AUTRES/ANDERE | V9: TOTAL/INSGESAMT
A10: LAND | C10: BOVINI/CATTLE | G10: SUINI/PIGS | K10: VOLATILI/POULTRY | M10: SOSTIT. DEL LATTE/MILKREPLACERS | S10: ALTRI ANIMALI/OTHERS | V10: TOTALE/TOTAL
A11: PAESE
A12: COUNTRY | B12: 1995 | C12: 1996 | D12: %TAV | F12: 1995 | G12: 1996 | H12: %TAV | J12: 1995 | K12: 1996 | L12: %TAV | N12: 1995 | O12: 1996 | P12: %TAV | R12: 1995 | S12: 1996 | T12: %TAV | V12: 1995 | W12: 1996 | X12: %TAV
A15: D | B15: =Germany!H$16 -> 7,736 | C15: =Germany!I$16 -> 8,108 | D15: =((C15/B15)-1)*100 -> 4.8 | F15: =Germany!H$23 -> 5,958 | G15: =Germany!I$23 -> 6,245 | H15: =((G15/F15)-1)*100 -> 4.8 | J15: =Germany!H$30 -> 4,002 | K15: =Germany!I$30 -> 4,136 | L15: =((K15/J15)-1)*100 -> 3.3 | N15: =Germany!H$36 -> 250 | O15: =Germany!I$36 -> 246 | P15: =((O15/N15)-1)*100 -> -1.6 | R15: =Germany!H$39 -> 929 | S15: =Germany!I$39 -> 599 | T15: =((S15/R15)-1)*100 -> -35.5 | V15: =R15+N15+J15+F15+B15 -> 18,875 | W15: 19,334 | X15: =((W15/V15)-1)*100 -> 2.4
A17: F | B17: =France!H$16 -> 4,037 | C17: =France!I$16 -> 4,170 | D17: =((C17/B17)-1)*100 -> 3.3 | F17: =France!H$23 -> 6,381 | G17: =France!I$23 -> 6,663 | H17: =((G17/F17)-1)*100 -> 4.4 | J17: =France!H$30 -> 8,774 | K17: =France!I$30 -> 9,136 | L17: =((K17/J17)-1)*100 -> 4.1 | N17: =France!H$36 -> 555 | O17: =France!I$36 -> 534 | P17: =((O17/N17)-1)*100 -> -3.8 | R17: =France!H$39 -> 1,483 | S17: =France!I$39 -> 1,500 | T17: =((S17/R17)-1)*100 -> 1.1 | V17: =R17+N17+J17+F17+B17 -> 21,230 | W17: 22,003 | X17: =((W17/V17)-1)*100 -> 3.6
A19: I | B19: =Italy!H$16 -> 3,802 | C19: =Italy!I$16 -> 3,784 | D19: =((C19/B19)-1)*100 -> -0.5 | F19: =Italy!H$23 -> 2,442 | G19: =Italy!I$23 -> 2,414 | H19: =((G19/F19)-1)*100 -> -1.1 | J19: =Italy!H$30 -> 4,258 | K19: =Italy!I$30 -> 4,272 | L19: =((K19/J19)-1)*100 -> 0.3 | N19: =Italy!H$36 -> 187 | O19: =Italy!I$36 -> 175 | P19: =((O19/N19)-1)*100 -> -6.4 | R19: =Italy!H$39 -> 1,090 | S19: =Italy!I$39 -> 1,030 | T19: =((S19/R19)-1)*100 -> -5.5 | V19: =R19+N19+J19+F19+B19 -> 11,779 | W19: 11,675 | X19: =((W19/V19)-1)*100 -> -0.9
A21: NL | B21: ='The Netherlands'!H$16 -> 4,026 | C21: ='The Netherlands'!I$16 -> 3,804 | D21: =((C21/B21)-1)*100 -> -5.5 | F21: ='The Netherlands'!H$23 -> 7,405 | G21: ='The Netherlands'!I$23 -> 7,459 | H21: =((G21/F21)-1)*100 -> 0.7 | J21: ='The Netherlands'!H$30 -> 3,409 | K21: ='The Netherlands'!I$30 -> 3,581 | L21: =((K21/J21)-1)*100 -> 5.0 | N21: ='The Netherlands'!H$36 -> 779 | O21: ='The Netherlands'!I$36 -> 745 | P21: =((O21/N21)-1)*100 -> -4.4 | R21: ='The Netherlands'!H$39 -> 753 | S21: ='The Netherlands'!I$39 -> 784 | T21: =((S21/R21)-1)*100 -> 4.1 | V21: =R21+N21+J21+F21+B21 -> 16,372 | W21: 16,373 | X21: =((W21/V21)-1)*100 -> 0.0
A23: B | B23: =Belgium!H$16 -> 1,217 | C23: =Belgium!I$16 -> 1,142 | D23: =((C23/B23)-1)*100 -> -6.2 | F23: =Belgium!H$23 -> 3,278 | G23: =Belgium!I$23 -> 3,454 | H23: =((G23/F23)-1)*100 -> 5.4 | J23: =Belgium!H$30 -> 1,058 | K23: =Belgium!I$30 -> 1,055 | L23: =((K23/J23)-1)*100 -> -0.3 | N23: =Belgium!H$36 -> 61 | O23: =Belgium!I$36 -> 55 | P23: =((O23/N23)-1)*100 -> -9.8 | R23: =Belgium!H$39 -> 132 | S23: =Belgium!I$39 -> 149 | T23: =((S23/R23)-1)*100 -> 12.9 | V23: =R23+N23+J23+F23+B23 -> 5,746 | W23: 5,855 | X23: =((W23/V23)-1)*100 -> 1.9
A25: UK | B25: =UK!H$16 -> 4,761 | C25: =UK!I$16 -> 4,702 | D25: =((C25/B25)-1)*100 -> -1.2 | F25: =UK!H$23 -> 2,453 | G25: =UK!I$23 -> 2,566 | H25: =((G25/F25)-1)*100 -> 4.6 | J25: =UK!H$30 -> 6,135 | K25: =UK!I$30 -> 6,291 | L25: =((K25/J25)-1)*100 -> 2.5 | N25: =UK!H$36 -> 22 | O25: =UK!I$36 -> 20 | P25: =((O25/N25)-1)*100 -> -9.1 | R25: =UK!H39 -> 1,111 | S25: =UK!I39 -> 1,262 | T25: =((S25/R25)-1)*100 -> 13.6 | V25: =R25+J25+F25+B25+N25 -> 14,482 | W25: 14,841 | X25: =((W25/V25)-1)*100 -> 2.5
A27: IRL | B27: =Ireland!H$16 -> 1,954 | C27: =Ireland!I$16 -> 1,714 | D27: =((C27/B27)-1)*100 -> -12.3 | F27: =Ireland!H$23 -> 618 | G27: =Ireland!I$23 -> 685 | H27: =((G27/F27)-1)*100 -> 10.8 | J27: =Ireland!H$30 -> 468 | K27: =Ireland!I$30 -> 468 | L27: =((K27/J27)-1)*100 -> 0.0 | N27: =Ireland!H$36 -> 8 | O27: =Ireland!I$36 -> 6 | P27: =((O27/N27)-1)*100 -> -25.0 | R27: =Ireland!H$39 -> 323 | S27: =Ireland!I$39 -> 289 | T27: =((S27/R27)-1)*100 -> -10.5 | V27: =R27+N27+J27+F27+B27 -> 3,371 | W27: 3,162 | X27: =((W27/V27)-1)*100 -> -6.2
A29: DK | B29: =Denmark!H$16 -> 1,522 | C29: =Denmark!I$16 -> 1,517 | D29: =((C29/B29)-1)*100 -> -0.3 | F29: =Denmark!H$23 -> 3,306 | G29: =Denmark!I$23 -> 3,429 | H29: =((G29/F29)-1)*100 -> 3.7 | J29: =Denmark!H$30 -> 656 | K29: =Denmark!I$30 -> 651 | L29: =((K29/J29)-1)*100 -> -0.8 | N29: =Denmark!H$36 -> 5 | O29: =Denmark!I$36 -> 5 | P29: =((O29/N29)-1)*100 -> 0.0 | R29: =Denmark!H$39 -> 164 | S29: =Denmark!I$39 -> 144 | T29: =((S29/R29)-1)*100 -> -12.2 | V29: =R29+N29+J29+F29+B29 -> 5,653 | W29: 5,746 | X29: =((W29/V29)-1)*100 -> 1.6
A31: ESP | B31: =Spain!H$16 -> 3,650 | C31: =Spain!I$16 -> 3,150 | D31: =((C31/B31)-1)*100 -> -13.7 | F31: =Spain!H$23 -> 6,040 | G31: =Spain!I$23 -> 6,530 | H31: =((G31/F31)-1)*100 -> 8.1 | J31: =Spain!H$30 -> 4,050 | K31: =Spain!I$30 -> 4,100 | L31: =((K31/J31)-1)*100 -> 1.2 | N31: =Spain!H$36 -> 60 | O31: =Spain!I$36 -> 60 | P31: =((O31/N31)-1)*100 -> 0.0 | R31: =Spain!H$39 -> 1,312 | S31: =Spain!I$39 -> 1,200 | T31: =((S31/R31)-1)*100 -> -8.5 | V31: =R31+N31+J31+F31+B31 -> 15,112 | W31: 15,040 | X31: =((W31/V31)-1)*100 -> -0.5
A33: P | B33: =Portugal!H$16 -> 1,119 | C33: =Portugal!I$16 -> 1,090 | D33: =((C33/B33)-1)*100 -> -2.6 | F33: =Portugal!H$23 -> 1,311 | G33: =Portugal!I$23 -> 1,300 | H33: =((G33/F33)-1)*100 -> -0.8 | J33: =Portugal!H$30 -> 1,323 | K33: =Portugal!I$30 -> 1,330 | L33: =((K33/J33)-1)*100 -> 0.5 | N33: =Portugal!H$36 -> 0 | O33: =Portugal!I$36 -> 0 | P33: 0.0 | R33: =Portugal!H$39 -> 244 | S33: =Portugal!I$39 -> 236 | T33: =((S33/R33)-1)*100 -> -3.3 | V33: =R33+N33+J33+F33+B33 -> 3,997 | W33: 3,956 | X33: =((W33/V33)-1)*100 -> -1.0
A35: A | B35: =Austria!H$16 -> 174 | C35: =Austria!I$16 -> 202 | D35: =((C35/B35)-1)*100 -> 16.1 | F35: =Austria!H$23 -> 261 | G35: =Austria!I$23 -> 229 | H35: =((G35/F35)-1)*100 -> -12.3 | J35: =Austria!H$30 -> 435 | K35: =Austria!I$30 -> 399 | L35: =((K35/J35)-1)*100 -> -8.3 | N35: =Austria!H$36 -> 13 | O35: =Austria!I$36 -> 4 | P35: =((O35/N35)-1)*100 -> -69.2 | R35: =Austria!H$39 -> 37 | S35: =Austria!I$39 -> 64 | T35: =((S35/R35)-1)*100 -> 73.0 | V35: =R35+N35+J35+F35+B35 -> 920 | W35: 898 | X35: =((W35/V35)-1)*100 -> -2.4
A37: S | B37: =Sweden!H$16 -> 1,200 | C37: =Sweden!I$16 -> 1,220 | D37: =((C37/B37)-1)*100 -> 1.7 | F37: =Sweden!H$23 -> 700 | G37: =Sweden!I$23 -> 700 | H37: =((G37/F37)-1)*100 -> 0.0 | J37: =Sweden!H$30 -> 500 | K37: =Sweden!I$30 -> 540 | L37: =((K37/J37)-1)*100 -> 8.0 | N37: =Sweden!H$36 -> 10 | O37: =Sweden!I$36 -> 10 | P37: =((O37/N37)-1)*100 -> 0.0 | R37: =Sweden!H$39 -> 50 | S37: =Sweden!I$39 -> 50 | T37: =((S37/R37)-1)*100 -> 0.0 | V37: =R37+N37+J37+F37+B37 -> 2,460 | W37: 2,520 | X37: =((W37/V37)-1)*100 -> 2.4
A39: FIN | B39: =Finland!H$16 -> 507 | C39: =Finland!I$16 -> 472 | D39: =((C39/B39)-1)*100 -> -6.9 | F39: =Finland!H$23 -> 324 | G39: =Finland!I$23 -> 322 | H39: =((G39/F39)-1)*100 -> -0.6 | J39: =Finland!H$30 -> 213 | K39: =Finland!I$30 -> 222 | L39: =((K39/J39)-1)*100 -> 4.2 | N39: =Finland!H$36 -> : | O39: =Finland!I$36 -> : | R39: =Finland!H$39 -> 128 | S39: =Finland!I$39 -> 145 | T39: =((S39/R39)-1)*100 -> 13.3 | V39: =R39+J39+F39+B39 -> 1,172 | W39: 1,161 | X39: =((W39/V39)-1)*100 -> -0.9
A42: EUR 15 * | B42: =B39+B37+B35+B33+B31+B29+B27+B25+B23+B21+B19+B17+B15 -> 35,705 | C42: 35,075 | D42: =((C42/B42)-1)*100 -> -1.8 | F42: =F39+F37+F35+F33+F31+F29+F27+F25+F23+F21+F19+F17+F15 -> 40,477 | G42: 41,996 | H42: =((G42/F42)-1)*100 -> 3.8 | J42: =J39+J37+J35+J33+J31+J29+J27+J25+J23+J21+J19+J17+J15 -> 35,281 | K42: 36,181 | L42: =((K42/J42)-1)*100 -> 2.6 | N42: =N37+N35+N33+N31+N29+N27+N23+N21+N19+N17+N15+N25 -> 1,950 | O42: 1,860 | P42: =((O42/N42)-1)*100 -> -4.6 | R42: =R39+R37+R35+R33+R31+R29+R27+R25+R23+R21+R19+R17+R15 -> 7,756 | S42: 7,452 | T42: =((S42/R42)-1)*100 -> -3.9 | V42: =V39+V37+V35+V33+V31+V29+V27+V25+V23+V21+V19+V17+V15 -> 121,169 | W42: 122,564 | X42: =((W42/V42)-1)*100 -> 1.2
A45: * Sans le Luxembourg et la Grèce/Ohne Luxemburg und Griechenland/Without Luxemburg and Greece/Senza Lussemburgo e Ellas
A47: : non disponible/not available

Sheet 1996
A1: 2001-07-04
A3: PRODUCTION INDUSTRIELLE D'ALIMENTS COMPOSES | P3: INDUSTRIELLE MISCHFUTTERPRODUKTION
A4: PRODUZIONE INDUSTRIALE DI MANGIMI COMPOSTI | P4: INDUSTRIAL COMPOUND PRODUCTION
A5: 1996
A6: definitif/final
P7: (1 000 t)
A9: Catégories d'aliments composés/Mischfutterarten | C9: D | D9: F | E9: I | F9: NL | G9: B | H9: UK | I9: IRL | J9: DK | K9: ESP | L9: P | M9: A | N9: S | O9: FIN | P9: EUR-15
A10: Tipi di mangimi compositi/Types of feed | P10: *
A13: Bovins/Cattle/Bovini/Rinder | C13: =C14+C15+C16+C18 -> 8,108 | D13: 4,170 | E13: =E14+E15+E16 -> 3,784 | F13: ='The Netherlands'!I16 -> 3,804 | G13: =G14+G15+G16+G18 -> 1,142 | H13: 4,702 | I13: 1,714 | J13: =J14+J15+J16 -> 1,517 | K13: =K14+K15+K18 -> 3,150 | L13: =L14+L15+L16+L18 -> 1,090 | M13: =Austria!I16 -> 202 | N13: =N15+N18 -> 1,220 | O13: =O18+O16 -> 472 | P13: =SUM(C13:O13) -> 35,075
A14: engrais/fattening/Mast | C14: =Germany!I17 -> 566 | D14: =France!I17 -> 618 | E14: =Italy!I17 -> 1,042 | F14: ='The Netherlands'!I17 -> 318 | G14: =Belgium!I17 -> 387 | H14: =UK!I17 -> 1,220 | I14: =Ireland!I17 -> 695 | J14: =Denmark!I17 -> 585 | K14: =Spain!I17 -> 1,400 | L14: =Portugal!I17 -> 425 | M14: : | N14: =Sweden!I17 -> : | O14: =Finland!I17 -> : | P14: :
A15: VL/dairy cow/Milchkühe | C15: =Germany!I18 -> 6,563 | D15: =France!I18 -> 3,042 | E15: =Italy!I18 -> 2,549 | F15: ='The Netherlands'!I18 -> 3,418 | G15: =Belgium!I18 -> 565 | H15: =UK!I18 -> 3,112 | I15: =Ireland!I18 -> 811 | J15: =Denmark!I18 -> 585 | K15: =Spain!I18 -> 1,250 | L15: =Portugal!I18 -> 599 | M15: : | N15: =Sweden!I18 -> 1,120 | O15: =Finland!I18 -> : | P15: :
A16: veaux (aliments d'allaitement non compris)/calves | C16: =Germany!I19 -> 194 | D16: =France!I19 -> 233 | E16: =Italy!I19 -> 193 | F16: ='The Netherlands'!I19 -> 68 | G16: =Belgium!I19 -> 98 | H16: =UK!I19 -> 254 | I16: =Ireland!I19 -> 179 | J16: =Denmark!I19 -> 347 | K16: =Spain!I19 -> : | L16: =Portugal!I19 -> 46 | M16: : | N16: =Sweden!I19 -> : | O16: =Finland!I19 -> 37 | P16: :
A17: (excluding milk replacers)/Kälber (exkl. Milchaustauscher)
A18: autres/others/Andere | C18: =Germany!I20 -> 785 | D18: =France!I20 -> 277 | E18: =Italy!I20 -> : | F18: ='The Netherlands'!I20 -> : | G18: =Belgium!I20 -> 92 | H18: =UK!I20 -> 116 | I18: =Ireland!I20 -> 29 | J18: =Denmark!I20 -> : | K18: =Spain!I20 -> 500 | L18: =Portugal!I20 -> 20 | M18: : | N18: =Sweden!I20 -> 100 | O18: =Finland!I20 -> 435 | P18: :
A21: Porcins/Pigs/Suini/Schweine | C21: =C22+C23+C24+C25 -> 6,245 | D21: =D22+D23+D24 -> 6,663 | E21: =Italy!I23 -> 2,414 | F21: ='The Netherlands'!I23 -> 7,459 | G21: =G22+G23 -> 3,454 | H21: =H22+H23+H24+H25 -> 2,566 | I21: 685 | J21: =J22+J23+J24 -> 3,429 | K21: =K22+K23+K24+K25 -> 6,530 | L21: 1,300 | M21: =Austria!I23 -> 229 | N21: =N22+N23+N24 -> 700 | O21: =O22+O23+O24+O25 -> 322 | P21: =SUM(C21:O21) -> 41,996
A22: porcelets/piglets/Ferkel | C22: =Germany!I24 -> 1,179 | D22: =France!I24 -> 835 | E22: =Italy!I24 -> : | F22: ='The Netherlands'!I24 -> 819 | G22: =Belgium!I24 -> 757 | H22: =UK!I24 -> 162 | I22: =Ireland!I24 -> 106 | J22: =Denmark!I24 -> 575 | K22: =Spain!I24 -> 700 | L22: =Portugal!I24 -> 156 | M22: : | N22: =Sweden!I24 -> 100 | O22: =Finland!I24 -> 40 | P22: :
A23: porcs engrais/pigs for fattening/Mastschweine | C23: =Germany!I25 -> 2,994 | D23: =France!I25 -> 4,451 | E23: =Italy!I25 -> : | F23: ='The Netherlands'!I25 -> 5,090 | G23: =Belgium!I25 -> 2,697 | H23: =UK!I25 -> 1,610 | I23: =Ireland!I25 -> 401 | J23: =Denmark!I25 -> 2,186 | K23: =Spain!I25 -> 4,850 | L23: =Portugal!I25 -> 380 | M23: : | N23: =Sweden!I25 -> 400 | O23: =Finland!I25 -> 200 | P23: :
A24: reproducteurs/breeding pigs/Zuchtschweine | C24: =Germany!I26 -> 1,134 | D24: =France!I26 -> 1,377 | E24: =Italy!I26 -> : | F24: ='The Netherlands'!I26 -> 1,550 | G24: =Belgium!I26 -> : | H24: =UK!I26 -> 751 | I24: =Ireland!I26 -> 161 | J24: =Denmark!I26 -> 668 | K24: =Spain!I26 -> 910 | L24: =Portugal!I26 -> 196 | M24: : | N24: =Sweden!I26 -> 200 | O24: =Finland!I26 -> 31 | P24: :
A25: autres/others/Andere | C25: =Germany!I27 -> 938 | D25: =France!I27 -> : | E25: =Italy!I27 -> : | F25: ='The Netherlands'!I27 -> : | G25: =Belgium!I27 -> : | H25: =UK!I27 -> 43 | I25: =Ireland!I27 -> 17 | J25: =Denmark!I27 -> : | K25: =Spain!I27 -> 70 | L25: =Portugal!I27 -> 568 | M25: : | N25: =Sweden!I27 -> : | O25: =Finland!I27 -> 51 | P25: :
A28: Volaille/Poultry/Volatili/Geflügel | C28: =C29+C30 -> 4,136 | D28: =D29+D30+D31 -> 9,136 | E28: 4,272 | F28: ='The Netherlands'!I30 -> 3,581 | G28: =G29+G30+G31 -> 1,055 | H28: 6,291 | I28: 468 | J28: 651 | K28: 4,100 | L28: 1,330 | M28: =Austria!I30 -> 399 | N28: =N29+N30+N31 -> 540 | O28: 222 | P28: =SUM(C28:O28) -> 36,181
A29: broilers | C29: =Germany!I31 -> 1,898 | D29: =France!I31 -> 3,437 | E29: =Italy!I31 -> 2,090 | F29: ='The Netherlands'!I31 -> 1,645 | G29: =Belgium!I31 -> 396 | H29: =UK!I31 -> 3,102 | I29: =Ireland!I31 -> 269 | J29: =Denmark!I31 -> 541 | K29: =Spain!I31 -> 2,100 | L29: =Portugal!I31 -> 758 | M29: : | N29: =Sweden!I31 -> 250 | O29: =Finland!I31 -> 131 | P29: :
A30: poulettes & pondeuses/chicks & layers/Jung- & Legehennen | C30: =Germany!I32 -> 2,238 | D30: =France!I32 -> 2,313 | E30: =Italy!I32 -> 1,075 | F30: ='The Netherlands'!I32 -> 1,936 | G30: =Belgium!I32 -> 369 | H30: =UK!I32 -> 1,285 | I30: =Ireland!I32 -> 104 | J30: =Denmark!I32 -> 38 | K30: =Spain!I32 -> 1,800 | L30: =Portugal!I32 -> 418 | M30: : | N30: =Sweden!I32 -> 250 | O30: =Finland!I32 -> 85 | P30: :
A31: autres/others/Andere | C31: =Germany!I33 -> : | D31: =France!I33 -> 3,386 | E31: =Italy!I33 -> 1,107 | F31: ='The Netherlands'!I33 -> : | G31: =Belgium!I33 -> 290 | H31: =UK!I33 -> 1,904 | I31: =Ireland!I33 -> 95 | J31: =Denmark!I33 -> 72 | K31: =Spain!I33 -> 200 | L31: =Portugal!I33 -> 154 | M31: : | N31: =Sweden!I33 -> 40 | O31: =Finland!I33 -> 6 | P31: :
A34: Al. d'allait./Milk replacers/Sostit. del latte/Milchaust. | C34: =Germany!I36 -> 246 | D34: =France!I36 -> 534 | E34: =Italy!I36 -> 175 | F34: ='The Netherlands'!I36 -> 745 | G34: =Belgium!I36 -> 55 | H34: =UK!I36 -> 20 | I34: =Ireland!I36 -> 6 | J34: =Denmark!I36 -> 5 | K34: =Spain!I36 -> 60 | L34: =Portugal!I36 -> 0 | M34: =Austria!I36 -> 4 | N34: =Sweden!I36 -> 10 | O34: =Finland!I36 -> : | P34: =SUM(C34:O34) -> 1,860
A37: Autres/others/altri/Andere | C37: =Germany!I39 -> 599 | D37: =France!I39 -> 1,500 | E37: =Italy!I39 -> 1,030 | F37: ='The Netherlands'!I39 -> 784 | G37: =Belgium!I39 -> 149 | H37: =UK!I39 -> 1,262 | I37: =Ireland!I39 -> 289 | J37: =Denmark!I39 -> 144 | K37: =Spain!I39 -> 1,200 | L37: =Portugal!I39 -> 236 | M37: =Austria!I39 -> 64 | N37: =Sweden!I39 -> 50 | O37: =Finland!I39 -> 145 | P37: =SUM(C37:O37) -> 7,452
A40: TOTAL | C40: =C37+C34+C28+C21+C13 -> 19,334 | D40: 22,003 | E40: 11,675 | F40: 16,373 | G40: 5,855 | H40: 14,841 | I40: 3,162 | J40: 5,746 | K40: 15,040 | L40: 3,956 | M40: 898 | N40: 2,520 | O40: =O37+O28+O21+O13 -> 1,161 | P40: =P37+P34+P28+P21+P13 -> 122,564
A43: * Sans le Luxembourg et la Grèce/ohne Luxemburg und Griechenland/Without Luxemburg and Greece/Senza Lussemburgo e Ella
A45: : non disponible/not available/nicht verfügbar

Sheet 97-96
A1: 2001-07-04
A3: PRODUCTION INDUSTRIELLE D'ALIMENTS COMPOSES | X3: INDUSTRIELLE MISCHFUTTERPRODUKTION
A4: PRODUZIONE INDUSTRIALE DI MANGIMI COMPOSTI | M4: 1996-1997 | X4: INDUSTRIAL COMPOUND PRODUCTION
M5: definitif/final | X5: (1 000 t )
A9: PAYS | C9: BOVINS/RINDER | G9: PORCS/SCHWEINE | K9: VOLAILLE/GEFLÜGEL | M9: A. ALLAITEMENT/MILCHAUST. | S9: AUTRES/ANDERE | V9: TOTAL/INSGESAMT
A10: LAND | C10: BOVINI/CATTLE | G10: SUINI/PIGS | K10: VOLATILI/POULTRY | M10: SOSTIT. DEL LATTE/MILKREPLACERS | S10: ALTRI ANIMALI/OTHERS | V10: TOTALE/TOTAL
A11: PAESE
A12: COUNTRY | B12: 1996 | C12: 1997 | D12: %TAV | F12: 1996 | G12: 1997 | H12: %TAV | J12: 1996 | K12: 1997 | L12: %TAV | N12: 1996 | O12: 1997 | P12: %TAV | R12: 1996 | S12: 1997 | T12: %TAV | V12: 1996 | W12: 1997 | X12: %TAV
A15: D | B15: =Germany!I$16 -> 8,108 | C15: =Germany!J$16 -> 7,517 | D15: =((C15/B15)-1)*100 -> -7.3 | F15: =Germany!I$23 -> 6,245 | G15: =Germany!J$23 -> 6,274 | H15: =((G15/F15)-1)*100 -> 0.5 | J15: =Germany!I$30 -> 4,136 | K15: =Germany!J$30 -> 4,255 | L15: =((K15/J15)-1)*100 -> 2.9 | N15: =Germany!I$36 -> 246 | O15: =Germany!J$36 -> 201 | P15: =((O15/N15)-1)*100 -> -18.3 | R15: =Germany!I$39 -> 599 | S15: =Germany!J$39 -> 551 | T15: =((S15/R15)-1)*100 -> -8.0 | V15: =R15+N15+J15+F15+B15 -> 19,334 | W15: 18,798 | X15: =((W15/V15)-1)*100 -> -2.8
A17: F | B17: =France!I$16 -> 4,170 | C17: =France!J$16 -> 4,207 | D17: =((C17/B17)-1)*100 -> 0.9 | F17: =France!I$23 -> 6,663 | G17: =France!J$23 -> 6,945 | H17: =((G17/F17)-1)*100 -> 4.2 | J17: =France!I$30 -> 9,136 | K17: =France!J$30 -> 9,447 | L17: =((K17/J17)-1)*100 -> 3.4 | N17: =France!I$36 -> 534 | O17: =France!J$36 -> 513 | P17: =((O17/N17)-1)*100 -> -3.9 | R17: =France!I$39 -> 1,500 | S17: =France!J$39 -> 1,517 | T17: =((S17/R17)-1)*100 -> 1.1 | V17: =R17+N17+J17+F17+B17 -> 22,003 | W17: 22,629 | X17: =((W17/V17)-1)*100 -> 2.8
A19: I | B19: =Italy!I$16 -> 3,784 | C19: =Italy!J$16 -> 3,503 | D19: =((C19/B19)-1)*100 -> -7.4 | F19: =Italy!I$23 -> 2,414 | G19: =Italy!J$23 -> 2,394 | H19: =((G19/F19)-1)*100 -> -0.8 | J19: =Italy!I$30 -> 4,272 | K19: =Italy!J$30 -> 4,271 | L19: =((K19/J19)-1)*100 -> -0.0 | N19: =Italy!I$36 -> 175 | O19: =Italy!J$36 -> 169 | P19: =((O19/N19)-1)*100 -> -3.4 | R19: =Italy!I$39 -> 1,030 | S19: =Italy!J$39 -> 1,022 | T19: =((S19/R19)-1)*100 -> -0.8 | V19: =R19+N19+J19+F19+B19 -> 11,675 | W19: 11,359 | X19: =((W19/V19)-1)*100 -> -2.7
A21: NL | B21: ='The Netherlands'!I$16 -> 3,804 | C21: ='The Netherlands'!J$16 -> 3,654 | D21: =((C21/B21)-1)*100 -> -3.9 | F21: ='The Netherlands'!I$23 -> 7,459 | G21: ='The Netherlands'!J$23 -> 7,052 | H21: =((G21/F21)-1)*100 -> -5.5 | J21: ='The Netherlands'!I$30 -> 3,581 | K21: ='The Netherlands'!J$30 -> 3,740 | L21: =((K21/J21)-1)*100 -> 4.4 | N21: ='The Netherlands'!I$36 -> 745 | O21: ='The Netherlands'!J$36 -> 716 | P21: =((O21/N21)-1)*100 -> -3.9 | R21: ='The Netherlands'!I$39 -> 784 | S21: ='The Netherlands'!J$39 -> 795 | T21: =((S21/R21)-1)*100 -> 1.4 | V21: =R21+N21+J21+F21+B21 -> 16,373 | W21: 15,957 | X21: =((W21/V21)-1)*100 -> -2.5
A23: B | B23: =Belgium!I$16 -> 1,142 | C23: =Belgium!J$16 -> 934 | D23: =((C23/B23)-1)*100 -> -18.2 | F23: =Belgium!I$23 -> 3,454 | G23: =Belgium!J$23 -> 3,577 | H23: =((G23/F23)-1)*100 -> 3.6 | J23: =Belgium!I$30 -> 1,055 | K23: =Belgium!J$30 -> 1,122 | L23: =((K23/J23)-1)*100 -> 6.4 | N23: =Belgium!I$36 -> 55 | O23: =Belgium!J$36 -> 57 | P23: =((O23/N23)-1)*100 -> 3.6 | R23: =Belgium!I$39 -> 149 | S23: =Belgium!J$39 -> 140 | T23: =((S23/R23)-1)*100 -> -6.0 | V23: =R23+N23+J23+F23+B23 -> 5,855 | W23: 5,830 | X23: =((W23/V23)-1)*100 -> -0.4
A25: UK | B25: =UK!I$16 -> 4,702 | C25: =UK!J$16 -> 4,132 | D25: =((C25/B25)-1)*100 -> -12.1 | F25: =UK!I$23 -> 2,566 | G25: =UK!J$23 -> 2,723 | H25: =((G25/F25)-1)*100 -> 6.1 | J25: =UK!I$30 -> 6,291 | K25: =UK!J$30 -> 6,396 | L25: =((K25/J25)-1)*100 -> 1.7 | N25: =UK!I$36 -> 20 | O25: =UK!J$36 -> 21 | P25: =((O25/N25)-1)*100 -> 5.0 | R25: =UK!I39 -> 1,262 | S25: =UK!J39 -> 1,194 | T25: =((S25/R25)-1)*100 -> -5.4 | V25: =R25+J25+F25+B25+N25 -> 14,841 | W25: 14,466 | X25: =((W25/V25)-1)*100 -> -2.5
A27: IRL | B27: =Ireland!I$16 -> 1,714 | C27: =Ireland!J$16 -> 1,452 | D27: =((C27/B27)-1)*100 -> -15.3 | F27: =Ireland!I$23 -> 685 | G27: =Ireland!J$23 -> 705 | H27: =((G27/F27)-1)*100 -> 2.9 | J27: =Ireland!I$30 -> 468 | K27: =Ireland!J$30 -> 487 | L27: =((K27/J27)-1)*100 -> 4.1 | N27: =Ireland!I$36 -> 6 | O27: =Ireland!J$36 -> 5 | P27: =((O27/N27)-1)*100 -> -16.7 | R27: =Ireland!I$39 -> 289 | S27: =Ireland!J$39 -> 287 | T27: =((S27/R27)-1)*100 -> -0.7 | V27: =R27+N27+J27+F27+B27 -> 3,162 | W27: 2,936 | X27: =((W27/V27)-1)*100 -> -7.1
A29: DK | B29: =Denmark!I$16 -> 1,517 | C29: =Denmark!J$16 -> 1,408 | D29: =((C29/B29)-1)*100 -> -7.2 | F29: =Denmark!I$23 -> 3,429 | G29: =Denmark!J$23 -> 3,546 | H29: =((G29/F29)-1)*100 -> 3.4 | J29: =Denmark!I$30 -> 651 | K29: =Denmark!J$30 -> 654 | L29: =((K29/J29)-1)*100 -> 0.5 | N29: =Denmark!I$36 -> 5 | O29: =Denmark!J$36 -> 5 | P29: =((O29/N29)-1)*100 -> 0.0 | R29: =Denmark!I$39 -> 144 | S29: =Denmark!J$39 -> 164 | T29: =((S29/R29)-1)*100 -> 13.9 | V29: =R29+N29+J29+F29+B29 -> 5,746 | W29: 5,777 | X29: =((W29/V29)-1)*100 -> 0.5
A31: ESP | B31: =Spain!I$16 -> 3,150 | C31: =Spain!J$16 -> 3,350 | D31: =((C31/B31)-1)*100 -> 6.3 | F31: =Spain!I$23 -> 6,530 | G31: =Spain!J$23 -> 6,450 | H31: =((G31/F31)-1)*100 -> -1.2 | J31: =Spain!I$30 -> 4,100 | K31: =Spain!J$30 -> 4,150 | L31: =((K31/J31)-1)*100 -> 1.2 | N31: =Spain!I$36 -> 60 | O31: =Spain!J$36 -> 60 | P31: =((O31/N31)-1)*100 -> 0.0 | R31: =Spain!I$39 -> 1,200 | S31: =Spain!J$39 -> 1,050 | T31: =((S31/R31)-1)*100 -> -12.5 | V31: =R31+N31+J31+F31+B31 -> 15,040 | W31: 15,060 | X31: =((W31/V31)-1)*100 -> 0.1
A33: P | B33: =Portugal!I$16 -> 1,090 | C33: =Portugal!J$16 -> 1,010 | D33: =((C33/B33)-1)*100 -> -7.3 | F33: =Portugal!I$23 -> 1,300 | G33: =Portugal!J$23 -> 1,320 | H33: =((G33/F33)-1)*100 -> 1.5 | J33: =Portugal!I$30 -> 1,330 | K33: =Portugal!J$30 -> 1,340 | L33: =((K33/J33)-1)*100 -> 0.8 | N33: =Portugal!I$36 -> 0 | O33: =Portugal!J$36 -> 0 | P33: 0.0 | R33: =Portugal!I$39 -> 236 | S33: =Portugal!J$39 -> 235 | T33: =((S33/R33)-1)*100 -> -0.4 | V33: =R33+N33+J33+F33+B33 -> 3,956 | W33: 3,905 | X33: =((W33/V33)-1)*100 -> -1.3
A35: A | B35: =Austria!I$16 -> 202 | C35: =Austria!J$16 -> 195 | D35: =((C35/B35)-1)*100 -> -3.5 | F35: =Austria!I$23 -> 229 | G35: =Austria!J$23 -> 227 | H35: =((G35/F35)-1)*100 -> -0.9 | J35: =Austria!I$30 -> 399 | K35: =Austria!J$30 -> 380 | L35: =((K35/J35)-1)*100 -> -4.8 | N35: =Austria!I$36 -> 4 | O35: =Austria!J$36 -> 4 | P35: =((O35/N35)-1)*100 -> 0.0 | R35: =Austria!I$39 -> 64 | S35: =Austria!J$39 -> 82 | T35: =((S35/R35)-1)*100 -> 28.1 | V35: =R35+N35+J35+F35+B35 -> 898 | W35: 888 | X35: =((W35/V35)-1)*100 -> -1.1
A37: S | B37: =Sweden!I$16 -> 1,220 | C37: =Sweden!J$16 -> 1,160 | D37: =((C37/B37)-1)*100 -> -4.9 | F37: =Sweden!I$23 -> 700 | G37: =Sweden!J$23 -> 700 | H37: =((G37/F37)-1)*100 -> 0.0 | J37: =Sweden!I$30 -> 540 | K37: =Sweden!J$30 -> 520 | L37: =((K37/J37)-1)*100 -> -3.7 | N37: =Sweden!I$36 -> 10 | O37: =Sweden!J$36 -> 10 | P37: =((O37/N37)-1)*100 -> 0.0 | R37: =Sweden!I$39 -> 50 | S37: =Sweden!J$39 -> 50 | T37: =((S37/R37)-1)*100 -> 0.0 | V37: =R37+N37+J37+F37+B37 -> 2,520 | W37: 2,440 | X37: =((W37/V37)-1)*100 -> -3.2
A39: FIN | B39: =Finland!I$16 -> 472 | C39: =Finland!J$16 -> 471 | D39: =((C39/B39)-1)*100 -> -0.2 | F39: =Finland!I$23 -> 322 | G39: =Finland!J$23 -> 323 | H39: =((G39/F39)-1)*100 -> 0.3 | J39: =Finland!I$30 -> 222 | K39: =Finland!J$30 -> 221 | L39: =((K39/J39)-1)*100 -> -0.5 | N39: =Finland!I$36 -> : | O39: =Finland!J$36 -> : | R39: =Finland!I$39 -> 145 | S39: =Finland!J$39 -> 141 | T39: =((S39/R39)-1)*100 -> -2.8 | V39: =R39+J39+F39+B39 -> 1,161 | W39: 1,156 | X39: =((W39/V39)-1)*100 -> -0.4
A42: EUR 15 * | B42: =B39+B37+B35+B33+B31+B29+B27+B25+B23+B21+B19+B17+B15 -> 35,075 | C42: 32,993 | D42: =((C42/B42)-1)*100 -> -5.9 | F42: =F39+F37+F35+F33+F31+F29+F27+F25+F23+F21+F19+F17+F15 -> 41,996 | G42: 42,236 | H42: =((G42/F42)-1)*100 -> 0.6 | J42: =J39+J37+J35+J33+J31+J29+J27+J25+J23+J21+J19+J17+J15 -> 36,181 | K42: 36,983 | L42: =((K42/J42)-1)*100 -> 2.2 | N42: =N37+N35+N33+N31+N29+N27+N23+N21+N19+N17+N15+N25 -> 1,860 | O42: 1,761 | P42: =((O42/N42)-1)*100 -> -5.3 | R42: =R39+R37+R35+R33+R31+R29+R27+R25+R23+R21+R19+R17+R15 -> 7,452 | S42: 7,228 | T42: =((S42/R42)-1)*100 -> -3.0 | V42: =V39+V37+V35+V33+V31+V29+V27+V25+V23+V21+V19+V17+V15 -> 122,564 | W42: 121,201 | X42: =((W42/V42)-1)*100 -> -1.1
A45: * Sans le Luxembourg et la Grèce/Ohne Luxemburg und Griechenland/Without Luxemburg and Greece/Senza Lussemburgo e Ellas
A47: : non disponible/not available

Sheet 1997
A1: 2001-07-04
A3: PRODUCTION INDUSTRIELLE D'ALIMENTS COMPOSES | P3: INDUSTRIELLE MISCHFUTTERPRODUKTION
A4: PRODUZIONE INDUSTRIALE DI MANGIMI COMPOSTI | P4: INDUSTRIAL COMPOUND PRODUCTION
A5: 1997
A6: definitif/final
P7: (1 000 t)
A9: Catégories d'aliments composés/Mischfutterarten | C9: D | D9: F | E9: I | F9: NL | G9: B | H9: UK | I9: IRL | J9: DK | K9: ESP | L9: P | M9: A | N9: S | O9: FIN | P9: EUR-15
A10: Tipi di mangimi compositi/Types of feed | P10: *
A13: Bovins/Cattle/Bovini/Rinder | C13: =C14+C15+C16+C18 -> 7,517 | D13: 4,207 | E13: =E14+E15+E16 -> 3,503 | F13: ='The Netherlands'!J16 -> 3,654 | G13: =G14+G15+G16+G18 -> 934 | H13: 4,132 | I13: 1,452 | J13: =J14+J15+J16 -> 1,408 | K13: =K14+K15+K18 -> 3,350 | L13: =L14+L15+L16+L18 -> 1,010 | M13: =Austria!J16 -> 195 | N13: =N15+N18 -> 1,160 | O13: =O18+O16 -> 471 | P13: =SUM(C13:O13) -> 32,993
A14: engrais/fattening/Mast | C14: =Germany!J17 -> 511 | D14: =France!J17 -> 658 | E14: =Italy!J17 -> 1,018 | F14: ='The Netherlands'!J17 -> 284 | G14: =Belgium!J17 -> 317 | H14: =UK!J17 -> 992 | I14: =Ireland!J17 -> 607 | J14: =Denmark!J17 -> 552 | K14: =Spain!J17 -> 1,600 | L14: =Portugal!J17 -> 384 | M14: : | N14: =Sweden!J17 -> : | O14: =Finland!J17 -> : | P14: :
A15: VL/dairy cow/Milchkühe | C15: =Germany!J18 -> 6,040 | D15: =France!J18 -> 3,040 | E15: =Italy!J18 -> 2,307 | F15: ='The Netherlands'!J18 -> 3,327 | G15: =Belgium!J18 -> 458 | H15: =UK!J18 -> 2,826 | I15: =Ireland!J18 -> 657 | J15: =Denmark!J18 -> 552 | K15: =Spain!J18 -> 1,250 | L15: =Portugal!J18 -> 565 | M15: : | N15: =Sweden!J18 -> 1,065 | O15: =Finland!J18 -> : | P15: :
A16: veaux (aliments d'allaitement non compris)/calves | C16: =Germany!J19 -> 168 | D16: =France!J19 -> 226 | E16: =Italy!J19 -> 178 | F16: ='The Netherlands'!J19 -> 43 | G16: =Belgium!J19 -> 84 | H16: =UK!J19 -> 206 | I16: =Ireland!J19 -> 147 | J16: =Denmark!J19 -> 304 | K16: =Spain!J19 -> : | L16: =Portugal!J19 -> 41 | M16: : | N16: =Sweden!J19 -> : | O16: =Finland!J19 -> 37 | P16: :
A17: (excluding milk replacers)/Kälber (exkl. Milchaustauscher)
A18: autres/others/Andere | C18: =Germany!J20 -> 798 | D18: =France!J20 -> 283 | E18: =Italy!J20 -> : | F18: ='The Netherlands'!J20 -> : | G18: =Belgium!J20 -> 75 | H18: =UK!J20 -> 108 | I18: =Ireland!J20 -> 41 | J18: =Denmark!J20 -> : | K18: =Spain!J20 -> 500 | L18: =Portugal!J20 -> 20 | M18: : | N18: =Sweden!J20 -> 95 | O18: =Finland!J20 -> 434 | P18: :
A21: Porcins/Pigs/Suini/Schweine | C21: =C22+C23+C24+C25 -> 6,274 | D21: =D22+D23+D24 -> 6,945 | E21: =Italy!J23 -> 2,394 | F21: ='The Netherlands'!J23 -> 7,052 | G21: =G22+G23 -> 3,577 | H21: =H22+H23+H24+H25 -> 2,723 | I21: 705 | J21: =J22+J23+J24 -> 3,546 | K21: =K22+K23+K24+K25 -> 6,450 | L21: 1,320 | M21: =Austria!J23 -> 227 | N21: =N22+N23+N24 -> 700 | O21: =O22+O23+O24+O25 -> 323 | P21: =SUM(C21:O21) -> 42,236
A22: porcelets/piglets/Ferkel | C22: =Germany!J24 -> 1,203 | D22: =France!J24 -> 874 | E22: =Italy!J24 -> : | F22: ='The Netherlands'!J24 -> 734 | G22: =Belgium!J24 -> 787 | H22: =UK!J24 -> 160 | I22: =Ireland!J24 -> 117 | J22: =Denmark!J24 -> 617 | K22: =Spain!J24 -> 800 | L22: =Portugal!J24 -> 208 | M22: : | N22: =Sweden!J24 -> 100 | O22: =Finland!J24 -> 42 | P22: :
A23: porcs engrais/pigs for fattening/Mastschweine | C23: =Germany!J25 -> 2,951 | D23: =France!J25 -> 4,661 | E23: =Italy!J25 -> : | F23: ='The Netherlands'!J25 -> 4,824 | G23: =Belgium!J25 -> 2,790 | H23: =UK!J25 -> 1,724 | I23: =Ireland!J25 -> 402 | J23: =Denmark!J25 -> 2,234 | K23: =Spain!J25 -> 4,580 | L23: =Portugal!J25 -> 375 | M23: : | N23: =Sweden!J25 -> 400 | O23: =Finland!J25 -> 195 | P23: :
A24: reproducteurs/breeding pigs/Zuchtschweine | C24: =Germany!J26 -> 1,110 | D24: =France!J26 -> 1,410 | E24: =Italy!J26 -> : | F24: ='The Netherlands'!J26 -> 1,494 | G24: =Belgium!J26 -> : | H24: =UK!J26 -> 795 | I24: =Ireland!J26 -> 167 | J24: =Denmark!J26 -> 695 | K24: =Spain!J26 -> 1,000 | L24: =Portugal!J26 -> 270 | M24: : | N24: =Sweden!J26 -> 200 | O24: =Finland!J26 -> 33 | P24: :
A25: autres/others/Andere | C25: =Germany!J27 -> 1,010 | D25: =France!J27 -> : | E25: =Italy!J27 -> : | F25: ='The Netherlands'!J27 -> : | G25: =Belgium!J27 -> : | H25: =UK!J27 -> 44 | I25: =Ireland!J27 -> 19 | J25: =Denmark!J27 -> : | K25: =Spain!J27 -> 70 | L25: =Portugal!J27 -> 467 | M25: : | N25: =Sweden!J27 -> : | O25: =Finland!J27 -> 53 | P25: :
A28: Volaille/Poultry/Volatili/Geflügel | C28: =C29+C30 -> 4,255 | D28: =D29+D30+D31 -> 9,447 | E28: 4,271 | F28: ='The Netherlands'!J30 -> 3,740 | G28: =G29+G30+G31 -> 1,122 | H28: 6,396 | I28: 487 | J28: 654 | K28: 4,150 | L28: 1,340 | M28: =Austria!J30 -> 380 | N28: =N29+N30 -> 520 | O28: =O29+O30+O31 -> 221 | P28: =SUM(C28:O28) -> 36,983
A29: broilers | C29: =Germany!J31 -> 1,924 | D29: =France!J31 -> 3,448 | E29: =Italy!J31 -> 2,074 | F29: ='The Netherlands'!J31 -> 1,769 | G29: =Belgium!J31 -> 423 | H29: =UK!J31 -> 3,108 | I29: =Ireland!J31 -> 279 | J29: =Denmark!J31 -> 529 | K29: =Spain!J31 -> 2,200 | L29: =Portugal!J31 -> 750 | M29: : | N29: =Sweden!J31 -> 280 | O29: =Finland!J31 -> 139 | P29: :
A30: poulettes & pondeuses/chicks & layers/Jung- & Legehennen | C30: =Germany!J32 -> 2,331 | D30: =France!J32 -> 2,381 | E30: =Italy!J32 -> 1,144 | F30: ='The Netherlands'!J32 -> 1,971 | G30: =Belgium!J32 -> 401 | H30: =UK!J32 -> 1,307 | I30: =Ireland!J32 -> 99 | J30: =Denmark!J32 -> 36 | K30: =Spain!J32 -> 1,700 | L30: =Portugal!J32 -> 325 | M30: : | N30: =Sweden!J32 -> 240 | O30: =Finland!J32 -> 76 | P30: :
A31: autres/others/Andere | C31: =Germany!J33 -> : | D31: =France!J33 -> 3,618 | E31: =Italy!J33 -> 1,053 | F31: ='The Netherlands'!J33 -> : | G31: =Belgium!J33 -> 298 | H31: =UK!J33 -> 1,981 | I31: =Ireland!J33 -> 109 | J31: =Denmark!J33 -> 89 | K31: =Spain!J33 -> 250 | L31: =Portugal!J33 -> 265 | M31: : | N31: =Sweden!J33 -> : | O31: =Finland!J33 -> 6 | P31: :
A34: Al. d'allait./Milk replacers/Sostit. del latte/Milchaust. | C34: =Germany!J36 -> 201 | D34: =France!J36 -> 513 | E34: =Italy!J36 -> 169 | F34: ='The Netherlands'!J36 -> 716 | G34: =Belgium!J36 -> 57 | H34: =UK!J36 -> 21 | I34: =Ireland!J36 -> 5 | J34: =Denmark!J36 -> 5 | K34: =Spain!J36 -> 60 | L34: =Portugal!J36 -> 0 | M34: =Austria!J36 -> 4 | N34: =Sweden!J36 -> 10 | O34: =Finland!J36 -> : | P34: =SUM(C34:O34) -> 1,761
A37: Autres/others/altri/Andere | C37: =Germany!J39 -> 551 | D37: =France!J39 -> 1,517 | E37: =Italy!J39 -> 1,022 | F37: ='The Netherlands'!J39 -> 795 | G37: =Belgium!J39 -> 140 | H37: =UK!J39 -> 1,194 | I37: =Ireland!J39 -> 287 | J37: =Denmark!J39 -> 164 | K37: =Spain!J39 -> 1,050 | L37: =Portugal!J39 -> 235 | M37: =Austria!J39 -> 82 | N37: =Sweden!J39 -> 50 | O37: =Finland!J39 -> 141 | P37: =SUM(C37:O37) -> 7,228
A40: TOTAL | C40: =C37+C34+C28+C21+C13 -> 18,798 | D40: 22,629 | E40: 11,359 | F40: 15,957 | G40: 5,830 | H40: 14,466 | I40: 2,936 | J40: 5,777 | K40: 15,060 | L40: 3,905 | M40: 888 | N40: 2,440 | O40: =O37+O28+O21+O13 -> 1,156 | P40: =P37+P34+P28+P21+P13 -> 121,201
A43: * Sans le Luxembourg et la Grèce/ohne Luxemburg und Griechenland/Without Luxemburg and Greece/Senza Lussemburgo e Ella
A45: : non disponible/not available/nicht verfügbar

Sheet 98-97
A1: 2001-07-04
A3: PRODUCTION INDUSTRIELLE D'ALIMENTS COMPOSES | X3: INDUSTRIELLE MISCHFUTTERPRODUKTION
A4: PRODUZIONE INDUSTRIALE DI MANGIMI COMPOSTI | M4: 1997-1998 | X4: INDUSTRIAL COMPOUND PRODUCTION
M5: definitif/final | X5: (1 000 t )
A9: PAYS | C9: BOVINS/RINDER | G9: PORCS/SCHWEINE | K9: VOLAILLE/GEFLÜGEL | M9: A. ALLAITEMENT/MILCHAUST. | S9: AUTRES/ANDERE | V9: TOTAL/INSGESAMT
A10: LAND | C10: BOVINI/CATTLE | G10: SUINI/PIGS | K10: VOLATILI/POULTRY | M10: SOSTIT. DEL LATTE/MILKREPLACERS | S10: ALTRI ANIMALI/OTHERS | V10: TOTALE/TOTAL
A11: PAESE
A12: COUNTRY | B12: 1997 | C12: 1998 | D12: %TAV | F12: 1997 | G12: 1998 | H12: %TAV | J12: 1997 | K12: 1998 | L12: %TAV | N12: 1997 | O12: 1998 | P12: %TAV | R12: 1997 | S12: 1998 | T12: %TAV | V12: 1997 | W12: 1998 | X12: %TAV
A15: D | B15: =Germany!J$16 -> 7,517 | C15: =Germany!K$16 -> 6,996 | D15: =((C15/B15)-1)*100 -> -6.9 | F15: =Germany!J$23 -> 6,274 | G15: =Germany!K$23 -> 6,667 | H15: =((G15/F15)-1)*100 -> 6.3 | J15: =Germany!J$30 -> 4,255 | K15: =Germany!K$30 -> 4,389 | L15: =((K15/J15)-1)*100 -> 3.1 | N15: =Germany!J$36 -> 201 | O15: =Germany!K$36 -> 183 | P15: =((O15/N15)-1)*100 -> -9.0 | R15: =Germany!J$39 -> 551 | S15: =Germany!K$39 -> 541 | T15: =((S15/R15)-1)*100 -> -1.8 | V15: =R15+N15+J15+F15+B15 -> 18,798 | W15: 18,776 | X15: =((W15/V15)-1)*100 -> -0.1
A17: F | B17: =France!J$16 -> 4,207 | C17: =France!K$16 -> 4,050 | D17: =((C17/B17)-1)*100 -> -3.7 | F17: =France!J$23 -> 6,945 | G17: =France!K$23 -> 6,986 | H17: =((G17/F17)-1)*100 -> 0.6 | J17: =France!J$30 -> 9,447 | K17: =France!K$30 -> 9,714 | L17: =((K17/J17)-1)*100 -> 2.8 | N17: =France!J$36 -> 513 | O17: =France!K$36 -> 517 | P17: =((O17/N17)-1)*100 -> 0.8 | R17: =France!J$39 -> 1,517 | S17: =France!K$39 -> 1,643 | T17: =((S17/R17)-1)*100 -> 8.3 | V17: =R17+N17+J17+F17+B17 -> 22,629 | W17: 22,910 | X17: =((W17/V17)-1)*100 -> 1.2
A19: I | B19: =Italy!J$16 -> 3,503 | C19: =Italy!K$16 -> 3,420 | D19: =((C19/B19)-1)*100 -> -2.4 | F19: =Italy!J$23 -> 2,394 | G19: =Italy!K$23 -> 2,491 | H19: =((G19/F19)-1)*100 -> 4.1 | J19: =Italy!J$30 -> 4,271 | K19: =Italy!K$30 -> 4,396 | L19: =((K19/J19)-1)*100 -> 2.9 | N19: =Italy!J$36 -> 169 | O19: =Italy!K$36 -> 204 | P19: =((O19/N19)-1)*100 -> 20.7 | R19: =Italy!J$39 -> 1,022 | S19: =Italy!K$39 -> 1,090 | T19: =((S19/R19)-1)*100 -> 6.7 | V19: =R19+N19+J19+F19+B19 -> 11,359 | W19: 11,601 | X19: =((W19/V19)-1)*100 -> 2.1
A21: NL | B21: ='The Netherlands'!J$16 -> 3,654 | C21: ='The Netherlands'!K$16 -> 3,597 | D21: =((C21/B21)-1)*100 -> -1.6 | F21: ='The Netherlands'!J$23 -> 7,052 | G21: ='The Netherlands'!K$23 -> 6,951 | H21: =((G21/F21)-1)*100 -> -1.4 | J21: ='The Netherlands'!J$30 -> 3,740 | K21: ='The Netherlands'!K$30 -> 3,727 | L21: =((K21/J21)-1)*100 -> -0.3 | N21: ='The Netherlands'!J$36 -> 716 | O21: ='The Netherlands'!K$36 -> 732 | P21: =((O21/N21)-1)*100 -> 2.2 | R21: ='The Netherlands'!J$39 -> 795 | S21: ='The Netherlands'!K$39 -> 766 | T21: =((S21/R21)-1)*100 -> -3.6 | V21: =R21+N21+J21+F21+B21 -> 15,957 | W21: 15,773 | X21: =((W21/V21)-1)*100 -> -1.2
A23: B | B23: =Belgium!J$16 -> 934 | C23: =Belgium!K$16 -> 1,216 | D23: =((C23/B23)-1)*100 -> 30.2 | F23: =Belgium!J$23 -> 3,577 | G23: =Belgium!K$23 -> 3,592 | H23: =((G23/F23)-1)*100 -> 0.4 | J23: =Belgium!J$30 -> 1,122 | K23: =Belgium!K$30 -> 1,403 | L23: =((K23/J23)-1)*100 -> 25.0 | N23: =Belgium!J$36 -> 57 | O23: =Belgium!K$36 -> 53 | P23: =((O23/N23)-1)*100 -> -7.0 | R23: =Belgium!J$39 -> 140 | S23: =Belgium!K$39 -> 151 | T23: =((S23/R23)-1)*100 -> 7.9 | V23: =R23+N23+J23+F23+B23 -> 5,830 | W23: 6,415 | X23: =((W23/V23)-1)*100 -> 10.0
A25: UK | B25: =UK!J$16 -> 4,132 | C25: =UK!K$16 -> 4,032 | D25: =((C25/B25)-1)*100 -> -2.4 | F25: =UK!J$23 -> 2,723 | G25: =UK!K$23 -> 2,804 | H25: =((G25/F25)-1)*100 -> 3.0 | J25: =UK!J$30 -> 6,396 | K25: =UK!K$30 -> 6,318 | L25: =((K25/J25)-1)*100 -> -1.2 | N25: =UK!J$36 -> 21 | O25: =UK!K$36 -> 10 | P25: =((O25/N25)-1)*100 -> -52.4 | R25: =UK!J39 -> 1,194 | S25: =UK!K39 -> 1,234 | T25: =((S25/R25)-1)*100 -> 3.4 | V25: =R25+J25+F25+B25+N25 -> 14,466 | W25: 14,398 | X25: =((W25/V25)-1)*100 -> -0.5
A27: IRL | B27: =Ireland!J$16 -> 1,452 | C27: =Ireland!K$16 -> 1,824 | D27: =((C27/B27)-1)*100 -> 25.6 | F27: =Ireland!J$23 -> 705 | G27: =Ireland!K$23 -> 775 | H27: =((G27/F27)-1)*100 -> 9.9 | J27: =Ireland!J$30 -> 487 | K27: =Ireland!K$30 -> 501 | L27: =((K27/J27)-1)*100 -> 2.9 | N27: =Ireland!J$36 -> 5 | O27: =Ireland!K$36 -> 9 | P27: =((O27/N27)-1)*100 -> 80.0 | R27: =Ireland!J$39 -> 287 | S27: =Ireland!K$39 -> 346 | T27: =((S27/R27)-1)*100 -> 20.6 | V27: =R27+N27+J27+F27+B27 -> 2,936 | W27: 3,455 | X27: =((W27/V27)-1)*100 -> 17.7
A29: DK | B29: =Denmark!J$16 -> 1,408 | C29: =Denmark!K$16 -> 1,349 | D29: =((C29/B29)-1)*100 -> -4.2 | F29: =Denmark!J$23 -> 3,546 | G29: =Denmark!K$23 -> 3,669 | H29: =((G29/F29)-1)*100 -> 3.5 | J29: =Denmark!J$30 -> 654 | K29: =Denmark!K$30 -> 677 | L29: =((K29/J29)-1)*100 -> 3.5 | N29: =Denmark!J$36 -> 5 | O29: =Denmark!K$36 -> 5 | P29: =((O29/N29)-1)*100 -> 0.0 | R29: =Denmark!J$39 -> 164 | S29: =Denmark!K$39 -> 140 | T29: =((S29/R29)-1)*100 -> -14.6 | V29: =R29+N29+J29+F29+B29 -> 5,777 | W29: 5,840 | X29: =((W29/V29)-1)*100 -> 1.1
A31: ESP | B31: =Spain!J$16 -> 3,350 | C31: =Spain!K$16 -> 3,200 | D31: =((C31/B31)-1)*100 -> -4.5 | F31: =Spain!J$23 -> 6,450 | G31: =Spain!K$23 -> 7,000 | H31: =((G31/F31)-1)*100 -> 8.5 | J31: =Spain!J$30 -> 4,150 | K31: =Spain!K$30 -> 4,100 | L31: =((K31/J31)-1)*100 -> -1.2 | N31: =Spain!J$36 -> 60 | O31: =Spain!K$36 -> 60 | P31: =((O31/N31)-1)*100 -> 0.0 | R31: =Spain!J$39 -> 1,050 | S31: =Spain!K$39 -> 1,000 | T31: =((S31/R31)-1)*100 -> -4.8 | V31: =R31+N31+J31+F31+B31 -> 15,060 | W31: 15,360 | X31: =((W31/V31)-1)*100 -> 2.0
A33: P | B33: =Portugal!J$16 -> 1,010 | C33: =Portugal!K$16 -> 1,020 | D33: =((C33/B33)-1)*100 -> 1.0 | F33: =Portugal!J$23 -> 1,320 | G33: =Portugal!K$23 -> 1,340 | H33: =((G33/F33)-1)*100 -> 1.5 | J33: =Portugal!J$30 -> 1,340 | K33: =Portugal!K$30 -> 1,400 | L33: =((K33/J33)-1)*100 -> 4.5 | N33: =Portugal!J$36 -> 0 | O33: =Portugal!K$36 -> 0 | P33: 0.0 | R33: =Portugal!J$39 -> 235 | S33: =Portugal!K$39 -> 218 | T33: =((S33/R33)-1)*100 -> -7.2 | V33: =R33+N33+J33+F33+B33 -> 3,905 | W33: 3,978 | X33: =((W33/V33)-1)*100 -> 1.9
A35: A | B35: =Austria!J$16 -> 195 | C35: =Austria!K$16 -> 221 | D35: =((C35/B35)-1)*100 -> 13.3 | F35: =Austria!J$23 -> 227 | G35: =Austria!K$23 -> 219 | H35: =((G35/F35)-1)*100 -> -3.5 | J35: =Austria!J$30 -> 380 | K35: =Austria!K$30 -> 411 | L35: =((K35/J35)-1)*100 -> 8.2 | N35: =Austria!J$36 -> 4 | O35: =Austria!K$36 -> 4 | P35: =((O35/N35)-1)*100 -> 0.0 | R35: =Austria!J$39 -> 82 | S35: =Austria!K$39 -> 62 | T35: =((S35/R35)-1)*100 -> -24.4 | V35: =R35+N35+J35+F35+B35 -> 888 | W35: 917 | X35: =((W35/V35)-1)*100 -> 3.3
A37: S | B37: =Sweden!J$16 -> 1,160 | C37: =Sweden!K$16 -> 1,170 | D37: =((C37/B37)-1)*100 -> 0.9 | F37: =Sweden!J$23 -> 700 | G37: =Sweden!K$23 -> 690 | H37: =((G37/F37)-1)*100 -> -1.4 | J37: =Sweden!J$30 -> 520 | K37: =Sweden!K$30 -> 500 | L37: =((K37/J37)-1)*100 -> -3.8 | N37: =Sweden!J$36 -> 10 | O37: =Sweden!K$36 -> 7 | P37: =((O37/N37)-1)*100 -> -30.0 | R37: =Sweden!J$39 -> 50 | S37: =Sweden!K$39 -> 50 | T37: =((S37/R37)-1)*100 -> 0.0 | V37: =R37+N37+J37+F37+B37 -> 2,440 | W37: 2,417 | X37: =((W37/V37)-1)*100 -> -0.9
A39: FIN | B39: =Finland!J$16 -> 471 | C39: =Finland!K$16 -> 533 | D39: =((C39/B39)-1)*100 -> 13.2 | F39: =Finland!J$23 -> 323 | G39: =Finland!K$23 -> 311 | H39: =((G39/F39)-1)*100 -> -3.7 | J39: =Finland!J$30 -> 221 | K39: =Finland!K$30 -> 238 | L39: =((K39/J39)-1)*100 -> 7.7 | N39: =Finland!J$36 -> : | O39: =Finland!K$36 -> : | R39: =Finland!J$39 -> 141 | S39: =Finland!K$39 -> 145 | T39: =((S39/R39)-1)*100 -> 2.8 | V39: =R39+J39+F39+B39 -> 1,156 | W39: 1,227 | X39: =((W39/V39)-1)*100 -> 6.1
A42: EUR 15 * | B42: =B39+B37+B35+B33+B31+B29+B27+B25+B23+B21+B19+B17+B15 -> 32,993 | C42: 32,628 | D42: =((C42/B42)-1)*100 -> -1.1 | F42: =F39+F37+F35+F33+F31+F29+F27+F25+F23+F21+F19+F17+F15 -> 42,236 | G42: 43,495 | H42: =((G42/F42)-1)*100 -> 3.0 | J42: =J39+J37+J35+J33+J31+J29+J27+J25+J23+J21+J19+J17+J15 -> 36,983 | K42: 37,774 | L42: =((K42/J42)-1)*100 -> 2.1 | N42: =N37+N35+N33+N31+N29+N27+N23+N21+N19+N17+N15+N25 -> 1,761 | O42: 1,784 | P42: =((O42/N42)-1)*100 -> 1.3 | R42: =R39+R37+R35+R33+R31+R29+R27+R25+R23+R21+R19+R17+R15 -> 7,228 | S42: 7,386 | T42: =((S42/R42)-1)*100 -> 2.2 | V42: =V39+V37+V35+V33+V31+V29+V27+V25+V23+V21+V19+V17+V15 -> 121,201 | W42: 123,067 | X42: =((W42/V42)-1)*100 -> 1.5
A45: * Sans le Luxembourg et la Grèce/Ohne Luxemburg und Griechenland/Without Luxemburg and Greece/Senza Lussemburgo e Ellas
A47: : non disponible/not available

Sheet 1998
A1: 2001-07-04
A3: PRODUCTION INDUSTRIELLE D'ALIMENTS COMPOSES | P3: INDUSTRIELLE MISCHFUTTERPRODUKTION
A4: PRODUZIONE INDUSTRIALE DI MANGIMI COMPOSTI | P4: INDUSTRIAL COMPOUND PRODUCTION
A5: 1999
A6: definitif/final
P7: (1 000 t)
A9: Catégories d'aliments composés/Mischfutterarten | C9: D | D9: F | E9: I | F9: NL | G9: B | H9: UK | I9: IRL | J9: DK | K9: ESP | L9: P | M9: A | N9: S | O9: FIN | P9: EUR-15
A10: Tipi di mangimi compositi/Types of feed | P10: *
A13: Bovins/Cattle/Bovini/Rinder | C13: =C14+C15+C16+C18 -> 6,996 | D13: 4,050 | E13: =E14+E15+E16 -> 3,420 | F13: ='The Netherlands'!K16 -> 3,597 | G13: =G14+G15+G16+G18 -> 1,216 | H13: 4,032 | I13: 1,824 | J13: =J14+J15+J16 -> 1,349 | K13: =K14+K15+K18 -> 3,200 | L13: =L14+L15+L16+L18 -> 1,020 | M13: =Austria!K16 -> 221 | N13: =Sweden!K16 -> 1,170 | O13: =O18+O16 -> 533 | P13: =SUM(C13:O13) -> 32,628
A14: engrais/fattening/Mast | C14: =Germany!K17 -> 605 | D14: =France!K17 -> 670 | E14: =Italy!K17 -> 865 | F14: ='The Netherlands'!K17 -> 279 | G14: =Belgium!K17 -> 394 | H14: =UK!K17 -> 958 | I14: =Ireland!K17 -> 797 | J14: =Denmark!K17 -> 525 | K14: =Spain!K17 -> 1,450 | L14: =Portugal!K17 -> 362 | M14: : | N14: =Sweden!K17 -> : | O14: =Finland!K17 -> : | P14: :
A15: VL/dairy cow/Milchkühe | C15: =Germany!K18 -> 6,000 | D15: =France!K18 -> 2,926 | E15: =Italy!K18 -> 2,417 | F15: ='The Netherlands'!K18 -> 3,271 | G15: =Belgium!K18 -> 601 | H15: =UK!K18 -> 2,783 | I15: =Ireland!K18 -> 821 | J15: =Denmark!K18 -> 524 | K15: =Spain!K18 -> 1,250 | L15: =Portugal!K18 -> 583 | M15: : | N15: =Sweden!K18 -> : | O15: =Finland!K18 -> : | P15: :
A16: veaux (aliments d'allaitement non compris)/calves | C16: =Germany!K19 -> 161 | D16: =France!K19 -> 219 | E16: =Italy!K19 -> 138 | F16: ='The Netherlands'!K19 -> 47 | G16: =Belgium!K19 -> 107 | H16: =UK!K19 -> 188 | I16: =Ireland!K19 -> 155 | J16: =Denmark!K19 -> 300 | K16: =Spain!K19 -> : | L16: =Portugal!K19 -> 58 | M16: : | N16: =Sweden!K19 -> : | O16: =Finland!K19 -> 39 | P16: :
A17: (excluding milk replacers)/Kälber (exkl. Milchaustauscher)
A18: autres/others/Andere | C18: =Germany!K20 -> 230 | D18: =France!K20 -> 235 | E18: =Italy!K20 -> : | F18: ='The Netherlands'!K20 -> : | G18: =Belgium!K20 -> 114 | H18: =UK!K20 -> 103 | I18: =Ireland!K20 -> 51 | J18: =Denmark!K20 -> : | K18: =Spain!K20 -> 500 | L18: =Portugal!K20 -> 17 | M18: : | N18: =Sweden!K20 -> : | O18: =Finland!K20 -> 494 | P18: :
A21: Porcins/Pigs/Suini/Schweine | C21: =C22+C23+C24+C25 -> 6,667 | D21: =D22+D23+D24 -> 6,986 | E21: =Italy!K23 -> 2,491 | F21: ='The Netherlands'!K23 -> 6,951 | G21: =G22+G23 -> 3,592 | H21: =H22+H23+H24+H25 -> 2,804 | I21: 775 | J21: =J22+J23+J24 -> 3,669 | K21: =K22+K23+K24+K25 -> 7,000 | L21: 1,340 | M21: =Austria!K23 -> 219 | N21: =Sweden!K23 -> 690 | O21: =O22+O23+O24+O25 -> 311 | P21: =SUM(C21:O21) -> 43,495
A22: porcelets/piglets/Ferkel | C22: =Germany!K24 -> 1,254 | D22: =France!K24 -> 879 | E22: =Italy!K24 -> : | F22: ='The Netherlands'!K24 -> 810 | G22: =Belgium!K24 -> 796 | H22: =UK!K24 -> 130 | I22: =Ireland!K24 -> 133 | J22: =Denmark!K24 -> 657 | K22: =Spain!K24 -> 1,025 | L22: =Portugal!K24 -> 194 | M22: : | N22: =Sweden!K24 -> : | O22: =Finland!K24 -> 42 | P22: :
A23: porcs engrais/pigs for fattening/Mastschweine | C23: =Germany!K25 -> 3,207 | D23: =France!K25 -> 4,679 | E23: =Italy!K25 -> : | F23: ='The Netherlands'!K25 -> 4,670 | G23: =Belgium!K25 -> 2,796 | H23: =UK!K25 -> 1,836 | I23: =Ireland!K25 -> 433 | J23: =Denmark!K25 -> 2,263 | K23: =Spain!K25 -> 4,680 | L23: =Portugal!K25 -> 381 | M23: : | N23: =Sweden!K25 -> : | O23: =Finland!K25 -> 188 | P23: :
A24: reproducteurs/breeding pigs/Zuchtschweine | C24: =Germany!K26 -> 1,180 | D24: =France!K26 -> 1,428 | E24: =Italy!K26 -> : | F24: ='The Netherlands'!K26 -> 1,471 | G24: =Belgium!K26 -> : | H24: =UK!K26 -> 793 | I24: =Ireland!K26 -> 175 | J24: =Denmark!K26 -> 749 | K24: =Spain!K26 -> 1,225 | L24: =Portugal!K26 -> 264 | M24: : | N24: =Sweden!K26 -> : | O24: =Finland!K26 -> 32 | P24: :
A25: autres/others/Andere | C25: =Germany!K27 -> 1,026 | D25: =France!K27 -> : | E25: =Italy!K27 -> : | F25: ='The Netherlands'!K27 -> : | G25: =Belgium!K27 -> : | H25: =UK!K27 -> 45 | I25: =Ireland!K27 -> 34 | J25: =Denmark!K27 -> : | K25: =Spain!K27 -> 70 | L25: =Portugal!K27 -> 501 | M25: : | N25: =Sweden!K27 -> : | O25: =Finland!K27 -> 49 | P25: :
A28: Volaille/Poultry/Volatili/Geflügel | C28: =C29+C30 -> 4,389 | D28: =D29+D30+D31 -> 9,714 | E28: 4,396 | F28: ='The Netherlands'!K30 -> 3,727 | G28: =G29+G30+G31 -> 1,403 | H28: 6,318 | I28: 501 | J28: 677 | K28: 4,100 | L28: 1,400 | M28: =Austria!K30 -> 411 | N28: =Sweden!K30 -> 500 | O28: =O29+O30+O31 -> 238 | P28: =SUM(C28:O28) -> 37,774
A29: broilers | C29: =Germany!K31 -> 2,069 | D29: =France!K31 -> 3,509 | E29: =Italy!K31 -> 2,013 | F29: ='The Netherlands'!K31 -> 1,717 | G29: =Belgium!K31 -> 710 | H29: =UK!K31 -> 3,156 | I29: =Ireland!K31 -> 297 | J29: =Denmark!K31 -> 549 | K29: =Spain!K31 -> 2,190 | L29: =Portugal!K31 -> 798 | M29: : | N29: =Sweden!K31 -> : | O29: =Finland!K31 -> 158 | P29: :
A30: poulettes & pondeuses/chicks & layers/Jung- & Legehennen | C30: =Germany!K32 -> 2,320 | D30: =France!K32 -> 2,392 | E30: =Italy!K32 -> 1,124 | F30: ='The Netherlands'!K32 -> 2,010 | G30: =Belgium!K32 -> 480 | H30: =UK!K32 -> 1,261 | I30: =Ireland!K32 -> 89 | J30: =Denmark!K32 -> 48 | K30: =Spain!K32 -> 1,690 | L30: =Portugal!K32 -> 420 | M30: : | N30: =Sweden!K32 -> : | O30: =Finland!K32 -> 69 | P30: :
A31: autres/others/Andere | C31: =Germany!K33 -> : | D31: =France!K33 -> 3,813 | E31: =Italy!K33 -> 1,259 | F31: ='The Netherlands'!K33 -> : | G31: =Belgium!K33 -> 213 | H31: =UK!K33 -> 1,901 | I31: =Ireland!K33 -> 115 | J31: =Denmark!K33 -> 80 | K31: =Spain!K33 -> 220 | L31: =Portugal!K33 -> 182 | M31: : | N31: =Sweden!K33 -> : | O31: =Finland!K33 -> 11 | P31: :
A34: Al. d'allait./Milk replacers/Sostit. del latte/Milchaust. | C34: =Germany!K36 -> 183 | D34: =France!K36 -> 517 | E34: =Italy!K36 -> 204 | F34: ='The Netherlands'!K36 -> 732 | G34: =Belgium!K36 -> 53 | H34: =UK!K36 -> 10 | I34: =Ireland!K36 -> 9 | J34: =Denmark!K36 -> 5 | K34: =Spain!K36 -> 60 | L34: =Portugal!K36 -> 0 | M34: =Austria!K36 -> 4 | N34: =Sweden!K36 -> 7 | O34: =Finland!K36 -> : | P34: =SUM(C34:O34) -> 1,784
A37: Autres/others/altri/Andere | C37: =Germany!K39 -> 541 | D37: =France!K39 -> 1,643 | E37: =Italy!K39 -> 1,090 | F37: ='The Netherlands'!K39 -> 766 | G37: =Belgium!K39 -> 151 | H37: =UK!K39 -> 1,234 | I37: =Ireland!K39 -> 346 | J37: =Denmark!K39 -> 140 | K37: =Spain!K39 -> 1,000 | L37: =Portugal!K39 -> 218 | M37: =Austria!K39 -> 62 | N37: =Sweden!K39 -> 50 | O37: =Finland!K39 -> 145 | P37: =SUM(C37:O37) -> 7,386
A40: TOTAL | C40: =C37+C34+C28+C21+C13 -> 18,776 | D40: 22,910 | E40: 11,601 | F40: 15,773 | G40: 6,415 | H40: 14,398 | I40: 3,455 | J40: 5,840 | K40: 15,360 | L40: 3,978 | M40: 917 | N40: 2,417 | O40: =O37+O28+O21+O13 -> 1,227 | P40: =P37+P34+P28+P21+P13 -> 123,067
A43: * Sans le Luxembourg et la Grèce/ohne Luxemburg und Griechenland/Without Luxemburg and Greece/Senza Lussemburgo e Ella
A45: : non disponible/not available/nicht verfügbar

Sheet 99-98
A1: 2001-07-04
A3: PRODUCTION INDUSTRIELLE D'ALIMENTS COMPOSES | X3: INDUSTRIELLE MISCHFUTTERPRODUKTION
A4: PRODUZIONE INDUSTRIALE DI MANGIMI COMPOSTI | M4: 1998-1999 | X4: INDUSTRIAL COMPOUND PRODUCTION
M5: definitif/final | X5: (1 000 t )
A9: PAYS | C9: BOVINS/RINDER | G9: PORCS/SCHWEINE | K9: VOLAILLE/GEFLÜGEL | M9: A. ALLAITEMENT/MILCHAUST. | S9: AUTRES/ANDERE | V9: TOTAL/INSGESAMT
A10: LAND | C10: BOVINI/CATTLE | G10: SUINI/PIGS | K10: VOLATILI/POULTRY | M10: SOSTIT. DEL LATTE/MILKREPLACERS | S10: ALTRI ANIMALI/OTHERS | V10: TOTALE/TOTAL
A11: PAESE
A12: COUNTRY | B12: 1998 | C12: 1999 | D12: %TAV | F12: 1998 | G12: 1999 | H12: %TAV | J12: 1998 | K12: 1999 | L12: %TAV | N12: 1998 | O12: 1999 | P12: %TAV | R12: 1998 | S12: 1999 | T12: %TAV | V12: 1998 | W12: 1999 | X12: %TAV
A15: D | B15: =Germany!K$16 -> 6,996 | C15: =Germany!L$16 -> 6,985 | D15: =((C15/B15)-1)*100 -> -0.2 | F15: =Germany!K$23 -> 6,667 | G15: =Germany!L$23 -> 6,968 | H15: =((G15/F15)-1)*100 -> 4.5 | J15: =Germany!K$30 -> 4,389 | K15: =Germany!L$30 -> 4,361 | L15: =((K15/J15)-1)*100 -> -0.6 | N15: =Germany!K$36 -> 183 | O15: =Germany!L$36 -> 182 | P15: =((O15/N15)-1)*100 -> -0.5 | R15: =Germany!K$39 -> 541 | S15: =Germany!L$39 -> 545 | T15: =((S15/R15)-1)*100 -> 0.7 | V15: =R15+N15+J15+F15+B15 -> 18,776 | W15: 19,041 | X15: =((W15/V15)-1)*100 -> 1.4
A17: F | B17: =France!K$16 -> 4,050 | C17: =France!L$16 -> 4,209 | D17: =((C17/B17)-1)*100 -> 3.9 | F17: =France!K$23 -> 6,986 | G17: =France!L$23 -> 6,871 | H17: =((G17/F17)-1)*100 -> -1.6 | J17: =France!K$30 -> 9,714 | K17: =France!L$30 -> 9,592 | L17: =((K17/J17)-1)*100 -> -1.3 | N17: =France!K$36 -> 517 | O17: =France!L$36 -> 523 | P17: =((O17/N17)-1)*100 -> 1.2 | R17: =France!K$39 -> 1,643 | S17: =France!L$39 -> 1,602 | T17: =((S17/R17)-1)*100 -> -2.5 | V17: =R17+N17+J17+F17+B17 -> 22,910 | W17: 22,797 | X17: =((W17/V17)-1)*100 -> -0.5
A19: I | B19: =Italy!K$16 -> 3,420 | C19: =Italy!L$16 -> 3,665 | D19: =((C19/B19)-1)*100 -> 7.2 | F19: =Italy!K$23 -> 2,491 | G19: =Italy!L$23 -> 2,578 | H19: =((G19/F19)-1)*100 -> 3.5 | J19: =Italy!K$30 -> 4,396 | K19: =Italy!L$30 -> 4,458 | L19: =((K19/J19)-1)*100 -> 1.4 | N19: =Italy!K$36 -> 204 | O19: =Italy!L$36 -> 196 | P19: =((O19/N19)-1)*100 -> -3.9 | R19: =Italy!K$39 -> 1,090 | S19: =Italy!L$39 -> 1,161 | T19: =((S19/R19)-1)*100 -> 6.5 | V19: =R19+N19+J19+F19+B19 -> 11,601 | W19: 12,058 | X19: =((W19/V19)-1)*100 -> 3.9
A21: NL | B21: ='The Netherlands'!K$16 -> 3,597 | C21: ='The Netherlands'!L$16 -> 3,646 | D21: =((C21/B21)-1)*100 -> 1.4 | F21: ='The Netherlands'!K$23 -> 6,951 | G21: ='The Netherlands'!L$23 -> 6,729 | H21: =((G21/F21)-1)*100 -> -3.2 | J21: ='The Netherlands'!K$30 -> 3,727 | K21: ='The Netherlands'!L$30 -> 3,579 | L21: =((K21/J21)-1)*100 -> -4.0 | N21: ='The Netherlands'!K$36 -> 732 | O21: ='The Netherlands'!L$36 -> 761 | P21: =((O21/N21)-1)*100 -> 4.0 | R21: ='The Netherlands'!K$39 -> 766 | S21: ='The Netherlands'!L$39 -> 754 | T21: =((S21/R21)-1)*100 -> -1.6 | V21: =R21+N21+J21+F21+B21 -> 15,773 | W21: 15,469 | X21: =((W21/V21)-1)*100 -> -1.9
A23: B | B23: =Belgium!K$16 -> 1,216 | C23: =Belgium!L$16 -> 1,168 | D23: =((C23/B23)-1)*100 -> -3.9 | F23: =Belgium!K$23 -> 3,592 | G23: =Belgium!L$23 -> 3,570 | H23: =((G23/F23)-1)*100 -> -0.6 | J23: =Belgium!K$30 -> 1,403 | K23: =Belgium!L$30 -> 1,571 | L23: =((K23/J23)-1)*100 -> 12.0 | N23: =Belgium!K$36 -> 53 | O23: =Belgium!L$36 -> 53 | P23: =((O23/N23)-1)*100 -> 0.0 | R23: =Belgium!K$39 -> 151 | S23: =Belgium!L$39 -> 165 | T23: =((S23/R23)-1)*100 -> 9.3 | V23: =R23+N23+J23+F23+B23 -> 6,415 | W23: 6,527 | X23: =((W23/V23)-1)*100 -> 1.7
A25: UK | B25: =UK!K$16 -> 4,032 | C25: =UK!L$16 -> 4,434 | D25: =((C25/B25)-1)*100 -> 10.0 | F25: =UK!K$23 -> 2,804 | G25: =UK!L$23 -> 2,499 | H25: =((G25/F25)-1)*100 -> -10.9 | J25: =UK!K$30 -> 6,318 | K25: =UK!L$30 -> 6,080 | L25: =((K25/J25)-1)*100 -> -3.8 | N25: =UK!K$36 -> 10 | O25: =UK!L$36 -> 13 | P25: =((O25/N25)-1)*100 -> 30.0 | R25: =UK!K39 -> 1,234 | S25: =UK!L39 -> 1,369 | T25: =((S25/R25)-1)*100 -> 10.9 | V25: =R25+J25+F25+B25+N25 -> 14,398 | W25: 14,395 | X25: =((W25/V25)-1)*100 -> -0.0
A27: IRL | B27: =Ireland!K$16 -> 1,824 | C27: =Ireland!L$16 -> 2,155 | D27: =((C27/B27)-1)*100 -> 18.1 | F27: =Ireland!K$23 -> 775 | G27: =Ireland!L$23 -> 706 | H27: =((G27/F27)-1)*100 -> -8.9 | J27: =Ireland!K$30 -> 501 | K27: =Ireland!L$30 -> 491 | L27: =((K27/J27)-1)*100 -> -2.0 | N27: =Ireland!K$36 -> 9 | O27: =Ireland!L$36 -> 7 | P27: =((O27/N27)-1)*100 -> -22.2 | R27: =Ireland!K$39 -> 346 | S27: =Ireland!L$39 -> 379 | T27: =((S27/R27)-1)*100 -> 9.5 | V27: =R27+N27+J27+F27+B27 -> 3,455 | W27: 3,738 | X27: =((W27/V27)-1)*100 -> 8.2
A29: DK | B29: =Denmark!K$16 -> 1,349 | C29: =Denmark!L$16 -> 1,335 | D29: =((C29/B29)-1)*100 -> -1.0 | F29: =Denmark!K$23 -> 3,669 | G29: =Denmark!L$23 -> 3,504 | H29: =((G29/F29)-1)*100 -> -4.5 | J29: =Denmark!K$30 -> 677 | K29: =Denmark!L$30 -> 670 | L29: =((K29/J29)-1)*100 -> -1.0 | N29: =Denmark!K$36 -> 5 | O29: =Denmark!L$36 -> 6 | P29: =((O29/N29)-1)*100 -> 20.0 | R29: =Denmark!K$39 -> 140 | S29: =Denmark!L$39 -> 115 | T29: =((S29/R29)-1)*100 -> -17.9 | V29: =R29+N29+J29+F29+B29 -> 5,840 | W29: 5,630 | X29: =((W29/V29)-1)*100 -> -3.6
A31: ESP | B31: =Spain!K$16 -> 3,200 | C31: =Spain!L$16 -> 3,500 | D31: =((C31/B31)-1)*100 -> 9.4 | F31: =Spain!K$23 -> 7,000 | G31: =Spain!L$23 -> 7,700 | H31: =((G31/F31)-1)*100 -> 10.0 | J31: =Spain!K$30 -> 4,100 | K31: =Spain!L$30 -> 4,100 | L31: =((K31/J31)-1)*100 -> 0.0 | N31: =Spain!K$36 -> 60 | O31: =Spain!L$36 -> 60 | P31: =((O31/N31)-1)*100 -> 0.0 | R31: =Spain!K$39 -> 1,000 | S31: =Spain!L$39 -> 900 | T31: =((S31/R31)-1)*100 -> -10.0 | V31: =R31+N31+J31+F31+B31 -> 15,360 | W31: 16,260 | X31: =((W31/V31)-1)*100 -> 5.9
A33: P | B33: =Portugal!K$16 -> 1,020 | C33: =Portugal!L$16 -> 1,130 | D33: =((C33/B33)-1)*100 -> 10.8 | F33: =Portugal!K$23 -> 1,340 | G33: =Portugal!L$23 -> 1,230 | H33: =((G33/F33)-1)*100 -> -8.2 | J33: =Portugal!K$30 -> 1,400 | K33: =Portugal!L$30 -> 1,350 | L33: =((K33/J33)-1)*100 -> -3.6 | N33: =Portugal!K$36 -> 0 | O33: =Portugal!L$36 -> 0 | P33: 0.0 | R33: =Portugal!K$39 -> 218 | S33: =Portugal!L$39 -> 218 | T33: =((S33/R33)-1)*100 -> 0.0 | V33: =R33+N33+J33+F33+B33 -> 3,978 | W33: 3,928 | X33: =((W33/V33)-1)*100 -> -1.3
A35: A | B35: =Austria!K$16 -> 221 | C35: =Austria!L$16 -> 254 | D35: =((C35/B35)-1)*100 -> 14.9 | F35: =Austria!K$23 -> 219 | G35: =Austria!L$23 -> 206 | H35: =((G35/F35)-1)*100 -> -5.9 | J35: =Austria!K$30 -> 411 | K35: =Austria!L$30 -> 387 | L35: =((K35/J35)-1)*100 -> -5.8 | N35: =Austria!K$36 -> 4 | O35: =Austria!L$36 -> 5 | P35: =((O35/N35)-1)*100 -> 25.0 | R35: =Austria!K$39 -> 62 | S35: =Austria!L$39 -> 75 | T35: =((S35/R35)-1)*100 -> 21.0 | V35: =R35+N35+J35+F35+B35 -> 917 | W35: 927 | X35: =((W35/V35)-1)*100 -> 1.1
A37: S | B37: =Sweden!K$16 -> 1,170 | C37: =Sweden!L$16 -> 1,235 | D37: =((C37/B37)-1)*100 -> 5.6 | F37: =Sweden!K$23 -> 690 | G37: =Sweden!L$23 -> 578 | H37: =((G37/F37)-1)*100 -> -16.2 | J37: =Sweden!K$30 -> 500 | K37: =Sweden!L$30 -> 500 | L37: =((K37/J37)-1)*100 -> 0.0 | N37: =Sweden!K$36 -> 7 | O37: =Sweden!L$36 -> 7 | P37: =((O37/N37)-1)*100 -> 0.0 | R37: =Sweden!K$39 -> 50 | S37: =Sweden!L$39 -> 50 | T37: =((S37/R37)-1)*100 -> 0.0 | V37: =R37+N37+J37+F37+B37 -> 2,417 | W37: 2,370 | X37: =((W37/V37)-1)*100 -> -1.9
A39: FIN | B39: =Finland!K$16 -> 533 | C39: =Finland!L$16 -> 627 | D39: =((C39/B39)-1)*100 -> 17.6 | F39: =Finland!K$23 -> 311 | G39: =Finland!L$23 -> 303 | H39: =((G39/F39)-1)*100 -> -2.6 | J39: =Finland!K$30 -> 238 | K39: =Finland!L$30 -> 251 | L39: =((K39/J39)-1)*100 -> 5.5 | N39: =Finland!K$36 -> : | O39: =Finland!L$36 -> 0 | R39: =Finland!K$39 -> 145 | S39: =Finland!L$39 -> 103 | T39: =((S39/R39)-1)*100 -> -29.0 | V39: =R39+J39+F39+B39 -> 1,227 | W39: 1,284 | X39: =((W39/V39)-1)*100 -> 4.6
A42: EUR 15 * | B42: =B39+B37+B35+B33+B31+B29+B27+B25+B23+B21+B19+B17+B15 -> 32,628 | C42: 34,343 | D42: =((C42/B42)-1)*100 -> 5.3 | F42: =F39+F37+F35+F33+F31+F29+F27+F25+F23+F21+F19+F17+F15 -> 43,495 | G42: 43,442 | H42: =((G42/F42)-1)*100 -> -0.1 | J42: =J39+J37+J35+J33+J31+J29+J27+J25+J23+J21+J19+J17+J15 -> 37,774 | K42: 37,390 | L42: =((K42/J42)-1)*100 -> -1.0 | N42: =N37+N35+N33+N31+N29+N27+N23+N21+N19+N17+N15+N25 -> 1,784 | O42: 1,813 | P42: =((O42/N42)-1)*100 -> 1.6 | R42: =R39+R37+R35+R33+R31+R29+R27+R25+R23+R21+R19+R17+R15 -> 7,386 | S42: 7,436 | T42: =((S42/R42)-1)*100 -> 0.7 | V42: =V39+V37+V35+V33+V31+V29+V27+V25+V23+V21+V19+V17+V15 -> 123,067 | W42: 124,424 | X42: =((W42/V42)-1)*100 -> 1.1
A45: * Sans le Luxembourg et la Grèce/Ohne Luxemburg und Griechenland/Without Luxemburg and Greece/Senza Lussemburgo e Ellas
A47: : non disponible/not available

Sheet 1999
A1: 2001-07-04
A3: PRODUCTION INDUSTRIELLE D'ALIMENTS COMPOSES | P3: INDUSTRIELLE MISCHFUTTERPRODUKTION
A4: PRODUZIONE INDUSTRIALE DI MANGIMI COMPOSTI | P4: INDUSTRIAL COMPOUND PRODUCTION
A5: 1999
A6: definitif/final
P7: (1 000 t)
A9: Catégories d'aliments composés/Mischfutterarten | C9: D | D9: F | E9: I | F9: NL | G9: B | H9: UK | I9: IRL | J9: DK | K9: ESP | L9: P | M9: A | N9: S | O9: FIN | P9: EUR-15
A10: Tipi di mangimi compositi/Types of feed | P10: *
A13: Bovins/Cattle/Bovini/Rinder | C13: =C14+C15+C16+C18 -> 6,985 | D13: 4,209 | E13: =E14+E15+E16 -> 3,665 | F13: ='The Netherlands'!L16 -> 3,646 | G13: =G14+G15+G16+G18 -> 1,168 | H13: 4,434 | I13: 2,155 | J13: =J14+J15+J16 -> 1,335 | K13: =K14+K15+K18 -> 3,500 | L13: =L14+L15+L16+L18 -> 1,130 | M13: =Austria!L16 -> 254 | N13: =N15+N18 -> 1,235 | O13: =O15+O16 -> 627 | P13: =SUM(C13:O13) -> 34,343
A14: engrais/fattening/Mast | C14: =Germany!L17 -> 662 | D14: =France!L17 -> 716 | E14: =Italy!L17 -> 914 | F14: ='The Netherlands'!L17 -> 283 | G14: =Belgium!L17 -> 350 | H14: =UK!L17 -> 1,138 | I14: =Ireland!L17 -> 1,056 | J14: =Denmark!L17 -> 517 | K14: =Spain!L17 -> 1,600 | L14: =Portugal!L17 -> 390 | M14: : | N14: =Sweden!L17 -> : | O14: =Finland!L17 -> : | P14: :
A15: VL/dairy cow/Milchkühe | C15: =Germany!L18 -> 5,582 | D15: =France!L18 -> 2,994 | E15: =Italy!L18 -> 2,608 | F15: ='The Netherlands'!L18 -> 3,206 | G15: =Belgium!L18 -> 629 | H15: =UK!L18 -> 3,038 | I15: =Ireland!L18 -> 882 | J15: =Denmark!L18 -> 517 | K15: =Spain!L18 -> 1,400 | L15: =Portugal!L18 -> 630 | M15: : | N15: =Sweden!L18 -> 1,065 | O15: =Finland!L18 -> 584 | P15: :
A16: veaux (aliments d'allaitement non compris)/calves | C16: =Germany!L19 -> 163 | D16: =France!L19 -> 250 | E16: =Italy!L19 -> 143 | F16: ='The Netherlands'!L19 -> 157 | G16: =Belgium!L19 -> 96 | H16: =UK!L19 -> 173 | I16: =Ireland!L19 -> 160 | J16: =Denmark!L19 -> 301 | K16: =Spain!L19 -> : | L16: =Portugal!L19 -> 79 | M16: : | N16: =Sweden!L19 -> : | O16: =Finland!L19 -> 43 | P16: :
A17: (excluding milk replacers)/Kälber (exkl. Milchaustauscher)
A18: autres/others/Andere | C18: =Germany!L20 -> 578 | D18: =France!L20 -> 249 | E18: =Italy!L20 -> : | F18: ='The Netherlands'!L20 -> : | G18: =Belgium!L20 -> 93 | H18: =UK!L20 -> 85 | I18: =Ireland!L20 -> 57 | J18: =Denmark!L20 -> : | K18: =Spain!L20 -> 500 | L18: =Portugal!L20 -> 31 | M18: : | N18: =Sweden!L20 -> 170 | O18: =Finland!L20 -> : | P18: :
A21: Porcins/Pigs/Suini/Schweine | C21: =C22+C23+C24+C25 -> 6,968 | D21: =D22+D23+D24 -> 6,871 | E21: =Italy!L23 -> 2,578 | F21: ='The Netherlands'!L23 -> 6,729 | G21: =G22+G23 -> 3,570 | H21: =H22+H23+H24+H25 -> 2,499 | I21: 706 | J21: =J22+J23+J24 -> 3,504 | K21: =K22+K23+K24+K25 -> 7,700 | L21: 1,230 | M21: =Austria!L23 -> 206 | N21: =N22+N23+N24+N25 -> 578 | O21: 303 | P21: =SUM(C21:O21) -> 43,442
A22: porcelets/piglets/Ferkel | C22: =Germany!L24 -> 1,222 | D22: =France!L24 -> 866 | E22: =Italy!L24 -> : | F22: ='The Netherlands'!L24 -> 841 | G22: =Belgium!L24 -> 769 | H22: =UK!L24 -> 117 | I22: =Ireland!L24 -> 122 | J22: =Denmark!L24 -> 607 | K22: =Spain!L24 -> 1,150 | L22: =Portugal!L24 -> 180 | M22: : | N22: =Sweden!L24 -> 90 | O22: =Finland!L24 -> 41 | P22: :
A23: porcs engrais/pigs for fattening/Mastschweine | C23: =Germany!L25 -> 3,745 | D23: =France!L25 -> 4,638 | E23: =Italy!L25 -> : | F23: ='The Netherlands'!L25 -> 4,489 | G23: =Belgium!L25 -> 2,801 | H23: =UK!L25 -> 1,659 | I23: =Ireland!L25 -> 412 | J23: =Denmark!L25 -> 1,948 | K23: =Spain!L25 -> 5,120 | L23: =Portugal!L25 -> 336 | M23: : | N23: =Sweden!L25 -> 335 | O23: =Finland!L25 -> 182 | P23: :
A24: reproducteurs/breeding pigs/Zuchtschweine | C24: =Germany!L26 -> 1,149 | D24: =France!L26 -> 1,367 | E24: =Italy!L26 -> : | F24: ='The Netherlands'!L26 -> 1,399 | G24: =Belgium!L26 -> : | H24: =UK!L26 -> 694 | I24: =Ireland!L26 -> 143 | J24: =Denmark!L26 -> 949 | K24: =Spain!L26 -> 1,360 | L24: =Portugal!L26 -> 245 | M24: : | N24: =Sweden!L26 -> 140 | O24: =Finland!L26 -> 30 | P24: :
A25: autres/others/Andere | C25: =Germany!L27 -> 852 | D25: =France!L27 -> : | E25: =Italy!L27 -> : | F25: ='The Netherlands'!L27 -> : | G25: =Belgium!L27 -> : | H25: =UK!L27 -> 29 | I25: =Ireland!L27 -> 29 | J25: =Denmark!L27 -> : | K25: =Spain!L27 -> 70 | L25: =Portugal!L27 -> 469 | M25: : | N25: =Sweden!L27 -> 13 | O25: =Finland!L27 -> 50 | P25: :
A28: Volaille/Poultry/Volatili/Geflügel | C28: =C29+C30+C31 -> 4,361 | D28: 9,592 | E28: 4,458 | F28: ='The Netherlands'!L30 -> 3,579 | G28: =G29+G30+G31 -> 1,571 | H28: 6,080 | I28: 491 | J28: 670 | K28: 4,100 | L28: 1,350 | M28: =Austria!L30 -> 387 | N28: =N29+N30+N31 -> 500 | O28: 251 | P28: =SUM(C28:O28) -> 37,390
A29: broilers | C29: =Germany!L31 -> 912 | D29: =France!L31 -> 3,380 | E29: =Italy!L31 -> 2,029 | F29: ='The Netherlands'!L31 -> 1,701 | G29: =Belgium!L31 -> 801 | H29: =UK!L31 -> 3,108 | I29: =Ireland!L31 -> 271 | J29: =Denmark!L31 -> 564 | K29: =Spain!L31 -> 2,190 | L29: =Portugal!L31 -> 791 | M29: : | N29: =Sweden!L31 -> 190 | O29: =Finland!L31 -> 167 | P29: :
A30: poulettes & pondeuses/chicks & layers/Jung- & Legehennen | C30: =Germany!L32 -> 2,264 | D30: =France!L32 -> 2,410 | E30: =Italy!L32 -> 1,246 | F30: ='The Netherlands'!L32 -> 1,878 | G30: =Belgium!L32 -> 491 | H30: =UK!L32 -> 1,180 | I30: =Ireland!L32 -> 98 | J30: =Denmark!L32 -> 34 | K30: =Spain!L32 -> 1,690 | L30: =Portugal!L32 -> 394 | M30: : | N30: =Sweden!L32 -> 205 | O30: =Finland!L32 -> 67 | P30: :
A31: autres/others/Andere | C31: =Germany!L33 -> 1,185 | D31: =France!L33 -> 3,802 | E31: =Italy!L33 -> 1,183 | F31: ='The Netherlands'!L33 -> : | G31: =Belgium!L33 -> 279 | H31: =UK!L33 -> 1,792 | I31: =Ireland!L33 -> 122 | J31: =Denmark!L33 -> 72 | K31: =Spain!L33 -> 220 | L31: =Portugal!L33 -> 165 | M31: : | N31: =Sweden!L33 -> 105 | O31: =Finland!L33 -> 17 | P31: :
A34: Al. d'allait./Milk replacers/Sostit. del latte/Milchaust. | C34: =Germany!L36 -> 182 | D34: =France!L36 -> 523 | E34: =Italy!L36 -> 196 | F34: ='The Netherlands'!L36 -> 761 | G34: =Belgium!L36 -> 53 | H34: =UK!L36 -> 13 | I34: =Ireland!L36 -> 7 | J34: =Denmark!L36 -> 6 | K34: =Spain!L36 -> 60 | L34: =Portugal!L36 -> 0 | M34: =Austria!L36 -> 5 | N34: =Sweden!L36 -> 7 | O34: =Finland!L36 -> 0 | P34: =SUM(C34:O34) -> 1,813
A37: Autres/others/altri/Andere | C37: =Germany!L39 -> 545 | D37: =France!L39 -> 1,602 | E37: =Italy!L39 -> 1,161 | F37: ='The Netherlands'!L39 -> 754 | G37: =Belgium!L39 -> 165 | H37: =UK!L39 -> 1,369 | I37: =Ireland!L39 -> 379 | J37: =Denmark!L39 -> 115 | K37: =Spain!L39 -> 900 | L37: =Portugal!L39 -> 218 | M37: =Austria!L39 -> 75 | N37: =Sweden!L39 -> 50 | O37: =Finland!L39 -> 103 | P37: =SUM(C37:O37) -> 7,436
A40: TOTAL | C40: =C37+C34+C28+C21+C13 -> 19,041 | D40: 22,797 | E40: 12,058 | F40: 15,469 | G40: 6,527 | H40: 14,395 | I40: 3,738 | J40: 5,630 | K40: 16,260 | L40: 3,928 | M40: 927 | N40: 2,370 | O40: 1,284 | P40: 124,424
A43: * Sans le Luxembourg et la Grèce/ohne Luxemburg und Griechenland/Without Luxemburg and Greece/Senza Lussemburgo e Ella
A45: : non disponible/not available/nicht verfügbar

Sheet 2000-99
A1: 2001-07-04
A3: PRODUCTION INDUSTRIELLE D'ALIMENTS COMPOSES | X3: INDUSTRIELLE MISCHFUTTERPRODUKTION
A4: PRODUZIONE INDUSTRIALE DI MANGIMI COMPOSTI | M4: 1999-2000 | X4: INDUSTRIAL COMPOUND PRODUCTION
M5: definitif/final | X5: (1 000 t )
A9: PAYS | C9: BOVINS/RINDER | G9: PORCS/SCHWEINE | K9: VOLAILLE/GEFLÜGEL | M9: A. ALLAITEMENT/MILCHAUST. | S9: AUTRES/ANDERE | V9: TOTAL/INSGESAMT
A10: LAND | C10: BOVINI/CATTLE | G10: SUINI/PIGS | K10: VOLATILI/POULTRY | M10: SOSTIT. DEL LATTE/MILKREPLACERS | S10: ALTRI ANIMALI/OTHERS | V10: TOTALE/TOTAL
A11: PAESE
A12: COUNTRY | B12: 1999 | C12: 2000 | D12: %TAV | F12: 1999 | G12: 2000 | H12: %TAV | J12: 1999 | K12: 2000 | L12: %TAV | N12: 1999 | O12: 2000 | P12: %TAV | R12: 1999 | S12: 2000 | T12: %TAV | V12: 1999 | W12: 2000 | X12: %TAV
A15: D | B15: =Germany!L$16 -> 6,985 | C15: =Germany!M$16 -> 7,029 | D15: =((C15/B15)-1)*100 -> 0.6 | F15: =Germany!L$23 -> 6,968 | G15: =Germany!M$23 -> 7,075 | H15: =((G15/F15)-1)*100 -> 1.5 | J15: =Germany!L$30 -> 4,361 | K15: =Germany!M$30 -> 4,791 | L15: =((K15/J15)-1)*100 -> 9.9 | N15: =Germany!L$36 -> 182 | O15: =Germany!M$36 -> 190 | P15: =((O15/N15)-1)*100 -> 4.4 | R15: =Germany!L$39 -> 545 | S15: =Germany!M$39 -> 551 | T15: =((S15/R15)-1)*100 -> 1.1 | V15: =R15+N15+J15+F15+B15 -> 19,041 | W15: 19,636 | X15: =((W15/V15)-1)*100 -> 3.1
A17: F | B17: =France!L$16 -> 4,209 | C17: =France!M$16 -> 4,379 | D17: =((C17/B17)-1)*100 -> 4.0 | F17: =France!L$23 -> 6,871 | G17: =France!M$23 -> 6,872 | H17: =((G17/F17)-1)*100 -> 0.0 | J17: =France!L$30 -> 9,592 | K17: =France!M$30 -> 9,759 | L17: =((K17/J17)-1)*100 -> 1.7 | N17: =France!L$36 -> 523 | O17: =France!M$36 -> 519 | P17: =((O17/N17)-1)*100 -> -0.8 | R17: =France!L$39 -> 1,602 | S17: =France!M$39 -> 1,580 | T17: =((S17/R17)-1)*100 -> -1.4 | V17: =R17+N17+J17+F17+B17 -> 22,797 | W17: 23,109 | X17: =((W17/V17)-1)*100 -> 1.4
A19: I | B19: =Italy!L$16 -> 3,665 | C19: =Italy!M$16 -> 3,680 | D19: =((C19/B19)-1)*100 -> 0.4 | F19: =Italy!L$23 -> 2,578 | G19: =Italy!M$23 -> 2,470 | H19: =((G19/F19)-1)*100 -> -4.2 | J19: =Italy!L$30 -> 4,458 | K19: =Italy!M$30 -> 3,966 | L19: =((K19/J19)-1)*100 -> -11.0 | N19: =Italy!L$36 -> 196 | O19: =Italy!M$36 -> 200 | P19: =((O19/N19)-1)*100 -> 2.0 | R19: =Italy!L$39 -> 1,161 | S19: =Italy!M$39 -> 1,206 | T19: =((S19/R19)-1)*100 -> 3.9 | V19: =R19+N19+J19+F19+B19 -> 12,058 | W19: 11,522 | X19: =((W19/V19)-1)*100 -> -4.4
A21: NL | B21: ='The Netherlands'!L$16 -> 3,646 | C21: ='The Netherlands'!M$16 -> 3,541 | D21: =((C21/B21)-1)*100 -> -2.9 | F21: ='The Netherlands'!L$23 -> 6,729 | G21: ='The Netherlands'!M$23 -> 6,001 | H21: =((G21/F21)-1)*100 -> -10.8 | J21: ='The Netherlands'!L$30 -> 3,579 | K21: ='The Netherlands'!M$30 -> 3,598 | L21: =((K21/J21)-1)*100 -> 0.5 | N21: ='The Netherlands'!L$36 -> 761 | O21: ='The Netherlands'!M$36 -> 774 | P21: =((O21/N21)-1)*100 -> 1.7 | R21: ='The Netherlands'!L$39 -> 754 | S21: ='The Netherlands'!M$39 -> 741 | T21: =((S21/R21)-1)*100 -> -1.7 | V21: =R21+N21+J21+F21+B21 -> 15,469 | W21: 14,655 | X21: =((W21/V21)-1)*100 -> -5.3
A23: B | B23: =Belgium!L$16 -> 1,168 | C23: =Belgium!M$16 -> 1,165 | D23: =((C23/B23)-1)*100 -> -0.3 | F23: =Belgium!L$23 -> 3,570 | G23: =Belgium!M$23 -> 3,616 | H23: =((G23/F23)-1)*100 -> 1.3 | J23: =Belgium!L$30 -> 1,571 | K23: =Belgium!M$30 -> 1,310 | L23: =((K23/J23)-1)*100 -> -16.6 | N23: =Belgium!L$36 -> 53 | O23: =Belgium!M$36 -> 53 | P23: =((O23/N23)-1)*100 -> 0.0 | R23: =Belgium!L$39 -> 165 | S23: =Belgium!M$39 -> 159 | T23: =((S23/R23)-1)*100 -> -3.6 | V23: =R23+N23+J23+F23+B23 -> 6,527 | W23: 6,303 | X23: =((W23/V23)-1)*100 -> -3.4
A25: UK | B25: =UK!L$16 -> 4,434 | C25: =UK!M$16 -> 4,214 | D25: =((C25/B25)-1)*100 -> -5.0 | F25: =UK!L$23 -> 2,499 | G25: =UK!M$23 -> 2,142 | H25: =((G25/F25)-1)*100 -> -14.3 | J25: =UK!L$30 -> 6,080 | K25: =UK!M$30 -> 6,037 | L25: =((K25/J25)-1)*100 -> -0.7 | N25: =UK!L$36 -> 13 | O25: =UK!M$36 -> 15 | P25: =((O25/N25)-1)*100 -> 15.4 | R25: =UK!L39 -> 1,369 | S25: =UK!M39 -> 1,239 | T25: =((S25/R25)-1)*100 -> -9.5 | V25: =R25+J25+F25+B25+N25 -> 14,395 | W25: 13,647 | X25: =((W25/V25)-1)*100 -> -5.2
A27: IRL | B27: =Ireland!L$16 -> 2,155 | C27: =Ireland!M$16 -> 1,926 | D27: =((C27/B27)-1)*100 -> -10.6 | F27: =Ireland!L$23 -> 706 | G27: =Ireland!M$23 -> 710 | H27: =((G27/F27)-1)*100 -> 0.6 | J27: =Ireland!L$30 -> 491 | K27: =Ireland!M$30 -> 493 | L27: =((K27/J27)-1)*100 -> 0.4 | N27: =Ireland!L$36 -> 7 | O27: =Ireland!M$36 -> 7 | P27: =((O27/N27)-1)*100 -> 0.0 | R27: =Ireland!L$39 -> 379 | S27: =Ireland!M$39 -> 367 | T27: =((S27/R27)-1)*100 -> -3.2 | V27: =R27+N27+J27+F27+B27 -> 3,738 | W27: 3,503 | X27: =((W27/V27)-1)*100 -> -6.3
A29: DK | B29: =Denmark!L$16 -> 1,335 | C29: =Denmark!M$16 -> 1,506 | D29: =((C29/B29)-1)*100 -> 12.8 | F29: =Denmark!L$23 -> 3,504 | G29: =Denmark!M$23 -> 3,804 | H29: =((G29/F29)-1)*100 -> 8.6 | J29: =Denmark!L$30 -> 670 | K29: =Denmark!M$30 -> 696 | L29: =((K29/J29)-1)*100 -> 3.9 | N29: =Denmark!L$36 -> 6 | O29: =Denmark!M$36 -> 5 | P29: =((O29/N29)-1)*100 -> -16.7 | R29: =Denmark!L$39 -> 115 | S29: =Denmark!M$39 -> 117 | T29: =((S29/R29)-1)*100 -> 1.7 | V29: =R29+N29+J29+F29+B29 -> 5,630 | W29: 6,128 | X29: =((W29/V29)-1)*100 -> 8.8
A31: ESP | B31: =Spain!L$16 -> 3,500 | C31: =Spain!M$16 -> 3,500 | D31: =((C31/B31)-1)*100 -> 0.0 | F31: =Spain!L$23 -> 7,700 | G31: =Spain!M$23 -> 8,270 | H31: =((G31/F31)-1)*100 -> 7.4 | J31: =Spain!L$30 -> 4,100 | K31: =Spain!M$30 -> 4,050 | L31: =((K31/J31)-1)*100 -> -1.2 | N31: =Spain!L$36 -> 60 | O31: =Spain!M$36 -> 65 | P31: =((O31/N31)-1)*100 -> 8.3 | R31: =Spain!L$39 -> 900 | S31: =Spain!M$39 -> 1,000 | T31: =((S31/R31)-1)*100 -> 11.1 | V31: =R31+N31+J31+F31+B31 -> 16,260 | W31: 16,885 | X31: =((W31/V31)-1)*100 -> 3.8
A33: P | B33: =Portugal!L$16 -> 1,130 | C33: =Portugal!M$16 -> 1,130 | D33: =((C33/B33)-1)*100 -> 0.0 | F33: =Portugal!L$23 -> 1,230 | G33: =Portugal!M$23 -> 1,150 | H33: =((G33/F33)-1)*100 -> -6.5 | J33: =Portugal!L$30 -> 1,350 | K33: =Portugal!M$30 -> 1,340 | L33: =((K33/J33)-1)*100 -> -0.7 | N33: =Portugal!L$36 -> 0 | O33: =Portugal!M$36 -> 0 | P33: 0.0 | R33: =Portugal!L$39 -> 218 | S33: =Portugal!M$39 -> 212 | T33: =((S33/R33)-1)*100 -> -2.8 | V33: =R33+N33+J33+F33+B33 -> 3,928 | W33: 3,832 | X33: =((W33/V33)-1)*100 -> -2.4
A35: A | B35: =Austria!L$16 -> 254 | C35: =Austria!M$16 -> 260 | D35: =((C35/B35)-1)*100 -> 2.4 | F35: =Austria!L$23 -> 206 | G35: =Austria!M$23 -> 204 | H35: =((G35/F35)-1)*100 -> -1.0 | J35: =Austria!L$30 -> 387 | K35: =Austria!M$30 -> 370 | L35: =((K35/J35)-1)*100 -> -4.4 | N35: =Austria!L$36 -> 5 | O35: =Austria!M$36 -> 4 | P35: =((O35/N35)-1)*100 -> -20.0 | R35: =Austria!L$39 -> 75 | S35: =Austria!M$39 -> 73 | T35: =((S35/R35)-1)*100 -> -2.7 | V35: =R35+N35+J35+F35+B35 -> 927 | W35: 911 | X35: =((W35/V35)-1)*100 -> -1.7
A37: S | B37: =Sweden!L$16 -> 1,235 | C37: =Sweden!M$16 -> 1,223 | D37: =((C37/B37)-1)*100 -> -1.0 | F37: =Sweden!L$23 -> 578 | G37: =Sweden!M$23 -> 492 | H37: =((G37/F37)-1)*100 -> -14.9 | J37: =Sweden!L$30 -> 500 | K37: =Sweden!M$30 -> 500 | L37: =((K37/J37)-1)*100 -> 0.0 | N37: =Sweden!L$36 -> 7 | O37: =Sweden!M$36 -> 6 | P37: =((O37/N37)-1)*100 -> -14.3 | R37: =Sweden!L$39 -> 50 | S37: =Sweden!M$39 -> 50 | T37: =((S37/R37)-1)*100 -> 0.0 | V37: =R37+N37+J37+F37+B37 -> 2,370 | W37: 2,271 | X37: =((W37/V37)-1)*100 -> -4.2
A39: FIN | B39: =Finland!L$16 -> 627 | C39: =Finland!M$16 -> 651 | D39: =((C39/B39)-1)*100 -> 3.8 | F39: =Finland!L$23 -> 303 | G39: =Finland!M$23 -> 293 | H39: =((G39/F39)-1)*100 -> -3.3 | J39: =Finland!L$30 -> 251 | K39: =Finland!M$30 -> 248 | L39: =((K39/J39)-1)*100 -> -1.2 | N39: =Finland!L$36 -> 0 | O39: =Finland!M$36 -> 0 | R39: =Finland!L$39 -> 103 | S39: =Finland!M$39 -> 103 | T39: =((S39/R39)-1)*100 -> 0.0 | V39: =R39+J39+F39+B39 -> 1,284 | W39: 1,295 | X39: =((W39/V39)-1)*100 -> 0.9
A42: EUR 15 * | B42: =B39+B37+B35+B33+B31+B29+B27+B25+B23+B21+B19+B17+B15 -> 34,343 | C42: 34,204 | D42: =((C42/B42)-1)*100 -> -0.4 | F42: =F39+F37+F35+F33+F31+F29+F27+F25+F23+F21+F19+F17+F15 -> 43,442 | G42: 43,099 | H42: =((G42/F42)-1)*100 -> -0.8 | J42: =J39+J37+J35+J33+J31+J29+J27+J25+J23+J21+J19+J17+J15 -> 37,390 | K42: 37,158 | L42: =((K42/J42)-1)*100 -> -0.6 | N42: =N37+N35+N33+N31+N29+N27+N23+N21+N19+N17+N15+N25 -> 1,813 | O42: 1,838 | P42: =((O42/N42)-1)*100 -> 1.4 | R42: =R39+R37+R35+R33+R31+R29+R27+R25+R23+R21+R19+R17+R15 -> 7,436 | S42: 7,398 | T42: =((S42/R42)-1)*100 -> -0.5 | V42: =V39+V37+V35+V33+V31+V29+V27+V25+V23+V21+V19+V17+V15 -> 124,424 | W42: 123,697 | X42: =((W42/V42)-1)*100 -> -0.6
A45: * Sans le Luxembourg et la Grèce/Ohne Luxemburg und Griechenland/Without Luxemburg and Greece/Senza Lussemburgo e Ellas
A47: : non disponible/not available

Sheet 2000
A1: 2001-07-04
A3: PRODUCTION INDUSTRIELLE D'ALIMENTS COMPOSES | P3: INDUSTRIELLE MISCHFUTTERPRODUKTION
A4: PRODUZIONE INDUSTRIALE DI MANGIMI COMPOSTI | P4: INDUSTRIAL COMPOUND PRODUCTION
A5: 2000
A6: definitif/final
P7: (1 000 t)
A9: Catégories d'aliments composés/Mischfutterarten | C9: D | D9: F | E9: I | F9: NL | G9: B | H9: UK | I9: IRL | J9: DK | K9: ESP | L9: P | M9: A | N9: S | O9: FIN | P9: EUR-15
A10: Tipi di mangimi compositi/Types of feed | P10: *
A13: Bovins/Cattle/Bovini/Rinder | C13: =C14+C15+C16+C18 -> 7,029 | D13: 4,379 | E13: =E14+E15+E16 -> 3,680 | F13: ='The Netherlands'!M16 -> 3,541 | G13: =G14+G15+G16+G18 -> 1,165 | H13: 4,214 | I13: 1,926 | J13: =J14+J15+J16 -> 1,506 | K13: =K14+K15+K18 -> 3,500 | L13: =L14+L15+L16+L18 -> 1,130 | M13: =Austria!M16 -> 260 | N13: =N15+N18 -> 1,223 | O13: =O15+O16 -> 651 | P13: =SUM(C13:O13) -> 34,204
A14: engrais/fattening/Mast | C14: =Germany!M17 -> 675 | D14: =France!M17 -> 768 | E14: =Italy!M17 -> 950 | F14: ='The Netherlands'!M17 -> 479 | G14: =Belgium!M17 -> 344 | H14: =UK!M17 -> 1,136 | I14: =Ireland!M17 -> 902 | J14: =Denmark!M17 -> 580 | K14: =Spain!M17 -> 1,600 | L14: =Portugal!M17 -> 418 | M14: : | N14: =Sweden!M17 -> : | O14: =Finland!M17 -> : | P14: :
A15: VL/dairy cow/Milchkühe | C15: =Germany!M18 -> 5,534 | D15: =France!M18 -> 3,123 | E15: =Italy!M18 -> 2,603 | F15: ='The Netherlands'!M18 -> 2,949 | G15: =Belgium!M18 -> 613 | H15: =UK!M18 -> 2,803 | I15: =Ireland!M18 -> 823 | J15: =Denmark!M18 -> 581 | K15: =Spain!M18 -> 1,400 | L15: =Portugal!M18 -> 610 | M15: : | N15: =Sweden!M18 -> 1,050 | O15: =Finland!M18 -> 606 | P15: :
A16: veaux (aliments d'allaitement non compris)/calves | C16: =Germany!M19 -> 161 | D16: =France!M19 -> 254 | E16: =Italy!M19 -> 127 | F16: ='The Netherlands'!M19 -> 113 | G16: =Belgium!M19 -> 106 | H16: =UK!M19 -> 176 | I16: =Ireland!M19 -> 150 | J16: =Denmark!M19 -> 345 | K16: =Spain!M19 -> : | L16: =Portugal!M19 -> 79 | M16: : | N16: =Sweden!M19 -> : | O16: =Finland!M19 -> 45 | P16: :
A17: (excluding milk replacers)/Kälber (exkl. Milchaustauscher)
A18: autres/others/Andere | C18: =Germany!M20 -> 659 | D18: =France!M20 -> 234 | E18: =Italy!M20 -> : | F18: ='The Netherlands'!M20 -> : | G18: =Belgium!M20 -> 102 | H18: =UK!M20 -> 99 | I18: =Ireland!M20 -> 51 | J18: =Denmark!M20 -> : | K18: =Spain!M20 -> 500 | L18: =Portugal!M20 -> 23 | M18: : | N18: =Sweden!M20 -> 173 | O18: =Finland!M20 -> : | P18: :
A21: Porcins/Pigs/Suini/Schweine | C21: =C22+C23+C24+C25 -> 7,075 | D21: =D22+D23+D24 -> 6,872 | E21: =Italy!M23 -> 2,470 | F21: ='The Netherlands'!M23 -> 6,001 | G21: =G22+G23 -> 3,616 | H21: =H22+H23+H24+H25 -> 2,142 | I21: 710 | J21: =J22+J23+J24 -> 3,804 | K21: =K22+K23+K24+K25 -> 8,270 | L21: 1,150 | M21: =Austria!M23 -> 204 | N21: =N22+N23+N24+N25 -> 492 | O21: 293 | P21: =SUM(C21:O21) -> 43,099
A22: porcelets/piglets/Ferkel | C22: =Germany!M24 -> 1,389 | D22: =France!M24 -> 866 | E22: =Italy!M24 -> : | F22: ='The Netherlands'!M24 -> 863 | G22: =Belgium!M24 -> 765 | H22: =UK!M24 -> 99 | I22: =Ireland!M24 -> 116 | J22: =Denmark!M24 -> 665 | K22: =Spain!M24 -> 1,230 | L22: =Portugal!M24 -> 161 | M22: : | N22: =Sweden!M24 -> 80 | O22: =Finland!M24 -> 41 | P22: :
A23: porcs engrais/pigs for fattening/Mastschweine | C23: =Germany!M25 -> 4,128 | D23: =France!M25 -> 4,635 | E23: =Italy!M25 -> : | F23: ='The Netherlands'!M25 -> 3,688 | G23: =Belgium!M25 -> 2,851 | H23: =UK!M25 -> 1,420 | I23: =Ireland!M25 -> 438 | J23: =Denmark!M25 -> 2,104 | K23: =Spain!M25 -> 5,520 | L23: =Portugal!M25 -> 311 | M23: : | N23: =Sweden!M25 -> 280 | O23: =Finland!M25 -> 173 | P23: :
A24: reproducteurs/breeding pigs/Zuchtschweine | C24: =Germany!M26 -> 1,057 | D24: =France!M26 -> 1,371 | E24: =Italy!M26 -> : | F24: ='The Netherlands'!M26 -> 1,450 | G24: =Belgium!M26 -> : | H24: =UK!M26 -> 594 | I24: =Ireland!M26 -> 133 | J24: =Denmark!M26 -> 1,035 | K24: =Spain!M26 -> 1,450 | L24: =Portugal!M26 -> 230 | M24: : | N24: =Sweden!M26 -> 120 | O24: =Finland!M26 -> 31 | P24: :
A25: autres/others/Andere | C25: =Germany!M27 -> 501 | D25: =France!M27 -> : | E25: =Italy!M27 -> : | F25: ='The Netherlands'!M27 -> : | G25: =Belgium!M27 -> : | H25: =UK!M27 -> 29 | I25: =Ireland!M27 -> 23 | J25: =Denmark!M27 -> : | K25: =Spain!M27 -> 70 | L25: =Portugal!M27 -> 448 | M25: : | N25: =Sweden!M27 -> 12 | O25: =Finland!M27 -> 48 | P25: :
A28: Volaille/Poultry/Volatili/Geflügel | C28: =C29+C30+C31 -> 4,791 | D28: 9,759 | E28: 3,966 | F28: ='The Netherlands'!M30 -> 3,598 | G28: =G29+G30+G31 -> 1,310 | H28: 6,037 | I28: 493 | J28: 696 | K28: 4,050 | L28: 1,340 | M28: =Austria!M30 -> 370 | N28: =N29+N30+N31 -> 500 | O28: 248 | P28: =SUM(C28:O28) -> 37,158
A29: broilers | C29: =Germany!M31 -> 1,208 | D29: =France!M31 -> 3,334 | E29: =Italy!M31 -> 1,835 | F29: ='The Netherlands'!M31 -> 1,783 | G29: =Belgium!M31 -> 603 | H29: =UK!M31 -> 3,097 | I29: =Ireland!M31 -> 296 | J29: =Denmark!M31 -> 593 | K29: =Spain!M31 -> 2,120 | L29: =Portugal!M31 -> 791 | M29: : | N29: =Sweden!M31 -> 195 | O29: =Finland!M31 -> 156 | P29: :
A30: poulettes & pondeuses/chicks & layers/Jung- & Legehennen | C30: =Germany!M32 -> 2,356 | D30: =France!M32 -> 2,325 | E30: =Italy!M32 -> 1,168 | F30: ='The Netherlands'!M32 -> 1,815 | G30: =Belgium!M32 -> 499 | H30: =UK!M32 -> 1,236 | I30: =Ireland!M32 -> 100 | J30: =Denmark!M32 -> 33 | K30: =Spain!M32 -> 1,690 | L30: =Portugal!M32 -> 400 | M30: : | N30: =Sweden!M32 -> 200 | O30: =Finland!M32 -> 70 | P30: :
A31: autres/others/Andere | C31: =Germany!M33 -> 1,227 | D31: =France!M33 -> 4,100 | E31: =Italy!M33 -> 963 | F31: ='The Netherlands'!M33 -> : | G31: =Belgium!M33 -> 208 | H31: =UK!M33 -> 1,704 | I31: =Ireland!M33 -> 97 | J31: =Denmark!M33 -> 70 | K31: =Spain!M33 -> 240 | L31: =Portugal!M33 -> 149 | M31: : | N31: =Sweden!M33 -> 105 | O31: =Finland!M33 -> 22 | P31: :
A34: Al. d'allait./Milk replacers/Sostit. del latte/Milchaust. | C34: =Germany!M36 -> 190 | D34: =France!M36 -> 519 | E34: =Italy!M36 -> 200 | F34: ='The Netherlands'!M36 -> 774 | G34: =Belgium!M36 -> 53 | H34: =UK!M36 -> 15 | I34: =Ireland!M36 -> 7 | J34: =Denmark!M36 -> 5 | K34: =Spain!M36 -> 65 | L34: =Portugal!M36 -> 0 | M34: =Austria!M36 -> 4 | N34: =Sweden!M36 -> 6 | O34: =Finland!M36 -> 0 | P34: =SUM(C34:O34) -> 1,838
A37: Autres/others/altri/Andere | C37: =Germany!M39 -> 551 | D37: =France!M39 -> 1,580 | E37: =Italy!M39 -> 1,206 | F37: ='The Netherlands'!M39 -> 741 | G37: =Belgium!M39 -> 159 | H37: =UK!M39 -> 1,239 | I37: =Ireland!M39 -> 367 | J37: =Denmark!M39 -> 117 | K37: =Spain!M39 -> 1,000 | L37: =Portugal!M39 -> 212 | M37: =Austria!M39 -> 73 | N37: =Sweden!M39 -> 50 | O37: =Finland!M39 -> 103 | P37: =SUM(C37:O37) -> 7,398
A40: TOTAL | C40: =C37+C34+C28+C21+C13 -> 19,636 | D40: 23,109 | E40: 11,522 | F40: 14,655 | G40: 6,303 | H40: 13,647 | I40: 3,503 | J40: 6,128 | K40: 16,885 | L40: 3,832 | M40: 911 | N40: 2,271 | O40: 1,295 | P40: 123,697
A43: * Sans le Luxembourg et la Grèce/ohne Luxemburg und Griechenland/Without Luxemburg and Greece/Senza Lussemburgo e Ella
A45: : non disponible/not available/nicht verfügbar

Sheet 2000-01
A1: 2003-05-02
A3: PRODUCTION INDUSTRIELLE D'ALIMENTS COMPOSES | X3: INDUSTRIELLE MISCHFUTTERPRODUKTION
A4: PRODUZIONE INDUSTRIALE DI MANGIMI COMPOSTI | M4: 2000-2001 | X4: INDUSTRIAL COMPOUND PRODUCTION
M5: definitif/final | X5: (1 000 t )
A9: PAYS | C9: BOVINS/RINDER | G9: PORCS/SCHWEINE | K9: VOLAILLE/GEFLÜGEL | M9: A. ALLAITEMENT/MILCHAUST. | S9: AUTRES/ANDERE | V9: TOTAL/INSGESAMT
A10: LAND | C10: BOVINI/CATTLE | G10: SUINI/PIGS | K10: VOLATILI/POULTRY | M10: SOSTIT. DEL LATTE/MILKREPLACERS | S10: ALTRI ANIMALI/OTHERS | V10: TOTALE/TOTAL
A11: PAESE
A12: COUNTRY | B12: 2000 | C12: 2001 | D12: %TAV | F12: 2000 | G12: 2001 | H12: %TAV | J12: 2000 | K12: 2001 | L12: %TAV | N12: 2000 | O12: 2001 | P12: %TAV | R12: 2000 | S12: 2001 | T12: %TAV | V12: 2000 | W12: 2001 | X12: %TAV
A15: D | B15: =Germany!M$16 -> 7,029 | C15: =Germany!N$16 -> 6,656 | D15: =((C15/B15)-1)*100 -> -5.3 | F15: =Germany!M$23 -> 7,075 | G15: =Germany!N$23 -> 7,120 | H15: =((G15/F15)-1)*100 -> 0.6 | J15: =Germany!M$30 -> 4,791 | K15: =Germany!N$30 -> 4,995 | L15: =((K15/J15)-1)*100 -> 4.3 | N15: =Germany!M$36 -> 190 | O15: =Germany!N$36 -> 174 | P15: =((O15/N15)-1)*100 -> -8.4 | R15: =Germany!M$39 -> 551 | S15: =Germany!N$39 -> 529 | T15: =((S15/R15)-1)*100 -> -4.0 | V15: =R15+N15+J15+F15+B15 -> 19,636 | W15: 19,474 | X15: =((W15/V15)-1)*100 -> -0.8
A17: F | B17: =France!M$16 -> 4,379 | C17: =France!N$16 -> 4,470 | D17: =((C17/B17)-1)*100 -> 2.1 | F17: =France!M$23 -> 6,872 | G17: =France!N$23 -> 7,016 | H17: =((G17/F17)-1)*100 -> 2.1 | J17: =France!M$30 -> 9,759 | K17: =France!N$30 -> 9,709 | L17: =((K17/J17)-1)*100 -> -0.5 | N17: =France!M$36 -> 519 | O17: =France!N$36 -> 499 | P17: =((O17/N17)-1)*100 -> -3.9 | R17: =France!M$39 -> 1,580 | S17: =France!N$39 -> 1,591 | T17: =((S17/R17)-1)*100 -> 0.7 | V17: =R17+N17+J17+F17+B17 -> 23,109 | W17: 23,285 | X17: =((W17/V17)-1)*100 -> 0.8
A19: I | B19: =Italy!M$16 -> 3,680 | C19: =Italy!N$16 -> 3,651 | D19: =((C19/B19)-1)*100 -> -0.8 | F19: =Italy!M$23 -> 2,470 | G19: =Italy!N$23 -> 2,718 | H19: =((G19/F19)-1)*100 -> 10.0 | J19: =Italy!M$30 -> 3,966 | K19: =Italy!N$30 -> 4,253 | L19: =((K19/J19)-1)*100 -> 7.2 | N19: =Italy!M$36 -> 200 | O19: =Italy!N$36 -> 175 | P19: =((O19/N19)-1)*100 -> -12.5 | R19: =Italy!M$39 -> 1,206 | S19: =Italy!N$39 -> 1,080 | T19: =((S19/R19)-1)*100 -> -10.4 | V19: =R19+N19+J19+F19+B19 -> 11,522 | W19: 11,877 | X19: =((W19/V19)-1)*100 -> 3.1
A21: NL | B21: ='The Netherlands'!M$16 -> 3,541 | C21: ='The Netherlands'!N$16 -> 3,449 | D21: =((C21/B21)-1)*100 -> -2.6 | F21: ='The Netherlands'!M$23 -> 6,001 | G21: ='The Netherlands'!N$23 -> 5,762 | H21: =((G21/F21)-1)*100 -> -4.0 | J21: ='The Netherlands'!M$30 -> 3,598 | K21: ='The Netherlands'!N$30 -> 3,466 | L21: =((K21/J21)-1)*100 -> -3.7 | N21: ='The Netherlands'!M$36 -> 774 | O21: ='The Netherlands'!N$36 -> 710 | P21: =((O21/N21)-1)*100 -> -8.3 | R21: ='The Netherlands'!M$39 -> 741 | S21: ='The Netherlands'!N$39 -> 864 | T21: =((S21/R21)-1)*100 -> 16.6 | V21: =R21+N21+J21+F21+B21 -> 14,655 | W21: 14,251 | X21: =((W21/V21)-1)*100 -> -2.8
A23: B | B23: =Belgium!M$16 -> 1,165 | C23: =Belgium!N$16 -> 1,163 | D23: =((C23/B23)-1)*100 -> -0.2 | F23: =Belgium!M$23 -> 3,616 | G23: =Belgium!N$23 -> 3,456 | H23: =((G23/F23)-1)*100 -> -4.4 | J23: =Belgium!M$30 -> 1,310 | K23: =Belgium!N$30 -> 1,468 | L23: =((K23/J23)-1)*100 -> 12.1 | N23: =Belgium!M$36 -> 53 | O23: =Belgium!N$36 -> 53 | P23: =((O23/N23)-1)*100 -> 0.0 | R23: =Belgium!M$39 -> 159 | S23: =Belgium!N$39 -> 225 | T23: =((S23/R23)-1)*100 -> 41.5 | V23: =R23+N23+J23+F23+B23 -> 6,303 | W23: 6,365 | X23: =((W23/V23)-1)*100 -> 1.0
A25: UK | B25: =UK!M$16 -> 4,214 | C25: =UK!N$16 -> 4,554 | D25: =((C25/B25)-1)*100 -> 8.1 | F25: =UK!M$23 -> 2,142 | G25: =UK!N$23 -> 1,988 | H25: =((G25/F25)-1)*100 -> -7.2 | J25: =UK!M$30 -> 6,037 | K25: =UK!N$30 -> 6,241 | L25: =((K25/J25)-1)*100 -> 3.4 | N25: =UK!M$36 -> 15 | O25: =UK!N$36 -> 14 | P25: =((O25/N25)-1)*100 -> -6.7 | R25: =UK!M39 -> 1,239 | S25: =UK!N39 -> 1,201 | T25: =((S25/R25)-1)*100 -> -3.1 | V25: =R25+J25+F25+B25+N25 -> 13,647 | W25: 13,998 | X25: =((W25/V25)-1)*100 -> 2.6
A27: IRL | B27: =Ireland!M$16 -> 1,926 | C27: =Ireland!N$16 -> 1,963 | D27: =((C27/B27)-1)*100 -> 1.9 | F27: =Ireland!M$23 -> 710 | G27: =Ireland!N$23 -> 736 | H27: =((G27/F27)-1)*100 -> 3.7 | J27: =Ireland!M$30 -> 493 | K27: =Ireland!N$30 -> 479 | L27: =((K27/J27)-1)*100 -> -2.8 | N27: =Ireland!M$36 -> 7 | O27: =Ireland!N$36 -> 8 | P27: =((O27/N27)-1)*100 -> 14.3 | R27: =Ireland!M$39 -> 367 | S27: =Ireland!N$39 -> 375 | T27: =((S27/R27)-1)*100 -> 2.2 | V27: =R27+N27+J27+F27+B27 -> 3,503 | W27: 3,561 | X27: =((W27/V27)-1)*100 -> 1.7
A29: DK | B29: =Denmark!M$16 -> 1,506 | C29: =Denmark!N$16 -> 1,394 | D29: =((C29/B29)-1)*100 -> -7.4 | F29: =Denmark!M$23 -> 3,804 | G29: =Denmark!N$23 -> 3,874 | H29: =((G29/F29)-1)*100 -> 1.8 | J29: =Denmark!M$30 -> 696 | K29: =Denmark!N$30 -> 670 | L29: =((K29/J29)-1)*100 -> -3.7 | N29: =Denmark!M$36 -> 5 | O29: =Denmark!N$36 -> 0 | P29: =((O29/N29)-1)*100 -> -100.0 | R29: =Denmark!M$39 -> 117 | S29: =Denmark!N$39 -> 107 | T29: =((S29/R29)-1)*100 -> -8.5 | V29: =R29+N29+J29+F29+B29 -> 6,128 | W29: 6,045 | X29: =((W29/V29)-1)*100 -> -1.4
A31: ESP | B31: =Spain!M$16 -> 3,500 | C31: =Spain!N$16 -> 4,748 | D31: =((C31/B31)-1)*100 -> 35.7 | F31: =Spain!M$23 -> 8,270 | G31: =Spain!N$23 -> 7,733 | H31: =((G31/F31)-1)*100 -> -6.5 | J31: =Spain!M$30 -> 4,050 | K31: =Spain!N$30 -> 4,388 | L31: =((K31/J31)-1)*100 -> 8.3 | N31: =Spain!M$36 -> 65 | O31: =Spain!N$36 -> 0 | P31: =((O31/N31)-1)*100 -> -100.0 | R31: =Spain!M$39 -> 1,000 | S31: =Spain!N$39 -> 1,617 | T31: =((S31/R31)-1)*100 -> 61.7 | V31: =R31+N31+J31+F31+B31 -> 16,885 | W31: 18,486 | X31: =((W31/V31)-1)*100 -> 9.5
A33: P | B33: =Portugal!M$16 -> 1,130 | C33: =Portugal!N$16 -> 1,080 | D33: =((C33/B33)-1)*100 -> -4.4 | F33: =Portugal!M$23 -> 1,150 | G33: =Portugal!N$23 -> 1,180 | H33: =((G33/F33)-1)*100 -> 2.6 | J33: =Portugal!M$30 -> 1,340 | K33: =Portugal!N$30 -> 1,390 | L33: =((K33/J33)-1)*100 -> 3.7 | N33: =Portugal!M$36 -> 0 | O33: =Portugal!N$36 -> 0 | P33: 0.0 | R33: =Portugal!M$39 -> 212 | S33: =Portugal!N$39 -> 198 | T33: =((S33/R33)-1)*100 -> -6.6 | V33: =R33+N33+J33+F33+B33 -> 3,832 | W33: 3,848 | X33: =((W33/V33)-1)*100 -> 0.4
A35: A | B35: =Austria!M$16 -> 260 | C35: =Austria!N$16 -> 287 | D35: =((C35/B35)-1)*100 -> 10.4 | F35: =Austria!M$23 -> 204 | G35: =Austria!N$23 -> 196 | H35: =((G35/F35)-1)*100 -> -3.9 | J35: =Austria!M$30 -> 370 | K35: =Austria!N$30 -> 382 | L35: =((K35/J35)-1)*100 -> 3.2 | N35: =Austria!M$36 -> 4 | O35: =Austria!N$36 -> 2 | P35: =((O35/N35)-1)*100 -> -50.0 | R35: =Austria!M$39 -> 73 | S35: =Austria!N$39 -> 54 | T35: =((S35/R35)-1)*100 -> -26.0 | V35: =R35+N35+J35+F35+B35 -> 911 | W35: 921 | X35: =((W35/V35)-1)*100 -> 1.1
A37: S | B37: =Sweden!M$16 -> 1,223 | C37: =Sweden!N$16 -> 1,238 | D37: =((C37/B37)-1)*100 -> 1.2 | F37: =Sweden!M$23 -> 492 | G37: =Sweden!N$23 -> 510 | H37: =((G37/F37)-1)*100 -> 3.7 | J37: =Sweden!M$30 -> 500 | K37: =Sweden!N$30 -> 514 | L37: =((K37/J37)-1)*100 -> 2.8 | N37: =Sweden!M$36 -> 6 | O37: =Sweden!N$36 -> 6 | P37: =((O37/N37)-1)*100 -> 0.0 | R37: =Sweden!M$39 -> 50 | S37: =Sweden!N$39 -> 50 | T37: =((S37/R37)-1)*100 -> 0.0 | V37: =R37+N37+J37+F37+B37 -> 2,271 | W37: 2,318 | X37: =((W37/V37)-1)*100 -> 2.1
A39: FIN | B39: =Finland!M$16 -> 651 | C39: =Finland!N$16 -> 652 | D39: =((C39/B39)-1)*100 -> 0.2 | F39: =Finland!M$23 -> 293 | G39: =Finland!N$23 -> 293 | H39: =((G39/F39)-1)*100 -> 0.0 | J39: =Finland!M$30 -> 248 | K39: =Finland!N$30 -> 278 | L39: =((K39/J39)-1)*100 -> 12.1 | N39: =Finland!M$36 -> 0 | O39: =Finland!N$36 -> 0 | R39: =Finland!M$39 -> 103 | S39: =Finland!N$39 -> 97 | T39: =((S39/R39)-1)*100 -> -5.8 | V39: =R39+J39+F39+B39 -> 1,295 | W39: 1,320 | X39: =((W39/V39)-1)*100 -> 1.9
A42: EUR 15 * | B42: =B39+B37+B35+B33+B31+B29+B27+B25+B23+B21+B19+B17+B15 -> 34,204 | C42: 35,305 | D42: =((C42/B42)-1)*100 -> 3.2 | F42: =F39+F37+F35+F33+F31+F29+F27+F25+F23+F21+F19+F17+F15 -> 43,099 | G42: 42,582 | H42: =((G42/F42)-1)*100 -> -1.2 | J42: =J39+J37+J35+J33+J31+J29+J27+J25+J23+J21+J19+J17+J15 -> 37,158 | K42: 38,233 | L42: =((K42/J42)-1)*100 -> 2.9 | N42: =N37+N35+N33+N31+N29+N27+N23+N21+N19+N17+N15+N25 -> 1,838 | O42: 1,641 | P42: =((O42/N42)-1)*100 -> -10.7 | R42: =R39+R37+R35+R33+R31+R29+R27+R25+R23+R21+R19+R17+R15 -> 7,398 | S42: 7,988 | T42: =((S42/R42)-1)*100 -> 8.0 | V42: =V39+V37+V35+V33+V31+V29+V27+V25+V23+V21+V19+V17+V15 -> 123,697 | W42: 125,749 | X42: =((W42/V42)-1)*100 -> 1.7
A45: * Sans le Luxembourg et la Grèce/Ohne Luxemburg und Griechenland/Without Luxemburg and Greece/Senza Lussemburgo e Ellas
A47: : non disponible/not available

Sheet 2001
A1: 2002-12-18
A3: PRODUCTION INDUSTRIELLE D'ALIMENTS COMPOSES | P3: INDUSTRIELLE MISCHFUTTERPRODUKTION
A4: PRODUZIONE INDUSTRIALE DI MANGIMI COMPOSTI | P4: INDUSTRIAL COMPOUND PRODUCTION
A5: 2001
A6: definitif/final
P7: (1 000 t)
A9: Catégories d'aliments composés/Mischfutterarten | C9: D | D9: F | E9: I | F9: NL | G9: B | H9: UK | I9: IRL | J9: DK | K9: ESP | L9: P | M9: A | N9: S | O9: FIN | P9: EUR-15
A10: Tipi di mangimi compositi/Types of feed | P10: *
A13: Bovins/Cattle/Bovini/Rinder | C13: =Germany!N16 -> 6,656 | D13: =D14+D15+D16+D18 -> 4,470 | E13: =E14+E15+E16 -> 3,651 | F13: ='The Netherlands'!N16 -> 3,449 | G13: =G14+G15+G16+G18 -> 1,163 | H13: 4,554 | I13: =Ireland!N16 -> 1,963 | J13: =J14+J15+J16 -> 1,394 | K13: =K14+K15+K18 -> 4,748 | L13: =Portugal!N16 -> 1,080 | M13: =Austria!N16 -> 287 | N13: =N15+N18 -> 1,238 | O13: =O15+O16 -> 652 | P13: =SUM(C13:O13) -> 35,305
A14: engrais/fattening/Mast | C14: =Germany!N17 -> 604 | D14: =France!N17 -> 804 | E14: =Italy!N17 -> 859 | F14: ='The Netherlands'!N17 -> 308 | G14: =Belgium!N17 -> 322 | H14: =UK!N17 -> 1,191 | I14: =Ireland!N17 -> 854 | J14: =Denmark!N17 -> 522 | K14: =Spain!N17 -> 2,450 | L14: =Portugal!N17 -> 395 | M14: =Austria!N17 -> : | N14: =Sweden!N17 -> : | O14: =Finland!N17 -> : | P14: :
A15: VL/dairy cow/Milchkühe | C15: =Germany!N18 -> 5,526 | D15: =France!N18 -> 3,216 | E15: =Italy!N18 -> 2,656 | F15: ='The Netherlands'!N18 -> 3,013 | G15: =Belgium!N18 -> 606 | H15: =UK!N18 -> 3,093 | I15: =Ireland!N18 -> 885 | J15: =Denmark!N18 -> 522 | K15: =Spain!N18 -> 1,748 | L15: =Portugal!N18 -> 584 | M15: =Austria!N18 -> : | N15: =Sweden!N18 -> 1,063 | O15: =Finland!N18 -> 612 | P15: :
A16: veaux (aliments d'allaitement non compris)/calves | C16: =Germany!N19 -> 165 | D16: =France!N19 -> 235 | E16: =Italy!N19 -> 136 | F16: ='The Netherlands'!N19 -> 128 | G16: =Belgium!N19 -> 102 | H16: =UK!N19 -> 173 | I16: =Ireland!N19 -> 171 | J16: =Denmark!N19 -> 350 | K16: =Spain!N19 -> : | L16: =Portugal!N19 -> 72 | M16: =Austria!N19 -> : | N16: =Sweden!N19 -> : | O16: =Finland!N19 -> 40 | P16: :
A17: (excluding milk replacers)/Kälber (exkl. Milchaustauscher)
A18: autres/others/Andere | C18: =Germany!N20 -> 361 | D18: =France!N20 -> 215 | E18: =Italy!N20 -> : | F18: ='The Netherlands'!N20 -> : | G18: =Belgium!N20 -> 133 | H18: =UK!N20 -> 97 | I18: =Ireland!N20 -> 53 | J18: =Denmark!N20 -> : | K18: =Spain!N20 -> 550 | L18: =Portugal!N20 -> 29 | M18: =Austria!N20 -> : | N18: =Sweden!N20 -> 175 | O18: =Finland!N20 -> : | P18: :
A21: Porcins/Pigs/Suini/Schweine | C21: =Germany!N23 -> 7,120 | D21: =D22+D23+D24 -> 7,016 | E21: =Italy!N23 -> 2,718 | F21: ='The Netherlands'!N23 -> 5,762 | G21: =G22+G23 -> 3,456 | H21: =H22+H23+H24+H25 -> 1,988 | I21: =Ireland!N23 -> 736 | J21: =J22+J23+J24 -> 3,874 | K21: =K22+K23+K24+K25 -> 7,733 | L21: =Portugal!N23 -> 1,180 | M21: =Austria!N23 -> 196 | N21: =N22+N23+N24+N25 -> 510 | O21: 293 | P21: =SUM(C21:O21) -> 42,582
A22: porcelets/piglets/Ferkel | C22: =Germany!N24 -> 1,405 | D22: =France!N24 -> 883 | E22: =Italy!N24 -> : | F22: ='The Netherlands'!N24 -> 815 | G22: =Belgium!N24 -> 697 | H22: =UK!N24 -> 89 | I22: =Ireland!N24 -> 108 | J22: =Denmark!N24 -> 680 | K22: =Spain!N24 -> 1,005 | L22: =Portugal!N24 -> 169 | M22: =Austria!N24 -> : | N22: =Sweden!N24 -> 80 | O22: =Finland!N24 -> 42 | P22: :
A23: porcs engrais/pigs for fattening/Mastschweine | C23: =Germany!N25 -> 3,910 | D23: =France!N25 -> 4,783 | E23: =Italy!N25 -> : | F23: ='The Netherlands'!N25 -> 3,693 | G23: =Belgium!N25 -> 2,759 | H23: =UK!N25 -> 1,316 | I23: =Ireland!N25 -> 481 | J23: =Denmark!N25 -> 2,140 | K23: =Spain!N25 -> 5,460 | L23: =Portugal!N25 -> 737 | M23: =Austria!N25 -> : | N23: =Sweden!N25 -> 285 | O23: =Finland!N25 -> 170 | P23: :
A24: reproducteurs/breeding pigs/Zuchtschweine | C24: =Germany!N26 -> 1,195 | D24: =France!N26 -> 1,350 | E24: =Italy!N26 -> : | F24: ='The Netherlands'!N26 -> 1,254 | G24: =Belgium!N26 -> : | H24: =UK!N26 -> 565 | I24: =Ireland!N26 -> 126 | J24: =Denmark!N26 -> 1,054 | K24: =Spain!N26 -> 1,198 | L24: =Portugal!N26 -> 244 | M24: =Austria!N26 -> : | N24: =Sweden!N26 -> 135 | O24: =Finland!N26 -> 34 | P24: :
A25: autres/others/Andere | C25: =Germany!N27 -> 610 | D25: =France!N27 -> : | E25: =Italy!N27 -> : | F25: ='The Netherlands'!N27 -> : | G25: =Belgium!N27 -> : | H25: =UK!N27 -> 18 | I25: =Ireland!N27 -> 21 | J25: =Denmark!N27 -> : | K25: =Spain!N27 -> 70 | L25: =Portugal!N27 -> 30 | M25: =Austria!N27 -> : | N25: =Sweden!N27 -> 10 | O25: =Finland!N27 -> 47 | P25: :
A28: Volaille/Poultry/Volatili/Geflügel | C28: =Germany!N30 -> 4,995 | D28: =D29+D30+D31 -> 9,709 | E28: 4,253 | F28: ='The Netherlands'!N30 -> 3,466 | G28: =G29+G30+G31 -> 1,468 | H28: 6,241 | I28: =Ireland!N30 -> 479 | J28: =J29+J30+J31 -> 670 | K28: 4,388 | L28: =Portugal!N30 -> 1,390 | M28: =Austria!N30 -> 382 | N28: =N29+N30+N31 -> 514 | O28: 278 | P28: =SUM(C28:O28) -> 38,233
A29: broilers | C29: =Germany!N31 -> 1,341 | D29: =France!N31 -> 3,415 | E29: =Italy!N31 -> 1,926 | F29: ='The Netherlands'!N31 -> 1,840 | G29: =Belgium!N31 -> 683 | H29: =UK!N31 -> 3,327 | I29: =Ireland!N31 -> 273 | J29: =Denmark!N31 -> 567 | K29: =Spain!N31 -> 2,320 | L29: =Portugal!N31 -> 832 | M29: =Austria!N31 -> : | N29: =Sweden!N31 -> 212 | O29: =Finland!N31 -> 175 | P29: :
A30: poulettes & pondeuses/chicks & layers/Jung- & Legehennen | C30: =Germany!N32 -> 2,424 | D30: =France!N32 -> 2,232 | E30: =Italy!N32 -> 1,283 | F30: ='The Netherlands'!N32 -> 1,626 | G30: =Belgium!N32 -> 617 | H30: =UK!N32 -> 1,249 | I30: =Ireland!N32 -> 108 | J30: =Denmark!N32 -> 34 | K30: =Spain!N32 -> 1,790 | L30: =Portugal!N32 -> 374 | M30: =Austria!N32 -> : | N30: =Sweden!N32 -> 197 | O30: =Finland!N32 -> 67 | P30: :
A31: autres/others/Andere | C31: =Germany!N33 -> 1,230 | D31: =France!N33 -> 4,062 | E31: =Italy!N33 -> 1,044 | F31: ='The Netherlands'!N33 -> : | G31: =Belgium!N33 -> 168 | H31: =UK!N33 -> 1,665 | I31: =Ireland!N33 -> 98 | J31: =Denmark!N33 -> 69 | K31: =Spain!N33 -> 278 | L31: =Portugal!N33 -> 184 | M31: =Austria!N33 -> : | N31: =Sweden!N33 -> 105 | O31: =Finland!N33 -> 36 | P31: :
A34: Al. d'allait./Milk replacers/Sostit. del latte/Milchaust. | C34: =Germany!N36 -> 174 | D34: =France!N36 -> 499 | E34: =Italy!N36 -> 175 | F34: ='The Netherlands'!N36 -> 710 | G34: =Belgium!N36 -> 53 | H34: =UK!N36 -> 14 | I34: =Ireland!N36 -> 8 | J34: =Denmark!N36 -> 0 | K34: =Spain!N36 -> 0 | L34: =Portugal!N36 -> 0 | M34: =Austria!N36 -> 2 | N34: =Sweden!N36 -> 6 | O34: =Finland!N36 -> 0 | P34: =SUM(C34:O34) -> 1,641
A37: Autres/others/altri/Andere | C37: =Germany!N39 -> 529 | D37: =France!N39 -> 1,591 | E37: =Italy!N39 -> 1,080 | F37: ='The Netherlands'!N39 -> 864 | G37: =Belgium!N39 -> 225 | H37: =UK!N39 -> 1,201 | I37: =Ireland!N39 -> 375 | J37: =Denmark!N39 -> 107 | K37: =Spain!N39 -> 1,617 | L37: =Portugal!N39 -> 198 | M37: =Austria!N39 -> 54 | N37: =Sweden!N39 -> 50 | O37: =Finland!N39 -> 97 | P37: =SUM(C37:O37) -> 7,988
A40: TOTAL | C40: =C37+C34+C28+C21+C13 -> 19,474 | D40: 23,285 | E40: 11,877 | F40: 14,251 | G40: 6,365 | H40: 13,998 | I40: 3,561 | J40: 6,045 | K40: 18,486 | L40: 3,848 | M40: 921 | N40: 2,318 | O40: 1,320 | P40: 125,749
A43: * Sans le Luxembourg et la Grèce/ohne Luxemburg und Griechenland/Without Luxemburg and Greece/Senza Lussemburgo e Ella
A45: : non disponible/not available/nicht verfügbar

Sheet 2001-02
A1: 2003-05-27
A3: PRODUCTION INDUSTRIELLE D'ALIMENTS COMPOSES | X3: INDUSTRIELLE MISCHFUTTERPRODUKTION
A4: PRODUZIONE INDUSTRIALE DI MANGIMI COMPOSTI | M4: 2001-2002 | X4: INDUSTRIAL COMPOUND PRODUCTION
M5: definitif/final | X5: (1 000 t )
A9: PAYS | C9: BOVINS/RINDER | G9: PORCS/SCHWEINE | K9: VOLAILLE/GEFLÜGEL | M9: A. ALLAITEMENT/MILCHAUST. | S9: AUTRES/ANDERE | V9: TOTAL/INSGESAMT
A10: LAND | C10: BOVINI/CATTLE | G10: SUINI/PIGS | K10: VOLATILI/POULTRY | M10: SOSTIT. DEL LATTE/MILKREPLACERS | S10: ALTRI ANIMALI/OTHERS | V10: TOTALE/TOTAL
A11: PAESE
A12: COUNTRY | B12: 2001 | C12: 2002 | D12: %TAV | F12: 2001 | G12: 2002 | H12: %TAV | J12: 2001 | K12: 2002 | L12: %TAV | N12: 2001 | O12: 2002 | P12: %TAV | R12: 2001 | S12: 2002 | T12: %TAV | V12: 2001 | W12: 2002 | X12: %TAV
A15: D | B15: =Germany!N$16 -> 6,656 | C15: =Germany!O$16 -> 6,620 | D15: =((C15/B15)-1)*100 -> -0.5 | F15: =Germany!N$23 -> 7,120 | G15: =Germany!O$23 -> 7,291 | H15: =((G15/F15)-1)*100 -> 2.4 | J15: =Germany!N$30 -> 4,995 | K15: =Germany!O$30 -> 5,068 | L15: =((K15/J15)-1)*100 -> 1.5 | N15: =Germany!N$36 -> 174 | O15: =Germany!O$36 -> 167 | P15: =((O15/N15)-1)*100 -> -4.0 | R15: =Germany!N$39 -> 529 | S15: =Germany!O$39 -> 549 | T15: =((S15/R15)-1)*100 -> 3.8 | V15: =R15+N15+J15+F15+B15 -> 19,474 | W15: 19,695 | X15: =((W15/V15)-1)*100 -> 1.1
A17: F | B17: =France!N$16 -> 4,470 | C17: =France!O$16 -> 4,235 | D17: =((C17/B17)-1)*100 -> -5.3 | F17: =France!N$23 -> 7,016 | G17: =France!O$23 -> 6,964 | H17: =((G17/F17)-1)*100 -> -0.7 | J17: =France!N$30 -> 9,709 | K17: =France!O$30 -> 9,443 | L17: =((K17/J17)-1)*100 -> -2.7 | N17: =France!N$36 -> 499 | O17: =France!O$36 -> 512 | P17: =((O17/N17)-1)*100 -> 2.6 | R17: =France!N$39 -> 1,591 | S17: =France!O$39 -> 1,604 | T17: =((S17/R17)-1)*100 -> 0.8 | V17: =R17+N17+J17+F17+B17 -> 23,285 | W17: 22,758 | X17: =((W17/V17)-1)*100 -> -2.3
A19: I | B19: =Italy!N$16 -> 3,651 | C19: =Italy!O$16 -> 3,861 | D19: =((C19/B19)-1)*100 -> 5.8 | F19: =Italy!N$23 -> 2,718 | G19: =Italy!O$23 -> 2,709 | H19: =((G19/F19)-1)*100 -> -0.3 | J19: =Italy!N$30 -> 4,253 | K19: =Italy!O$30 -> 5,176 | L19: =((K19/J19)-1)*100 -> 21.7 | N19: =Italy!N$36 -> 175 | O19: =Italy!O$36 -> 186 | P19: =((O19/N19)-1)*100 -> 6.3 | R19: =Italy!N$39 -> 1,080 | S19: =Italy!O$39 -> 1,214 | T19: =((S19/R19)-1)*100 -> 12.4 | V19: =R19+N19+J19+F19+B19 -> 11,877 | W19: 13,146 | X19: =((W19/V19)-1)*100 -> 10.7
A21: NL | B21: ='The Netherlands'!N16 -> 3,449 | C21: ='The Netherlands'!O16 -> 3,306 | D21: =((C21/B21)-1)*100 -> -4.1 | F21: ='The Netherlands'!N23 -> 5,762 | G21: ='The Netherlands'!O23 -> 5,309 | H21: =((G21/F21)-1)*100 -> -7.9 | J21: ='The Netherlands'!N30 -> 3,466 | K21: ='The Netherlands'!O30 -> 3,296 | L21: =((K21/J21)-1)*100 -> -4.9 | N21: ='The Netherlands'!N$36 -> 710 | O21: ='The Netherlands'!O$36 -> 666 | P21: =((O21/N21)-1)*100 -> -6.2 | R21: ='The Netherlands'!N$39 -> 864 | S21: ='The Netherlands'!O$39 -> 772 | T21: =((S21/R21)-1)*100 -> -10.6 | V21: =R21+N21+J21+F21+B21 -> 14,251 | W21: 13,349 | X21: =((W21/V21)-1)*100 -> -6.3
A23: B | B23: =Belgium!N$16 -> 1,163 | C23: =Belgium!O$16 -> 1,046 | D23: =((C23/B23)-1)*100 -> -10.1 | F23: =Belgium!N$23 -> 3,456 | G23: =Belgium!O$23 -> 3,509 | H23: =((G23/F23)-1)*100 -> 1.5 | J23: =Belgium!N$30 -> 1,468 | K23: =Belgium!O$30 -> 1,436 | L23: =((K23/J23)-1)*100 -> -2.2 | N23: =Belgium!N$36 -> 53 | O23: =Belgium!O$36 -> 53 | P23: =((O23/N23)-1)*100 -> 0.0 | R23: =Belgium!N$39 -> 225 | S23: =Belgium!O$39 -> 247 | T23: =((S23/R23)-1)*100 -> 9.8 | V23: =R23+N23+J23+F23+B23 -> 6,365 | W23: 6,291 | X23: =((W23/V23)-1)*100 -> -1.2
A25: UK | B25: =UK!N16 -> 4,554 | C25: =UK!O16 -> 4,443 | D25: =((C25/B25)-1)*100 -> -2.4 | F25: =UK!N23 -> 1,988 | G25: =UK!O23 -> 1,836 | H25: =((G25/F25)-1)*100 -> -7.6 | J25: =UK!N30 -> 6,241 | K25: =UK!O30 -> 6,248 | L25: =((K25/J25)-1)*100 -> 0.1 | N25: =UK!N36 -> 14 | O25: =UK!O36 -> 14 | P25: =((O25/N25)-1)*100 -> 0.0 | R25: =UK!N39 -> 1,201 | S25: =UK!O39 -> 1,133 | T25: =((S25/R25)-1)*100 -> -5.7 | V25: =R25+J25+F25+B25+N25 -> 13,998 | W25: 13,674 | X25: =((W25/V25)-1)*100 -> -2.3
A27: IRL | B27: =Ireland!N$16 -> 1,963 | C27: =Ireland!O$16 -> 2,144 | D27: =((C27/B27)-1)*100 -> 9.2 | F27: =Ireland!N$23 -> 736 | G27: =Ireland!O$23 -> 748 | H27: =((G27/F27)-1)*100 -> 1.6 | J27: =Ireland!N$30 -> 479 | K27: =Ireland!O$30 -> 493 | L27: =((K27/J27)-1)*100 -> 2.9 | N27: =Ireland!N$36 -> 8 | O27: =Ireland!O$36 -> 10 | P27: =((O27/N27)-1)*100 -> 25.0 | R27: =Ireland!N$39 -> 375 | S27: =Ireland!O$39 -> 413 | T27: =((S27/R27)-1)*100 -> 10.1 | V27: =R27+N27+J27+F27+B27 -> 3,561 | W27: 3,808 | X27: =((W27/V27)-1)*100 -> 6.9
A29: DK | B29: =Denmark!N$16 -> 1,394 | C29: =Denmark!O$16 -> 1,302 | D29: =((C29/B29)-1)*100 -> -6.6 | F29: =Denmark!N$23 -> 3,874 | G29: =Denmark!O$23 -> 3,702 | H29: =((G29/F29)-1)*100 -> -4.4 | J29: =Denmark!N$30 -> 670 | K29: =Denmark!O$30 -> 650 | L29: =((K29/J29)-1)*100 -> -3.0 | N29: =Denmark!N$36 -> 0 | O29: =Denmark!O$36 -> 0 | P29: 0.0 | R29: =Denmark!N$39 -> 107 | S29: =Denmark!O$39 -> 128 | T29: =((S29/R29)-1)*100 -> 19.6 | V29: =R29+N29+J29+F29+B29 -> 6,045 | W29: 5,782 | X29: =((W29/V29)-1)*100 -> -4.4
A31: ESP | B31: =Spain!N$16 -> 4,748 | C31: =Spain!O$16 -> 5,246 | D31: =((C31/B31)-1)*100 -> 10.5 | F31: =Spain!N$23 -> 7,733 | G31: =Spain!O$23 -> 8,137 | H31: =((G31/F31)-1)*100 -> 5.2 | J31: =Spain!N$30 -> 4,388 | K31: =Spain!O$30 -> 4,559 | L31: =((K31/J31)-1)*100 -> 3.9 | N31: =Spain!N$36 -> 0 | O31: =Spain!O$36 -> 0 | P31: 0.0 | R31: =Spain!N$39 -> 1,617 | S31: =Spain!O$39 -> 1,706 | T31: =((S31/R31)-1)*100 -> 5.5 | V31: =R31+N31+J31+F31+B31 -> 18,486 | W31: 19,648 | X31: =((W31/V31)-1)*100 -> 6.3
A33: P | B33: =Portugal!N$16 -> 1,080 | C33: =Portugal!O$16 -> 1,070 | D33: =((C33/B33)-1)*100 -> -0.9 | F33: =Portugal!N$23 -> 1,180 | G33: =Portugal!O$23 -> 1,260 | H33: =((G33/F33)-1)*100 -> 6.8 | J33: =Portugal!N$30 -> 1,390 | K33: =Portugal!O$30 -> 1,400 | L33: =((K33/J33)-1)*100 -> 0.7 | N33: =Portugal!N$36 -> 0 | O33: =Portugal!O$36 -> 0 | P33: 0.0 | R33: =Portugal!N$39 -> 198 | S33: =Portugal!O$39 -> 208 | T33: =((S33/R33)-1)*100 -> 5.1 | V33: =R33+N33+J33+F33+B33 -> 3,848 | W33: 3,938 | X33: =((W33/V33)-1)*100 -> 2.3
A35: A | B35: =Austria!N$16 -> 287 | C35: =Austria!O$16 -> 304 | D35: =((C35/B35)-1)*100 -> 5.9 | F35: =Austria!N$23 -> 196 | G35: =Austria!O$23 -> 218 | H35: =((G35/F35)-1)*100 -> 11.2 | J35: =Austria!N$30 -> 382 | K35: =Austria!O$30 -> 386 | L35: =((K35/J35)-1)*100 -> 1.0 | N35: =Austria!N$36 -> 2 | O35: =Austria!O$36 -> 0 | P35: =((O35/N35)-1)*100 -> -100.0 | R35: =Austria!N$39 -> 54 | S35: =Austria!O$39 -> 60 | T35: =((S35/R35)-1)*100 -> 11.1 | V35: =R35+N35+J35+F35+B35 -> 921 | W35: 968 | X35: =((W35/V35)-1)*100 -> 5.1
A37: S | B37: =Sweden!N$16 -> 1,238 | C37: =Sweden!O$16 -> 1,224 | D37: =((C37/B37)-1)*100 -> -1.1 | F37: =Sweden!N$23 -> 510 | G37: =Sweden!O$23 -> 500 | H37: =((G37/F37)-1)*100 -> -2.0 | J37: =Sweden!N$30 -> 514 | K37: =Sweden!O$30 -> 491 | L37: =((K37/J37)-1)*100 -> -4.5 | N37: =Sweden!N$36 -> 6 | O37: =Sweden!O$36 -> 6 | P37: =((O37/N37)-1)*100 -> 0.0 | R37: =Sweden!N$39 -> 50 | S37: =Sweden!O$39 -> 49 | T37: =((S37/R37)-1)*100 -> -2.0 | V37: =R37+N37+J37+F37+B37 -> 2,318 | W37: 2,270 | X37: =((W37/V37)-1)*100 -> -2.1
A39: FIN | B39: =Finland!N$16 -> 652 | C39: =Finland!O$16 -> 664 | D39: =((C39/B39)-1)*100 -> 1.8 | F39: =Finland!N$23 -> 293 | G39: =Finland!O$23 -> 318 | H39: =((G39/F39)-1)*100 -> 8.5 | J39: =Finland!N$30 -> 278 | K39: =Finland!O$30 -> 295 | L39: =((K39/J39)-1)*100 -> 6.1 | N39: =Finland!N$36 -> 0 | O39: =Finland!O$36 -> 0 | R39: =Finland!N$39 -> 97 | S39: =Finland!O$39 -> 91 | T39: =((S39/R39)-1)*100 -> -6.2 | V39: =R39+J39+F39+B39 -> 1,320 | W39: 1,368 | X39: =((W39/V39)-1)*100 -> 3.6
A42: EUR 15 * | B42: =SUM(B15:B39) -> 35,305 | C42: 35,465 | D42: =((C42/B42)-1)*100 -> 0.5 | F42: =SUM(F15:F39) -> 42,582 | G42: 42,501 | H42: =((G42/F42)-1)*100 -> -0.2 | J42: =SUM(J15:J39) -> 38,233 | K42: 38,941 | L42: =((K42/J42)-1)*100 -> 1.9 | N42: =SUM(N15:N39) -> 1,641 | O42: 1,614 | P42: =((O42/N42)-1)*100 -> -1.6 | R42: =SUM(R15:R39) -> 7,988 | S42: 8,174 | T42: =((S42/R42)-1)*100 -> 2.3 | V42: =SUM(V15:V39) -> 125,749 | W42: 126,695 | X42: =((W42/V42)-1)*100 -> 0.8
A45: * Sans le Luxembourg et la Grèce/Ohne Luxemburg und Griechenland/Without Luxemburg and Greece/Senza Lussemburgo e Ellas
A47: : non disponible/not available

Sheet 2002
A1: 2003-05-27
A3: PRODUCTION INDUSTRIELLE D'ALIMENTS COMPOSES | P3: INDUSTRIELLE MISCHFUTTERPRODUKTION
A4: PRODUZIONE INDUSTRIALE DI MANGIMI COMPOSTI | P4: INDUSTRIAL COMPOUND PRODUCTION
A5: 2002
A6: definitif/final
P7: (1 000 t)
A9: Catégories d'aliments composés/Mischfutterarten | C9: D | D9: F | E9: I | F9: NL | G9: B | H9: UK | I9: IRL | J9: DK | K9: ESP | L9: P | M9: A | N9: S | O9: FIN | P9: EUR-15
A10: Tipi di mangimi compositi/Types of feed | P10: *
A13: Bovins/Cattle/Bovini/Rinder | C13: =Germany!O16 -> 6,620 | D13: =France!O16 -> 4,235 | E13: =Italy!O16 -> 3,861 | F13: ='The Netherlands'!O16 -> 3,306 | G13: =Belgium!O16 -> 1,046 | H13: =UK!O16 -> 4,443 | I13: =Ireland!O16 -> 2,144 | J13: =Denmark!O16 -> 1,302 | K13: =Spain!O16 -> 5,246 | L13: =Portugal!O16 -> 1,070 | M13: =Austria!O16 -> 304 | N13: =Sweden!O16 -> 1,224 | O13: =O15+O16 -> 664 | P13: =SUM(C13:O13) -> 35,465
A14: engrais/fattening/Mast | C14: =Germany!O17 -> 650 | D14: =France!O17 -> 810 | E14: =Italy!O17 -> 917 | F14: ='The Netherlands'!O17 -> 266 | G14: =Belgium!O17 -> 280 | H14: =UK!O17 -> 1,157 | I14: =Ireland!O17 -> 949 | J14: =Denmark!O17 -> 482 | K14: =Spain!O17 -> 2,611 | L14: =Portugal!O17 -> 364 | M14: =Austria!O17 -> : | N14: =Sweden!O17 -> 189 | O14: =Finland!O17 -> : | P14: :
A15: VL/dairy cow/Milchkühe | C15: =Germany!O18 -> 5,454 | D15: =France!O18 -> 2,995 | E15: =Italy!O18 -> 2,797 | F15: ='The Netherlands'!O18 -> 2,998 | G15: =Belgium!O18 -> 560 | H15: =UK!O18 -> 3,028 | I15: =Ireland!O18 -> 948 | J15: =Denmark!O18 -> 482 | K15: =Spain!O18 -> 2,070 | L15: =Portugal!O18 -> 589 | M15: =Austria!O18 -> : | N15: =Sweden!O18 -> 1,016 | O15: =Finland!O18 -> 624 | P15: :
A16: veaux (aliments d'allaitement non compris)/calves | C16: =Germany!O19 -> 165 | D16: =France!O19 -> 240 | E16: =Italy!O19 -> 147 | F16: ='The Netherlands'!O19 -> 42 | G16: =Belgium!O19 -> 91 | H16: =UK!O19 -> 171 | I16: =Ireland!O19 -> 179 | J16: =Denmark!O19 -> 338 | K16: : | L16: =Portugal!O19 -> 75 | M16: =Austria!O19 -> : | N16: =Sweden!O19 -> : | O16: =Finland!O19 -> 40 | P16: :
A17: (excluding milk replacers)/Kälber (exkl. Milchaustauscher)
A18: autres/others/Andere | C18: =Germany!O20 -> 351 | D18: =France!O20 -> 190 | E18: =Italy!O20 -> : | F18: ='The Netherlands'!O20 -> : | G18: =Belgium!O20 -> 115 | H18: =UK!O20 -> 87 | I18: =Ireland!O20 -> 68 | J18: : | K18: =Spain!O20 -> 565 | L18: =Portugal!O20 -> 42 | M18: =Austria!O20 -> : | N18: =Sweden!O20 -> 19 | O18: =Finland!O20 -> : | P18: :
A21: Porcins/Pigs/Suini/Schweine | C21: =Germany!O23 -> 7,291 | D21: =France!O23 -> 6,964 | E21: =Italy!O23 -> 2,709 | F21: ='The Netherlands'!O23 -> 5,309 | G21: =Belgium!O23 -> 3,509 | H21: =UK!O23 -> 1,836 | I21: =Ireland!O23 -> 748 | J21: =Denmark!O23 -> 3,702 | K21: =Spain!O23 -> 8,137 | L21: =Portugal!O23 -> 1,260 | M21: =Austria!O23 -> 218 | N21: =N22+N23+N24+N25 -> 500 | O21: 318 | P21: =SUM(C21:O21) -> 42,501
A22: porcelets/piglets/Ferkel | C22: =Germany!O24 -> 1,419 | D22: =France!O24 -> 899 | E22: =Italy!O24 -> : | F22: ='The Netherlands'!O24 -> 734 | G22: =Belgium!O24 -> 709 | H22: =UK!O24 -> 94 | I22: =Ireland!O24 -> 95 | J22: =Denmark!O24 -> 725 | K22: =Spain!O24 -> 1,045 | L22: =Portugal!O24 -> 184 | M22: =Austria!O24 -> : | N22: =Sweden!O24 -> 77 | O22: =Finland!O24 -> 46 | P22: :
A23: porcs engrais/pigs for fattening/Mastschweine | C23: =Germany!O25 -> 4,044 | D23: =France!O25 -> 4,740 | E23: =Italy!O25 -> : | F23: ='The Netherlands'!O25 -> 3,353 | G23: =Belgium!O25 -> 2,800 | H23: =UK!O25 -> 1,210 | I23: =Ireland!O25 -> 498 | J23: =Denmark!O25 -> 1,962 | K23: =Spain!O25 -> 5,735 | L23: =Portugal!O25 -> 792 | M23: =Austria!O25 -> : | N23: =Sweden!O25 -> 273 | O23: =Finland!O25 -> 184 | P23: :
A24: reproducteurs/breeding pigs/Zuchtschweine | C24: =Germany!O26 -> 1,208 | D24: =France!O26 -> 1,325 | E24: =Italy!O26 -> : | F24: ='The Netherlands'!O26 -> 1,222 | H24: =UK!O26 -> 512 | I24: =Ireland!O26 -> 137 | J24: =Denmark!O26 -> 1,015 | K24: =Spain!O26 -> 1,277 | L24: =Portugal!O26 -> 267 | M24: =Austria!O26 -> : | N24: =Sweden!O26 -> 126 | O24: =Finland!O26 -> 37 | P24: :
A25: autres/others/Andere | C25: =Germany!O27 -> 620 | D25: : | E25: =Italy!O27 -> : | F25: ='The Netherlands'!O27 -> : | H25: =UK!O27 -> 20 | I25: =Ireland!O27 -> 18 | J25: : | K25: =Spain!O27 -> 80 | L25: =Portugal!O27 -> 17 | M25: =Austria!O27 -> : | N25: =Sweden!O27 -> 24 | O25: =Finland!O27 -> 51 | P25: :
A28: Volaille/Poultry/Volatili/Geflügel | C28: =Germany!O30 -> 5,068 | D28: =France!O30 -> 9,443 | E28: =Italy!O30 -> 5,176 | F28: ='The Netherlands'!O30 -> 3,296 | G28: =Belgium!O30 -> 1,436 | H28: =UK!O30 -> 6,248 | I28: =Ireland!O30 -> 493 | J28: =Denmark!O30 -> 650 | K28: =Spain!O30 -> 4,559 | L28: =Portugal!O30 -> 1,400 | M28: =Austria!O30 -> 386 | N28: =N29+N30+N31 -> 491 | O28: 295 | P28: =SUM(C28:O28) -> 38,941
A29: broilers | C29: =Germany!O31 -> 1,549 | D29: =France!O31 -> 3,301 | E29: =Italy!O31 -> 2,444 | F29: ='The Netherlands'!O31 -> 1,596 | G29: =Belgium!O31 -> 670 | H29: =UK!O31 -> 3,347 | I29: =Ireland!O31 -> 259 | J29: =Denmark!O31 -> 528 | K29: =Spain!O31 -> 2,430 | L29: =Portugal!O31 -> 842 | M29: =Austria!O31 -> : | N29: =Sweden!O31 -> 199 | O29: =Finland!O31 -> 185 | P29: :
A30: poulettes & pondeuses/chicks & layers/Jung- & Legehennen | C30: =Germany!O32 -> 2,319 | D30: =France!O32 -> 2,213 | E30: =Italy!O32 -> 1,461 | F30: ='The Netherlands'!O32 -> 1,700 | G30: =Belgium!O32 -> 600 | H30: =UK!O32 -> 1,242 | I30: =Ireland!O32 -> 119 | J30: =Denmark!O32 -> 46 | K30: =Spain!O32 -> 1,830 | L30: =Portugal!O32 -> 376 | M30: =Austria!O32 -> : | N30: =Sweden!O32 -> 209 | O30: =Finland!O32 -> 72 | P30: :
A31: autres/others/Andere | C31: =Germany!O33 -> 1,200 | D31: =France!O33 -> 3,929 | E31: =Italy!O33 -> 1,271 | F31: ='The Netherlands'!O33 -> : | G31: =Belgium!O33 -> 166 | H31: =UK!O33 -> 1,659 | I31: =Ireland!O33 -> 115 | J31: =Denmark!O33 -> 76 | K31: =Spain!O33 -> 299 | L31: =Portugal!O33 -> 182 | M31: =Austria!O33 -> : | N31: =Sweden!O33 -> 83 | O31: =Finland!O33 -> 38 | P31: :
A34: Al. d'allait./Milk replacers/Sostit. del latte/Milchaust. | C34: =Germany!O36 -> 167 | D34: =France!O36 -> 512 | E34: =Italy!O36 -> 186 | F34: ='The Netherlands'!O36 -> 666 | G34: =Belgium!O36 -> 53 | H34: =UK!O36 -> 14 | I34: =Ireland!O36 -> 10 | J34: =Denmark!O36 -> 0 | K34: =Spain!O36 -> 0 | L34: =Portugal!O36 -> 0 | M34: =Austria!O36 -> 0 | N34: =Sweden!O36 -> 6 | O34: =Finland!O36 -> 0 | P34: =SUM(C34:O34) -> 1,614
A37: Autres/others/altri/Andere | C37: =Germany!O39 -> 549 | D37: =France!O39 -> 1,604 | E37: =Italy!O39 -> 1,214 | F37: ='The Netherlands'!O39 -> 772 | G37: =Belgium!O39 -> 247 | H37: =UK!O39 -> 1,133 | I37: =Ireland!O39 -> 413 | J37: =Denmark!O39 -> 128 | K37: =Spain!O39 -> 1,706 | L37: =Portugal!O39 -> 208 | M37: =Austria!O39 -> 60 | N37: =Sweden!O39 -> 49 | O37: =Finland!O39 -> 91 | P37: =SUM(C37:O37) -> 8,174
A40: TOTAL | C40: =C37+C34+C28+C21+C13 -> 19,695 | D40: 22,758 | E40: 13,146 | F40: 13,349 | G40: 6,291 | H40: 13,674 | I40: 3,808 | J40: 5,782 | K40: 19,648 | L40: 3,938 | M40: 968 | N40: 2,270 | O40: 1,368 | P40: 126,695
A43: * Sans le Luxembourg et la Grèce/ohne Luxemburg und Griechenland/Without Luxemburg and Greece/Senza Lussemburgo e Ella
A45: : non disponible/not available/nicht verfügbar

Sheet 2002-03
A1: 2005-05-04
A3: PRODUCTION INDUSTRIELLE D'ALIMENTS COMPOSES | X3: INDUSTRIELLE MISCHFUTTERPRODUKTION
A4: PRODUZIONE INDUSTRIALE DI MANGIMI COMPOSTI | M4: 2002-2003 | X4: INDUSTRIAL COMPOUND PRODUCTION
M5: definitif/final | X5: (1 000 t )
A9: PAYS | C9: BOVINS/RINDER | G9: PORCS/SCHWEINE | K9: VOLAILLE/GEFLÜGEL | M9: A. ALLAITEMENT/MILCHAUST. | S9: AUTRES/ANDERE | V9: TOTAL/INSGESAMT
A10: LAND | C10: BOVINI/CATTLE | G10: SUINI/PIGS | K10: VOLATILI/POULTRY | M10: SOSTIT. DEL LATTE/MILKREPLACERS | S10: ALTRI ANIMALI/OTHERS | V10: TOTALE/TOTAL
A11: PAESE
A12: COUNTRY | B12: 2002 | C12: 2003 | D12: %TAV | F12: 2002 | G12: 2003 | H12: %TAV | J12: 2002 | K12: 2003 | L12: %TAV | N12: 2002 | O12: 2003 | P12: %TAV | R12: 2002 | S12: 2003 | T12: %TAV | V12: 2002 | W12: 2003 | X12: %TAV
A15: D | B15: =Germany!O$16 -> 6,620 | C15: =Germany!P$16 -> 6,717 | D15: =((C15/B15)-1)*100 -> 1.5 | F15: =Germany!O$23 -> 7,291 | G15: =Germany!P$23 -> 7,444 | H15: =((G15/F15)-1)*100 -> 2.1 | J15: =Germany!O$30 -> 5,068 | K15: =Germany!P$30 -> 5,075 | L15: =((K15/J15)-1)*100 -> 0.1 | N15: =Germany!O$36 -> 167 | O15: =Germany!P$36 -> 167 | P15: =((O15/N15)-1)*100 -> 0.0 | R15: =Germany!O$39 -> 549 | S15: =Germany!P$39 -> 606 | T15: =((S15/R15)-1)*100 -> 10.4 | V15: =R15+N15+J15+F15+B15 -> 19,695 | W15: 20,009 | X15: =((W15/V15)-1)*100 -> 1.6
A17: F | B17: =France!O$16 -> 4,235 | C17: =France!P$16 -> 4,459 | D17: =((C17/B17)-1)*100 -> 5.3 | F17: =France!O$23 -> 6,964 | G17: =France!P$23 -> 6,814 | H17: =((G17/F17)-1)*100 -> -2.2 | J17: =France!O$30 -> 9,443 | K17: =France!P$30 -> 9,238 | L17: =((K17/J17)-1)*100 -> -2.2 | N17: =France!O$36 -> 512 | O17: =France!P$36 -> 488 | P17: =((O17/N17)-1)*100 -> -4.7 | R17: =France!#REF!+France!O$39 ->  | S17: =France!#REF!+France!P$39 ->  | T17: =((S17/R17)-1)*100 ->  | V17: =R17+N17+J17+F17+B17 ->  | X17: =((W17/V17)-1)*100 -> 
A19: I | B19: =Italy!O$16 -> 3,861 | C19: =Italy!P$16 -> 3,919 | D19: =((C19/B19)-1)*100 -> 1.5 | F19: =Italy!O$23 -> 2,709 | G19: =Italy!P$23 -> 2,757 | H19: =((G19/F19)-1)*100 -> 1.8 | J19: =Italy!O$30 -> 5,176 | K19: =Italy!P$30 -> 5,043 | L19: =((K19/J19)-1)*100 -> -2.6 | N19: =Italy!O$36 -> 186 | O19: =Italy!P$36 -> 172 | P19: =((O19/N19)-1)*100 -> -7.5 | R19: =#REF!+Italy!O$39 ->  | S19: =#REF!+Italy!P$39 ->  | T19: =((S19/R19)-1)*100 ->  | V19: =R19+N19+J19+F19+B19 ->  | X19: =((W19/V19)-1)*100 -> 
A21: NL | B21: ='The Netherlands'!O16 -> 3,306 | C21: ='The Netherlands'!P16 -> 3,388 | D21: =((C21/B21)-1)*100 -> 2.5 | F21: ='The Netherlands'!O23 -> 5,309 | G21: ='The Netherlands'!P23 -> 5,227 | H21: =((G21/F21)-1)*100 -> -1.5 | J21: ='The Netherlands'!O30 -> 3,296 | K21: ='The Netherlands'!P30 -> 2,745 | L21: =((K21/J21)-1)*100 -> -16.7 | N21: ='The Netherlands'!O$36 -> 666 | O21: ='The Netherlands'!P$36 -> 690 | P21: =((O21/N21)-1)*100 -> 3.6 | R21: ='The Netherlands'!O$39 -> 772 | S21: ='The Netherlands'!P$39 -> 796 | T21: =((S21/R21)-1)*100 -> 3.1 | V21: =R21+N21+J21+F21+B21 -> 13,349 | W21: 12,846 | X21: =((W21/V21)-1)*100 -> -3.8
A23: B | B23: =Belgium!O$16 -> 1,046 | C23: =Belgium!P$16 -> 1,074 | D23: =((C23/B23)-1)*100 -> 2.7 | F23: =Belgium!O$23 -> 3,509 | G23: =Belgium!P$23 -> 3,457 | H23: =((G23/F23)-1)*100 -> -1.5 | J23: =Belgium!O$30 -> 1,436 | K23: =Belgium!P$30 -> 1,313 | L23: =((K23/J23)-1)*100 -> -8.6 | N23: =Belgium!O$36 -> 53 | O23: =Belgium!P$36 -> 52 | P23: =((O23/N23)-1)*100 -> -1.9 | R23: =Belgium!O$39 -> 247 | S23: =Belgium!P$39 -> 254 | T23: =((S23/R23)-1)*100 -> 2.8 | V23: =R23+N23+J23+F23+B23 -> 6,291 | W23: 6,150 | X23: =((W23/V23)-1)*100 -> -2.2
A25: UK | B25: =UK!O16 -> 4,443 | C25: =UK!P16 -> 4,743 | D25: =((C25/B25)-1)*100 -> 6.8 | F25: =UK!O23 -> 1,836 | G25: =UK!P23 -> 1,593 | H25: =((G25/F25)-1)*100 -> -13.2 | J25: =UK!O30 -> 6,248 | K25: =UK!P30 -> 6,159 | L25: =((K25/J25)-1)*100 -> -1.4 | N25: =UK!O36 -> 14 | O25: =UK!P36 -> 16 | P25: =((O25/N25)-1)*100 -> 14.3 | R25: =UK!O39 -> 1,133 | S25: =UK!P39 -> 1,207 | T25: =((S25/R25)-1)*100 -> 6.5 | V25: =R25+J25+F25+B25+N25 -> 13,674 | W25: 13,718 | X25: =((W25/V25)-1)*100 -> 0.3
A27: IRL | B27: =Ireland!O$16 -> 2,144 | C27: =Ireland!P$16 -> 2,101 | D27: =((C27/B27)-1)*100 -> -2.0 | F27: =Ireland!O$23 -> 748 | G27: =Ireland!P$23 -> 687 | H27: =((G27/F27)-1)*100 -> -8.2 | J27: =Ireland!O$30 -> 493 | K27: =Ireland!P$30 -> 485 | L27: =((K27/J27)-1)*100 -> -1.6 | N27: =Ireland!O$36 -> 10 | O27: =Ireland!P$36 -> 9 | P27: =((O27/N27)-1)*100 -> -10.0 | R27: =Ireland!#REF!+Ireland!O$39 ->  | S27: =Ireland!#REF!+Ireland!P$39 ->  | T27: =((S27/R27)-1)*100 ->  | V27: =R27+N27+J27+F27+B27 ->  | X27: =((W27/V27)-1)*100 -> 
A29: DK | B29: =Denmark!O$16 -> 1,302 | C29: =Denmark!P$16 -> 1,274 | D29: =((C29/B29)-1)*100 -> -2.2 | F29: =Denmark!O$23 -> 3,702 | G29: =Denmark!P$23 -> 3,518 | H29: =((G29/F29)-1)*100 -> -5.0 | J29: =Denmark!O$30 -> 650 | K29: =Denmark!P$30 -> 617 | L29: =((K29/J29)-1)*100 -> -5.1 | N29: =Denmark!O$36 -> 0 | O29: =Denmark!P$36 -> 0 | P29: 0.0 | R29: =Denmark!O$39 -> 128 | S29: =Denmark!P$39 -> 153 | T29: =((S29/R29)-1)*100 -> 19.5 | V29: =R29+N29+J29+F29+B29 -> 5,782 | W29: 5,562 | X29: =((W29/V29)-1)*100 -> -3.8
A31: ESP | B31: =Spain!O$16 -> 5,246 | C31: =Spain!P$16 -> 5,050 | D31: =((C31/B31)-1)*100 -> -3.7 | F31: =Spain!O$23 -> 8,137 | G31: =Spain!P$23 -> 8,235 | H31: =((G31/F31)-1)*100 -> 1.2 | J31: =Spain!O$30 -> 4,559 | K31: =Spain!P$30 -> 4,425 | L31: =((K31/J31)-1)*100 -> -2.9 | N31: =Spain!O$36 -> 0 | O31: =Spain!P$36 -> 0 | P31: 0.0 | R31: =Spain!#REF!+Spain!O$39 ->  | S31: =Spain!#REF!+Spain!P$39 ->  | T31: =((S31/R31)-1)*100 ->  | V31: =R31+N31+J31+F31+B31 ->  | X31: =((W31/V31)-1)*100 -> 
A33: P | B33: =Portugal!O$16 -> 1,070 | C33: =Portugal!P$16 -> 1,060 | D33: =((C33/B33)-1)*100 -> -0.9 | F33: =Portugal!O$23 -> 1,260 | G33: =Portugal!P$23 -> 1,225 | H33: =((G33/F33)-1)*100 -> -2.8 | J33: =Portugal!O$30 -> 1,400 | K33: =Portugal!P$30 -> 1,280 | L33: =((K33/J33)-1)*100 -> -8.6 | N33: =Portugal!O$36 -> 0 | O33: =Portugal!P$36 -> 0 | P33: 0.0 | R33: =Portugal!#REF!+Portugal!O$39 ->  | S33: =Portugal!#REF!+Portugal!P$39 ->  | T33: =((S33/R33)-1)*100 ->  | V33: =R33+N33+J33+F33+B33 ->  | X33: =((W33/V33)-1)*100 -> 
A35: A | B35: =Austria!O$16 -> 304 | C35: =Austria!P$16 -> 327 | D35: =((C35/B35)-1)*100 -> 7.6 | F35: =Austria!O$23 -> 218 | G35: =Austria!P$23 -> 216 | H35: =((G35/F35)-1)*100 -> -0.9 | J35: =Austria!O$30 -> 386 | K35: =Austria!P$30 -> 394 | L35: =((K35/J35)-1)*100 -> 2.1 | N35: =Austria!O$36 -> 0 | O35: =Austria!P$36 -> 0 | R35: =Austria!#REF!+Austria!O$39 ->  | S35: =Austria!#REF!+Austria!P$39 ->  | T35: =((S35/R35)-1)*100 ->  | V35: =R35+N35+J35+F35+B35 ->  | X35: =((W35/V35)-1)*100 -> 
A37: S | B37: =Sweden!O$16 -> 1,224 | C37: =Sweden!P$16 -> 1,197 | D37: =((C37/B37)-1)*100 -> -2.2 | F37: =Sweden!O$23 -> 500 | G37: =Sweden!P$23 -> 491 | H37: =((G37/F37)-1)*100 -> -1.8 | J37: =Sweden!O$30 -> 491 | K37: =Sweden!P$30 -> 480 | L37: =((K37/J37)-1)*100 -> -2.2 | N37: =Sweden!O$36 -> 6 | O37: =Sweden!P$36 -> 6 | P37: =((O37/N37)-1)*100 -> 0.0 | R37: =Sweden!#REF!+Sweden!O$39 ->  | S37: =Sweden!#REF!+Sweden!P$39 ->  | T37: =((S37/R37)-1)*100 ->  | V37: =R37+N37+J37+F37+B37 ->  | X37: =((W37/V37)-1)*100 -> 
A39: FIN | B39: =Finland!O$16 -> 664 | C39: =Finland!P$16 -> 654 | D39: =((C39/B39)-1)*100 -> -1.5 | F39: =Finland!O$23 -> 318 | G39: =Finland!P$23 -> 349 | H39: =((G39/F39)-1)*100 -> 9.7 | J39: =Finland!O$30 -> 295 | K39: =Finland!P$30 -> 307 | L39: =((K39/J39)-1)*100 -> 4.1 | N39: =Finland!O$36 -> 0 | O39: =Finland!P$36 -> 0 | R39: =Finland!#REF!+Finland!O$39 ->  | S39: =Finland!#REF!+Finland!P$39 ->  | T39: =((S39/R39)-1)*100 ->  | V39: =R39+J39+F39+B39 ->  | X39: =((W39/V39)-1)*100 -> 
A42: EUR 15 * | B42: =SUM(B15:B39) -> 35,465 | C42: 35,963 | D42: =((C42/B42)-1)*100 -> 1.4 | F42: =SUM(F15:F39) -> 42,501 | G42: 42,013 | H42: =((G42/F42)-1)*100 -> -1.1 | J42: =SUM(J15:J39) -> 38,941 | K42: 37,561 | L42: =((K42/J42)-1)*100 -> -3.5 | N42: =SUM(N15:N39) -> 1,614 | O42: 1,600 | P42: =((O42/N42)-1)*100 -> -0.9 | R42: =SUM(R15:R39) ->  | T42: =((S42/R42)-1)*100 ->  | V42: =SUM(V15:V39) ->  | X42: =((W42/V42)-1)*100 -> 
A45: * Sans le Luxembourg et la Grèce/Ohne Luxemburg und Griechenland/Without Luxemburg and Greece/Senza Lussemburgo e Ellas
A47: : non disponible/not available
A51: 2005-05-04
A53: PRODUCTION INDUSTRIELLE D'ALIMENTS COMPOSES | X53: INDUSTRIELLE MISCHFUTTERPRODUKTION
A54: PRODUZIONE INDUSTRIALE DI MANGIMI COMPOSTI | M54: 2002-2003 | X54: INDUSTRIAL COMPOUND PRODUCTION
M55: definitif/final | X55: (1 000 t )
A58: PAYS | C58: BOVINS/RINDER | G58: PORCS/SCHWEINE | K58: VOLAILLE/GEFLÜGEL | M58: A. ALLAITEMENT/MILCHAUST. | S58: AUTRES/ANDERE | V58: TOTAL/INSGESAMT
A59: LAND | C59: BOVINI/CATTLE | G59: SUINI/PIGS | K59: VOLATILI/POULTRY | M59: SOSTIT. DEL LATTE/MILKREPLACERS | S59: ALTRI ANIMALI/OTHERS | V59: TOTALE/TOTAL
A60: PAESE
A61: COUNTRY | B61: 2002 | C61: 2003 | D61: %TAV | F61: 2002 | G61: 2003 | H61: %TAV | J61: 2002 | K61: 2003 | L61: %TAV | N61: 2002 | O61: 2003 | P61: %TAV | R61: 2002 | S61: 2003 | T61: %TAV | V61: 2002 | W61: 2003 | X61: %TAV
A64: D | B64: =Germany!O$16 -> 6,620 | C64: =Germany!P$16 -> 6,717 | D64: =((C64/B64)-1)*100 -> 1.5 | F64: =Germany!O$23 -> 7,291 | G64: =Germany!P$23 -> 7,444 | H64: =((G64/F64)-1)*100 -> 2.1 | J64: =Germany!O$30 -> 5,068 | K64: =Germany!P$30 -> 5,075 | L64: =((K64/J64)-1)*100 -> 0.1 | N64: =Germany!O$36 -> 167 | O64: =Germany!P$36 -> 167 | P64: =((O64/N64)-1)*100 -> 0.0 | R64: =Germany!O$39 -> 549 | S64: =Germany!P$39 -> 606 | T64: =((S64/R64)-1)*100 -> 10.4 | V64: =R64+N64+J64+F64+B64 -> 19,695 | W64: 20,009 | X64: =((W64/V64)-1)*100 -> 1.6
A65: F | B65: =France!O$16 -> 4,235 | C65: =France!P$16 -> 4,459 | D65: 5.3 | F65: =France!O$23 -> 6,964 | G65: =France!P$23 -> 6,814 | H65: -2.2 | J65: =France!O$30 -> 9,443 | K65: =France!P$30 -> 9,238 | L65: -2.2 | N65: =France!O$36 -> 512 | O65: =France!P$36 -> 488 | P65: -4.7 | R65: =France!O$39 -> 1,604 | S65: =France!P$39 -> 1,578 | T65: -1.6 | V65: =R65+N65+J65+F65+B65 -> 22,758 | W65: 22,577 | X65: -0.8
A66: I | B66: =Italy!O$16 -> 3,861 | C66: =Italy!P$16 -> 3,919 | D66: 1.5 | F66: =Italy!O$23 -> 2,709 | G66: =Italy!P$23 -> 2,757 | H66: 1.8 | J66: =Italy!O$30 -> 5,176 | K66: =Italy!P$30 -> 5,043 | L66: -2.6 | N66: =Italy!O$36 -> 186 | O66: =Italy!P$36 -> 172 | P66: -7.5 | R66: =+Italy!O$39 -> 1,214 | S66: =+Italy!P$39 -> 1,314 | T66: 8.2 | V66: =R66+N66+J66+F66+B66 -> 13,146 | W66: 13,205 | X66: 0.4
A67: NL | B67: ='The Netherlands'!O$16 -> 3,306 | C67: ='The Netherlands'!P$16 -> 3,388 | D67: 2.5 | F67: ='The Netherlands'!O$23 -> 5,309 | G67: ='The Netherlands'!P$23 -> 5,227 | H67: -1.5 | J67: ='The Netherlands'!O$30 -> 3,296 | K67: ='The Netherlands'!P$30 -> 2,745 | L67: -16.7 | N67: ='The Netherlands'!O$36 -> 666 | O67: ='The Netherlands'!P$36 -> 690 | P67: 3.6 | R67: ='The Netherlands'!O$39 -> 772 | S67: ='The Netherlands'!P$39 -> 796 | T67: 3.1 | V67: =R67+N67+J67+F67+B67 -> 13,349 | W67: 12,846 | X67: -3.8
A68: B | B68: =Belgium!O$16 -> 1,046 | C68: =Belgium!P$16 -> 1,074 | D68: 2.7 | F68: =Belgium!O$23 -> 3,509 | G68: =Belgium!P$23 -> 3,457 | H68: -1.5 | J68: =Belgium!O$30 -> 1,436 | K68: =Belgium!P$30 -> 1,313 | L68: -8.6 | N68: =Belgium!O$36 -> 53 | O68: =Belgium!P$36 -> 52 | P68: -1.9 | R68: =Belgium!O$39 -> 247 | S68: =Belgium!P$39 -> 254 | T68: 2.8 | V68: =R68+N68+J68+F68+B68 -> 6,291 | W68: 6,150 | X68: -2.2
A69: UK | B69: =UK!O$16 -> 4,443 | C69: =UK!P$16 -> 4,743 | D69: 6.8 | F69: =UK!O$23 -> 1,836 | G69: =UK!P$23 -> 1,593 | H69: -13.2 | J69: =UK!O$30 -> 6,248 | K69: =UK!P$30 -> 6,159 | L69: -1.4 | N69: =UK!O$36 -> 14 | O69: =UK!P$36 -> 16 | P69: 14.3 | R69: =UK!O$39 -> 1,133 | S69: =UK!P$39 -> 1,207 | T69: 6.5 | V69: =R69+N69+J69+F69+B69 -> 13,674 | W69: 13,718 | X69: 0.3
A70: IRL | B70: =Ireland!O$16 -> 2,144 | C70: =Ireland!P$16 -> 2,101 | D70: -2.0 | F70: =Ireland!O$23 -> 748 | G70: =Ireland!P$23 -> 687 | H70: -8.2 | J70: =Ireland!O$30 -> 493 | K70: =Ireland!P$30 -> 485 | L70: -1.6 | N70: =Ireland!O$36 -> 10 | O70: =Ireland!P$36 -> 9 | P70: -10.0 | R70: =Ireland!O$39 -> 413 | S70: =Ireland!P$39 -> 413 | T70: 0.0 | V70: =R70+N70+J70+F70+B70 -> 3,808 | W70: 3,695 | X70: -3.0
A71: DK | B71: =Denmark!O$16 -> 1,302 | C71: =Denmark!P$16 -> 1,274 | D71: -2.2 | F71: =Denmark!O$23 -> 3,702 | G71: =Denmark!P$23 -> 3,518 | H71: -5.0 | J71: =Denmark!O$30 -> 650 | K71: =Denmark!P$30 -> 617 | L71: -5.1 | N71: =Denmark!O$36 -> 0 | O71: =Denmark!P$36 -> 0 | P71: 0.0 | R71: =Denmark!O$39 -> 128 | S71: =Denmark!P$39 -> 153 | T71: 19.5 | V71: =R71+N71+J71+F71+B71 -> 5,782 | W71: 5,562 | X71: -3.8
A72: ESP | B72: =Spain!O$16 -> 5,246 | C72: =Spain!P$16 -> 5,050 | D72: -3.7 | F72: =Spain!O$23 -> 8,137 | G72: =Spain!P$23 -> 8,235 | H72: 1.2 | J72: =Spain!O$30 -> 4,559 | K72: =Spain!P$30 -> 4,425 | L72: -2.9 | N72: =Spain!O$36 -> 0 | O72: =Spain!P$36 -> 0 | P72: 0.0 | R72: =Spain!O$39 -> 1,706 | S72: =Spain!P$39 -> 1,715 | T72: 0.5 | V72: =R72+N72+J72+F72+B72 -> 19,648 | W72: 19,425 | X72: -1.1
A73: P | B73: =Portugal!O$16 -> 1,070 | C73: =Portugal!P$16 -> 1,060 | D73: -0.9 | F73: =Portugal!O$23 -> 1,260 | G73: =Portugal!P$23 -> 1,225 | H73: -2.8 | J73: =Portugal!O$30 -> 1,400 | K73: =Portugal!P$30 -> 1,280 | L73: -8.6 | N73: =Portugal!O$36 -> 0 | O73: =Portugal!P$36 -> 0 | P73: 0.0 | R73: =Portugal!O$39 -> 208 | S73: =Portugal!P$39 -> 213 | T73: 2.4 | V73: =R73+N73+J73+F73+B73 -> 3,938 | W73: 3,778 | X73: -4.1
A74: A | B74: =Austria!O$16 -> 304 | C74: =Austria!P$16 -> 327 | D74: 7.6 | F74: =Austria!O$23 -> 218 | G74: =Austria!P$23 -> 216 | H74: -0.9 | J74: =Austria!O$30 -> 386 | K74: =Austria!P$30 -> 394 | L74: 2.1 | N74: =Austria!O$36 -> 0 | O74: =Austria!P$36 -> 0 | P74: 0.0 | R74: =Austria!O$39 -> 60 | S74: =Austria!P$39 -> 64 | T74: 6.7 | V74: =R74+N74+J74+F74+B74 -> 968 | W74: 1,001 | X74: 3.4
A75: S | B75: =Sweden!O$16 -> 1,224 | C75: =Sweden!P$16 -> 1,197 | D75: -2.2 | F75: =Sweden!O$23 -> 500 | G75: =Sweden!P$23 -> 491 | H75: -1.8 | J75: =Sweden!O$30 -> 491 | K75: =Sweden!P$30 -> 480 | L75: -2.2 | N75: =Sweden!O$36 -> 6 | O75: =Sweden!P$36 -> 6 | P75: =((O75/N75)-1)*100 -> 0.0 | R75: =Sweden!O$39 -> 49 | S75: =Sweden!P$39 -> 50 | T75: 2.0 | V75: =R75+N75+J75+F75+B75 -> 2,270 | W75: 2,224 | X75: -2.0
A76: FIN | B76: =Finland!O$16 -> 664 | C76: =Finland!P$16 -> 654 | D76: -1.5 | F76: =Finland!O$23 -> 318 | G76: =Finland!P$23 -> 349 | H76: 9.7 | J76: =Finland!O$30 -> 295 | K76: =Finland!P$30 -> 307 | L76: 4.1 | N76: =Finland!O$36 -> 0 | O76: =Finland!P$36 -> 0 | P76: 0.0 | R76: =Finland!O$39 -> 91 | S76: =Finland!P$39 -> 88 | T76: -3.3 | V76: =R76+J76+F76+B76 -> 1,368 | W76: 1,398 | X76: 2.2
A78: EUR 15 * | B78: =SUM(B64:B76) -> 35,465 | C78: 35,963 | D78: =((C78/B78)-1)*100 -> 1.4 | F78: =SUM(F64:F76) -> 42,501 | G78: 42,013 | H78: =((G78/F78)-1)*100 -> -1.1 | J78: =SUM(J64:J76) -> 38,941 | K78: 37,561 | L78: =((K78/J78)-1)*100 -> -3.5 | N78: =SUM(N64:N76) -> 1,614 | O78: 1,600 | P78: =((O78/N78)-1)*100 -> -0.9 | R78: =SUM(R64:R76) -> 8,174 | S78: 8,451 | T78: =((S78/R78)-1)*100 -> 3.4 | V78: =SUM(V64:V76) -> 126,695 | W78: 125,588 | X78: =((W78/V78)-1)*100 -> -0.9
A80: CY | B80: =Cyprus!O$16 -> 82 | C80: =Cyprus!P$16 -> 83 | D80: =((C80/B80)-1)*100 -> 1.2 | F80: =Cyprus!O$23 -> 12 | G80: =Cyprus!P$23 -> 13 | H80: =((G80/F80)-1)*100 -> 8.3 | J80: =Cyprus!O$30 -> 63 | K80: =Cyprus!P$30 -> 64 | L80: =((K80/J80)-1)*100 -> 1.6 | N80: =Cyprus!O$36 -> 0 | O80: =Cyprus!P$36 -> 0 | P80: 0.0 | R80: =Cyprus!O$39 -> 73 | S80: =Cyprus!P$39 -> 74 | T80: =((S80/R80)-1)*100 -> 1.4 | V80: =R80+N80+J80+F80+B80 -> 230 | W80: 234 | X80: =((W80/V80)-1)*100 -> 1.7
A81: CZ | B81: ='Czech Rep'!O$16 -> 577 | C81: ='Czech Rep'!P$16 -> 498 | D81: -13.7 | F81: ='Czech Rep'!O$23 -> 1,411 | G81: ='Czech Rep'!P$23 -> 1,475 | H81: 4.5 | J81: ='Czech Rep'!O$30 -> 1,090 | K81: ='Czech Rep'!P$30 -> 1,038 | L81: -4.8 | N81: ='Czech Rep'!O$36 -> 0 | O81: ='Czech Rep'!P$36 -> 6 | P81: 0.0 | R81: ='Czech Rep'!O$39 -> 128 | S81: ='Czech Rep'!P$39 -> 121 | T81: -5.5 | V81: =R81+N81+J81+F81+B81 -> 3,206 | W81: 3,138 | X81: -2.1
A82: EE | B82: =Estonia!O$16 -> 31 | C82: =Estonia!P$16 -> 28 | D82: -9.7 | F82: =Estonia!O$23 -> 130 | G82: =Estonia!P$23 -> 117 | H82: -10.0 | J82: =Estonia!O$30 -> 56 | K82: =Estonia!P$30 -> 58 | L82: 3.6 | N82: =Estonia!O$36 -> 0 | O82: =Estonia!P$36 -> 0 | P82: 0.0 | R82: =Estonia!O$39 -> 4 | S82: =Estonia!P$39 -> 3 | T82: -25.0 | V82: =R82+N82+J82+F82+B82 -> 221 | W82: 206 | X82: -6.8
A83: HU | B83: =Hungary!O$16 -> 641 | C83: =Hungary!P$16 -> 686 | D83: 7.0 | F83: =Hungary!O$23 -> 2,613 | G83: =Hungary!P$23 -> 2,275 | H83: -12.9 | J83: =Hungary!O$30 -> 2,142 | K83: =Hungary!P$30 -> 1,980 | L83: -7.6 | N83: =Hungary!O$36 -> 0 | O83: =Hungary!P$36 -> 0 | P83: 0.0 | R83: =Hungary!O$39 -> 214 | S83: =Hungary!P$39 -> 182 | T83: -15.0 | V83: =R83+N83+J83+F83+B83 -> 5,610 | W83: 5,123 | X83: -8.7
A84: LV | B84: =Latvia!O$16 -> 11 | C84: =Latvia!P$16 -> 15 | D84: 36.4 | F84: =Latvia!O$23 -> 88 | G84: =Latvia!P$23 -> 86 | H84: -2.3 | J84: =Latvia!O$30 -> 98 | K84: =Latvia!P$30 -> 114 | L84: 16.3 | N84: =Latvia!O$36 -> 0 | O84: =Latvia!P$36 -> 0 | P84: 0.0 | R84: =Latvia!O$39 -> 3 | S84: =Latvia!P$39 -> 18 | T84: 500.0 | V84: =R84+N84+J84+F84+B84 -> 200 | W84: 233 | X84: 16.5
A85: LT | B85: =Lithuania!O$16 -> 13 | C85: =Lithuania!P$16 -> 7 | D85: -46.2 | F85: =Lithuania!O$23 -> 131 | G85: =Lithuania!P$23 -> 105 | H85: -19.8 | J85: =Lithuania!O$30 -> 96 | K85: =Lithuania!P$30 -> 123 | L85: 28.1 | N85: =Lithuania!O$36 -> 0 | O85: =Lithuania!P$36 -> 3 | P85: 0.0 | R85: =Lithuania!O$39 -> 87 | S85: =Lithuania!P$39 -> 5 | T85: -94.3 | V85: =R85+N85+J85+F85+B85 -> 327 | W85: 243 | X85: -25.7
A86: PL | B86: =Poland!O$16 -> 231 | C86: =Poland!P$16 -> 327 | D86: 41.6 | F86: =Poland!O$23 -> 999 | G86: =Poland!P$23 -> 1,352 | H86: 35.3 | J86: =Poland!O$30 -> 3,269 | K86: =Poland!P$30 -> 3,450 | L86: 5.5 | N86: =Poland!O$36 -> 0 | O86: =Poland!P$36 -> 0 | P86: 0.0 | R86: =Poland!O$39 -> 242 | S86: =Poland!P$39 -> 430 | T86: 100.0 | V86: =R86+N86+J86+F86+B86 -> 4,741 | W86: 5,559 | X86: 17.3
A87: SK | B87: =Slovakia!O$16 -> 291 | C87: =Slovakia!P$16 -> 281 | D87: -3.4 | F87: =Slovakia!O$23 -> 614 | G87: =Slovakia!P$23 -> 603 | H87: -1.8 | J87: =Slovakia!O$30 -> 424 | K87: =Slovakia!P$30 -> 377 | L87: -11.1 | N87: =Slovakia!O$36 -> 0 | O87: =Slovakia!P$36 -> 0 | P87: 0.0 | R87: =+Slovakia!O$39 -> 15 | S87: =+Slovakia!P$39 -> 18 | T87: =((S87/R87)-1)*100 -> 20.0 | V87: =R87+N87+J87+F87+B87 -> 1,344 | W87: 1,279 | X87: -4.8
A88: SI | B88: =Slovenia!O$16 -> 99 | C88: =Slovenia!P$16 -> 106 | D88: 7.1 | F88: =Slovenia!O$23 -> 129 | G88: =Slovenia!P$23 -> 136 | H88: 5.4 | J88: =Slovenia!O$30 -> 228 | K88: =Slovenia!P$30 -> 244 | L88: 7.0 | N88: =Slovenia!O$36 -> 0 | O88: =Slovenia!P$36 -> 0 | P88: 0.0 | R88: =Slovenia!O$39 -> 48 | S88: =Slovenia!P$39 -> 17 | T88: -64.6 | V88: =R88+N88+J88+F88+B88 -> 504 | W88: 503 | X88: -0.2
A90: EUR 25 ** | B90: =SUM(B78:B88) -> 37,441 | C90: 37,994 | D90: =((C90/B90)-1)*100 -> 1.5 | F90: =SUM(F78:F88) -> 48,628 | G90: 48,175 | H90: =((G90/F90)-1)*100 -> -0.9 | J90: =SUM(J78:J88) -> 46,407 | K90: 45,009 | L90: =((K90/J90)-1)*100 -> -3.0 | N90: =SUM(N78:N88) -> 1,614 | O90: 1,609 | P90: =((O90/N90)-1)*100 -> -0.3 | R90: =SUM(R78:R88) -> 8,988 | S90: 9,319 | T90: =((S90/R90)-1)*100 -> 3.7 | V90: =SUM(V78:V88) -> 143,078 | W90: 142,106 | X90: =((W90/V90)-1)*100 -> -0.7
A92: * Sans le Luxembourg et la Grèce/Ohne Luxemburg und Griechenland/Without Luxemburg and Greece/Senza Lussemburgo e Ellas
A93: ** Sans le Luxembourg, la Grèce et Malte/Ohne Luxemburg, Griechenland und Maltas/Without Luxemburg, Greece and Malta/Senza Lussemburgo, Ellas e Malta
A94: : non disponible/not available

Sheet 2003
A1: 2005-05-04
A3: PRODUCTION INDUSTRIELLE D'ALIMENTS COMPOSES | P3: INDUSTRIELLE MISCHFUTTERPRODUKTION
A4: PRODUZIONE INDUSTRIALE DI MANGIMI COMPOSTI | P4: INDUSTRIAL COMPOUND PRODUCTION
A5: 2003
A6: definitif/final
P7: (1 000 t)
A9: Catégories d'aliments composés/Mischfutterarten | C9: D | D9: F | E9: I | F9: NL | G9: B | H9: UK | I9: IRL | J9: DK | K9: ESP | L9: P | M9: A | N9: S | O9: FIN | P9: EU-15
A10: Tipi di mangimi compositi/Types of feed | P10: *
A13: Bovins/Cattle/Bovini/Rinder | C13: =Germany!P16 -> 6,717 | D13: =France!P16 -> 4,459 | E13: =Italy!P16 -> 3,919 | F13: ='The Netherlands'!P16 -> 3,388 | G13: =Belgium!P16 -> 1,074 | H13: =UK!P16 -> 4,743 | I13: =Ireland!P16 -> 2,101 | J13: =Denmark!P16 -> 1,274 | K13: =Spain!P16 -> 5,050 | L13: =Portugal!P16 -> 1,060 | M13: =Austria!P16 -> 327 | N13: =Sweden!P16 -> 1,197 | O13: =Finland!P16 -> 654 | P13: =SUM(C13:O13) -> 35,963
A14: engrais/fattening/Mast | C14: =Germany!P17 -> 620 | D14: =France!P17 -> 947 | E14: =Italy!P17 -> 933 | F14: ='The Netherlands'!P17 -> 276 | G14: =Belgium!P17 -> 322 | H14: =UK!P17 -> 1,309 | I14: =Ireland!P17 -> 949 | J14: =Denmark!P17 -> 519 | K14: =Spain!P17 -> 2,510 | L14: =Portugal!P17 -> 371 | M14: =Austria!P17 -> : | N14: =Sweden!P17 -> : | O14: =Finland!P17 -> : | P14: :
A15: VL/dairy cow/Milchkühe | C15: =Germany!P18 -> 5,592 | D15: =France!P18 -> 2,974 | E15: =Italy!P18 -> 2,838 | F15: ='The Netherlands'!P18 -> 3,067 | G15: =Belgium!P18 -> 534 | H15: =UK!P18 -> 3,166 | I15: =Ireland!P18 -> 887 | J15: =Denmark!P18 -> 417 | K15: =Spain!P18 -> 2,000 | L15: =Portugal!P18 -> 556 | M15: =Austria!P18 -> : | N15: =Sweden!P18 -> 1,045 | O15: =Finland!P18 -> 608 | P15: :
A16: veaux (aliments d'allaitement non compris)/calves | C16: =Germany!P19 -> 160 | D16: =France!P19 -> 290 | E16: =Italy!P19 -> 148 | F16: ='The Netherlands'!P19 -> 45 | G16: =Belgium!P19 -> 85 | H16: =UK!P19 -> 184 | I16: =Ireland!P19 -> 170 | J16: =Denmark!P19 -> 338 | K16: =Spain!P19 -> 0 | L16: =Portugal!P19 -> 85 | M16: =Austria!P19 -> : | N16: =Sweden!P19 -> : | O16: =Finland!P19 -> 46 | P16: :
A17: (excluding milk replacers)/Kälber (exkl. Milchaustauscher)
A18: autres/others/Andere | C18: =Germany!P20 -> 345 | D18: =France!P20 -> 248 | E18: =Italy!P20 -> : | F18: ='The Netherlands'!P20 -> : | G18: =Belgium!P20 -> 133 | H18: =UK!P20 -> 84 | I18: =Ireland!P20 -> 95 | J18: =Denmark!P20 -> : | K18: =Spain!P20 -> 540 | L18: =Portugal!P20 -> 48 | M18: =Austria!P20 -> : | N18: =Sweden!P20 -> 152 | O18: =Finland!P20 -> : | P18: :
A21: Porcins/Pigs/Suini/Schweine | C21: =Germany!P23 -> 7,444 | D21: =France!P23 -> 6,814 | E21: =Italy!P23 -> 2,757 | F21: ='The Netherlands'!P23 -> 5,227 | G21: =Belgium!P23 -> 3,457 | H21: =UK!P23 -> 1,593 | I21: =Ireland!P23 -> 687 | J21: =Denmark!P23 -> 3,518 | K21: =Spain!P23 -> 8,235 | L21: =Portugal!P23 -> 1,225 | M21: =Austria!P23 -> 216 | N21: =Sweden!P23 -> 491 | O21: =Finland!P23 -> 349 | P21: =SUM(C21:O21) -> 42,013
A22: porcelets/piglets/Ferkel | C22: =Germany!P24 -> 1,443 | D22: =France!P24 -> 870 | E22: =Italy!P24 -> : | F22: ='The Netherlands'!P24 -> 694 | G22: =Belgium!P24 -> 761 | H22: =UK!P24 -> 85 | I22: =Ireland!P24 -> 96 | J22: =Denmark!P24 -> 656 | K22: =Spain!P24 -> 1,060 | L22: =Portugal!P24 -> 196 | M22: =Austria!P24 -> : | N22: =Sweden!P24 -> 76 | O22: =Finland!P24 -> 47 | P22: :
A23: porcs engrais/pigs for fattening/Mastschweine | C23: =Germany!P25 -> 4,161 | D23: =France!P25 -> 4,666 | E23: =Italy!P25 -> : | F23: ='The Netherlands'!P25 -> 3,404 | G23: =Belgium!P25 -> 2,696 | H23: =UK!P25 -> 1,034 | I23: =Ireland!P25 -> 441 | J23: =Denmark!P25 -> 1,890 | K23: =Spain!P25 -> 5,800 | L23: =Portugal!P25 -> 760 | M23: =Austria!P25 -> : | N23: =Sweden!P25 -> 265 | O23: =Finland!P25 -> 189 | P23: :
A24: reproducteurs/breeding pigs/Zuchtschweine | C24: =Germany!P26 -> 1,205 | D24: =France!P26 -> 1,278 | E24: =Italy!P26 -> : | F24: ='The Netherlands'!P26 -> 1,129 | G24: =Belgium!P26 -> : | H24: =UK!P26 -> 454 | I24: =Ireland!P26 -> 128 | J24: =Denmark!P26 -> 972 | K24: =Spain!P26 -> 1,295 | L24: =Portugal!P26 -> 260 | M24: =Austria!P26 -> : | N24: =Sweden!P26 -> 140 | O24: =Finland!P26 -> 52 | P24: :
A25: autres/others/Andere | C25: =Germany!P27 -> 635 | D25: =France!P27 -> : | E25: =Italy!P27 -> : | F25: ='The Netherlands'!P27 -> : | G25: =Belgium!P27 -> : | H25: =UK!P27 -> 20 | I25: =Ireland!P27 -> 22 | J25: =Denmark!P27 -> : | K25: =Spain!P27 -> 80 | L25: =Portugal!P27 -> 9 | M25: =Austria!P27 -> : | N25: =Sweden!P27 -> 10 | O25: =Finland!P27 -> 61 | P25: :
A28: Volaille/Poultry/Volatili/Geflügel | C28: =Germany!P30 -> 5,075 | D28: =France!P30 -> 9,238 | E28: =Italy!P30 -> 5,043 | F28: ='The Netherlands'!P30 -> 2,745 | G28: =Belgium!P30 -> 1,313 | H28: =UK!P30 -> 6,159 | I28: =Ireland!P30 -> 485 | J28: =Denmark!P30 -> 617 | K28: =Spain!P30 -> 4,425 | L28: =Portugal!P30 -> 1,280 | M28: =Austria!P30 -> 394 | N28: =Sweden!P30 -> 480 | O28: =Finland!P30 -> 307 | P28: =SUM(C28:O28) -> 37,561
A29: broilers | C29: =Germany!P31 -> 1,600 | D29: =France!P31 -> 3,369 | E29: =Italy!P31 -> 2,366 | F29: ='The Netherlands'!P31 -> 1,334 | G29: =Belgium!P31 -> 527 | H29: =UK!P31 -> 3,369 | I29: =Ireland!P31 -> 267 | J29: =Denmark!P31 -> 533 | K29: =Spain!P31 -> 2,355 | L29: =Portugal!P31 -> 768 | M29: =Austria!P31 -> : | N29: =Sweden!P31 -> 190 | O29: =Finland!P31 -> 184 | P29: :
A30: poulettes & pondeuses/chicks & layers/Jung- & Legehennen | C30: =Germany!P32 -> 2,265 | D30: =France!P32 -> 2,195 | E30: =Italy!P32 -> 1,480 | F30: ='The Netherlands'!P32 -> 1,411 | G30: =Belgium!P32 -> 543 | H30: =UK!P32 -> 1,243 | I30: =Ireland!P32 -> 128 | J30: =Denmark!P32 -> 35 | K30: =Spain!P32 -> 1,780 | L30: =Portugal!P32 -> 270 | M30: =Austria!P32 -> : | N30: =Sweden!P32 -> 190 | O30: =Finland!P32 -> 73 | P30: :
A31: autres/others/Andere | C31: =Germany!P33 -> 1,210 | D31: =France!P33 -> 3,674 | E31: =Italy!P33 -> 1,197 | F31: ='The Netherlands'!P33 -> : | G31: =Belgium!P33 -> 243 | H31: =UK!P33 -> 1,547 | I31: =Ireland!P33 -> 90 | J31: =Denmark!P33 -> 49 | K31: =Spain!P33 -> 290 | L31: =Portugal!P33 -> 242 | M31: =Austria!P33 -> : | N31: =Sweden!P33 -> 100 | O31: =Finland!P33 -> 50 | P31: :
A34: Al. d'allait./Milk replacers/Sostit. del latte/Milchaust. | C34: =Germany!P36 -> 167 | D34: =France!P36 -> 488 | E34: =Italy!P36 -> 172 | F34: ='The Netherlands'!P36 -> 690 | G34: =Belgium!P36 -> 52 | H34: =UK!P36 -> 16 | I34: =Ireland!P36 -> 9 | J34: =Denmark!P36 -> 0 | K34: =Spain!P36 -> 0 | L34: =Portugal!P36 -> 0 | M34: =Austria!P36 -> 0 | N34: =Sweden!P36 -> 6 | O34: =Finland!P36 -> 0 | P34: =SUM(C34:O34) -> 1,600
A37: Autres/others/altri/Andere | C37: =Germany!P39 -> 606 | D37: =France!P39 -> 1,578 | E37: =Italy!P39 -> 1,314 | F37: ='The Netherlands'!P39 -> 796 | G37: =Belgium!P39 -> 254 | H37: =UK!P39 -> 1,207 | I37: =Ireland!P39 -> 413 | J37: =Denmark!P39 -> 153 | K37: =Spain!P39 -> 1,715 | L37: =Portugal!P39 -> 213 | M37: =Austria!P39 -> 64 | N37: =Sweden!P39 -> 50 | O37: =Finland!P39 -> 88 | P37: =SUM(C37:O37) -> 8,451
A40: TOTAL | C40: =C37+C34+C28+C21+C13 -> 20,009 | D40: 22,577 | E40: 13,205 | F40: 12,846 | G40: 6,150 | H40: 13,718 | I40: 3,695 | J40: 5,562 | K40: 19,425 | L40: 3,778 | M40: 1,001 | N40: 2,224 | O40: 1,398 | P40: 125,588
A43: * Sans le Luxembourg et la Grèce/ohne Luxemburg und Griechenland/Without Luxemburg and Greece/Senza Lussemburgo e Ella
A45: : non disponible/not available/nicht verfügbar
A55: 2004-07-10
A57: PRODUCTION INDUSTRIELLE D'ALIMENTS COMPOSES | M57: INDUSTRIELLE MISCHFUTTERPRODUKTION
A58: PRODUZIONE INDUSTRIALE DI MANGIMI COMPOSTI | M58: INDUSTRIAL COMPOUND PRODUCTION
A59: 2003
A60: definitif/final
M61: (1 000 t)
A63: Catégories d'aliments composés/Mischfutterarten | C63: CY | D63: CZ | E63: EE | F63: HU | G63: LV | H63: LT | I63: PL | J63: SK | K63: SI | L63: AC-10 | M63: EU-25
A64: Tipi di mangimi compositi/Types of feed | L64: ** | M64: ***
A67: Bovins/Cattle/Bovini/Rinder | C67: =Cyprus!P16 -> 83 | D67: ='Czech Rep'!P16 -> 498 | E67: =Estonia!P16 -> 28 | F67: =Hungary!P16 -> 686 | G67: =Latvia!P16 -> 15 | H67: =Lithuania!P16 -> 7 | I67: =Poland!P16 -> 327 | J67: =Slovakia!P16 -> 281 | K67: =Slovenia!P16 -> 106 | L67: =SUM(C67:K67) -> 2,031 | M67: =P13+L67 -> 37,994
A68: engrais/fattening/Mast | C68: =Cyprus!P17 -> : | D68: ='Czech Rep'!P17 -> : | E68: =Estonia!P17 -> : | F68: =Hungary!P17 -> : | G68: =Latvia!P17 -> : | H68: =Lithuania!P17 -> 1 | I68: =Poland!P17 -> : | J68: =Slovakia!P17 -> : | K68: =Slovenia!P17 -> : | L68: : | M68: :
A69: VL/dairy cow/Milchkühe | C69: =Cyprus!P18 -> : | D69: ='Czech Rep'!P18 -> : | E69: =Estonia!P18 -> : | F69: =Hungary!P18 -> : | G69: =Latvia!P18 -> : | H69: =Lithuania!P18 -> 5 | I69: =Poland!P18 -> : | J69: =Slovakia!P18 -> : | K69: =Slovenia!P18 -> : | L69: : | M69: :
A70: veaux (aliments d'allaitement non compris)/calves | C70: =Cyprus!P19 -> : | D70: ='Czech Rep'!P19 -> : | E70: =Estonia!P19 -> : | F70: =Hungary!P19 -> : | G70: =Latvia!P19 -> : | H70: =Lithuania!P19 -> 1 | I70: =Poland!P19 -> : | J70: =Slovakia!P19 -> : | K70: =Slovenia!P19 -> : | L70: : | M70: :
A71: (excluding milk replacers)/Kälber (exkl. Milchaustauscher)
A72: autres/others/Andere | C72: =Cyprus!P20 -> : | D72: ='Czech Rep'!P20 -> : | E72: =Estonia!P20 -> : | F72: =Hungary!P20 -> : | G72: =Latvia!P20 -> : | H72: =Lithuania!P20 -> 0 | I72: =Poland!P20 -> : | J72: =Slovakia!P20 -> : | K72: =Slovenia!P20 -> : | L72: : | M72: :
A75: Porcins/Pigs/Suini/Schweine | C75: =Cyprus!P23 -> 13 | D75: ='Czech Rep'!P23 -> 1,475 | E75: =Estonia!P23 -> 117 | F75: =Hungary!P23 -> 2,275 | G75: =Latvia!P23 -> 86 | H75: =Lithuania!P23 -> 105 | I75: =Poland!P23 -> 1,352 | J75: =Slovakia!P23 -> 603 | K75: =Slovenia!P23 -> 136 | L75: =SUM(C75:K75) -> 6,162 | M75: =P21+L75 -> 48,175
A76: porcelets/piglets/Ferkel | C76: =Cyprus!P24 -> : | D76: ='Czech Rep'!P24 -> : | E76: =Estonia!P24 -> : | F76: =Hungary!P24 -> : | G76: =Latvia!P24 -> : | H76: =Lithuania!P24 -> 23 | I76: =Poland!P24 -> : | J76: =Slovakia!P24 -> : | K76: =Slovenia!P24 -> : | L76: : | M76: :
A77: porcs engrais/pigs for fattening/Mastschweine | C77: =Cyprus!P25 -> : | D77: ='Czech Rep'!P25 -> : | E77: =Estonia!P25 -> : | F77: =Hungary!P25 -> : | G77: =Latvia!P25 -> : | H77: =Lithuania!P25 -> 61 | I77: =Poland!P25 -> : | J77: =Slovakia!P25 -> : | K77: =Slovenia!P25 -> : | L77: : | M77: :
A78: reproducteurs/breeding pigs/Zuchtschweine | C78: =Cyprus!P26 -> : | D78: ='Czech Rep'!P26 -> : | E78: =Estonia!P26 -> : | F78: =Hungary!P26 -> : | G78: =Latvia!P26 -> : | H78: =Lithuania!P26 -> 19 | I78: =Poland!P26 -> : | J78: =Slovakia!P26 -> : | K78: =Slovenia!P26 -> : | L78: : | M78: :
A79: autres/others/Andere | C79: =Cyprus!P27 -> : | D79: ='Czech Rep'!P27 -> : | E79: =Estonia!P27 -> : | F79: =Hungary!P27 -> : | G79: =Latvia!P27 -> : | H79: =Lithuania!P27 -> 2 | I79: =Poland!P27 -> : | J79: =Slovakia!P27 -> : | K79: =Slovenia!P27 -> : | L79: : | M79: :
A82: Volaille/Poultry/Volatili/Geflügel | C82: =Cyprus!P30 -> 64 | D82: ='Czech Rep'!P30 -> 1,038 | E82: =Estonia!P30 -> 58 | F82: =Hungary!P30 -> 1,980 | G82: =Latvia!P30 -> 114 | H82: =Lithuania!P30 -> 123 | I82: =Poland!P30 -> 3,450 | J82: =Slovakia!P30 -> 377 | K82: =Slovenia!P30 -> 244 | L82: =SUM(C82:K82) -> 7,448 | M82: =P28+L82 -> 45,009
A83: broilers | C83: =Cyprus!P31 -> : | D83: ='Czech Rep'!P31 -> : | E83: =Estonia!P31 -> : | F83: =Hungary!P31 -> : | G83: =Latvia!P31 -> : | H83: =Lithuania!P31 -> 72 | I83: =Poland!P31 -> : | J83: =Slovakia!P31 -> : | K83: =Slovenia!P31 -> : | L83: : | M83: :
A84: poulettes & pondeuses/chicks & layers/Jung- & Legehennen | C84: =Cyprus!P32 -> : | D84: ='Czech Rep'!P32 -> : | E84: =Estonia!P32 -> : | F84: =Hungary!P32 -> : | G84: =Latvia!P32 -> : | H84: =Lithuania!P32 -> 47 | I84: =Poland!P32 -> : | J84: =Slovakia!P32 -> : | K84: =Slovenia!P32 -> : | L84: : | M84: :
A85: autres/others/Andere | C85: =Cyprus!P33 -> : | D85: ='Czech Rep'!P33 -> : | E85: =Estonia!P33 -> : | F85: =Hungary!P33 -> : | G85: =Latvia!P33 -> : | H85: =Lithuania!P33 -> 4 | I85: =Poland!P33 -> : | J85: =Slovakia!P33 -> : | K85: =Slovenia!P33 -> : | L85: : | M85: :
A88: Al. d'allait./Milk replacers/Sostit. del latte/Milchaust. | C88: =Cyprus!P36 -> 0 | D88: ='Czech Rep'!P36 -> 6 | E88: =Estonia!P36 -> 0 | F88: =Hungary!P36 -> 0 | G88: =Latvia!P36 -> 0 | H88: =Lithuania!P36 -> 3 | I88: =Poland!P36 -> 0 | J88: =Slovakia!P36 -> 0 | K88: =Slovenia!P36 -> 0 | L88: =SUM(C88:K88) -> 9 | M88: =P34+L88 -> 1,609
A91: Autres/others/altri/Andere | C91: =Cyprus!P39 -> 74 | D91: ='Czech Rep'!P39 -> 121 | E91: =Estonia!P39 -> 3 | F91: =Hungary!P39 -> 182 | G91: =Latvia!P39 -> 18 | H91: =Lithuania!P39 -> 5 | I91: =Poland!P39 -> 430 | J91: =Slovakia!P39 -> 18 | K91: =Slovenia!P39 -> 17 | L91: =SUM(C91:K91) -> 868 | M91: =P37+L91 -> 9,319
A94: TOTAL | C94: =C91+C88+C82+C75+C67 -> 234 | D94: 3,138 | E94: 206 | F94: 5,123 | G94: 233 | H94: 243 | I94: 5,559 | J94: 1,279 | K94: 503 | L94: 16,518 | M94: 142,106
A97: ** Sans Malte/Ohne Maltas/Without Malta/Senza Malta
A98: *** Sans le Luxembourg, la Grèce et Malte/Ohne Luxemburg, Griechenland und Maltas/Without Luxemburg, Greece and Malta/Senza Lussemburgo, Ellas e Malta
A100: : non disponible/not available/nicht verfügbar

Sheet 2003-04
A1: 2005-11-03
A3: PRODUCTION INDUSTRIELLE D'ALIMENTS COMPOSES | X3: INDUSTRIELLE MISCHFUTTERPRODUKTION
A4: PRODUZIONE INDUSTRIALE DI MANGIMI COMPOSTI | M4: 2003-2004 | X4: INDUSTRIAL COMPOUND PRODUCTION
M5: definitif/final | X5: (1 000 t )
A9: PAYS | C9: BOVINS/RINDER | G9: PORCS/SCHWEINE | K9: VOLAILLE/GEFLÜGEL | M9: A. ALLAITEMENT/MILCHAUST. | S9: AUTRES/ANDERE | V9: TOTAL/INSGESAMT
A10: LAND | C10: BOVINI/CATTLE | G10: SUINI/PIGS | K10: VOLATILI/POULTRY | M10: SOSTIT. DEL LATTE/MILKREPLACERS | S10: ALTRI ANIMALI/OTHERS | V10: TOTALE/TOTAL
A11: PAESE
A12: COUNTRY | B12: 2003 | C12: 2004 | D12: %TAV | F12: 2003 | G12: 2004 | H12: %TAV | J12: 2003 | K12: 2004 | L12: %TAV | N12: 2003 | O12: 2004 | P12: %TAV | R12: 2003 | S12: 2004 | T12: %TAV | V12: 2003 | W12: 2004 | X12: %TAV
A14: DE | B14: =Germany!P$16 -> 6,717 | C14: =Germany!Q$16 -> 6,544 | D14: =((C14/B14)-1)*100 -> -2.6 | F14: =Germany!P$23 -> 7,444 | G14: =Germany!Q$23 -> 7,594 | H14: =((G14/F14)-1)*100 -> 2.0 | J14: =Germany!P$30 -> 5,075 | K14: =Germany!Q$30 -> 5,209 | L14: =((K14/J14)-1)*100 -> 2.6 | N14: =Germany!P$36 -> 167 | O14: =Germany!Q$36 -> 159 | P14: =((O14/N14)-1)*100 -> -4.8 | R14: =Germany!P$39 -> 606 | S14: =Germany!Q$39 -> 633 | T14: =((S14/R14)-1)*100 -> 4.5 | V14: =R14+N14+J14+F14+B14 -> 20,009 | W14: 20,139 | X14: =((W14/V14)-1)*100 -> 0.6
A15: FR | B15: =France!P$16 -> 4,459 | C15: =France!Q$16 -> 4,311 | D15: -3.3 | F15: =France!P$23 -> 6,814 | G15: =France!Q$23 -> 6,670 | H15: -2.1 | J15: =France!P$30 -> 9,238 | K15: =France!Q$30 -> 9,245 | L15: 0.1 | N15: =France!P$36 -> 488 | O15: =France!Q$36 -> 485 | P15: -0.6 | R15: =France!P$39 -> 1,578 | S15: =France!Q$39 -> 1,579 | T15: 0.1 | V15: =R15+N15+J15+F15+B15 -> 22,577 | W15: 22,290 | X15: -1.3
A16: IT | B16: =Italy!P$16 -> 3,919 | C16: =Italy!Q$16 -> 4,306 | D16: 9.9 | F16: =Italy!P$23 -> 2,757 | G16: =Italy!Q$23 -> 2,932 | H16: 6.3 | J16: =Italy!P$30 -> 5,043 | K16: =Italy!Q$30 -> 5,394 | L16: 7.0 | N16: =Italy!P$36 -> 172 | O16: =Italy!Q$36 -> 175 | P16: 1.7 | R16: =+Italy!P$39 -> 1,314 | S16: =+Italy!Q$39 -> 975 | T16: -25.8 | V16: =R16+N16+J16+F16+B16 -> 13,205 | W16: 13,782 | X16: 4.4
A17: NL | B17: ='The Netherlands'!P$16 -> 3,388 | C17: ='The Netherlands'!Q$16 -> 3,320 | D17: -2.0 | F17: ='The Netherlands'!P$23 -> 5,227 | G17: ='The Netherlands'!Q$23 -> 5,120 | H17: -2.0 | J17: ='The Netherlands'!P$30 -> 2,745 | K17: ='The Netherlands'!Q$30 -> 3,080 | L17: 12.2 | N17: ='The Netherlands'!P$36 -> 690 | O17: ='The Netherlands'!Q$36 -> 728 | P17: 5.5 | R17: ='The Netherlands'!P$39 -> 796 | S17: ='The Netherlands'!Q$39 -> 830 | T17: 4.3 | V17: =R17+N17+J17+F17+B17 -> 12,846 | W17: 13,078 | X17: 1.8
A18: BE | B18: =Belgium!P$16 -> 1,074 | C18: =Belgium!Q$16 -> 1,141 | D18: 6.2 | F18: =Belgium!P$23 -> 3,457 | G18: =Belgium!Q$23 -> 3,456 | H18: -0.0 | J18: =Belgium!P$30 -> 1,313 | K18: =Belgium!Q$30 -> 1,450 | L18: 10.4 | N18: =Belgium!P$36 -> 52 | O18: =Belgium!Q$36 -> 50 | P18: -3.8 | R18: =Belgium!P$39 -> 254 | S18: =Belgium!Q$39 -> 250 | T18: -1.6 | V18: =R18+N18+J18+F18+B18 -> 6,150 | W18: 6,347 | X18: 3.2
A19: UK | B19: =UK!P$16 -> 4,743 | C19: =UK!Q$16 -> 4,651 | D19: -1.9 | F19: =UK!P$23 -> 1,593 | G19: =UK!Q$23 -> 1,648 | H19: 3.5 | J19: =UK!P$30 -> 6,159 | K19: =UK!Q$30 -> 6,436 | L19: 4.5 | N19: =UK!P$36 -> 16 | O19: =UK!Q$36 -> 15 | P19: -6.3 | R19: =UK!P$39 -> 1,207 | S19: =UK!Q$39 -> 1,335 | T19: 10.6 | V19: =R19+N19+J19+F19+B19 -> 13,718 | W19: 14,085 | X19: 2.7
A20: IE | B20: =Ireland!P$16 -> 2,101 | C20: =Ireland!Q$16 -> 1,965 | D20: -6.5 | F20: =Ireland!P$23 -> 687 | G20: =Ireland!Q$23 -> 630 | H20: -8.3 | J20: =Ireland!P$30 -> 485 | K20: =Ireland!Q$30 -> 488 | L20: 0.6 | N20: =Ireland!P$36 -> 9 | O20: =Ireland!Q$36 -> 10 | P20: 11.1 | R20: =Ireland!P$39 -> 413 | S20: =Ireland!Q$39 -> 452 | T20: 9.4 | V20: =R20+N20+J20+F20+B20 -> 3,695 | W20: 3,545 | X20: -4.1
A21: DK | B21: =Denmark!P$16 -> 1,274 | C21: =Denmark!Q$16 -> 1,249 | D21: -2.0 | F21: =Denmark!P$23 -> 3,518 | G21: =Denmark!Q$23 -> 3,571 | H21: 1.5 | J21: =Denmark!P$30 -> 617 | K21: =Denmark!Q$30 -> 672 | L21: 8.9 | N21: =Denmark!P$36 -> 0 | O21: =Denmark!Q$36 -> 0 | P21: 0.0 | R21: =Denmark!P$39 -> 153 | S21: =Denmark!Q$39 -> 138 | T21: -9.8 | V21: =R21+N21+J21+F21+B21 -> 5,562 | W21: 5,630 | X21: 1.2
A22: ES | B22: =Spain!P$16 -> 5,050 | C22: =Spain!Q$16 -> 5,504 | D22: 9.0 | F22: =Spain!P$23 -> 8,235 | G22: =Spain!Q$23 -> 8,535 | H22: 3.6 | J22: =Spain!P$30 -> 4,425 | K22: =Spain!Q$30 -> 4,578 | L22: 3.5 | N22: =Spain!P$36 -> 0 | O22: =Spain!Q$36 -> 0 | P22: 0.0 | R22: =Spain!P$39 -> 1,715 | S22: =Spain!Q$39 -> 1,722 | T22: 0.4 | V22: =R22+N22+J22+F22+B22 -> 19,425 | W22: 20,339 | X22: 4.7
A23: PT | B23: =Portugal!P$16 -> 1,060 | C23: =Portugal!Q$16 -> 1,010 | D23: -4.7 | F23: =Portugal!P$23 -> 1,225 | G23: =Portugal!Q$23 -> 1,190 | H23: -2.9 | J23: =Portugal!P$30 -> 1,280 | K23: =Portugal!Q$30 -> 1,360 | L23: 6.3 | N23: =Portugal!P$36 -> 0 | O23: =Portugal!Q$36 -> 0 | P23: 0.0 | R23: =Portugal!P$39 -> 213 | S23: =Portugal!Q$39 -> 234 | T23: 9.9 | V23: =R23+N23+J23+F23+B23 -> 3,778 | W23: 3,794 | X23: 0.4
A24: AT | B24: =Austria!P$16 -> 327 | C24: =Austria!Q$16 -> 342 | D24: 4.6 | F24: =Austria!P$23 -> 216 | G24: =Austria!Q$23 -> 219 | H24: 1.4 | J24: =Austria!P$30 -> 394 | K24: =Austria!Q$30 -> 387 | L24: -1.8 | N24: =Austria!P$36 -> 0 | O24: =Austria!Q$36 -> 0 | P24: 0.0 | R24: =Austria!P$39 -> 64 | S24: =Austria!Q$39 -> 67 | T24: 4.7 | V24: =R24+N24+J24+F24+B24 -> 1,001 | W24: 1,015 | X24: 1.4
A25: SE | B25: =Sweden!P$16 -> 1,197 | C25: =Sweden!Q$16 -> 1,163 | D25: -2.8 | F25: =Sweden!P$23 -> 491 | G25: =Sweden!Q$23 -> 445 | H25: -9.4 | J25: =Sweden!P$30 -> 480 | K25: =Sweden!Q$30 -> 510 | L25: 6.3 | N25: =Sweden!P$36 -> 6 | O25: =Sweden!Q$36 -> 5 | P25: =((O25/N25)-1)*100 -> -16.7 | R25: =Sweden!P$39 -> 50 | S25: =Sweden!Q$39 -> 21 | T25: -58.0 | V25: =R25+N25+J25+F25+B25 -> 2,224 | W25: 2,144 | X25: -3.6
A26: FI | B26: =Finland!P$16 -> 654 | C26: =Finland!Q$16 -> 669 | D26: 2.3 | F26: =Finland!P$23 -> 349 | G26: =Finland!Q$23 -> 346 | H26: -0.9 | J26: =Finland!P$30 -> 307 | K26: =Finland!Q$30 -> 306 | L26: -0.3 | N26: =Finland!P$36 -> 0 | O26: =Finland!Q$36 -> 0 | P26: 0.0 | R26: =Finland!P$39 -> 88 | S26: =Finland!Q$39 -> 93 | T26: 5.7 | V26: =R26+N26+J26+F26+B26 -> 1,398 | W26: 1,414 | X26: 1.1
A27: CY | B27: =Cyprus!P$16 -> 83 | C27: =Cyprus!Q$16 -> 78 | D27: -6.0 | F27: =Cyprus!P$23 -> 13 | G27: =Cyprus!Q$23 -> 12 | H27: -7.7 | J27: =Cyprus!P$30 -> 64 | K27: =Cyprus!Q$30 -> 60 | L27: -6.3 | N27: =Cyprus!P$36 -> 0 | O27: =Cyprus!Q$36 -> 0 | P27: 0.0 | R27: =Cyprus!P$39 -> 74 | S27: =Cyprus!Q$39 -> 70 | T27: -5.4 | V27: =R27+N27+J27+F27+B27 -> 234 | W27: 220 | X27: -6.0
A28: CZ | B28: ='Czech Rep'!P$16 -> 498 | C28: ='Czech Rep'!Q$16 -> 494 | D28: -0.8 | F28: ='Czech Rep'!P$23 -> 1,475 | G28: ='Czech Rep'!Q$23 -> 1,341 | H28: -9.1 | J28: ='Czech Rep'!P$30 -> 1,038 | K28: ='Czech Rep'!Q$30 -> 1,125 | L28: 8.4 | N28: ='Czech Rep'!P$36 -> 6 | O28: ='Czech Rep'!Q$36 -> 5 | P28: =((O28/N28)-1)*100 -> -16.7 | R28: ='Czech Rep'!P$39 -> 121 | S28: ='Czech Rep'!Q$39 -> 87 | T28: -28.1 | V28: =R28+N28+J28+F28+B28 -> 3,138 | W28: 3,052 | X28: -2.7
A29: EE | B29: =Estonia!P$16 -> 28 | C29: =Estonia!Q$16 -> 42 | D29: 50.0 | F29: =Estonia!P$23 -> 117 | G29: =Estonia!Q$23 -> 119 | H29: 1.7 | J29: =Estonia!P$30 -> 58 | K29: =Estonia!Q$30 -> 62 | L29: 6.9 | N29: =Estonia!P$36 -> 0 | O29: =Estonia!Q$36 -> 1 | R29: =Estonia!P$39 -> 3 | S29: =Estonia!Q$39 -> 3 | T29: 0.0 | V29: =R29+N29+J29+F29+B29 -> 206 | W29: 227 | X29: 10.2
A30: HU | B30: =Hungary!P$16 -> 686 | C30: =Hungary!Q$16 -> 575 | D30: -16.2 | F30: =Hungary!P$23 -> 2,275 | G30: =Hungary!Q$23 -> 2,090 | H30: -8.1 | J30: =Hungary!P$30 -> 1,980 | K30: =Hungary!Q$30 -> 1,906 | L30: -3.7 | N30: =Hungary!P$36 -> 0 | O30: =Hungary!Q$36 -> 0 | P30: 0.0 | R30: =Hungary!P$39 -> 182 | S30: =Hungary!Q$39 -> 188 | T30: 3.3 | V30: =R30+N30+J30+F30+B30 -> 5,123 | W30: 4,759 | X30: -7.1
A31: LV | B31: =Latvia!P$16 -> 15 | C31: =Latvia!Q$16 -> 25 | D31: 66.7 | F31: =Latvia!P$23 -> 86 | G31: =Latvia!Q$23 -> 90 | H31: 4.7 | J31: =Latvia!P$30 -> 114 | K31: =Latvia!Q$30 -> 102 | L31: -10.5 | N31: =Latvia!P$36 -> 0 | O31: =Latvia!Q$36 -> 0 | P31: 0.0 | R31: =Latvia!P$39 -> 18 | S31: =Latvia!Q$39 -> 21 | T31: 16.7 | V31: =R31+N31+J31+F31+B31 -> 233 | W31: 238 | X31: 2.1
A32: LT | B32: =Lithuania!P$16 -> 7 | C32: =Lithuania!Q$16 -> 8 | D32: 14.3 | F32: =Lithuania!P$23 -> 105 | G32: =Lithuania!Q$23 -> 114 | H32: 8.6 | J32: =Lithuania!P$30 -> 123 | K32: =Lithuania!Q$30 -> 150 | L32: 22.0 | N32: =Lithuania!P$36 -> 3 | O32: =Lithuania!Q$36 -> 4 | P32: =((O32/N32)-1)*100 -> 33.3 | R32: =Lithuania!P$39 -> 5 | S32: =Lithuania!Q$39 -> 7 | T32: 40.0 | V32: =R32+N32+J32+F32+B32 -> 243 | W32: 283 | X32: 16.5
A33: PL | B33: =Poland!P$16 -> 327 | C33: =Poland!Q$16 -> 365 | D33: 11.6 | F33: =Poland!P$23 -> 1,352 | G33: =Poland!Q$23 -> 1,167 | H33: -13.7 | J33: =Poland!P$30 -> 3,450 | K33: =Poland!Q$30 -> 3,667 | L33: 6.3 | N33: =Poland!P$36 -> 0 | O33: =Poland!Q$36 -> 0 | P33: 0.0 | R33: =Poland!P$39 -> 430 | S33: =Poland!Q$39 -> 265 | T33: -38.4 | V33: =R33+N33+J33+F33+B33 -> 5,559 | W33: 5,464 | X33: -1.7
A34: SK | B34: =Slovakia!P$16 -> 281 | C34: =Slovakia!Q$16 -> 259 | D34: -7.8 | F34: =Slovakia!P$23 -> 603 | G34: =Slovakia!Q$23 -> 473 | H34: -21.6 | J34: =Slovakia!P$30 -> 377 | K34: =Slovakia!Q$30 -> 334 | L34: -11.4 | N34: =Slovakia!P$36 -> 0 | O34: =Slovakia!Q$36 -> 0 | P34: 0.0 | R34: =+Slovakia!P$39 -> 18 | S34: =+Slovakia!Q$39 -> 16 | T34: -11.1 | V34: =R34+N34+J34+F34+B34 -> 1,279 | W34: 1,082 | X34: -15.4
A35: SI | B35: =Slovenia!P$16 -> 106 | C35: =Slovenia!Q$16 -> 114 | D35: 7.5 | F35: =Slovenia!P$23 -> 136 | G35: =Slovenia!Q$23 -> 141 | H35: 3.7 | J35: =Slovenia!P$30 -> 244 | K35: =Slovenia!Q$30 -> 232 | L35: -4.9 | N35: =Slovenia!P$36 -> 0 | O35: =Slovenia!Q$36 -> 0 | P35: 0.0 | R35: =Slovenia!P$39 -> 17 | S35: =Slovenia!Q$39 -> 14 | T35: -17.6 | V35: =R35+N35+J35+F35+B35 -> 503 | W35: 501 | X35: -0.4
A37: EUR 25 * | B37: =SUM(B14:B35) -> 37,994 | C37: 38,135 | D37: =((C37/B37)-1)*100 -> 0.4 | F37: =SUM(F14:F35) -> 48,175 | G37: 47,903 | H37: =((G37/F37)-1)*100 -> -0.6 | J37: =SUM(J14:J35) -> 45,009 | K37: 46,753 | L37: =((K37/J37)-1)*100 -> 3.9 | N37: =SUM(N14:N35) -> 1,609 | O37: 1,637 | P37: =((O37/N37)-1)*100 -> 1.7 | R37: =SUM(R14:R35) -> 9,319 | S37: 9,000 | T37: =((S37/R37)-1)*100 -> -3.4 | V37: =SUM(V14:V35) -> 142,106 | W37: 143,428 | X37: =((W37/V37)-1)*100 -> 0.9
A40: * Sans le Luxembourg, la Grèce et Malte/Ohne Luxemburg, Griechenland und Malta/Without Luxemburg, Greece and Malta/Senza Lussemburgo, Ellas e Malta
A42: : non disponible/not available

Sheet 2004
A1: 2006-04-23
A3: PRODUCTION INDUSTRIELLE D'ALIMENTS COMPOSES | P3: INDUSTRIELLE MISCHFUTTERPRODUKTION
A4: PRODUZIONE INDUSTRIALE DI MANGIMI COMPOSTI | P4: INDUSTRIAL COMPOUND PRODUCTION
A5: 2004
A6: definitif/final
P7: (1 000 t)
A9: Catégories d'aliments composés/Mischfutterarten | C9: DE | D9: FR | E9: IT | F9: NL | G9: BE | H9: UK | I9: IE | J9: DK | K9: ES | L9: PT | M9: AT | N9: SE | O9: FI | P9: EU-15
A10: Tipi di mangimi compositi/Types of feed | P10: *
A13: Bovins/Cattle/Bovini/Rinder | C13: =Germany!Q16 -> 6,544 | D13: =France!Q16 -> 4,311 | E13: =Italy!Q16 -> 4,306 | F13: ='The Netherlands'!Q16 -> 3,320 | G13: =Belgium!Q16 -> 1,141 | H13: =UK!Q16 -> 4,651 | I13: =Ireland!Q16 -> 1,965 | J13: =Denmark!Q16 -> 1,249 | K13: =Spain!Q16 -> 5,504 | L13: =Portugal!Q16 -> 1,010 | M13: =Austria!Q16 -> 342 | N13: =Sweden!Q16 -> 1,163 | O13: =Finland!Q16 -> 669 | P13: =SUM(C13:O13) -> 36,175
A14: engrais/fattening/Mast | C14: =Germany!Q17 -> 610 | D14: =France!Q17 -> 975 | E14: =Italy!Q17 -> : | F14: ='The Netherlands'!Q17 -> : | G14: =Belgium!Q17 -> 344 | H14: =UK!Q17 -> 1,350 | I14: =Ireland!Q17 -> 923 | J14: : | K14: =Austria!O17 -> : | L14: =Portugal!Q17 -> 422 | M14: =Austria!Q17 -> : | N14: =Sweden!Q17 -> 167 | O14: : | P14: :
A15: VL/dairy cow/Milchkühe | C15: =Germany!Q18 -> 5,437 | D15: =France!Q18 -> 2,811 | E15: =Italy!Q18 -> : | F15: ='The Netherlands'!Q18 -> : | G15: =Belgium!Q18 -> 556 | H15: =UK!Q18 -> 3,034 | I15: =Ireland!Q18 -> 792 | J15: =Denmark!Q18 -> 897 | K15: =Austria!O18 -> : | L15: =Portugal!Q18 -> 497 | M15: =Austria!Q18 -> : | N15: =Sweden!Q18 -> 965 | O15: =Finland!Q18 -> 619 | P15: :
A16: veaux (aliments d'allaitement non compris)/calves | C16: =Germany!Q19 -> 157 | D16: =France!Q19 -> 293 | E16: =Italy!Q19 -> : | F16: ='The Netherlands'!Q19 -> : | G16: =Belgium!Q19 -> 90 | H16: =UK!Q19 -> 185 | I16: =Ireland!Q19 -> 158 | J16: =Denmark!Q19 -> 352 | K16: =Austria!O19 -> : | L16: =Portugal!Q19 -> 53 | M16: =Austria!Q19 -> : | N16: =Sweden!Q19 -> 0 | O16: =Finland!Q19 -> 50 | P16: :
A17: (excluding milk replacers)/Kälber (exkl. Milchaustauscher)
A18: autres/others/Andere | C18: =Germany!Q20 -> 340 | D18: =France!Q20 -> 232 | E18: =Italy!Q20 -> : | F18: ='The Netherlands'!Q20 -> : | G18: =Belgium!Q20 -> 151 | H18: =UK!Q20 -> 82 | I18: =Ireland!Q20 -> 92 | J18: =Denmark!Q20 -> : | K18: =Austria!O20 -> : | L18: =Portugal!Q20 -> 38 | M18: =Austria!Q20 -> : | N18: =Sweden!Q20 -> 31 | O18: =Finland!Q20 -> 0 | P18: :
A21: Porcins/Pigs/Suini/Schweine | C21: =Germany!Q23 -> 7,594 | D21: =France!Q23 -> 6,670 | E21: =Italy!Q23 -> 2,932 | F21: ='The Netherlands'!Q23 -> 5,120 | G21: =Belgium!Q23 -> 3,456 | H21: =UK!Q23 -> 1,648 | I21: =Ireland!Q23 -> 630 | J21: =Denmark!Q23 -> 3,571 | K21: =Spain!Q23 -> 8,535 | L21: =Portugal!Q23 -> 1,190 | M21: =Austria!Q23 -> 219 | N21: =Sweden!Q23 -> 445 | O21: =Finland!Q23 -> 346 | P21: =SUM(C21:O21) -> 42,356
A22: porcelets/piglets/Ferkel | C22: =Germany!Q24 -> 1,490 | D22: =France!Q24 -> 819 | E22: =Italy!Q24 -> : | F22: ='The Netherlands'!Q24 -> : | G22: =Belgium!Q24 -> 766 | H22: =UK!Q24 -> 95 | I22: =Ireland!Q24 -> 90 | J22: =Denmark!Q24 -> 692 | K22: =Austria!O24 -> : | L22: =Portugal!Q24 -> 178 | M22: =Austria!Q24 -> : | N22: =Sweden!Q24 -> 71 | O22: =Finland!Q24 -> 46 | P22: :
A23: porcs engrais/pigs for fattening/Mastschweine | C23: =Germany!Q25 -> 4,245 | D23: =France!Q25 -> 4,603 | E23: =Italy!Q25 -> : | F23: ='The Netherlands'!Q25 -> : | G23: =Belgium!Q25 -> 2,690 | H23: =UK!Q25 -> 1,092 | I23: =Ireland!Q25 -> 401 | J23: =Denmark!Q25 -> 2,124 | K23: =Austria!O25 -> : | L23: =Portugal!Q25 -> 741 | M23: =Austria!Q25 -> : | N23: =Sweden!Q25 -> 258 | O23: =Finland!Q25 -> 185 | P23: :
A24: reproducteurs/breeding pigs/Zuchtschweine | C24: =Germany!Q26 -> 1,229 | D24: =France!Q26 -> 1,248 | E24: =Italy!Q26 -> : | F24: ='The Netherlands'!Q26 -> : | G24: =Belgium!Q26 -> : | H24: =UK!Q26 -> 444 | I24: =Ireland!Q26 -> 110 | J24: =Denmark!Q26 -> 755 | K24: =Austria!O26 -> : | L24: =Portugal!Q26 -> 262 | M24: =Austria!Q26 -> : | N24: =Sweden!Q26 -> 110 | O24: =Finland!Q26 -> 53 | P24: :
A25: autres/others/Andere | C25: =Germany!Q27 -> 630 | D25: =France!Q27 -> 0 | E25: =Italy!Q27 -> : | F25: ='The Netherlands'!Q27 -> : | G25: =Belgium!Q27 -> : | H25: =UK!Q27 -> 17 | I25: =Ireland!Q27 -> 29 | J25: =Denmark!Q27 -> : | K25: =Austria!O27 -> : | L25: =Portugal!Q27 -> 9 | M25: =Austria!Q27 -> : | N25: =Sweden!Q27 -> 6 | O25: =Finland!Q27 -> 62 | P25: :
A28: Volaille/Poultry/Volatili/Geflügel | C28: =Germany!Q30 -> 5,209 | D28: =France!Q30 -> 9,245 | E28: =Italy!Q30 -> 5,394 | F28: ='The Netherlands'!Q30 -> 3,080 | G28: =Belgium!Q30 -> 1,450 | H28: =UK!Q30 -> 6,436 | I28: =Ireland!Q30 -> 488 | J28: =Denmark!Q30 -> 672 | K28: =Spain!Q30 -> 4,578 | L28: =Portugal!Q30 -> 1,360 | M28: =Austria!Q30 -> 387 | N28: =Sweden!Q30 -> 510 | O28: =Finland!Q30 -> 306 | P28: =SUM(C28:O28) -> 39,115
A29: broilers | C29: =Germany!Q31 -> 1,719 | D29: =France!Q31 -> 3,250 | E29: =Italy!Q31 -> : | F29: ='The Netherlands'!Q31 -> : | G29: =Belgium!Q31 -> 650 | H29: =UK!Q31 -> 3,540 | I29: =Ireland!Q31 -> 260 | J29: =Denmark!Q31 -> 537 | K29: =Austria!O31 -> : | L29: =Portugal!Q31 -> 802 | M29: =Austria!Q31 -> : | N29: =Sweden!Q31 -> 189 | O29: =Finland!Q31 -> 181 | P29: :
A30: poulettes & pondeuses/chicks & layers/Jung- & Legehennen | C30: =Germany!Q32 -> 2,244 | D30: =France!Q32 -> 2,229 | E30: =Italy!Q32 -> : | F30: ='The Netherlands'!Q32 -> : | G30: =Belgium!Q32 -> 560 | H30: =UK!Q32 -> 1,804 | I30: =Ireland!Q32 -> 133 | J30: =Denmark!Q32 -> 62 | K30: =Austria!O32 -> : | L30: =Portugal!Q32 -> 384 | M30: =Austria!Q32 -> : | N30: =Sweden!Q32 -> 268 | O30: =Finland!Q32 -> 72 | P30: :
A31: autres/others/Andere | C31: =Germany!Q33 -> 1,246 | D31: =France!Q33 -> 3,766 | E31: =Italy!Q33 -> : | F31: ='The Netherlands'!Q33 -> : | G31: =Belgium!Q33 -> 240 | H31: =UK!Q33 -> 1,092 | I31: =Ireland!Q33 -> 95 | J31: =Denmark!Q33 -> 73 | K31: =Austria!O33 -> : | L31: =Portugal!Q33 -> 174 | M31: =Austria!Q33 -> : | N31: =Sweden!Q33 -> 53 | O31: =Finland!Q33 -> 53 | P31: :
A34: Al. d'allait./Milk replacers/Sostit. del latte/Milchaust. | C34: =Germany!Q36 -> 159 | D34: =France!Q36 -> 485 | E34: =Italy!Q36 -> 175 | F34: ='The Netherlands'!Q36 -> 728 | G34: =Belgium!Q36 -> 50 | H34: =UK!Q36 -> 15 | I34: =Ireland!Q36 -> 10 | J34: =Denmark!Q36 -> 0 | K34: =Spain!Q36 -> 0 | L34: =Portugal!Q36 -> 0 | M34: =Austria!Q36 -> 0 | N34: =Sweden!Q36 -> 5 | O34: =Finland!Q36 -> 0 | P34: =SUM(C34:O34) -> 1,627
A37: Autres/others/altri/Andere | C37: =Germany!Q39 -> 633 | D37: =France!Q39 -> 1,579 | E37: =Italy!Q39 -> 975 | F37: ='The Netherlands'!Q39 -> 830 | G37: =Belgium!Q39 -> 250 | H37: =UK!Q39 -> 1,335 | I37: =Ireland!Q39 -> 452 | J37: =Denmark!Q39 -> 138 | K37: =Spain!Q39 -> 1,722 | L37: =Portugal!Q39 -> 234 | M37: =Austria!Q39 -> 67 | N37: =Sweden!Q39 -> 21 | O37: =Finland!Q39 -> 93 | P37: =SUM(C37:O37) -> 8,329
A40: TOTAL | C40: =C37+C34+C28+C21+C13 -> 20,139 | D40: 22,290 | E40: 13,782 | F40: 13,078 | G40: 6,347 | H40: 14,085 | I40: 3,545 | J40: 5,630 | K40: 20,339 | L40: 3,794 | M40: 1,015 | N40: 2,144 | O40: 1,414 | P40: 127,602
A43: * Sans le Luxembourg et la Grèce/ohne Luxemburg und Griechenland/Without Luxemburg and Greece/Senza Lussemburgo e Ella
A45: : non disponible/not available/nicht verfügbar
A55: 2005-09-02
A57: PRODUCTION INDUSTRIELLE D'ALIMENTS COMPOSES | M57: INDUSTRIELLE MISCHFUTTERPRODUKTION
A58: PRODUZIONE INDUSTRIALE DI MANGIMI COMPOSTI | M58: INDUSTRIAL COMPOUND PRODUCTION
A59: 2004
A60: definitif/final
M61: (1 000 t)
A63: Catégories d'aliments composés/Mischfutterarten | C63: CY | D63: CZ | E63: EE | F63: HU | G63: LV | H63: LT | I63: PL | J63: SK | K63: SI | L63: 10NM | M63: EU-25
A64: Tipi di mangimi compositi/Types of feed | L64: ** | M64: ***
A67: Bovins/Cattle/Bovini/Rinder | C67: =Cyprus!Q16 -> 78 | D67: ='Czech Rep'!Q16 -> 494 | E67: =Estonia!Q16 -> 42 | F67: =Hungary!Q16 -> 575 | G67: =Latvia!Q16 -> 25 | H67: =Lithuania!Q16 -> 8 | I67: =Poland!Q16 -> 365 | J67: =Slovakia!Q16 -> 259 | K67: =Slovenia!Q16 -> 114 | L67: =SUM(C67:K67) -> 1,960 | M67: =P13+L67 -> 38,135
A68: engrais/fattening/Mast | C68: =Cyprus!Q17 -> : | D68: ='Czech Rep'!Q17 -> : | E68: =Estonia!Q17 -> : | F68: =Hungary!Q17 -> : | G68: =Latvia!Q17 -> : | H68: =Lithuania!Q17 -> 2 | I68: =Poland!Q17 -> : | J68: =Slovakia!Q17 -> : | K68: =Slovenia!Q17 -> 106 | L68: : | M68: :
A69: VL/dairy cow/Milchkühe | C69: =Cyprus!Q18 -> : | D69: ='Czech Rep'!Q18 -> : | E69: =Estonia!Q18 -> : | F69: =Hungary!Q18 -> : | G69: =Latvia!Q18 -> : | H69: =Lithuania!Q18 -> 5 | I69: =Poland!Q18 -> : | J69: =Slovakia!Q18 -> : | K69: =Slovenia!Q18 -> 3 | L69: : | M69: :
A70: veaux (aliments d'allaitement non compris)/calves | C70: =Cyprus!Q19 -> : | D70: ='Czech Rep'!Q19 -> : | E70: =Estonia!Q19 -> : | F70: =Hungary!Q19 -> : | G70: =Latvia!Q19 -> : | H70: =Lithuania!Q19 -> 1 | I70: =Poland!Q19 -> : | J70: =Slovakia!Q19 -> : | K70: =Slovenia!Q19 -> 3 | L70: : | M70: :
A71: (excluding milk replacers)/Kälber (exkl. Milchaustauscher)
A72: autres/others/Andere | C72: =Cyprus!Q20 -> : | D72: ='Czech Rep'!Q20 -> : | E72: =Estonia!Q20 -> : | F72: =Hungary!Q20 -> : | G72: =Latvia!Q20 -> : | H72: =Lithuania!Q20 -> 0 | I72: =Poland!Q20 -> : | J72: =Slovakia!Q20 -> : | K72: =Slovenia!Q20 -> 2 | L72: : | M72: :
A75: Porcins/Pigs/Suini/Schweine | C75: =Cyprus!Q23 -> 12 | D75: ='Czech Rep'!Q23 -> 1,341 | E75: =Estonia!Q23 -> 119 | F75: =Hungary!Q23 -> 2,090 | G75: =Latvia!Q23 -> 90 | H75: =Lithuania!Q23 -> 114 | I75: =Poland!Q23 -> 1,167 | J75: =Slovakia!Q23 -> 473 | K75: =Slovenia!Q23 -> 141 | L75: =SUM(C75:K75) -> 5,547 | M75: =P21+L75 -> 47,903
A76: porcelets/piglets/Ferkel | C76: =Cyprus!Q24 -> : | D76: ='Czech Rep'!Q24 -> : | E76: =Estonia!Q24 -> : | F76: =Hungary!Q24 -> : | G76: =Latvia!Q24 -> : | H76: =Lithuania!Q24 -> 26 | I76: =Poland!Q24 -> : | J76: =Slovakia!Q24 -> : | K76: =Slovenia!Q24 -> 7 | L76: : | M76: :
A77: porcs engrais/pigs for fattening/Mastschweine | C77: =Cyprus!Q25 -> : | D77: ='Czech Rep'!Q25 -> : | E77: =Estonia!Q25 -> : | F77: =Hungary!Q25 -> : | G77: =Latvia!Q25 -> : | H77: =Lithuania!Q25 -> 66 | I77: =Poland!Q25 -> : | J77: =Slovakia!Q25 -> : | K77: =Slovenia!Q25 -> 132 | L77: : | M77: :
A78: reproducteurs/breeding pigs/Zuchtschweine | C78: =Cyprus!Q26 -> : | D78: ='Czech Rep'!Q26 -> : | E78: =Estonia!Q26 -> : | F78: =Hungary!Q26 -> : | G78: =Latvia!Q26 -> : | H78: =Lithuania!Q26 -> 21 | I78: =Poland!Q26 -> : | J78: =Slovakia!Q26 -> : | K78: =Slovenia!Q26 -> 2 | L78: : | M78: :
A79: autres/others/Andere | C79: =Cyprus!Q27 -> : | D79: ='Czech Rep'!Q27 -> : | E79: =Estonia!Q27 -> : | F79: =Hungary!Q27 -> : | G79: =Latvia!Q27 -> : | H79: =Lithuania!Q27 -> 1 | I79: =Poland!Q27 -> : | J79: =Slovakia!Q27 -> : | K79: =Slovenia!Q27 -> : | L79: : | M79: :
A82: Volaille/Poultry/Volatili/Geflügel | C82: =Cyprus!Q30 -> 60 | D82: ='Czech Rep'!Q30 -> 1,125 | E82: =Estonia!Q30 -> 62 | F82: =Hungary!Q30 -> 1,906 | G82: =Latvia!Q30 -> 102 | H82: =Lithuania!Q30 -> 150 | I82: =Poland!Q30 -> 3,667 | J82: =Slovakia!Q30 -> 334 | K82: =Slovenia!Q30 -> 232 | L82: =SUM(C82:K82) -> 7,638 | M82: =P28+L82 -> 46,753
A83: broilers | C83: =Cyprus!Q31 -> : | D83: ='Czech Rep'!Q31 -> : | E83: =Estonia!Q31 -> : | F83: =Hungary!Q31 -> : | G83: =Latvia!Q31 -> : | H83: =Lithuania!Q31 -> 94 | I83: =Poland!Q31 -> : | J83: =Slovakia!Q31 -> : | K83: =Slovenia!Q31 -> 225 | L83: : | M83: :
A84: poulettes & pondeuses/chicks & layers/Jung- & Legehennen | C84: =Cyprus!Q32 -> : | D84: ='Czech Rep'!Q32 -> : | E84: =Estonia!Q32 -> : | F84: =Hungary!Q32 -> : | G84: =Latvia!Q32 -> : | H84: =Lithuania!Q32 -> 52 | I84: =Poland!Q32 -> : | J84: =Slovakia!Q32 -> : | K84: =Slovenia!Q32 -> 7 | L84: : | M84: :
A85: autres/others/Andere | C85: =Cyprus!Q33 -> : | D85: ='Czech Rep'!Q33 -> : | E85: =Estonia!Q33 -> : | F85: =Hungary!Q33 -> : | G85: =Latvia!Q33 -> : | H85: =Lithuania!Q33 -> 4 | I85: =Poland!Q33 -> : | J85: =Slovakia!Q33 -> : | K85: =Slovenia!Q33 -> : | L85: : | M85: :
A88: Al. d'allait./Milk replacers/Sostit. del latte/Milchaust. | C88: =Cyprus!Q36 -> 0 | D88: ='Czech Rep'!Q36 -> 5 | E88: =Estonia!Q36 -> 1 | F88: =Hungary!Q36 -> 0 | G88: =Latvia!Q36 -> 0 | H88: =Lithuania!Q36 -> 4 | I88: =Poland!Q36 -> 0 | J88: =Slovakia!Q36 -> 0 | K88: =Slovenia!Q36 -> 0 | L88: =SUM(C88:K88) -> 10 | M88: =P34+L88 -> 1,637
A91: Autres/others/altri/Andere | C91: =Cyprus!Q39 -> 70 | D91: ='Czech Rep'!Q39 -> 87 | E91: =Estonia!Q39 -> 3 | F91: =Hungary!Q39 -> 188 | G91: =Latvia!Q39 -> 21 | H91: =Lithuania!Q39 -> 7 | I91: =Poland!Q39 -> 265 | J91: =Slovakia!Q39 -> 16 | K91: =Slovenia!Q39 -> 14 | L91: =SUM(C91:K91) -> 671 | M91: =P37+L91 -> 9,000
A94: TOTAL | C94: =C91+C88+C82+C75+C67 -> 220 | D94: 3,052 | E94: 227 | F94: 4,759 | G94: 238 | H94: 283 | I94: 5,464 | J94: 1,082 | K94: 501 | L94: 15,826 | M94: 143,428
A97: ** Sans Malte/Ohne Maltas/Without Malta/Senza Malta
A98: *** Sans le Luxembourg, la Grèce et Malte/Ohne Luxemburg, Griechenland und Maltas/Without Luxemburg, Greece and Malta/Senza Lussemburgo, Ellas e Malta
A100: : non disponible/not available/nicht verfügbar

Sheet 2004-2005
A1: 2006-04-04
A3: PRODUCTION INDUSTRIELLE D'ALIMENTS COMPOSES | X3: INDUSTRIELLE MISCHFUTTERPRODUKTION
A4: PRODUZIONE INDUSTRIALE DI MANGIMI COMPOSTI | M4: 2004-2005 | X4: INDUSTRIAL COMPOUND PRODUCTION
M5: definitif/final | X5: (1 000 t )
A9: PAYS | C9: BOVINS/RINDER | G9: PORCS/SCHWEINE | K9: VOLAILLE/GEFLÜGEL | M9: A. ALLAITEMENT/MILCHAUST. | S9: AUTRES/ANDERE | V9: TOTAL/INSGESAMT
A10: LAND | C10: BOVINI/CATTLE | G10: SUINI/PIGS | K10: VOLATILI/POULTRY | M10: SOSTIT. DEL LATTE/MILKREPLACERS | S10: ALTRI ANIMALI/OTHERS | V10: TOTALE/TOTAL
A11: PAESE
A12: COUNTRY | B12: 2004 | C12: 2005 | D12: %TAV | F12: 2004 | G12: 2005 | H12: %TAV | J12: 2004 | K12: 2005 | L12: %TAV | N12: 2004 | O12: 2005 | P12: %TAV | R12: 2004 | S12: 2005 | T12: %TAV | V12: 2004 | W12: 2005 | X12: %TAV
A14: DE | B14: =Germany!Q$16 -> 6,544 | C14: =Germany!R$16 -> 5,959 | D14: =((C14/B14)-1)*100 -> -8.9 | F14: =Germany!Q$23 -> 7,594 | G14: =Germany!R$23 -> 7,479 | H14: =((G14/F14)-1)*100 -> -1.5 | J14: =Germany!Q$30 -> 5,209 | K14: =Germany!R$30 -> 5,235 | L14: =((K14/J14)-1)*100 -> 0.5 | N14: =Germany!Q$36 -> 159 | O14: =Germany!R$36 -> 141 | P14: =((O14/N14)-1)*100 -> -11.3 | R14: =Germany!Q$39 -> 633 | S14: =Germany!R$39 -> 635 | T14: =((S14/R14)-1)*100 -> 0.3 | V14: =R14+N14+J14+F14+B14 -> 20,139 | W14: 19,449 | X14: =((W14/V14)-1)*100 -> -3.4
A15: FR | B15: =France!Q$16 -> 4,311 | C15: =France!R$16 -> 4,482 | D15: 4.0 | F15: =France!Q$23 -> 6,670 | G15: =France!R$23 -> 6,452 | H15: -3.3 | J15: =France!Q$30 -> 9,245 | K15: =France!R$30 -> 8,992 | L15: -2.7 | N15: =France!Q$36 -> 485 | O15: =France!R$36 -> 487 | P15: 0.4 | R15: =France!Q$39 -> 1,579 | S15: =France!R$39 -> 1,572 | T15: -0.4 | V15: =R15+N15+J15+F15+B15 -> 22,290 | W15: 21,985 | X15: -1.4
A16: IT | B16: =Italy!Q$16 -> 4,306 | C16: =Italy!R$16 -> 4,100 | D16: -4.8 | F16: =Italy!Q$23 -> 2,932 | G16: =Italy!R$23 -> 2,900 | H16: -1.1 | J16: =Italy!Q$30 -> 5,394 | K16: =Italy!R$30 -> 5,350 | L16: -0.8 | N16: =Italy!Q$36 -> 175 | O16: =Italy!R$36 -> 175 | P16: 0.0 | R16: =+Italy!Q$39 -> 975 | S16: =+Italy!R$39 -> 975 | T16: 0.0 | V16: =R16+N16+J16+F16+B16 -> 13,782 | W16: 13,500 | X16: -2.0
A17: NL | B17: ='The Netherlands'!Q$16 -> 3,320 | C17: ='The Netherlands'!R$16 -> 3,178 | D17: -4.3 | F17: ='The Netherlands'!Q$23 -> 5,120 | G17: ='The Netherlands'!R$23 -> 5,378 | H17: 5.0 | J17: ='The Netherlands'!Q$30 -> 3,080 | K17: ='The Netherlands'!R$30 -> 3,426 | L17: 11.2 | N17: ='The Netherlands'!Q$36 -> 728 | O17: ='The Netherlands'!R$36 -> 728 | P17: 0.0 | R17: ='The Netherlands'!Q$39 -> 830 | S17: ='The Netherlands'!R$39 -> 269 | T17: -67.6 | V17: =R17+N17+J17+F17+B17 -> 13,078 | W17: 12,979 | X17: -0.8
A18: BE | B18: =Belgium!Q$16 -> 1,141 | C18: =Belgium!R$16 -> 1,040 | D18: -8.9 | F18: =Belgium!Q$23 -> 3,456 | G18: =Belgium!R$23 -> 3,425 | H18: -0.9 | J18: =Belgium!Q$30 -> 1,450 | K18: =Belgium!R$30 -> 1,298 | L18: -10.5 | N18: =Belgium!Q$36 -> 50 | O18: =Belgium!R$36 -> 102 | P18: 104.0 | R18: =Belgium!Q$39 -> 250 | S18: =Belgium!R$39 -> 129 | T18: -48.4 | V18: =R18+N18+J18+F18+B18 -> 6,347 | W18: 5,994 | X18: -5.6
A19: UK | B19: =UK!Q$16 -> 4,651 | C19: =UK!R$16 -> 4,435 | D19: -4.6 | F19: =UK!Q$23 -> 1,648 | G19: =UK!R$23 -> 1,613 | H19: -2.1 | J19: =UK!Q$30 -> 6,436 | K19: =UK!R$30 -> 6,277 | L19: -2.5 | N19: =UK!Q$36 -> 15 | O19: =UK!R$36 -> 15 | P19: 0.0 | R19: =UK!Q$39 -> 1,335 | S19: =UK!R$39 -> 1,430 | T19: 7.1 | V19: =R19+N19+J19+F19+B19 -> 14,085 | W19: 13,770 | X19: -2.2
A20: IE | B20: =Ireland!Q$16 -> 1,965 | C20: =Ireland!R$16 -> 1,982 | D20: 0.9 | F20: =Ireland!Q$23 -> 630 | G20: =Ireland!R$23 -> 625 | H20: -0.8 | J20: =Ireland!Q$30 -> 488 | K20: =Ireland!R$30 -> 491 | L20: 0.6 | N20: =Ireland!Q$36 -> 10 | O20: =Ireland!R$36 -> 8 | P20: -20.0 | R20: =Ireland!Q$39 -> 452 | S20: =Ireland!R$39 -> 474 | T20: 4.9 | V20: =R20+N20+J20+F20+B20 -> 3,545 | W20: 3,580 | X20: 1.0
A21: DK | B21: =Denmark!Q$16 -> 1,249 | C21: =Denmark!R$16 -> 1,090 | D21: -12.7 | F21: =Denmark!Q$23 -> 3,571 | G21: =Denmark!R$23 -> 3,471 | H21: -2.8 | J21: =Denmark!Q$30 -> 672 | K21: =Denmark!R$30 -> 614 | L21: -8.6 | N21: =Denmark!Q$36 -> 0 | O21: =Denmark!R$36 -> 0 | P21: 0.0 | R21: =Denmark!Q$39 -> 138 | S21: =Denmark!R$39 -> 154 | T21: 11.6 | V21: =R21+N21+J21+F21+B21 -> 5,630 | W21: 5,329 | X21: -5.3
A22: ES | B22: =Spain!Q$16 -> 5,504 | C22: =Spain!R$16 -> 6,197 | D22: 12.6 | F22: =Spain!Q$23 -> 8,535 | G22: =Spain!R$23 -> 8,713 | H22: 2.1 | J22: =Spain!Q$30 -> 4,578 | K22: =Spain!R$30 -> 4,351 | L22: -5.0 | N22: =Spain!Q$36 -> 0 | O22: =Spain!R$36 -> 0 | P22: 0.0 | R22: =Spain!Q$39 -> 1,722 | S22: =Spain!R$39 -> 1,727 | T22: 0.3 | V22: =R22+N22+J22+F22+B22 -> 20,339 | W22: 20,988 | X22: 3.2
A23: PT | B23: =Portugal!Q$16 -> 1,010 | C23: =Portugal!R$16 -> 1,100 | D23: 8.9 | F23: =Portugal!Q$23 -> 1,190 | G23: =Portugal!R$23 -> 1,090 | H23: -8.4 | J23: =Portugal!Q$30 -> 1,360 | K23: =Portugal!R$30 -> 1,350 | L23: -0.7 | N23: =Portugal!Q$36 -> 0 | O23: =Portugal!R$36 -> 0 | P23: 0.0 | R23: =Portugal!Q$39 -> 234 | S23: =Portugal!R$39 -> 259 | T23: 10.7 | V23: =R23+N23+J23+F23+B23 -> 3,794 | W23: 3,799 | X23: 0.1
A24: AT | B24: =Austria!Q$16 -> 342 | C24: =Austria!R$16 -> 352 | D24: 2.9 | F24: =Austria!Q$23 -> 219 | G24: =Austria!R$23 -> 202 | H24: -7.8 | J24: =Austria!Q$30 -> 387 | K24: =Austria!R$30 -> 384 | L24: -0.8 | N24: =Austria!Q$36 -> 0 | O24: =Austria!R$36 -> 0 | P24: 0.0 | R24: =Austria!Q$39 -> 67 | S24: =Austria!R$39 -> 80 | T24: 19.4 | V24: =R24+N24+J24+F24+B24 -> 1,015 | W24: 1,018 | X24: 0.3
A25: SE | B25: =Sweden!Q$16 -> 1,163 | C25: =Sweden!R$16 -> 1,138 | D25: -2.1 | F25: =Sweden!Q$23 -> 445 | G25: =Sweden!R$23 -> 413 | H25: -7.2 | J25: =Sweden!Q$30 -> 510 | K25: =Sweden!R$30 -> 488 | L25: -4.3 | N25: =Sweden!Q$36 -> 5 | O25: =Sweden!R$36 -> 6 | P25: =((O25/N25)-1)*100 -> 20.0 | R25: =Sweden!Q$39 -> 21 | S25: =Sweden!R$39 -> 52 | T25: 147.6 | V25: =R25+N25+J25+F25+B25 -> 2,144 | W25: 2,097 | X25: -2.2
A26: FI | B26: =Finland!Q$16 -> 669 | C26: =Finland!R$16 -> 704 | D26: 5.2 | F26: =Finland!Q$23 -> 346 | G26: =Finland!R$23 -> 359 | H26: 3.8 | J26: =Finland!Q$30 -> 306 | K26: =Finland!R$30 -> 297 | L26: -2.9 | N26: =Finland!Q$36 -> 0 | O26: =Finland!R$36 -> 0 | P26: 0.0 | R26: =Finland!Q$39 -> 93 | S26: =Finland!R$39 -> 92 | T26: -1.1 | V26: =R26+N26+J26+F26+B26 -> 1,414 | W26: 1,452 | X26: 2.7
A27: CY | B27: =Cyprus!Q$16 -> 78 | C27: =Cyprus!R$16 -> 105 | D27: 34.6 | F27: =Cyprus!Q$23 -> 12 | G27: =Cyprus!R$23 -> 13 | H27: 8.3 | J27: =Cyprus!Q$30 -> 60 | K27: =Cyprus!R$30 -> 63 | L27: 5.0 | N27: =Cyprus!Q$36 -> 0 | O27: =Cyprus!R$36 -> 0 | P27: 0.0 | R27: =Cyprus!Q$39 -> 70 | S27: =Cyprus!R$39 -> 100 | T27: 42.9 | V27: =R27+N27+J27+F27+B27 -> 220 | W27: 281 | X27: 27.7
A28: CZ | B28: ='Czech Rep'!Q$16 -> 494 | C28: ='Czech Rep'!R$16 -> 537 | D28: 8.7 | F28: ='Czech Rep'!Q$23 -> 1,341 | G28: ='Czech Rep'!R$23 -> 1,199 | H28: -10.6 | J28: ='Czech Rep'!Q$30 -> 1,125 | K28: ='Czech Rep'!R$30 -> 905 | L28: -19.6 | N28: ='Czech Rep'!Q$36 -> 5 | O28: ='Czech Rep'!R$36 -> 5 | P28: =((O28/N28)-1)*100 -> 0.0 | R28: ='Czech Rep'!Q$39 -> 87 | S28: ='Czech Rep'!R$39 -> 85 | T28: -2.3 | V28: =R28+N28+J28+F28+B28 -> 3,052 | W28: 2,731 | X28: -10.5
A29: EE | B29: =Estonia!Q$16 -> 42 | C29: =Estonia!R$16 -> 49 | D29: 16.7 | F29: =Estonia!Q$23 -> 119 | G29: =Estonia!R$23 -> 116 | H29: -2.5 | J29: =Estonia!Q$30 -> 62 | K29: =Estonia!R$30 -> 54 | L29: -12.9 | N29: =Estonia!Q$36 -> 1 | O29: =Estonia!R$36 -> 1 | P29: 0.0 | R29: =Estonia!Q$39 -> 3 | S29: =Estonia!R$39 -> 3 | T29: 0.0 | V29: =R29+N29+J29+F29+B29 -> 227 | W29: 223 | X29: -1.8
A30: HU | B30: =Hungary!Q$16 -> 575 | C30: =Hungary!R$16 -> 558 | D30: -3.0 | F30: =Hungary!Q$23 -> 2,090 | G30: =Hungary!R$23 -> 1,980 | H30: -5.3 | J30: =Hungary!Q$30 -> 1,906 | K30: =Hungary!R$30 -> 1,771 | L30: -7.1 | N30: =Hungary!Q$36 -> 0 | O30: =Hungary!R$36 -> 0 | P30: 0.0 | R30: =Hungary!Q$39 -> 188 | S30: =Hungary!R$39 -> 191 | T30: 1.6 | V30: =R30+N30+J30+F30+B30 -> 4,759 | W30: 4,500 | X30: -5.4
A31: LV | B31: =Latvia!Q$16 -> 25 | C31: =Latvia!R$16 -> 28 | D31: 12.0 | F31: =Latvia!Q$23 -> 90 | G31: =Latvia!R$23 -> 107 | H31: 18.9 | J31: =Latvia!Q$30 -> 102 | K31: =Latvia!R$30 -> 38 | L31: -62.7 | N31: =Latvia!Q$36 -> 0 | O31: =Latvia!R$36 -> 0 | P31: 0.0 | R31: =Latvia!Q$39 -> 21 | S31: =Latvia!R$39 -> 17 | T31: -19.0 | V31: =R31+N31+J31+F31+B31 -> 238 | W31: 190 | X31: -20.2
A32: LT | B32: =Lithuania!Q$16 -> 8 | C32: =Lithuania!R$16 -> 21 | D32: 162.5 | F32: =Lithuania!Q$23 -> 114 | G32: =Lithuania!R$23 -> 98 | H32: -14.0 | J32: =Lithuania!Q$30 -> 150 | K32: =Lithuania!R$30 -> 168 | L32: 12.0 | N32: =Lithuania!Q$36 -> 4 | O32: =Lithuania!R$36 -> 4 | P32: =((O32/N32)-1)*100 -> 0.0 | R32: =Lithuania!Q$39 -> 7 | S32: =Lithuania!R$39 -> 6 | T32: -14.3 | V32: =R32+N32+J32+F32+B32 -> 283 | W32: 297 | X32: 4.9
A33: PL | B33: =Poland!Q$16 -> 365 | C33: =Poland!R$16 -> 421 | D33: 15.3 | F33: =Poland!Q$23 -> 1,167 | G33: =Poland!R$23 -> 1,082 | H33: -7.3 | J33: =Poland!Q$30 -> 3,667 | K33: =Poland!R$30 -> 3,474 | L33: -5.3 | N33: =Poland!Q$36 -> 0 | O33: =Poland!R$36 -> 0 | P33: 0.0 | R33: =Poland!Q$39 -> 265 | S33: =Poland!R$39 -> 299 | T33: 12.8 | V33: =R33+N33+J33+F33+B33 -> 5,464 | W33: 5,276 | X33: -3.4
A34: SK | B34: =Slovakia!Q$16 -> 259 | C34: =Slovakia!R$16 -> 262 | D34: 1.2 | F34: =Slovakia!Q$23 -> 473 | G34: =Slovakia!R$23 -> 394 | H34: -16.7 | J34: =Slovakia!Q$30 -> 334 | K34: =Slovakia!R$30 -> 334 | L34: 0.0 | N34: =Slovakia!Q$36 -> 0 | O34: =Slovakia!R$36 -> 0 | P34: 0.0 | R34: =+Slovakia!Q$39 -> 16 | S34: =+Slovakia!R$39 -> 12 | T34: -25.0 | V34: =R34+N34+J34+F34+B34 -> 1,082 | W34: 1,002 | X34: -7.4
A35: SI | B35: =Slovenia!Q$16 -> 114 | C35: =Slovenia!R$16 -> 129 | D35: 13.2 | F35: =Slovenia!Q$23 -> 141 | G35: =Slovenia!R$23 -> 113 | H35: -19.9 | J35: =Slovenia!Q$30 -> 232 | K35: =Slovenia!R$30 -> 233 | L35: 0.4 | N35: =Slovenia!Q$36 -> 0 | O35: =Slovenia!R$36 -> 0 | P35: 0.0 | R35: =Slovenia!Q$39 -> 14 | S35: =Slovenia!R$39 -> 9 | T35: -35.7 | V35: =R35+N35+J35+F35+B35 -> 501 | W35: 484 | X35: -3.4
A37: EUR 25 * | B37: =SUM(B14:B35) -> 38,135 | C37: 37,867 | D37: =((C37/B37)-1)*100 -> -0.7 | F37: =SUM(F14:F35) -> 47,903 | G37: 47,222 | H37: =((G37/F37)-1)*100 -> -1.4 | J37: =SUM(J14:J35) -> 46,753 | K37: 45,593 | L37: =((K37/J37)-1)*100 -> -2.5 | N37: =SUM(N14:N35) -> 1,637 | O37: 1,672 | P37: =((O37/N37)-1)*100 -> 2.1 | R37: =SUM(R14:R35) -> 9,000 | S37: 8,570 | T37: =((S37/R37)-1)*100 -> -4.8 | V37: =SUM(V14:V35) -> 143,428 | W37: 140,924 | X37: =((W37/V37)-1)*100 -> -1.7
C39: =SUM(C27:C35) -> 2,110 | G39: =SUM(G27:G35) -> 5,102 | K39: =SUM(K27:K35) -> 7,040 | O39: =SUM(O27:O35) -> 10
A40: * Sans le Luxembourg, la Grèce et Malte/Ohne Luxemburg, Griechenland und Malta/Without Luxemburg, Greece and Malta/Senza Lussemburgo, Ellas e Malta
A41: : non disponible/not available

Sheet 2005
A1: 2007-05-10
A3: PRODUCTION INDUSTRIELLE D'ALIMENTS COMPOSES | P3: INDUSTRIELLE MISCHFUTTERPRODUKTION
A4: PRODUZIONE INDUSTRIALE DI MANGIMI COMPOSTI | P4: INDUSTRIAL COMPOUND PRODUCTION
A5: 2005
A6: definitif/final
P7: (1 000 t)
A9: Catégories d'aliments composés/Mischfutterarten | C9: DE | D9: FR | E9: IT | F9: NL | G9: BE | H9: UK | I9: IE | J9: DK | K9: ES | L9: PT | M9: AT | N9: SE | O9: FI | P9: EU-15
A10: Tipi di mangimi compositi/Types of feed | P10: *
A13: Bovins/Cattle/Bovini/Rinder | C13: =Germany!R16 -> 5,959 | D13: =France!R16 -> 4,482 | E13: =Italy!R16 -> 4,100 | F13: ='The Netherlands'!R16 -> 3,178 | G13: =Belgium!R16 -> 1,040 | H13: =UK!R16 -> 4,435 | I13: =Ireland!R16 -> 1,982 | J13: =Denmark!R16 -> 1,090 | K13: =Spain!R16 -> 6,197 | L13: =Portugal!R16 -> 1,100 | M13: =Austria!R16 -> 352 | N13: =Sweden!R16 -> 1,138 | O13: =Finland!R16 -> 704 | P13: =SUM(C13:O13) -> 35,757
A14: engrais/fattening/Mast | C14: =Germany!R17 -> 519 | D14: =France!R17 -> 1,369 | E14: =Italy!R17 -> : | F14: ='The Netherlands'!R17 -> 262 | G14: =Belgium!R17 -> 333 | H14: =UK!R17 -> 1,261 | I14: =Ireland!R17 -> 933 | J14: : | K14: : | L14: =Portugal!R17 -> 470 | M14: =Austria!R17 -> : | N14: : | O14: : | P14: :
A15: VL/dairy cow/Milchkühe | C15: =Germany!R18 -> 5,132 | D15: =France!R18 -> 2,699 | E15: =Italy!R18 -> : | F15: ='The Netherlands'!R18 -> 2,916 | G15: =Belgium!R18 -> 469 | H15: =UK!R18 -> 2,922 | I15: =Ireland!R18 -> 797 | J15: =Denmark!R18 -> 734 | K15: : | L15: =Portugal!R18 -> 520 | M15: =Austria!R18 -> : | N15: : | O15: =Finland!R18 -> 637 | P15: :
A16: veaux (aliments d'allaitement non compris)/calves | C16: =Germany!R19 -> 0 | D16: =France!R19 -> 0 | E16: =Italy!R19 -> : | F16: ='The Netherlands'!R19 -> : | G16: =Belgium!R19 -> 80 | H16: =UK!R19 -> 171 | I16: =Ireland!R19 -> 156 | J16: =Denmark!R19 -> 356 | K16: : | L16: =Portugal!R19 -> 70 | M16: =Austria!R19 -> : | N16: : | O16: =Finland!R19 -> 67 | P16: :
A17: (excluding milk replacers)/Kälber (exkl. Milchaustauscher)
A18: autres/others/Andere | C18: =Germany!R20 -> 308 | D18: =France!R20 -> 414 | E18: =Italy!R20 -> : | F18: ='The Netherlands'!R20 -> : | G18: =Belgium!R20 -> 158 | H18: =UK!R20 -> 81 | I18: =Ireland!R20 -> 96 | J18: =Denmark!R20 -> : | K18: : | L18: =Portugal!R20 -> 40 | M18: =Austria!R20 -> : | N18: : | O18: =Finland!R20 -> 0 | P18: :
A21: Porcins/Pigs/Suini/Schweine | C21: =Germany!R23 -> 7,479 | D21: =France!R23 -> 6,452 | E21: =Italy!R23 -> 2,900 | F21: ='The Netherlands'!R23 -> 5,378 | G21: =Belgium!R23 -> 3,425 | H21: =UK!R23 -> 1,613 | I21: =Ireland!R23 -> 625 | J21: =Denmark!R23 -> 3,471 | K21: =Spain!R23 -> 8,713 | L21: =Portugal!R23 -> 1,090 | M21: =Austria!R23 -> 202 | N21: =Sweden!R23 -> 413 | O21: =Finland!R23 -> 359 | P21: =SUM(C21:O21) -> 42,120
A22: porcelets/piglets/Ferkel | C22: =Germany!R24 -> 1,421 | D22: =France!R24 -> 806 | E22: =Italy!R24 -> : | F22: ='The Netherlands'!R24 -> 689 | G22: =Belgium!R24 -> 786 | H22: =UK!R24 -> 108 | I22: =Ireland!R24 -> 82 | J22: =Denmark!R24 -> 678 | K22: : | L22: =Portugal!R24 -> 171 | M22: =Austria!R24 -> : | N22: : | O22: =Finland!R24 -> 48 | P22: :
A23: porcs engrais/pigs for fattening/Mastschweine | C23: =Germany!R25 -> 4,263 | D23: =France!R25 -> 4,497 | E23: =Italy!R25 -> : | F23: ='The Netherlands'!R25 -> 3,545 | G23: =Belgium!R25 -> 2,639 | H23: =UK!R25 -> 1,058 | I23: =Ireland!R25 -> 406 | J23: =Denmark!R25 -> 2,077 | K23: : | L23: =Portugal!R25 -> 670 | M23: =Austria!R25 -> : | N23: : | O23: =Finland!R25 -> 197 | P23: :
A24: reproducteurs/breeding pigs/Zuchtschweine | C24: =Germany!R26 -> 1,369 | D24: =France!R26 -> 1,149 | E24: =Italy!R26 -> : | F24: ='The Netherlands'!R26 -> 1,144 | G24: =Belgium!R26 -> : | H24: =UK!R26 -> 431 | I24: =Ireland!R26 -> 119 | J24: =Denmark!R26 -> 716 | K24: : | L24: =Portugal!R26 -> 242 | M24: =Austria!R26 -> : | N24: : | O24: =Finland!R26 -> 60 | P24: :
A25: autres/others/Andere | C25: =Germany!R27 -> 426 | D25: =France!R27 -> 0 | E25: =Italy!R27 -> : | F25: ='The Netherlands'!R27 -> : | G25: =Belgium!R27 -> : | H25: =UK!R27 -> 16 | I25: =Ireland!R27 -> 18 | J25: =Denmark!R27 -> : | K25: : | L25: =Portugal!R27 -> 7 | M25: =Austria!R27 -> : | N25: : | O25: =Finland!R27 -> 54 | P25: :
A28: Volaille/Poultry/Volatili/Geflügel | C28: =Germany!R30 -> 5,235 | D28: =France!R30 -> 8,992 | E28: =Italy!R30 -> 5,350 | F28: ='The Netherlands'!R30 -> 3,426 | G28: =Belgium!R30 -> 1,298 | H28: =UK!R30 -> 6,277 | I28: =Ireland!R30 -> 491 | J28: =Denmark!R30 -> 614 | K28: =Spain!R30 -> 4,351 | L28: =Portugal!R30 -> 1,350 | M28: =Austria!R30 -> 384 | N28: =Sweden!R30 -> 488 | O28: =Finland!R30 -> 297 | P28: =SUM(C28:O28) -> 38,553
A29: broilers | C29: =Germany!R31 -> 1,683 | D29: =France!R31 -> 3,280 | E29: =Italy!R31 -> : | F29: ='The Netherlands'!R31 -> 1,558 | G29: =Belgium!R31 -> 537 | H29: =UK!R31 -> 3,496 | I29: : | J29: =Denmark!R31 -> 305 | K29: : | L29: =Portugal!R31 -> 797 | M29: =Austria!R31 -> : | N29: : | O29: =Finland!R31 -> 183 | P29: :
A30: poulettes & pondeuses/chicks & layers/Jung- & Legehennen | C30: =Germany!R32 -> 2,176 | D30: =France!R32 -> 2,097 | E30: =Italy!R32 -> : | F30: ='The Netherlands'!R32 -> 1,868 | G30: =Belgium!R32 -> 528 | H30: =UK!R32 -> 1,427 | I30: : | J30: =Denmark!R32 -> 239 | K30: : | L30: =Portugal!R32 -> 367 | M30: =Austria!R32 -> : | N30: : | O30: =Finland!R32 -> 66 | P30: :
A31: autres/others/Andere | C31: =Germany!R33 -> 1,376 | D31: =France!R33 -> 3,615 | E31: =Italy!R33 -> : | F31: ='The Netherlands'!R33 -> : | G31: =Belgium!R33 -> 233 | H31: =UK!R33 -> 1,354 | I31: : | J31: =Denmark!R33 -> 70 | K31: : | L31: =Portugal!R33 -> 186 | M31: =Austria!R33 -> : | N31: : | O31: =Finland!R33 -> 48 | P31: :
A34: Al. d'allait./Milk replacers/Sostit. del latte/Milchaust. | C34: =Germany!R36 -> 141 | D34: =France!R36 -> 487 | E34: =Italy!R36 -> 175 | F34: ='The Netherlands'!R36 -> 728 | G34: =Belgium!R36 -> 102 | H34: =UK!R36 -> 15 | I34: =Ireland!R36 -> 8 | J34: =Denmark!R36 -> 0 | K34: =Spain!R36 -> 0 | L34: =Portugal!R36 -> 0 | M34: =Austria!R36 -> 0 | N34: =Sweden!R36 -> 6 | O34: =Finland!R36 -> 0 | P34: =SUM(C34:O34) -> 1,662
A37: Autres/others/altri/Andere | C37: =Germany!R39 -> 635 | D37: =France!R39 -> 1,572 | E37: =Italy!R39 -> 975 | F37: ='The Netherlands'!R39 -> 269 | G37: =Belgium!R39 -> 129 | H37: =UK!R39 -> 1,430 | I37: =Ireland!R39 -> 474 | J37: =Denmark!R39 -> 154 | K37: =Spain!R39 -> 1,727 | L37: =Portugal!R39 -> 259 | M37: =Austria!R39 -> 80 | N37: =Sweden!R39 -> 52 | O37: =Finland!R39 -> 92 | P37: =SUM(C37:O37) -> 7,848
A40: TOTAL | C40: =C37+C34+C28+C21+C13 -> 19,449 | D40: 21,985 | E40: 13,500 | F40: 12,979 | G40: 5,994 | H40: 13,770 | I40: 3,580 | J40: 5,329 | K40: 20,988 | L40: 3,799 | M40: 1,018 | N40: 2,097 | O40: 1,452 | P40: 125,940
A43: * Sans le Luxembourg et la Grèce/ohne Luxemburg und Griechenland/Without Luxemburg and Greece/Senza Lussemburgo e Ella
A44: : non disponible/not available/nicht verfügbar
A54: 2006-06-10
A56: PRODUCTION INDUSTRIELLE D'ALIMENTS COMPOSES | M56: INDUSTRIELLE MISCHFUTTERPRODUKTION
A57: PRODUZIONE INDUSTRIALE DI MANGIMI COMPOSTI | M57: INDUSTRIAL COMPOUND PRODUCTION
A58: 2005
A59: definitif/final
M60: (1 000 t)
A62: Catégories d'aliments composés/Mischfutterarten | C62: CY | D62: CZ | E62: EE | F62: HU | G62: LV | H62: LT | I62: PL | J62: SK | K62: SI | L62: 10NM | M62: EU-25
A63: Tipi di mangimi compositi/Types of feed | L63: ** | M63: ***
A66: Bovins/Cattle/Bovini/Rinder | C66: =Cyprus!R16 -> 105 | D66: ='Czech Rep'!R16 -> 537 | E66: =Estonia!R16 -> 49 | F66: =Hungary!R16 -> 558 | G66: =Latvia!R16 -> 28 | H66: =Lithuania!R16 -> 21 | I66: =Poland!R16 -> 421 | J66: =Slovakia!R16 -> 262 | K66: =Slovenia!R16 -> 129 | L66: =SUM(C66:K66) -> 2,110 | M66: =P13+L66 -> 37,867
A67: engrais/fattening/Mast | C67: =Cyprus!R17 -> : | D67: ='Czech Rep'!R17 -> : | E67: =Estonia!R17 -> : | F67: =Hungary!R17 -> : | G67: =Latvia!R17 -> : | H67: =Lithuania!R17 -> 2 | I67: =Poland!R17 -> : | J67: =Slovakia!R17 -> 22 | K67: =Slovenia!R17 -> 113 | L67: : | M67: :
A68: VL/dairy cow/Milchkühe | C68: =Cyprus!R18 -> : | D68: ='Czech Rep'!R18 -> : | E68: =Estonia!R18 -> : | F68: =Hungary!R18 -> : | G68: =Latvia!R18 -> : | H68: =Lithuania!R18 -> 9 | I68: =Poland!R18 -> : | J68: =Slovakia!R18 -> 191 | K68: =Slovenia!R18 -> 11 | L68: : | M68: :
A69: veaux (aliments d'allaitement non compris)/calves | C69: =Cyprus!R19 -> : | D69: ='Czech Rep'!R19 -> : | E69: =Estonia!R19 -> : | F69: =Hungary!R19 -> : | G69: =Latvia!R19 -> : | H69: =Lithuania!R19 -> 9 | I69: =Poland!R19 -> : | J69: =Slovakia!R19 -> 27 | K69: =Slovenia!R19 -> 3 | L69: : | M69: :
A70: (excluding milk replacers)/Kälber (exkl. Milchaustauscher)
A71: autres/others/Andere | C71: =Cyprus!R20 -> : | D71: ='Czech Rep'!R20 -> : | E71: =Estonia!R20 -> : | F71: =Hungary!R20 -> : | G71: =Latvia!R20 -> : | H71: =Lithuania!R20 -> 1 | I71: =Poland!R20 -> : | J71: =Slovakia!R20 -> 22 | K71: =Slovenia!R20 -> 2 | L71: : | M71: :
A74: Porcins/Pigs/Suini/Schweine | C74: =Cyprus!R23 -> 13 | D74: ='Czech Rep'!R23 -> 1,199 | E74: =Estonia!R23 -> 116 | F74: =Hungary!R23 -> 1,980 | G74: =Latvia!R23 -> 107 | H74: =Lithuania!R23 -> 98 | I74: =Poland!R23 -> 1,082 | J74: =Slovakia!R23 -> 394 | K74: =Slovenia!R23 -> 113 | L74: =SUM(C74:K74) -> 5,102 | M74: =P21+L74 -> 47,222
A75: porcelets/piglets/Ferkel | C75: =Cyprus!R24 -> : | D75: ='Czech Rep'!R24 -> : | E75: =Estonia!R24 -> : | F75: =Hungary!R24 -> : | G75: =Latvia!R24 -> : | H75: =Lithuania!R24 -> 30 | I75: =Poland!R24 -> : | J75: =Slovakia!R24 -> 34 | K75: =Slovenia!R24 -> 6 | L75: : | M75: :
A76: porcs engrais/pigs for fattening/Mastschweine | C76: =Cyprus!R25 -> : | D76: ='Czech Rep'!R25 -> : | E76: =Estonia!R25 -> : | F76: =Hungary!R25 -> : | G76: =Latvia!R25 -> : | H76: =Lithuania!R25 -> 48 | I76: =Poland!R25 -> : | J76: =Slovakia!R25 -> 258 | K76: =Slovenia!R25 -> 105 | L76: : | M76: :
A77: reproducteurs/breeding pigs/Zuchtschweine | C77: =Cyprus!R26 -> : | D77: ='Czech Rep'!R26 -> : | E77: =Estonia!R26 -> : | F77: =Hungary!R26 -> : | G77: =Latvia!R26 -> : | H77: =Lithuania!R26 -> 11 | I77: =Poland!R26 -> : | J77: =Slovakia!R26 -> 22 | K77: =Slovenia!R26 -> 2 | L77: : | M77: :
A78: autres/others/Andere | C78: =Cyprus!R27 -> : | D78: ='Czech Rep'!R27 -> : | E78: =Estonia!R27 -> : | F78: =Hungary!R27 -> : | G78: =Latvia!R27 -> : | H78: =Lithuania!R27 -> 9 | I78: =Poland!R27 -> : | J78: =Slovakia!R27 -> 80 | K78: =Slovenia!R27 -> 0 | L78: : | M78: :
A81: Volaille/Poultry/Volatili/Geflügel | C81: =Cyprus!R30 -> 63 | D81: ='Czech Rep'!R30 -> 905 | E81: =Estonia!R30 -> 54 | F81: =Hungary!R30 -> 1,771 | G81: =Latvia!R30 -> 38 | H81: =Lithuania!R30 -> 168 | I81: =Poland!R30 -> 3,474 | J81: =Slovakia!R30 -> 334 | K81: =Slovenia!R30 -> 233 | L81: =SUM(C81:K81) -> 7,040 | M81: =P28+L81 -> 45,593
A82: broilers | C82: =Cyprus!R31 -> : | D82: ='Czech Rep'!R31 -> : | E82: =Estonia!R31 -> : | F82: =Hungary!R31 -> : | G82: =Latvia!R31 -> : | H82: =Lithuania!R31 -> 90 | I82: =Poland!R31 -> : | J82: =Slovakia!R31 -> 209 | K82: =Slovenia!R31 -> 226 | L82: : | M82: :
A83: poulettes & pondeuses/chicks & layers/Jung- & Legehennen | C83: =Cyprus!R32 -> : | D83: ='Czech Rep'!R32 -> : | E83: =Estonia!R32 -> : | F83: =Hungary!R32 -> : | G83: =Latvia!R32 -> : | H83: =Lithuania!R32 -> 76 | I83: =Poland!R32 -> : | J83: =Slovakia!R32 -> 100 | K83: =Slovenia!R32 -> 7 | L83: : | M83: :
A84: autres/others/Andere | C84: =Cyprus!R33 -> : | D84: ='Czech Rep'!R33 -> : | E84: =Estonia!R33 -> : | F84: =Hungary!R33 -> : | G84: =Latvia!R33 -> : | H84: =Lithuania!R33 -> 2 | I84: =Poland!R33 -> : | J84: =Slovakia!R33 -> 25 | K84: =Slovenia!R33 -> 0 | L84: : | M84: :
A87: Al. d'allait./Milk replacers/Sostit. del latte/Milchaust. | C87: =Cyprus!R36 -> 0 | D87: ='Czech Rep'!R36 -> 5 | E87: =Estonia!R36 -> 1 | F87: =Hungary!R36 -> 0 | G87: =Latvia!R36 -> 0 | H87: =Lithuania!R36 -> 4 | I87: =Poland!R36 -> 0 | J87: =Slovakia!R36 -> 0 | K87: =Slovenia!R36 -> 0 | L87: =SUM(C87:K87) -> 10 | M87: =P34+L87 -> 1,672
A90: Autres/others/altri/Andere | C90: =Cyprus!R39 -> 100 | D90: ='Czech Rep'!R39 -> 85 | E90: =Estonia!R39 -> 3 | F90: =Hungary!R39 -> 191 | G90: =Latvia!R39 -> 17 | H90: =Lithuania!R39 -> 6 | I90: =Poland!R39 -> 299 | J90: =Slovakia!R39 -> 12 | K90: =Slovenia!R39 -> 9 | L90: =SUM(C90:K90) -> 722 | M90: =P37+L90 -> 8,570
A93: TOTAL | C93: =C90+C87+C81+C74+C66 -> 281 | D93: 2,731 | E93: 223 | F93: 4,500 | G93: 190 | H93: 297 | I93: 5,276 | J93: 1,002 | K93: 484 | L93: 14,984 | M93: 140,924
A96: ** Sans Malte/Ohne Maltas/Without Malta/Senza Malta
A97: *** Sans le Luxembourg, la Grèce et Malte/Ohne Luxemburg, Griechenland und Maltas/Without Luxemburg, Greece and Malta/Senza Lussemburgo, Ellas e Malta
A98: : non disponible/not available/nicht verfügbar

Sheet 2005-06
A1: 2007-05-10
A3: PRODUCTION INDUSTRIELLE D'ALIMENTS COMPOSES | X3: INDUSTRIELLE MISCHFUTTERPRODUKTION
A4: PRODUZIONE INDUSTRIALE DI MANGIMI COMPOSTI | M4: 2005-2006 | X4: INDUSTRIAL COMPOUND PRODUCTION
M5: definitif/final | X5: (1 000 t )
A9: PAYS | C9: BOVINS/RINDER | G9: PORCS/SCHWEINE | K9: VOLAILLE/GEFLÜGEL | M9: A. ALLAITEMENT/MILCHAUST. | S9: AUTRES/ANDERE | V9: TOTAL/INSGESAMT
A10: LAND | C10: BOVINI/CATTLE | G10: SUINI/PIGS | K10: VOLATILI/POULTRY | M10: SOSTIT. DEL LATTE/MILKREPLACERS | S10: ALTRI ANIMALI/OTHERS | V10: TOTALE/TOTAL
A11: PAESE
A12: COUNTRY | B12: 2005 | C12: 2006 | D12: %TAV | F12: 2005 | G12: 2006 | H12: %TAV | J12: 2005 | K12: 2006 | L12: %TAV | N12: 2005 | O12: 2006 | P12: %TAV | R12: 2005 | S12: 2006 | T12: %TAV | V12: 2005 | W12: 2006 | X12: %TAV
A14: DE | B14: =Germany!R$16 -> 5,959 | C14: =Germany!S$16 -> 5,970 | D14: =((C14/B14)-1)*100 -> 0.2 | F14: =Germany!R$23 -> 7,479 | G14: =Germany!S$23 -> 8,142 | H14: =((G14/F14)-1)*100 -> 8.9 | J14: =Germany!R$30 -> 5,235 | K14: =Germany!S$30 -> 5,265 | L14: =((K14/J14)-1)*100 -> 0.6 | N14: =Germany!R$36 -> 141 | O14: =Germany!S$36 -> 142 | P14: =((O14/N14)-1)*100 -> 0.7 | R14: =Germany!R$39 -> 635 | S14: =Germany!S$39 -> 785 | T14: =((S14/R14)-1)*100 -> 23.6 | V14: =R14+N14+J14+F14+B14 -> 19,449 | W14: 20,304 | X14: =((W14/V14)-1)*100 -> 4.4
A15: FR | B15: =France!R$16 -> 4,482 | C15: =France!S$16 -> 4,778 | D15: 6.6 | F15: =France!R$23 -> 6,452 | G15: =France!S$23 -> 6,302 | H15: -2.3 | J15: =France!R$30 -> 8,992 | K15: =France!S$30 -> 8,491 | L15: -5.6 | N15: =France!R36 -> 487 | O15: =France!S36 -> 449 | P15: -7.8 | R15: =France!R$39 -> 1,572 | S15: =France!S$39 -> 1,565 | T15: -0.4 | V15: =R15+N15+J15+F15+B15 -> 21,985 | W15: 21,585 | X15: -1.8
A16: IT | B16: =Italy!R$16 -> 4,100 | C16: =Italy!S$16 -> 4,155 | D16: 1.3 | F16: =Italy!R$23 -> 2,900 | G16: =Italy!S$23 -> 2,980 | H16: 2.8 | J16: =Italy!R$30 -> 5,350 | K16: =Italy!S$30 -> 4,991 | L16: -6.7 | N16: =Italy!R$36 -> 175 | O16: =Italy!S$36 -> 170 | P16: -2.9 | R16: =+Italy!R$39 -> 975 | S16: =+Italy!S$39 -> 894 | T16: -8.3 | V16: =R16+N16+J16+F16+B16 -> 13,500 | W16: 13,190 | X16: -2.3
A17: NL | B17: ='The Netherlands'!R$16 -> 3,178 | C17: ='The Netherlands'!S$16 -> 3,140 | D17: -1.2 | F17: ='The Netherlands'!R$23 -> 5,378 | G17: ='The Netherlands'!S$23 -> 5,672 | H17: 5.5 | J17: ='The Netherlands'!R$30 -> 3,426 | K17: ='The Netherlands'!S$30 -> 3,533 | L17: 3.1 | N17: ='The Netherlands'!R$36 -> 728 | O17: ='The Netherlands'!S$36 -> 724 | P17: -0.5 | R17: ='The Netherlands'!R$39 -> 269 | S17: ='The Netherlands'!S$39 -> 422 | T17: 56.9 | V17: =R17+N17+J17+F17+B17 -> 12,979 | W17: 13,491 | X17: 3.9
A18: BE | B18: =Belgium!R$16 -> 1,040 | C18: =Belgium!S$16 -> 1,091 | D18: 4.9 | F18: =Belgium!R$23 -> 3,425 | G18: =Belgium!S$23 -> 3,412 | H18: -0.4 | J18: =Belgium!R$30 -> 1,298 | K18: =Belgium!S$30 -> 1,264 | L18: -2.6 | N18: =Belgium!R$36 -> 102 | O18: =Belgium!S$36 -> 62 | P18: -39.2 | R18: =Belgium!R$39 -> 129 | S18: =Belgium!S$39 -> 129 | T18: 0.0 | V18: =R18+N18+J18+F18+B18 -> 5,994 | W18: 5,958 | X18: -0.6
A19: UK | B19: =UK!R$16 -> 4,435 | C19: =UK!S$16 -> 4,785 | D19: 7.9 | F19: =UK!R$23 -> 1,613 | G19: =UK!S$23 -> 1,672 | H19: 3.7 | J19: =UK!R$30 -> 6,277 | K19: =UK!S$30 -> 6,113 | L19: -2.6 | N19: =UK!R$36 -> 15 | O19: =UK!S$36 -> 1 | P19: -93.3 | R19: =UK!R$39 -> 1,430 | S19: =UK!S$39 -> 1,544 | T19: 8.0 | V19: =R19+N19+J19+F19+B19 -> 13,770 | W19: 14,115 | X19: 2.5
A20: IE | B20: =Ireland!R$16 -> 1,982 | C20: =Ireland!S$16 -> 2,315 | D20: 16.8 | F20: =Ireland!R$23 -> 625 | G20: =Ireland!S$23 -> 608 | H20: -2.7 | J20: =Ireland!R$30 -> 491 | K20: =Ireland!S$30 -> 454 | L20: -7.5 | N20: =Ireland!R$36 -> 8 | O20: =Ireland!S$36 -> 10 | P20: 25.0 | R20: =Ireland!R$39 -> 474 | S20: =Ireland!S$39 -> 531 | T20: 12.0 | V20: =R20+N20+J20+F20+B20 -> 3,580 | W20: 3,918 | X20: 9.4
A21: DK | B21: =Denmark!R$16 -> 1,090 | C21: =Denmark!S$16 -> 1,124 | D21: 3.1 | F21: =Denmark!R$23 -> 3,471 | G21: =Denmark!S$23 -> 3,329 | H21: -4.1 | J21: =Denmark!R$30 -> 614 | K21: =Denmark!S$30 -> 598 | L21: -2.6 | N21: =Denmark!R$36 -> 0 | O21: =Denmark!S$36 -> 0 | P21: 0.0 | R21: =Denmark!R$39 -> 154 | S21: =Denmark!S$39 -> 155 | T21: 0.6 | V21: =R21+N21+J21+F21+B21 -> 5,329 | W21: 5,206 | X21: -2.3
A22: ES | B22: =Spain!R$16 -> 6,197 | C22: =Spain!S$16 -> 4,100 | D22: -33.8 | F22: =Spain!R$23 -> 8,713 | G22: =Spain!S$23 -> 8,935 | H22: 2.5 | J22: =Spain!R$30 -> 4,351 | K22: =Spain!S$30 -> 4,547 | L22: 4.5 | N22: =Spain!R$36 -> 0 | O22: =Spain!S$36 -> 0 | P22: 0.0 | R22: =Spain!R$39 -> 1,727 | S22: =Spain!S$39 -> 1,636 | T22: -5.3 | V22: =R22+N22+J22+F22+B22 -> 20,988 | W22: 19,218 | X22: -8.4
A23: PT | B23: =Portugal!R$16 -> 1,100 | C23: =Portugal!S$16 -> 910 | D23: -17.3 | F23: =Portugal!R$23 -> 1,090 | G23: =Portugal!S$23 -> 1,025 | H23: -6.0 | J23: =Portugal!R$30 -> 1,350 | K23: =Portugal!S$30 -> 1,280 | L23: -5.2 | N23: =Portugal!R$36 -> 0 | O23: =Portugal!S$36 -> 0 | P23: 0.0 | R23: =Portugal!R$39 -> 259 | S23: =Portugal!S$39 -> 225 | T23: -13.1 | V23: =R23+N23+J23+F23+B23 -> 3,799 | W23: 3,440 | X23: -9.4
A24: AT | B24: =Austria!R$16 -> 352 | C24: =Austria!S$16 -> 390 | D24: 10.8 | F24: =Austria!R$23 -> 202 | G24: =Austria!S$23 -> 219 | H24: 8.4 | J24: =Austria!R$30 -> 384 | K24: =Austria!S$30 -> 387 | L24: 0.8 | N24: =Austria!R$36 -> 0 | O24: =Austria!S$36 -> 0 | P24: 0.0 | R24: =Austria!R$39 -> 80 | S24: =Austria!S$39 -> 85 | T24: 6.3 | V24: =R24+N24+J24+F24+B24 -> 1,018 | W24: 1,081 | X24: 6.2
A25: SE | B25: =Sweden!R$16 -> 1,138 | C25: =Sweden!S$16 -> 1,121 | D25: -1.5 | F25: =Sweden!R$23 -> 413 | G25: =Sweden!S$23 -> 385 | H25: -6.8 | J25: =Sweden!R$30 -> 488 | K25: =Sweden!S$30 -> 484 | L25: -0.8 | N25: =Sweden!R$36 -> 6 | O25: =Sweden!S$36 -> 2 | P25: =((O25/N25)-1)*100 -> -66.7 | R25: =Sweden!R$39 -> 52 | S25: =Sweden!S$39 -> 65 | T25: 25.0 | V25: =R25+N25+J25+F25+B25 -> 2,097 | W25: 2,057 | X25: -1.9
A26: FI | B26: =Finland!R$16 -> 704 | C26: =Finland!S$16 -> 671 | D26: -4.7 | F26: =Finland!R$23 -> 359 | G26: =Finland!S$23 -> 360 | H26: 0.3 | J26: =Finland!R$30 -> 297 | K26: =Finland!S$30 -> 293 | L26: -1.3 | N26: =Finland!R$36 -> 0 | O26: =Finland!S$36 -> 0 | P26: 0.0 | R26: =Finland!R$39 -> 92 | S26: =Finland!S$39 -> 93 | T26: 1.1 | V26: =R26+N26+J26+F26+B26 -> 1,452 | W26: 1,417 | X26: -2.4
A27: CY | B27: =Cyprus!R$16 -> 105 | C27: =Cyprus!S$16 -> 107 | D27: 1.9 | F27: =Cyprus!R$23 -> 13 | G27: =Cyprus!S$23 -> 13 | H27: 0.0 | J27: =Cyprus!R$30 -> 63 | K27: =Cyprus!S$30 -> 65 | L27: 3.2 | N27: =Cyprus!R$36 -> 0 | O27: =Cyprus!S$36 -> 0 | P27: 0.0 | R27: =Cyprus!R$39 -> 100 | S27: =Cyprus!S$39 -> 103 | T27: 3.0 | V27: =R27+N27+J27+F27+B27 -> 281 | W27: 288 | X27: 2.5
A28: CZ | B28: ='Czech Rep'!R$16 -> 537 | C28: ='Czech Rep'!S$16 -> 540 | D28: 0.6 | F28: ='Czech Rep'!R$23 -> 1,199 | G28: ='Czech Rep'!S$23 -> 1,243 | H28: 3.7 | J28: ='Czech Rep'!R$30 -> 905 | K28: ='Czech Rep'!S$30 -> 962 | L28: 6.3 | N28: ='Czech Rep'!R$36 -> 5 | O28: ='Czech Rep'!S$36 -> 5 | P28: =((O28/N28)-1)*100 -> 0.0 | R28: ='Czech Rep'!R$39 -> 85 | S28: ='Czech Rep'!S$39 -> 89 | T28: 4.7 | V28: =R28+N28+J28+F28+B28 -> 2,731 | W28: 2,839 | X28: 4.0
A29: EE | B29: =Estonia!R$16 -> 49 | C29: =Estonia!S$16 -> 42 | D29: -14.3 | F29: =Estonia!R$23 -> 116 | G29: =Estonia!S$23 -> 118 | H29: 1.7 | J29: =Estonia!R$30 -> 54 | K29: =Estonia!S$30 -> 49 | L29: -9.3 | N29: =Estonia!R$36 -> 1 | O29: =Estonia!S$36 -> 1 | P29: 0.0 | R29: =Estonia!R$39 -> 3 | S29: =Estonia!S$39 -> 2 | T29: -33.3 | V29: =R29+N29+J29+F29+B29 -> 223 | W29: 212 | X29: -4.9
A30: HU | B30: =Hungary!R$16 -> 558 | C30: =Hungary!S$16 -> 552 | D30: -1.1 | F30: =Hungary!R$23 -> 1,980 | G30: =Hungary!S$23 -> 2,039 | H30: 3.0 | J30: =Hungary!R$30 -> 1,771 | K30: =Hungary!S$30 -> 1,683 | L30: -5.0 | N30: =Hungary!R$36 -> 0 | O30: =Hungary!S$36 -> 0 | P30: 0.0 | R30: =Hungary!R$39 -> 191 | S30: =Hungary!S$39 -> 182 | T30: -4.7 | V30: =R30+N30+J30+F30+B30 -> 4,500 | W30: 4,456 | X30: -1.0
A31: LV | B31: =Latvia!R$16 -> 28 | C31: =Latvia!S$16 -> 47 | D31: 67.9 | F31: =Latvia!R$23 -> 107 | G31: =Latvia!S$23 -> 105 | H31: -1.9 | J31: =Latvia!R$30 -> 38 | K31: =Latvia!S$30 -> 37 | L31: -2.6 | N31: =Latvia!R$36 -> 0 | O31: =Latvia!S$36 -> 0 | P31: 0.0 | R31: =Latvia!R$39 -> 17 | S31: =Latvia!S$39 -> 18 | T31: 5.9 | V31: =R31+N31+J31+F31+B31 -> 190 | W31: 207 | X31: 8.9
A32: LT | B32: =Lithuania!R$16 -> 21 | C32: =Lithuania!S$16 -> 45 | D32: 114.3 | F32: =Lithuania!R$23 -> 98 | G32: =Lithuania!S$23 -> 117 | H32: 19.4 | J32: =Lithuania!R$30 -> 168 | K32: =Lithuania!S$30 -> 173 | L32: 3.0 | N32: =Lithuania!R$36 -> 4 | O32: =Lithuania!S$36 -> 5 | P32: =((O32/N32)-1)*100 -> 25.0 | R32: =Lithuania!R$39 -> 6 | S32: =Lithuania!S$39 -> 12 | T32: 100.0 | V32: =R32+N32+J32+F32+B32 -> 297 | W32: 352 | X32: 18.5
A33: PL | B33: =Poland!R$16 -> 421 | C33: =Poland!S$16 -> 551 | D33: 30.9 | F33: =Poland!R$23 -> 1,082 | G33: =Poland!S$23 -> 1,653 | H33: 52.8 | J33: =Poland!R$30 -> 3,474 | K33: =Poland!S$30 -> 3,815 | L33: 9.8 | N33: =Poland!R$36 -> 0 | O33: =Poland!S$36 -> 0 | P33: 0.0 | R33: =Poland!R$39 -> 299 | S33: =Poland!S$39 -> 322 | T33: 7.7 | V33: =R33+N33+J33+F33+B33 -> 5,276 | W33: 6,341 | X33: 20.2
A34: SK | B34: =Slovakia!R$16 -> 262 | C34: =Slovakia!S$16 -> 274 | D34: 4.6 | F34: =Slovakia!R$23 -> 394 | G34: =Slovakia!S$23 -> 422 | H34: 7.1 | J34: =Slovakia!R$30 -> 334 | K34: =Slovakia!S$30 -> 358 | L34: 7.2 | N34: =Slovakia!R$36 -> 0 | O34: =Slovakia!S$36 -> 0 | P34: 0.0 | R34: =+Slovakia!R$39 -> 12 | S34: =+Slovakia!S$39 -> 15 | T34: 25.0 | V34: =R34+N34+J34+F34+B34 -> 1,002 | W34: 1,069 | X34: 6.7
A35: SI | B35: =Slovenia!R$16 -> 129 | C35: =Slovenia!S$16 -> 130 | D35: 0.8 | F35: =Slovenia!R$23 -> 113 | G35: =Slovenia!S$23 -> 110 | H35: -2.7 | J35: =Slovenia!R$30 -> 233 | K35: =Slovenia!S$30 -> 225 | L35: -3.4 | N35: =Slovenia!R$36 -> 0 | O35: =Slovenia!S$36 -> 0 | P35: 0.0 | R35: =Slovenia!R$39 -> 9 | S35: =Slovenia!S$39 -> 9 | T35: 0.0 | V35: =R35+N35+J35+F35+B35 -> 484 | W35: 474 | X35: -2.1
A37: EUR 25 * | B37: =SUM(B14:B35) -> 37,867 | C37: 36,838 | D37: =((C37/B37)-1)*100 -> -2.7 | F37: =SUM(F14:F35) -> 47,222 | G37: 48,861 | H37: =((G37/F37)-1)*100 -> 3.5 | J37: =SUM(J14:J35) -> 45,593 | K37: 45,067 | L37: =((K37/J37)-1)*100 -> -1.2 | N37: =SUM(N14:N35) -> 1,672 | O37: 1,571 | P37: =((O37/N37)-1)*100 -> -6.0 | R37: =SUM(R14:R35) -> 8,570 | S37: 8,881 | T37: =((S37/R37)-1)*100 -> 3.6 | V37: =SUM(V14:V35) -> 140,924 | W37: 141,218 | X37: =((W37/V37)-1)*100 -> 0.2
A40: * Sans le Luxembourg, la Grèce et Malte/Ohne Luxemburg, Griechenland und Malta/Without Luxemburg, Greece and Malta/Senza Lussemburgo, Ellas e Malta
A41: : non disponible/not available

Sheet 2006
A1: 2008-05-15
A3: PRODUCTION INDUSTRIELLE D'ALIMENTS COMPOSES | P3: INDUSTRIELLE MISCHFUTTERPRODUKTION
A4: PRODUZIONE INDUSTRIALE DI MANGIMI COMPOSTI | P4: INDUSTRIAL COMPOUND PRODUCTION
A5: 2006
A6: definitif/final
P7: (1 000 t)
A9: Catégories d'aliments composés/Mischfutterarten | C9: DE | D9: FR | E9: IT | F9: NL | G9: BE | H9: UK | I9: IE | J9: DK | K9: ES | L9: PT | M9: AT | N9: SE | O9: FI | P9: EU-15
A10: Tipi di mangimi compositi/Types of feed | P10: *
A13: Bovins/Cattle/Bovini/Rinder | C13: =Germany!S16 -> 5,970 | D13: =France!S16 -> 4,778 | E13: =Italy!S16 -> 4,155 | F13: ='The Netherlands'!S16 -> 3,140 | G13: =Belgium!S16 -> 1,091 | H13: =UK!S16 -> 4,785 | I13: =Ireland!S16 -> 2,315 | J13: =Denmark!S16 -> 1,124 | K13: =Spain!S16 -> 4,100 | L13: =Portugal!S16 -> 910 | M13: =Austria!S16 -> 390 | N13: =Sweden!S16 -> 1,121 | O13: =Finland!S16 -> 671 | P13: =SUM(C13:O13) -> 34,550
A14: engrais/fattening/Mast | C14: =Germany!S17 -> 521 | D14: =France!S17 -> 1,494 | E14: =Italy!S17 -> : | F14: ='The Netherlands'!S17 -> 259 | G14: =Belgium!S17 -> 333 | H14: =UK!S17 -> 1,378 | I14: =Ireland!S17 -> 0 | J14: : | K14: : | L14: =Portugal!S17 -> 360 | M14: =Austria!S17 -> : | N14: : | O14: : | P14: :
A15: VL/dairy cow/Milchkühe | C15: =Germany!S18 -> 5,173 | D15: =France!S18 -> 2,809 | E15: =Italy!S18 -> : | F15: ='The Netherlands'!S18 -> 2,881 | G15: =Belgium!S18 -> 494 | H15: =UK!S18 -> 3,141 | I15: =Ireland!S18 -> 0 | J15: =Denmark!S18 -> 736 | K15: : | L15: =Portugal!S18 -> 454 | M15: =Austria!S18 -> : | N15: : | O15: =Finland!S18 -> 612 | P15: :
A16: veaux (aliments d'allaitement non compris)/calves | C16: =Germany!S19 -> 0 | D16: =France!S19 -> 0 | E16: =Italy!S19 -> : | F16: ='The Netherlands'!S19 -> : | G16: =Belgium!S19 -> 85 | H16: =UK!S19 -> 191 | I16: =Ireland!S19 -> 0 | J16: =Denmark!S19 -> 388 | K16: : | L16: =Portugal!S19 -> 61 | M16: =Austria!S19 -> : | N16: : | O16: =Finland!S19 -> 59 | P16: :
A17: (excluding milk replacers)/Kälber (exkl. Milchaustauscher)
A18: autres/others/Andere | C18: =Germany!S20 -> 276 | D18: =France!S20 -> 475 | E18: =Italy!S20 -> : | F18: ='The Netherlands'!S20 -> : | G18: =Belgium!S20 -> 179 | H18: =UK!S20 -> 75 | I18: =Ireland!S20 -> 0 | J18: =Denmark!S20 -> : | K18: : | L18: =Portugal!S20 -> 35 | M18: =Austria!S20 -> : | N18: : | O18: =Finland!S20 -> 0 | P18: :
A21: Porcins/Pigs/Suini/Schweine | C21: =Germany!S23 -> 8,142 | D21: =France!S23 -> 6,302 | E21: =Italy!S23 -> 2,980 | F21: ='The Netherlands'!S23 -> 5,672 | G21: =Belgium!S23 -> 3,412 | H21: =UK!S23 -> 1,672 | I21: =Ireland!S23 -> 608 | J21: =Denmark!S23 -> 3,329 | K21: =Spain!S23 -> 8,935 | L21: =Portugal!S23 -> 1,025 | M21: =Austria!S23 -> 219 | N21: =Sweden!S23 -> 385 | O21: =Finland!S23 -> 360 | P21: =SUM(C21:O21) -> 43,041
A22: porcelets/piglets/Ferkel | C22: =Germany!S24 -> 1,628 | D22: =France!S24 -> 784 | E22: =Italy!S24 -> : | F22: ='The Netherlands'!S24 -> 758 | G22: =Belgium!S24 -> 772 | H22: =UK!S24 -> 95 | I22: =Ireland!S24 -> 0 | J22: =Denmark!S24 -> 643 | K22: : | L22: =Portugal!S24 -> 158 | M22: =Austria!S24 -> : | N22: : | O22: =Finland!S24 -> 49 | P22: :
A23: porcs engrais/pigs for fattening/Mastschweine | C23: =Germany!S25 -> 4,885 | D23: =France!S25 -> 4,388 | E23: =Italy!S25 -> : | F23: ='The Netherlands'!S25 -> 3,698 | G23: =Belgium!S25 -> 2,640 | H23: =UK!S25 -> 1,111 | I23: =Ireland!S25 -> 0 | J23: =Denmark!S25 -> 1,973 | K23: : | L23: =Portugal!S25 -> 630 | M23: =Austria!S25 -> : | N23: : | O23: =Finland!S25 -> 198 | P23: :
